{"text_format":"1","workbook":"xlsx","n_sheets":13,"sheets":["1. Welcome","2. ID-Card","3. Scoping","4. Practices","5. Outcomes","DataOrgInfos","Data","6. RAI_dashboard","7. RAI_Scores","8. Scoring explanations","codes","Scoring","filters"],"not_rendered":{"charts":12,"images":3,"macros":1,"external_links":1,"defined_names":46,"comments":0,"pivot_tables":0},"unopened":[],"bounds":{"document_bytes":16777216,"sheet_cells":100000,"rows_first":2000,"rows_last":500,"rows_between":2000,"halvings":0,"cell_chars":16384,"cell_head_chars":4096},"cells_cut":0,"cells_raw":0,"read":"whole","date_system":"1900"}

{"sheet":"1. Welcome","index":0,"n_rows":35,"n_cols":2,"rows_kept":35,"cut":false,"hidden":false,"merged":[]}
[]
[null,"Responsible Agricultural Investment Tool for Agribusiness"]
[null,"(RAI TOOL for Agribusiness)"]
[null,"The Responsible Agricultural Investment Tool ('RAI Tool\") is a management tool developed, piloted, and refined by IISD, Cerise+SPTF, and partner organisations to help agribusinesses and agricultural value-chain actors align their policies and procedures with best practices of responsible business conduct.  It promotes compliance with international standards such as the CFS-RAI Principles and IFC Performance Standards."]
[null,"Please help us improve the tool as you use it! \nShare your feedback with Cerise+SPTF (support@spi-online.org) and IISD rai@iisd.org"]
[null,"A Tool for Whom?"]
[null,"This version of the tool has been designed for agribusinesses/agricultural value-chain actors [AVCAs] /agricultural SMEs that are involved in the production, processing and/or trading of agricultural and food products, and that in many cases work directly with smallholder farmers and source agricultural products from them."]
[null,"This focus is consistent with that of CSAF, the Council on Smallholder Agricultural Finance, and matches the major part of impact investors' agricultural portfolio. "]
[null,"Upstream agribusinesses, which provide inputs/material/technologies to smallholder farmers may be integrated into the RAI scoring tool at a later stage. In the meantime, other tools actors are available, e.g., the Cerise+SPTF Social Business Scorecard "]
[null,"https://en.spi-online.org/tools#sbs_en_Content"]
[null,"Agricultural SMEs that mainly focus on providing financial services to smallholder farmers can be assessed using the SPI Online tools dedicated to financial service providers (https://en.spi-online.org)."]
[]
[null,"Objective of the Tool"]
[null,"The objective of the RAI Tool is to assess whether an agribusiness's management of its operations, practices, and procedures is in line with internationally recognised best practices of responsible business conduct, particularly as defined in the principles on responsible investment in the agricultural and food systems (CFS-RAI Principles) and in IFC Performance Standards."]
[null,"The CFS-RAI principles and IFC Performance Standards remain quite generic and high-level, making it difficult for agricultural value-chain actors (AVCAs) to translate into their daily management and operations. The objective of the RAI Tool is to provide a framework that integrates these international standards into the management and operational structure of AVCAs, in order to make it easier for agribusinesses to understand and apply responsible business practices and foster the mainstreaming of responsible agricultural investments."]
[]
[null,"How the Tool Was Built"]
[null,"Our approach was, wherever possible, to build on existing key practices and performance indicators. "]
[null,"The tool is aligned and cross-referenced with CFS-RAI Principles, ASEAN-RAI Principles, IFC Performance Standards, CSAF ESG principles and Standard Impact Metrics, the SAFA Tool, the SDGs, key Fair Trade standards, and uses GIIN/IRIS+ indicators whenever possible (reference code specified)."]
[null,"The RAI Tool also builds on the approach of the Universal Standards for Social and Environmental Performance Management and the SPI tools, adapted to the agricultural sector as required."]
[]
[null,"How to Use the Tool"]
[null,"The tool comes with a Guidance and reporting \"template\" documents on when and how to use the tool at"]
[null,"https://www.iisd.org/publications/guide/responsible-agricultural-investment-tool-agribusiness"]
["Or","Towards Responsible Business Conduct in Agribusinesses (RAI Tool) - SPI Online (spi-online.org)"]
[null,"The tool is composed of the following sections:"]
[null,"1) ID card - This section is completed with essential information on an agribusiness's profile (name, country, legal status...). Financial and operational indicators are not collected here, but it is still recommended to analyse and interpret the results of the RAI tool in light of these data (see reporting template)."]
[null,"2) Scoping questions - This section is composed of additional questions on the agribusiness's profile that are used to filter in or out relevant indicators of the Practices section, in order to adjust the tool to the profile of the agribusiness."]
[null,"3) Practices - This section comprises a list of indicators that can be answered as Yes/No/Partially. Agribusinesses have to provide evidence for each response. To make the tool useful for analysis, decision making, and progress, we highly recommend providing detailed information on the concrete practices implemented by the organisation. A few tools are referenced to allow organisations to go further on some issues."]
[null,"4) Outcomes - This section proposes a limited set of outputs and outcomes indicators, aligned with CSAF, with precise definitions."]
[null,"5) RAI dashboard and scores - These sections allow visualisation of some key results after completion of the previous sections."]
[]
[]
[]
[null,"This work is licensed under a Creative Commons Attribution-NonCommercial-NoDerivatives 4.0 International License."]

{"sheet":"2. ID-Card","index":1,"n_rows":72,"n_cols":17,"rows_kept":72,"cut":false,"hidden":false,"merged":[[40,1,40,5],[42,1,42,4],[1,1,1,5],[1,9,1,10]]}
[]
[null,"ORGANISATION ID CARD",null,null,null,null,null,"For users: We welcome suggestions on how the tool could be improved.",null,"Sources of some indicators"]
[]
[null,"Date of the assessment",null,"YY/MM/YYYY"]
["ID-1","Reporting details",null,"Data","Validation or explanation of response, comments and clarifications","Explanation/Note",null,"Suggestions",null,"CSAF Impact","IRIS+",null,null,null,null,null,{"$f":"ADDRESS(ROW(A5),COLUMN(A5))","v":"$A$5"}]
["ID-2","GENERAL INFORMATION",null,null,null,null,null,null,null,null,null,null,null,null,null,null,{"$f":"ADDRESS(ROW(A6),COLUMN(A6))","v":"$A$6"}]
["ID-3","Name",null,null,null,"Full name in order to avoid double-counting, mistaking for other companies, etc.",null,null,null,"CSAF Impact",null,null,null,null,null,null,"$A$7"]
["ID-4","Acronym (if any)",null,null,null,null,null,null,null,null,null,null,null,null,null,null,"$A$8"]
["ID-5","Year of establishment",null,null,null,"Year the organisation was founded.",null,null,null,"CSAF Impact",null,null,null,null,null,null,"$A$9"]
["ID-6","Country of registration",null,null,null,null,null,null,null,null,null,null,null,null,null,null,"$A$10"]
["ID-7","Primary country of operation",null,null,null,"Country where the largest portion of the organisation's opertions take place",null,null,null,"CSAF Impact",null,null,null,null,null,null,"$A$11"]
["ID-8","Additional country(s) of operation",null,null,null,"Any additional countries where the organisation operates",null,null,null,"CSAF Impact",null,null,null,null,null,null,"$A$12"]
["ID-9","Parent company(ies), if any",null,null,null,null,null,null,null,null,null,null,null,null,null,null,"$A$13"]
["ID-10","Country(ies) where any parent company(ies) are registered",null,null,null,null,null,null,null,null,null,null,null,null,null,null,"$A$14"]
["ID-11","Legal status / type of ownership",null,"----",null,"* Private company - A for-profit company is an organisation that aims to earn profit through its operations and is concerned with the interests of its shareholders (or stakeholders). Dividends based on profits are distributed to shareholders, partners, or individuals who own the company.  Types of for-profit companies may include limited liability companies, partnerships, and sole proprietorship. \n* Cooperative - A jointly owned enterprise engaging in the production, processing, or distribution of goods or the supplying of services, operated by its members for their mutual benefit.  Members pool financial resources, usually as shares, and deploy these resources in selected areas of their  activity.\n* Non-profit organisation - A nonprofit organisation is an entity whose purpose is to further a particular  cause or advocate for a particular point of view. Non-profit organisations do not normally have shareholders or pay dividends, and their revenue must go toward specific causes, in accordance with their mission. ",null,null,null,"CSAF Impact",null,null,null,null,null,null,"$A$15"]
["ID-12","Nature or main focus of business",null,null,null,null,null,null,null,null,null,null,null,null,null,null,"$A$16"]
["ID-13","Mission statement",null,null,null,null,null,null,null,null,null,null,null,null,null,null,"$A$17"]
[null,"SIZE OF THE ORGANISATION"]
[null,"Is the organisation considered as micro?",null,"----",null,"If the organisation has fewer than 10 permanent employees, it is considered as micro.\nSCOPING EFFECT: If YES, fewer indicators will apply."]
[null,"SECTOR OF ACTIVITY"]
[null,"Crop (specify)",null,"----",null,"Please specify the type of crop(s) produced, processed or traded by the organisation during the reporting period.",null,null,null,"CSAF Impact","PD1620"]
[null,"Livestock (specify)",null,"----",null,"Please specify the type of livestock product(s) produced, processed or traded by the organisation during the reporting period.\nSCOPING EFFECT: If YES, indicators related to ANIMAL WELFARE will apply.",null,null,null,null,"PD4686"]
[null,"Forestry (specify)",null,"----"]
[null,"Wild harvest (specify)",null,"----"]
[null,"Fishery (specify)",null,"----",null,"Please specify the type of fishery product(s) produced, processed, or traded by the organisation during the reporting period.\nSCOPING EFFECT: If YES, indicators related to ANIMAL WELFARE will apply.",null,null,null,null,"PD4686"]
[null,"Aquaculture (specify)",null,"----"]
[null,"TYPE OF AGRICULTURAL PRODUCT"]
[null,"Food",null,"----"]
[null,"Non-food",null,"----"]
[null,"ROLE IN THE VALUE-CHAIN - Please select all roles played by the organisation, even if done as a side activity (not core business)"]
[null,"Input supply",null,"----",null,"Provision of seeds, fertilisers, pesticides, or other inputs to smallholder farmers . This can be conducted as a core business, or as part of contract farming/outgrower schemes agreements.",null,null,null,"CSAF Impact"]
[null,"Production",null,"----",null,"Production of agricultural goods",null,null,null,"CSAF Impact"]
[null,"Processing",null,"----",null,"Processing and/or packaging of agricultural goods",null,null,null,"CSAF Impact"]
[null,"Trade",null,"----",null,"Purchase of agriculture products from smallholder farmers, and sale within the value chain, including to the final market."]
[null,"Facilitation services",null,"----",null,"Provision of services to smallholder farmers, to facilitate their integration into agriculture value chains (e.g., financial services, training, market linkage, information…)"]
[null,"ULTIMATE DESTINATION OF THE AGRICULTURAL PRODUCT"]
[null,"Local market",null,"----",null,"\"Local\" refers to national market.\nSCOPING EFFECT: If YES, indicators related to LOCAL MARKET PREFERENCES will apply."]
[null,"Regional market",null,"----",null,"\"Regional\" refers to nearby countries (e.g. West African region)\nSCOPING EFFECT: If YES, indicators related to FOOD SECURITY will apply."]
[null,"International market",null,"----"]
[]
[null,"Certifications can already cover part of the Practices and Outcomes indicators. We recommend that you refer to existing certifications obtained by the agribusiness to fill in more quickly the Practices and Outcomes sections."]
[null,"PRODUCT CERTIFICATION",null,null,null,null,null,null,null,"CSAF Impact"]
[null,"Does the organisation and/or its suppliers have certifications linked to the following:",null,null,null,"Describes third-party certifications for products/services sold by the organisation that are valid as of the end of the reporting period. Please list any/all certifications held.",null,null,null,null,"PD2756"]
[null,"Organic agriculture (specify)",null,"----"]
[null,"Sustainable agriculture (specify)",null,"----"]
[null,"Fairtrade (specify)",null,"----"]
[null,"Biodiversity and climate change (specify)",null,"----"]
[null,"Food quality and safety (specify)",null,"----"]
[null,"Corporate Social Responsibility (specify)",null,"----"]
[null,"Other 1 (please specify)",null,"----"]
[null,"Other 2 (please specify)",null,"----"]
[null,"Other 3 (please specify)",null,"----"]
[]
[]
[]
[null,null,null,"----"]
[null,null,null,"Yes"]
[null,null,null,"No"]
[]
[]
[null,null,null,"----"]
[null,null,null,"DIRECTLY - by the organisation and/or its direct affiliate"]
[null,null,null,"INDIRECTLY - through contracted agents"]
[null,null,null,"INDIRECTLY - through other third-party provider"]
[null,null,null,"NO"]
[]
[]
[]
[null,null,null,"----"]
[null,null,null,"Private company"]
[null,null,null,"Cooperative"]
[null,null,null,"Non-profit organisation"]

{"sheet":"3. Scoping","index":2,"n_rows":26,"n_cols":13,"rows_kept":26,"cut":false,"hidden":false,"merged":[[1,1,1,4],[2,1,2,3],[1,8,1,9]]}
[]
[null,"SCOPING QUESTIONS",null,null,null,null,"For users: We welcome suggestions on how the tool could be improved.",null,"Sources of selected indicators"]
[null,"Answers provided to the following questions will automatically adjust the selection of indicators in the Practices form, keeping only the indicators relevant to the profile of the agribusiness. "]
[null,"Reporting details","Data","Validation or explanation of response, comments and clarifications","Explanation/Note",null,"Suggestions",null,"Iris+",null,null,null,"line number"]
[null,"ANIMAL WELFARE",null,null,null,null,null,null,null,null,null,null,{"$f":"ADDRESS(ROW(C5),COLUMN(C5))","v":"$C$5"}]
[null,"Is the agribusiness involved in one of the following sectors: LIVESTOCK, FISHERY, AQUACULTURE?","----",null,"If YES, indicators related to ANIMAL WELFARE will apply.",null,null,null,"PD4686",null,null,null,"$C$6"]
[null,"FOOD SAFETY",null,null,null,null,null,null,null,null,null,null,"$C$7"]
[null,"Is the agribusiness involved in FOOD-related production, processing or trading?","----",null,"If YES, indicators related to FOOD SAFETY will apply.",null,null,null,null,null,null,null,"$C$8"]
[null,"MARKET PREFERENCES",null,null,null,null,null,null,null,null,null,null,"$C$9"]
[null,"Is the ultimate destination of the agricultural product the LOCAL MARKET?","----",null,"\"Local\" refers to national market.\nIf YES, indicators related to LOCAL MARKET PREFERENCES will apply.",null,null,null,null,null,null,null,"$C$10"]
[null,"FOOD SECURITY",null,null,null,null,null,null,null,null,null,null,{"$f":"ADDRESS(ROW(C11),COLUMN(C11))","v":"$C$11"}]
[null,"Is the agribusiness involved in NON-FOOD-related production, processing, or trading; or is the ultimate destination of the agricultural product the REGIONAL or INTERNATIONAL MARKET?","----",null,"SELECT \"YES\" IF ANY OF THESE SITUATIONS APPLY\n\"Regional\" refers to nearby countries (e.g. West African region)\nIf YES, indicators related to FOOD SECURITY will apply.",null,null,null,null,null,null,null,"$C$12"]
[]
[null,"----"]
[null,"Yes"]
[null,"No"]
[]
[null,"----"]
[null,"Small"]
[null,"Medium & Large"]
[]
[null,"----"]
[null,"DIRECTLY - by the organisation and/or its direct affiliate"]
[null,"INDIRECTLY - through contracted agents"]
[null,"INDIRECTLY - through other third-party provider"]
[null,"NO"]

{"sheet":"4. Practices","index":3,"n_rows":311,"n_cols":57,"rows_kept":311,"cut":false,"hidden":false,"merged":[[78,41,85,41],[2,11,3,11],[2,10,3,10],[19,6,22,6],[239,41,240,41],[186,41,190,41],[104,6,108,6],[2,13,2,22],[2,23,2,32],[1,1,1,6],[1,10,1,11],[1,13,1,42],[1,46,1,47],[2,1,2,5],[2,33,2,40],[2,52,2,55],[162,46,164,46],[174,46,177,46],[180,46,184,46],[138,46,144,46],[89,46,91,46],[145,46,149,46]]}
[]
[null,"RESPONSIBLE PRACTICES",null,null,null,null,null,null,"For users: We welcome suggestions on how the tool could be improved.",null,"Sources of selected indicators",null,null,"Mapping against RAI related principles and guideliners (some examples)",null,null,null,null,null,null,null,null,null,null,null,null,null,null,null,null,null,null,null,null,null,null,null,null,null,null,null,null,null,null,null,null,"Key Resources, Notes and Examoles"]
[null,null,null,null,null,null,null,null,null,null,null,null,null,"CFS-RAI principles",null,null,null,null,null,null,null,null,null,"ASEAN-RAI principles",null,null,null,null,null,null,null,null,null,"IFC PS",null,null,null,null,null,null,null,"SAFA TOOL 2.4.1","ESG (USSEPM)",null,"Business Units"]
[null,null,null,null,null,null,null,null,null,null,null,null,null,null,null,null,null,null,null,null,null,null,null,null,null,null,null,null,null,null,null,null,null,null,null,null,null,null,null,null,null,null,null,null,"To be developed in a next phase",null,null,null,null,null,null,null,"Animal welfare","Food safety","Market preferences","Food security"]
[null,"Level","Number","Label","Answers","Validation or explanation of response, comments, and clarifications","Explanation/note",null,"Suggestions",null,"CSAF","Iris+",null,1,2,3,4,5,6,7,8,9,10,1,2,3,4,5,6,7,8,9,10,1,2,3,4,5,6,7,8,null,null,null,null,null,null,"line number",null,null,null,null,"Scope_animal_welfare","Scope_food_safety","Scope_market_preferences","Scope_food_security","Filter"]
[null,"Dimension","1","Strategy and accountability on responsible agriculture",null,null,null,null,null,null,null,null,null,null,null,null,null,null,null,null,null,null,null,null,null,null,null,null,null,null,null,null,null,null,null,null,null,null,null,null,null,null,null,null,null,null,"Resources:\n* \"The Principles for Responsible Investment in Agriculture and Food Systems\" - FAO elearning Academy - https://elearning.fao.org/course/view.php?id=380",{"$f":"ADDRESS(ROW(C6),COLUMN(C6))","v":"$C$6"},null,null,null,null,null,null,null,null,{"$f":"IF(OR(AND(Scope_animal_welfare=\"No\",BA6=\"x\"),AND(Scope_food_safety=\"No\",BB6=\"x\"),AND(Scope_market_preferences=\"No\",BC6=\"x\"),AND(Scope_food_security=\"No\",BD6=\"x\")),\"FALSE\",\"TRUE\")","v":"TRUE"}]
[null,"Standard","1.A","The organisation has a strategy on responsible business conduct and systems in place to implement it.",null,null,"Responsible business conduct is defined by OECD as “making a positive contribution to economic, environmental and social progress with a view to achieving sustainable development, and avoiding and addressing adverse impacts related to an enterprise's direct and indirect operations, products or services”",null,null,null,null,null,null,null,null,null,null,null,null,null,null,null,null,null,null,null,null,null,null,null,null,null,null,"X",null,null,null,null,null,null,null,null,null,null,null,null,null,"$C$7",null,null,null,null,null,null,null,null,"TRUE"]
[null,"EP","1.A.1","The organisation has a documented strategy on responsible business conduct.",null,null,null,null,null,null,null,null,null,null,null,null,null,null,null,null,null,null,null,"X","X",null,null,null,null,null,null,null,null,"X",null,null,null,null,null,null,null,null,"x",null,null,null,"Resources:\n* \"Responsible investment in agriculture and food systems - targeted to the private sector\" - FAO elearning Academy - https://elearning.fao.org/course/view.php?id=626","$C$8",null,null,null,null,null,null,null,null,"TRUE"]
[null,"Indicator","1.A.1.1","The strategy defines the positive contribution to sustainable development and inclusive growth that the organisation seeks to create, such as:\n- contributing to food security and nutrition,\n- contributing to sustainable and inclusive economic development,\n- fostering gender equality and women empowerment,\n- fostering rural youth empowerment,\n- other.","----",null,null,null,null,null,null,null,null,"X","X","X","X",null,null,null,null,null,null,"X","X",null,null,null,null,null,null,null,null,null,null,null,null,null,null,null,null,"G 1.1.1 Mission Explicitness",null,null,null,null,null,"$C$9",null,null,null,null,null,null,null,null,"TRUE"]
[null,"Indicator","1.A.1.2","The strategy articulates how the organisation will mitigate the social and environmental risks related to its direct or indirect operations, products and services:",null,null,null,null,null,null,null,null,null,null,"X",null,null,"X","X","X","X","X","X",null,null,null,"X","X",null,null,null,"X",null,null,null,null,null,null,null,null,null,null,"1A14",null,null,null,null,"$C$10",null,null,null,null,null,null,null,null,"TRUE"]
[null,"Detail","1.A.1.2.1","Negative effects on stakeholders (farmers, suppliers, clients, consumers, local communities…)","----",null,null,null,null,null,null,null,null,null,null,null,null,null,null,null,"X","X","X",null,null,null,null,null,null,null,null,"X",null,null,null,null,null,null,null,null,null,null,"x",null,null,null,null,"$C$11",null,null,null,null,null,null,null,null,"TRUE"]
[null,"Detail","1.A.1.2.2","Violations of human rights, labour rights, tenure rights or cultural heritage","----",null,null,null,null,null,null,null,null,null,"X",null,null,"X",null,"X",null,null,null,null,null,null,"X",null,null,null,null,null,null,"X",null,null,null,null,null,null,null,null,"x",null,null,null,null,"$C$12",null,null,null,null,null,null,null,null,"TRUE"]
[null,"Detail","1.A.1.2.3","Negative impacts on the environment","----",null,null,null,null,null,null,null,null,null,null,null,null,null,"X",null,null,null,"X",null,null,null,null,"X",null,null,null,null,null,null,null,null,null,null,null,null,null,null,"x",null,null,null,null,"$C$13",null,null,null,null,null,null,null,null,"TRUE"]
[null,"Indicator","1.A.1.3","The strategy defines indicators and targets to measure the organisation's progress towards its responsible business conduct objectives.","----",null,null,null,null,null,null,null,null,null,null,null,null,null,null,null,null,null,null,null,null,null,null,null,null,null,null,null,null,null,null,null,null,null,null,null,null,null,null,null,null,null,null,"$C$14",null,null,null,null,null,null,null,null,"TRUE"]
[null,"EP","1.A.2","The organisation ensures the implementation and oversight of the strategy on responsible business conduct.",null,null,null,null,null,null,null,null,null,null,null,null,null,null,null,null,null,null,null,null,null,null,null,null,null,null,null,null,null,null,null,null,null,null,null,null,null,null,null,null,null,null,null,"$C$15",null,null,null,null,null,null,null,null,"TRUE"]
[null,"Indicator","1.A.2.1","The organisation ensures that its own operations comply with its strategy on responsible business conduct:",null,null,null,null,null,null,null,null,null,null,null,null,null,null,null,null,null,null,null,null,null,null,null,null,null,null,null,null,null,null,null,null,null,null,null,null,null,null,"x",null,null,null,null,"$C$16",null,null,null,null,null,null,null,null,"TRUE"]
[null,"Detail","1.A.2.1.1","The organisation includes goals and targets related to responsible business conduct in the business plan or operational plan.","----",null,null,null,null,null,null,null,null,null,"X",null,null,null,null,null,null,null,null,null,null,null,null,null,null,null,null,null,null,null,null,null,null,null,null,null,null,"G 5.1.1 Sustainability Management Plan",null,null,null,null,null,"$C$17",null,null,null,null,null,null,null,null,"TRUE"]
[null,"Detail","1.A.2.1.2","The organisation defines roles and responsibilities in implementing its strategy on responsible business conduct.","----",null,null,null,null,null,null,null,null,null,null,null,null,null,null,null,null,null,null,null,null,null,null,null,null,null,null,null,null,"X",null,null,null,null,null,null,null,"X","x",null,null,null,null,"$C$18",null,null,null,null,null,null,null,null,"TRUE"]
[null,"Detail","1.A.2.1.3","The organisation monitors regularly the compliance of its operations, products and services with its strategy on responsible business conduct, and with all applicable international and national laws, regulations, and voluntary standards related to responsible business conduct.","----",null,null,null,null,null,null,null,null,null,null,"X",null,null,null,null,null,null,null,null,null,null,null,null,null,null,null,null,null,"X",null,null,null,null,null,null,null,"G 4.1.1 Legitimacy","2B22",null,null,null,null,"$C$19",null,null,null,null,null,null,null,null,"TRUE"]
[null,"Indicator","1.A.2.2","The organisation seeks to ensure that the operations of its suppliers and key business partners are aligned with its strategy on responsible business conduct:",null,null,"In this indicator and its details, the terms \"suppliers and key business partners\" refer to major players/medium to large-size organisations with which the agribusiness has a business relationship - NOT to individual smallholder farmers.",null,null,null,null,null,null,null,null,null,null,null,null,null,null,null,null,null,null,null,null,null,null,null,null,null,null,null,null,null,null,null,null,null,null,null,"x",null,null,null,null,"$C$20",null,null,null,null,null,null,null,null,"TRUE"]
[null,"Detail","1.A.2.2.1","Prior to signing a contract with a supplier or business partner, the organisation conducts an evaluation of its practices related to responsible business conduct (i.e. existence of a code of conduct, organisation of trainings on responsible business conduct, Environmental & Social Monitoring System in place, etc.). ","----",null,null,null,null,null,null,"OI4739",null,"X",null,null,null,null,null,null,null,null,null,null,null,null,null,null,null,null,null,null,null,null,"X",null,null,null,null,null,null,null,"x",null,null,null,null,"$C$21",null,null,null,null,null,null,null,null,"TRUE"]
[null,"Detail","1.A.2.2.2","The organisation integrates responsible business conduct conditions into its contractual agreements with key suppliers and business partners.","----",null,null,null,null,null,null,null,null,null,"X",null,null,null,null,null,null,null,null,null,null,null,null,null,null,null,null,null,null,null,"X",null,null,null,null,null,null,null,"x",null,null,null,null,"$C$22",null,null,null,null,null,null,null,null,"TRUE"]
[null,"Detail","1.A.2.2.3","The organisation regularly monitors the performance of key suppliers and business partners in terms of responsible business conduct.","----",null,null,null,null,null,null,null,null,null,null,null,null,null,null,null,null,null,null,null,null,null,null,null,null,null,null,null,null,null,"X",null,null,null,null,null,null,null,null,null,null,null,null,"$C$23",null,null,null,null,null,null,null,null,"TRUE"]
[null,"Indicator","1.A.2.3","The board and senior management make strategic decisions based on data related to responsible business conduct, such as:",null,null,null,null,null,null,null,null,null,"X","X","X",null,null,null,null,null,null,null,null,"X",null,null,null,null,null,"X","X",null,null,null,null,null,null,null,null,null,"G 1.1.2 Mission Driven","2A31/2A33",null,null,null,null,"$C$24",null,null,null,null,null,null,null,null,"TRUE"]
[null,"Detail","1.A.2.3.1","Assessment of actual and potential environmental and social risks and impacts","----",null,null,null,null,null,null,null,null,"X",null,null,null,null,null,null,null,null,null,null,null,null,null,null,null,null,null,"X",null,null,null,null,null,null,null,null,null,null,"x",null,null,null,null,"$C$25",null,null,null,null,null,null,null,null,"TRUE"]
[null,"Detail","1.A.2.3.2","Stakeholders' consultation reports","----",null,null,null,null,null,null,null,null,null,"X",null,null,null,null,null,null,null,null,null,null,null,null,null,null,null,"X",null,null,null,null,null,null,null,null,null,null,null,"x",null,null,null,null,"$C$26",null,null,null,null,null,null,null,null,"TRUE"]
[null,"Detail","1.A.2.3.3","Analysis of grievances received from stakeholders","----",null,null,null,null,null,null,null,null,null,null,"X",null,null,null,null,null,null,null,null,null,null,null,null,null,null,"X",null,null,null,null,null,null,null,null,null,null,null,"x",null,null,null,null,"$C$27",null,null,null,null,null,null,null,null,"TRUE"]
[null,"Detail","1.A.2.3.4","Employee turnover rate, by gender","----",null,null,null,null,null,null,null,null,null,null,null,null,null,null,null,null,null,null,null,"X",null,null,null,null,null,null,null,null,null,null,null,null,null,null,null,null,null,"2A33",null,null,null,null,"$C$28",null,null,null,null,null,null,null,null,"TRUE"]
[null,"Detail","1.A.2.3.5","Analysis of employee satisfaction surveys","----",null,null,null,null,null,null,null,null,null,null,null,null,null,null,null,null,null,null,null,"X",null,null,null,null,null,null,null,null,null,null,null,null,null,null,null,null,null,"2A33",null,null,null,null,"$C$29",null,null,null,null,null,null,null,null,"TRUE"]
[null,"Standard","1.B","The organisation assesses and manages its environmental and social (E&S) risks and impacts.",null,null,null,null,null,null,null,null,null,null,null,null,null,null,null,null,null,null,"X",null,null,null,null,null,null,null,null,"X",null,"X",null,null,null,null,null,null,null,"G 1.2.1 Due Diligence",null,null,null,null,null,"$C$30",null,null,null,null,null,null,null,null,"TRUE"]
[null,"EP","1.B.1","The organisation assesses its current and potential E&S risks and impacts.",null,null,null,null,null,null,null,null,null,null,null,null,null,null,null,null,null,null,"X",null,null,null,null,null,null,null,null,"X",null,"X",null,null,null,null,null,null,null,null,null,null,null,null,null,"$C$31",null,null,null,null,null,null,null,null,"TRUE"]
[null,"Indicator","1.B.1.1","The organisation conducts regular assessments of the actual and potential E&S risks and impacts of its operations, processes, products, and services, over their full life cycle:",null,null,null,null,null,null,null,null,null,null,null,null,null,null,null,null,null,null,"X",null,null,null,null,null,null,null,null,"X",null,"X",null,null,null,null,null,null,null,"G2.1.1 Holistic Audits","2B21/7B21/7B22",null,null,null,"Resources:\n* \"Assessing risks in agriculture\" - FAO elearning Academy - https://elearning.fao.org/course/view.php?id=449","$C$32",null,null,null,null,null,null,null,null,"TRUE"]
[null,"Detail","1.B.1.1.1","The organisation has documented policies or procedures defining the scope and level of effort devoted to E&S risks and impacts assessment.","----",null,null,null,null,null,null,null,null,null,null,null,null,null,null,null,null,null,"X",null,null,null,null,null,null,null,null,"X",null,"X",null,null,null,null,null,null,null,null,null,null,null,null,"Based on the type, scale and location of its operations","$C$33",null,null,null,null,null,null,null,null,"TRUE"]
[null,"Detail","1.B.1.1.2","The organisation defines indicators and targets to monitor its E&S risks and impacts over time.","----",null,null,null,null,null,null,null,null,null,null,null,null,null,null,null,null,null,"X",null,null,null,null,null,null,null,null,"X",null,"X",null,null,null,null,null,null,null,"G 2.2.1 Responsibility",null,null,null,null,null,"$C$34",null,null,null,null,null,null,null,null,"TRUE"]
[null,"Detail","1.B.1.1.3","The assessments are conducted on a regular basis and cover all E&S risks and impacts relevant to the organisation.","----",null,null,null,null,null,null,null,null,null,null,null,null,null,null,null,null,null,"X",null,null,null,null,null,null,null,null,"X",null,"X",null,null,null,null,null,null,null,"G 2.2.1 Responsibility",null,null,null,null,null,"$C$35",null,null,null,null,null,null,null,null,"TRUE"]
[null,"Indicator","1.B.1.2","The assessments are conducted in a sincere, inclusive, and transparent way:",null,null,null,null,null,null,null,null,null,null,null,null,null,null,null,null,null,null,"X",null,null,null,null,null,null,null,null,"X",null,"X",null,null,null,null,null,null,null,null,null,null,null,null,null,"$C$36",null,null,null,null,null,null,null,null,"TRUE"]
[null,"Detail","1.B.1.2.1","The organisation uses certifications or other recognised frameworks or tools for assessing its E&S risks and impacts.","----",null,null,null,null,null,null,null,null,null,null,null,null,null,null,null,null,null,"X",null,null,null,null,null,null,null,null,"X",null,"X",null,null,null,null,null,null,null,null,null,null,null,null,null,"$C$37",null,null,null,null,null,null,null,null,"TRUE"]
[null,"Detail","1.B.1.2.2","The assessments are conducted by independent third parties.","----",null,null,null,null,null,null,null,null,null,null,null,null,null,null,null,null,null,"X",null,null,null,null,null,null,null,null,"X",null,"X",null,null,null,null,null,null,null,null,null,null,null,null,null,"$C$38",null,null,null,null,null,null,null,null,"TRUE"]
[null,"Detail","1.B.1.2.3","The organisation involves all relevant stakeholders in the assessment process, including the most vulnerable.","----",null,null,null,null,null,null,null,null,null,null,null,null,null,null,null,null,null,"X",null,null,null,null,null,null,null,null,"X",null,"X",null,null,null,null,null,null,null,"G 2.2.1 Responsibility",null,null,null,null,null,"$C$39",null,null,null,null,null,null,null,null,"TRUE"]
[null,"Detail","1.B.1.2.4","The assessments analyse risks and impacts specifically pertaining to individuals or groups identified as disadvantaged or vulnerable, such as smallholder farmers, women, youth, and Indigenous People.  ","----",null,null,null,null,null,null,null,null,null,null,null,null,null,null,null,null,null,"X",null,null,null,null,null,null,null,null,"X",null,"X",null,null,null,null,null,null,null,null,null,null,null,null,null,"$C$40",null,null,null,null,null,null,null,null,"TRUE"]
[null,"Detail","1.B.1.2.5","The assessment identifies both direct impacts (at the level of the organisation) and indirect impacts (at the level of its suppliers).","----",null,null,null,null,null,null,null,null,null,null,null,null,null,null,null,null,null,"X",null,null,null,null,null,null,null,null,"X",null,"X",null,null,null,null,null,null,null,null,null,null,null,null,null,"$C$41",null,null,null,null,null,null,null,null,"TRUE"]
[null,"EP","1.B.2","The organisation manages its current and potential E&S risks and impacts.",null,null,null,null,null,null,null,null,null,null,null,null,null,null,null,null,null,null,"X",null,null,null,null,null,null,null,null,"X",null,"X",null,null,null,null,null,null,null,null,"x",null,null,null,null,"$C$42",null,null,null,null,null,null,null,null,"TRUE"]
[null,"Indicator","1.B.2.1","The organisation adopts and implements mitigation measures to avoid, or minimise if unavoidable, the E&S risks and impacts identified.","----",null,null,null,null,null,"CSAF Impact",null,null,null,null,null,null,null,null,null,null,null,"X",null,null,null,null,null,null,null,null,"X",null,"X",null,null,null,null,null,null,null,null,"x",null,null,null,"PS1 - Where the project involves specifically identified physical elements, aspects and facilities that are likely to generate impacts, the ESMS will establish and maintain an emergency preparedness and response system so that the client, in collaboration with appropriate and relevant third parties, will be prepared to respond to accidental and emergency situations associated with the project in a manner appropriate to prevent and mitigate any harm to people and/or the environment.","$C$43",null,null,null,null,null,null,null,null,"TRUE"]
[null,"Indicator","1.B.2.2","When adverse impacts cannot be avoided, the organisation proposes prompt and adequate redress (remedy, restoration, or compensation) to affected stakeholders.","----",null,null,null,null,null,null,null,null,null,null,null,null,null,null,null,null,null,"X",null,null,null,null,null,null,null,null,"X",null,"X",null,null,null,null,null,null,null,"G 4.2.1 Remedy, Restoration and Prevention","x",null,null,null,null,"$C$44",null,null,null,null,null,null,null,null,"TRUE"]
[null,"Dimension","2","Inclusive and transparent structure",null,null,null,null,null,null,null,null,null,null,null,null,null,null,null,null,null,"X",null,null,null,null,null,null,null,null,"X",null,null,null,null,null,null,null,null,null,null,null,null,null,null,null,null,"$C$45",null,null,null,null,null,null,null,null,"TRUE"]
[null,"Standard","2.A","The organisation communicates in a transparent way.",null,null,null,null,null,null,null,null,null,null,null,null,null,null,null,null,null,"X",null,null,null,null,null,null,null,null,"X",null,null,"X",null,null,null,null,null,null,null,"G 2.3.1 Transparency",null,null,null,null,null,"$C$46",null,null,null,null,null,null,null,null,"TRUE"]
[null,"EP","2.A.1","The organisation shares information transparently with all relevant stakeholders.",null,null,null,null,null,null,null,null,null,null,null,null,null,null,null,null,null,"X",null,null,null,null,null,null,null,null,"X",null,null,"X",null,null,null,null,null,null,null,"G 2.3.1 Transparency",null,null,null,null,null,"$C$47",null,null,null,null,null,null,null,null,"TRUE"]
[null,"Indicator","2.A.1.1","The organisation discloses transparent, clear, accurate information with all relevant stakeholders, on the following:",null,null,null,null,null,null,null,null,null,null,null,null,null,null,null,null,null,"X",null,null,null,null,null,null,null,null,"X",null,null,null,null,null,null,null,null,null,null,"G 2.3.1 Transparency",null,null,null,null,null,"$C$48",null,null,null,null,null,null,null,null,"TRUE"]
[null,"Detail","2.A.1.1.1","New operations or projects (purpose, nature, scale, etc.);","----",null,null,null,null,null,null,null,null,null,null,null,null,null,null,null,null,"X",null,null,null,null,null,null,null,null,"X",null,null,"X",null,null,null,null,null,null,null,null,null,null,null,null,null,"$C$49",null,null,null,null,null,null,null,null,"TRUE"]
[null,"Detail","2.A.1.1.2","Current processes, products and services (quality and safety information, costs, etc.);","----",null,null,null,null,null,null,"PI6941",null,null,null,null,null,null,null,null,null,"X",null,null,null,null,null,null,null,null,"X",null,null,"X",null,null,null,null,null,null,null,"C 3.3.1 Product Labelling",null,null,null,null,null,"$C$50",null,null,null,null,null,null,null,null,"TRUE"]
[null,"Detail","2.A.1.1.3","Identified E&S risks and impacts, corrective measures to mitigate them, and their outcomes;","----",null,null,null,null,null,null,null,null,null,null,null,null,null,null,null,null,"X","X",null,null,null,null,null,null,null,"X",null,null,"X",null,null,null,null,null,null,null,"G 5.2.1 Full-Cost Accounting",null,null,null,null,null,"$C$51",null,null,null,null,null,null,null,null,"TRUE"]
[null,"Indicator","2.A.1.2","The organisation shares information in a way that supports informed decision making by stakeholders (outgrowers, suppliers, local communities, consumers, etc.):",null,null,null,null,null,null,null,null,null,null,null,null,null,null,null,null,null,"X",null,null,null,null,null,null,null,null,"X",null,null,"X",null,null,null,null,null,null,null,"G 2.3.1 Transparency",null,null,null,null,null,"$C$52",null,null,null,null,null,null,null,null,"TRUE"]
[null,"Detail","2.A.1.2.1","The organisation communicates in languages and through channels that are appropriate and accessible to relevant stakeholders.","----",null,null,null,null,null,null,null,null,null,null,null,null,null,null,null,null,"X",null,null,null,null,null,null,null,null,"X",null,null,"X",null,null,null,null,null,null,null,"G 2.3.1 Transparency",null,null,null,null,null,"$C$53",null,null,null,null,null,null,null,null,"TRUE"]
[null,"Detail","2.A.1.2.2","The organisation provides information in due time to inform stakeholders' decision making.","----",null,null,null,null,null,null,null,null,null,null,null,null,null,null,null,null,"X",null,null,null,null,null,null,null,null,"X",null,null,"X",null,null,null,null,null,null,null,"G 2.3.1 Transparency",null,null,null,null,null,"$C$54",null,null,null,null,null,null,null,null,"TRUE"]
[null,"Standard","2.B","The organisation consults its stakeholders to inform decision making.",null,null,null,null,null,null,null,null,null,null,null,null,null,null,null,null,null,"X",null,null,null,null,null,null,null,null,"X",null,null,"X",null,null,null,null,null,null,null,"X",null,null,null,null,null,"$C$55",null,null,null,null,null,null,null,null,"TRUE"]
[null,"EP","2.B.1","The organisation has specific procedures to consult its stakeholders.",null,null,null,null,null,null,null,null,null,null,null,null,null,null,null,null,null,"X",null,null,null,null,null,null,null,null,"X",null,null,"X",null,null,null,null,null,null,null,"X",null,null,null,null,null,"$C$56",null,null,null,null,null,null,null,null,"TRUE"]
[null,"Indicator","2.B.1.1","The organisation has documented policies or procedures defining how stakeholders are consulted and engaged, based on the type, scale, level of E&S risks and impacts, and development stage of its operations.","----",null,null,null,null,null,null,"OI7914",null,null,null,null,null,null,null,null,null,"X",null,null,null,null,null,null,null,null,"X",null,null,"X",null,null,null,null,null,null,null,"G 3.1.1 Stakeholder Identification",null,null,null,null,null,"$C$57",null,null,null,null,null,null,null,null,"TRUE"]
[null,"Indicator","2.B.1.2","The consultation policies and procedures provide clear definition on who represent local stakeholders (not limited to leaders only), how these spokepersons are identified and endorsed, and what is the required quorum attendance.","----",null,null,null,null,null,null,null,null,null,null,null,null,null,null,null,null,"X",null,null,null,null,null,null,null,null,"X",null,null,"X",null,null,null,null,null,null,null,"G 3.1.1 Stakeholder Identification",null,null,null,null,null,"$C$58",null,null,null,null,null,null,null,null,"TRUE"]
[null,"Indicator","2.B.1.3","The organisation uses specific mechanisms to ensure active and efficient participation of minorities or vulnerable groups, in particular: smallholder farmers, women, youth, Indigenous People, and local communities.","----",null,null,null,null,null,null,null,null,null,null,"X","X",null,null,null,null,"X",null,null,null,null,null,null,null,null,"X",null,null,"X",null,null,null,null,null,"X",null,"G 3.1.3 Engagement Barriers",null,null,null,null,null,"$C$59",null,null,null,null,null,null,null,null,"TRUE"]
[null,"EP","2.B.2","The organisation organises regular consultations with its stakeholders.",null,null,null,null,null,null,null,null,null,null,null,null,null,null,null,null,null,"X",null,null,null,null,null,null,null,null,"X",null,null,"X",null,null,null,null,null,null,null,null,null,null,null,null,null,"$C$60",null,null,null,null,null,null,null,null,"TRUE"]
[null,"Indicator","2.B.2.1","The organisation consults all relevant stakeholders before, during, and after any operation that may affect them.","----",null,null,null,null,null,null,null,null,null,null,null,null,null,null,null,null,"X",null,null,null,null,null,null,null,null,"X",null,null,"X",null,null,null,null,null,null,null,null,null,null,null,null,null,"$C$61",null,null,null,null,null,null,null,null,"TRUE"]
[null,"Indicator","2.B.2.2","The consultations are convenient and accessible to all, well publicised, and culturally appropriate (in terms of language, decision-making customs, etc.).","----",null,null,null,null,null,null,null,null,null,null,null,null,null,null,null,null,"X",null,null,null,null,null,null,null,null,"X",null,null,"X",null,null,null,null,null,null,null,"G 3.1.2 Stakeholder Engagement",null,null,null,null,null,"$C$62",null,null,null,null,null,null,null,null,"TRUE"]
[null,"EP","2.B.3","The organisation uses insights from stakeholders to make strategic and operational decisions.",null,null,null,null,null,null,null,null,null,null,null,null,null,null,null,null,null,"X",null,null,null,null,null,null,null,null,"X",null,null,"X",null,null,null,null,null,null,null,"G 3.1.4 Effective Participation",null,null,null,null,null,"$C$63",null,null,null,null,null,null,null,null,"TRUE"]
[null,"Indicator","2.B.3.1","The board and management analyze stakeholder consultation reports to inform their decisions. ","----",null,null,null,null,null,null,null,null,null,null,null,null,null,null,null,null,"X",null,null,null,null,null,null,null,null,"X",null,null,"X",null,null,null,null,null,null,null,"G 3.1.4 Effective Participation",null,null,null,null,null,"$C$64",null,null,null,null,null,null,null,null,"TRUE"]
[null,"Indicator","2.B.3.2","Stakeholders are directly involved in the decision-making process through their participation in governance structures (i.e. as Board members or participants to General Assemblies).","----",null,null,null,null,null,null,null,null,null,null,null,null,null,null,null,null,"X",null,null,null,null,null,null,null,null,"X",null,null,null,null,null,null,null,null,null,null,null,null,null,null,null,null,"$C$65",null,null,null,null,null,null,null,null,"TRUE"]
[null,"Standard","2.C","The organisation receives and resolves grievances from the following stakeholders: smallholder farmers/local communities/clients/other affected stakeholders.",null,null,null,null,null,null,null,null,null,null,null,null,null,null,null,null,null,"X",null,null,null,null,null,null,null,null,"X",null,null,"X",null,null,null,null,null,null,null,null,null,null,null,null,null,"$C$66",null,null,null,null,null,null,null,null,"TRUE"]
[null,"EP","2.C.1","The organisation has a grievance mechanism that is easily accessible to its stakeholders (farmers, local communities, clients, other affected stakeholders), and adapted to their needs.",null,null,null,null,null,null,null,null,null,null,null,null,null,null,null,null,null,"X",null,null,null,null,null,null,null,null,"X",null,null,"X",null,null,null,null,null,null,null,"G 3.2.1 Grievance Procedures",null,null,null,null,null,"$C$67",null,null,null,null,null,null,null,null,"TRUE"]
[null,"Indicator","2.C.1.1","The channels for complaints and responses are adapted to stakeholders' profiles and needs: ",null,null,null,null,null,null,null,null,null,null,null,null,null,null,null,null,null,"X",null,null,null,null,null,null,null,null,"X",null,null,"X",null,null,null,null,null,null,null,"G 3.2.1 Grievance Procedures",null,null,null,null,null,"$C$68",null,null,null,null,null,null,null,null,"TRUE"]
[null,"Detail","2.C.1.1.1","Stakeholders have the choice between at least two channels, with at least one of these channels being with live, human interaction.","----",null,null,null,null,null,null,null,null,null,null,null,null,null,null,null,null,"X",null,null,null,null,null,null,null,null,"X",null,null,"X",null,null,null,null,null,null,null,null,null,null,null,null,null,"$C$69",null,null,null,null,null,null,null,null,"TRUE"]
[null,"Detail","2.C.1.1.2","The channels are available in local languages, in written and oral format.","----",null,null,null,null,null,null,null,null,null,null,null,null,null,null,null,null,"X",null,null,null,null,null,null,null,null,"X",null,null,"X",null,null,null,null,null,null,null,null,null,null,null,null,null,{"$f":"ADDRESS(ROW(C70),COLUMN(C70))","v":"$C$70"},null,null,null,null,null,null,null,null,{"$f":"IF(OR(AND(Scope_animal_welfare=\"No\",BA70=\"x\"),AND(Scope_food_safety=\"No\",BB70=\"x\"),AND(Scope_market_preferences=\"No\",BC70=\"x\"),AND(Scope_food_security=\"No\",BD70=\"x\")),\"FALSE\",\"TRUE\")","v":"TRUE"}]
[null,"Detail","2.C.1.1.3","The channels are free of charge to submit grievances.","----",null,null,null,null,null,null,null,null,null,null,null,null,null,null,null,null,"X",null,null,null,null,null,null,null,null,"X",null,null,"X",null,null,null,null,null,null,null,null,null,null,null,null,null,"$C$71",null,null,null,null,null,null,null,null,"TRUE"]
[null,"Detail","2.C.1.1.4","The channels are easily accessible, in particular to the most vulnerable and marginalised stakeholders.","----",null,null,null,null,null,null,null,null,null,null,null,null,null,null,null,null,"X",null,null,null,null,null,null,null,null,"X",null,null,"X",null,null,null,null,null,null,null,null,null,null,null,null,null,"$C$72",null,null,null,null,null,null,null,null,"TRUE"]
[null,"Indicator","2.C.1.2","The organisation informs its stakeholders on how to submit a grievance.","----",null,null,null,null,null,null,null,null,null,null,null,null,null,null,null,null,"X",null,null,null,null,null,null,null,null,"X",null,null,"X",null,null,null,null,null,null,null,"G 3.2.1 Grievance Procedures",null,null,null,null,null,"$C$73",null,null,null,null,null,null,null,null,"TRUE"]
[null,"EP","2.C.2","The organisation uses information from grievances to resolve disputes and manage operations.",null,null,null,null,null,null,null,null,null,null,null,null,null,null,null,null,null,"X",null,null,null,null,null,null,null,null,"X",null,null,"X",null,null,null,null,null,null,null,null,null,null,null,null,null,"$C$74",null,null,null,null,null,null,null,null,"TRUE"]
[null,"Indicator","2.C.2.1","The grievance mechanism ensures that all formal complaints are registered in a secure system and reach the relevant person within the organisation.","----",null,null,null,null,null,null,null,null,null,null,null,null,null,null,null,null,"X",null,null,null,null,null,null,null,null,"X",null,null,"X",null,null,null,null,null,null,null,null,null,null,null,null,null,"$C$75",null,null,null,null,null,null,null,null,"TRUE"]
[null,"Indicator","2.C.2.2","The organisation resolves complaints that are directly linked with its operations, products, and services within 1 month.","----",null,null,null,null,null,null,null,null,null,null,null,null,null,null,null,null,"X",null,null,null,null,null,null,null,null,"X",null,null,"X",null,null,null,null,null,null,null,"G 3.3.1 Conflict Resolution",null,null,null,null,null,"$C$76",null,null,null,null,null,null,null,null,"TRUE"]
[null,"Indicator","2.C.2.3","The management analyzes grievances' reports on a regular basis (e.g., monthly), and takes corrective action to resolve systematic problems leading to complaints.","----",null,null,null,null,null,null,null,null,null,null,null,null,null,null,null,null,"X",null,null,null,null,null,null,null,null,"X",null,null,"X",null,null,null,null,null,null,null,null,null,null,null,null,null,"$C$77",null,null,null,null,null,null,null,null,"TRUE"]
[null,"Dimension","3","Safe and responsible agriculture and food systems and operations",null,null,null,null,null,null,null,null,null,null,null,null,null,null,null,null,null,null,null,null,null,null,null,null,null,null,null,null,null,null,null,null,null,null,null,null,null,null,null,null,null,null,null,"$C$78",null,null,null,null,null,null,null,null,"TRUE"]
[null,"Standard","3.A","The organisation contributes to food security and nutrition.",null,null,null,null,null,null,null,null,null,"X",null,null,null,null,null,null,null,null,null,"X",null,null,null,null,null,null,null,null,null,null,null,null,null,null,null,null,null,null,null,null,null,null,null,"$C$79",null,null,null,null,null,null,null,null,"TRUE"]
[null,"EP","3.A.1","The organisation avoids shifting land use away from nutritious crop production for local consumption.",null,null,null,null,null,null,null,null,null,"X",null,null,null,null,null,null,null,null,null,"X",null,null,null,null,null,null,null,null,null,null,null,null,null,null,null,null,null,null,null,null,null,null,null,"$C$80",null,null,null,null,null,null,null,"X","TRUE"]
[null,"Indicator","3.A.1.1","The organisation identifies current land use before starting new production activities, at the level of the organisation and/or of its outgrowers/suppliers.","----",null,null,null,null,null,null,null,null,"X",null,null,null,null,null,null,null,null,null,"X",null,null,null,null,null,null,null,null,null,null,null,null,null,null,null,null,null,null,null,null,null,null,null,"$C$81",null,null,null,null,null,null,null,"X","TRUE"]
[null,"Indicator","3.A.1.2","The organisation has policies that prevent the shift of land use from nutritious crop production for local consumption, to non-food production or cash crop for export, both at the organisation and/or outgrowers/suppliers level.",null,null,null,null,null,null,null,null,null,"X",null,null,null,null,null,null,null,null,null,"X",null,null,null,null,null,null,null,null,null,null,null,null,null,null,null,null,null,null,null,null,null,null,null,"$C$82",null,null,null,null,null,null,null,"X","TRUE"]
[null,"Detail","3.A.1.2.1","The organisation reclaims degraded land.","----",null,null,null,null,null,null,null,null,"X",null,null,null,null,null,null,null,null,null,"X",null,null,null,null,null,null,null,null,null,null,null,null,null,null,null,null,null,null,null,null,null,null,null,"$C$83",null,null,null,null,null,null,null,"X","TRUE"]
[null,"Detail","3.A.1.2.2","The organisation chooses land that has not been previously used for agriculture yet is not environmentally sensitive.","----",null,null,null,null,null,null,null,null,"X",null,null,null,null,null,null,null,null,null,"X",null,null,null,null,null,null,null,null,null,null,null,null,null,null,"X",null,null,null,null,null,null,null,null,"$C$84",null,null,null,null,null,null,null,"X","TRUE"]
[null,"Detail","3.A.1.2.3","The organisation focuses on sustainable agricultural intensification.","----",null,null,null,null,null,null,null,null,"X",null,null,null,null,null,null,null,null,null,"X",null,null,null,null,null,null,null,null,null,null,null,null,null,null,null,null,null,null,null,null,null,null,null,"$C$85",null,null,null,null,null,null,null,"X","TRUE"]
[null,"Indicator","3.A.1.3","The organisation sets aside land for production of food for local consumption.","----",null,null,null,null,null,null,null,null,"X",null,null,null,null,null,null,null,null,null,"X",null,null,null,null,null,null,null,null,null,null,null,null,null,null,null,null,null,null,null,null,null,null,null,"$C$86",null,null,null,null,null,null,null,"X","TRUE"]
[null,"EP","3.A.2","The organisation addresses the food needs of the local market.",null,null,null,null,null,null,null,null,null,"X",null,null,null,null,null,null,null,null,null,"X",null,null,null,null,null,null,null,null,null,null,null,null,null,null,null,null,null,null,null,null,null,null,null,"$C$87",null,null,null,null,null,null,"X",null,"TRUE"]
[null,"Indicator","3.A.2.1","The organisation has carried out market studies on the food concerns, dietary preferences and purchasing power of local populations.","----",null,null,null,null,null,null,"OI7914",null,"X",null,null,null,null,null,null,null,null,null,"X",null,null,null,null,null,null,null,null,null,null,null,null,null,null,null,null,null,null,null,null,null,null,null,"$C$88",null,null,null,null,null,null,"X",null,"TRUE"]
[null,"Indicator","3.A.2.2","The organisation offers nutritious and diverse food products that meet the needs and preferences of local populations.",null,null,null,null,null,null,"CSAF ESG",null,null,"X",null,null,null,null,null,null,null,null,null,"X",null,null,null,null,null,null,null,null,null,null,null,null,null,null,null,null,null,null,null,null,null,null,null,"$C$89",null,null,null,null,null,null,"X",null,"TRUE"]
[null,"Detail","3.A.2.2.1","The organisation offers food products that are diverse and culturally appropriate.","----",null,null,null,null,null,null,null,null,"X",null,null,null,null,null,null,null,null,null,"X",null,null,null,null,null,null,null,null,null,null,null,null,null,null,null,null,null,null,null,null,null,null,"CSAF - Indicates whether the organisation offers a product or service that disproportionately benefits women (GIIN IRIS PD5677 - Product Targeted to Women) - Example: nutrient fortified porridge that is targeted to weaning mothers or enterprise that produces menstruation pads from banana leaves","$C$90",null,null,null,null,null,null,"X",null,"TRUE"]
[null,"Detail","3.A.2.2.2","The organisation offers food products that meet expected food quality levels and high nutritional standards.","----",null,null,null,null,null,"CSAF Impact",null,null,"X",null,null,null,null,null,null,null,null,null,"X",null,null,null,null,null,null,null,null,null,null,null,null,null,null,null,null,null,"C 3.2.1 Food Quality",null,null,null,null,null,"$C$91",null,null,null,null,null,null,"X",null,"TRUE"]
[null,"Detail","3.A.2.2.3","The organisation offers food products at a price that is affordable for local populations.","----",null,null,null,null,null,null,null,null,"X",null,null,null,null,null,null,null,null,null,"X",null,null,null,null,null,null,null,null,null,null,null,null,null,null,null,null,null,null,null,null,null,null,null,"$C$92",null,null,null,null,null,null,"X",null,"TRUE"]
[null,"Indicator","3.A.2.3","The organisation has mechanisms in place to stabilise prices of food products for the local market.","----",null,null,null,null,null,null,null,null,"X",null,null,null,null,null,null,null,null,null,"X",null,null,null,null,null,null,null,null,null,null,null,null,null,null,null,null,null,null,null,null,null,null,null,"$C$93",null,null,null,null,null,null,"X",null,"TRUE"]
[null,"Indicator","3.A.2.4","The organisation educates local populations on how to prepare, provide, and maintain safe and nutritious food.","----",null,null,null,null,null,null,null,null,"X",null,null,null,null,null,null,"X",null,null,"X",null,null,null,null,null,null,null,null,null,null,null,null,null,null,null,null,null,null,null,null,null,null,null,"$C$94",null,null,null,null,null,null,"X",null,"TRUE"]
[null,"EP","3.A.3","The organisation contributes to strengthening the agricultural value chain.",null,null,null,null,null,null,null,null,null,"X","X",null,null,null,null,null,null,null,null,"X",null,null,null,null,null,null,null,null,null,null,null,null,null,null,null,null,null,null,null,null,null,null,null,"$C$95",null,null,null,null,null,null,null,null,"TRUE"]
[null,"Indicator","3.A.3.1","The organisation implements a procurement policy that prioritises the purchase of inputs, products and ingredients from local suppliers.","----",null,null,null,null,null,null,null,null,null,null,null,null,null,null,null,null,null,null,"X",null,null,null,null,null,null,null,null,null,null,null,null,null,null,null,null,null,"C 4.2.1 Local Procurement",null,null,null,null,null,"$C$96",null,null,null,null,null,null,null,null,"TRUE"]
[null,"Indicator","3.A.3.2","The organisation provides smallholder farmers, directly or through partnerships, with access to:",null,null,null,null,null,null,"CSAF ESG",null,null,"X","X",null,null,null,null,null,null,null,null,"X",null,null,null,null,null,null,null,null,null,null,null,null,null,null,null,null,null,"S 1.3.1 Fair Access to Means of Production",null,null,null,null,null,"$C$97",null,null,null,null,null,null,null,null,"TRUE"]
[null,"Detail","3.A.3.2.1","Inputs, material, technologies","----",null,null,null,null,null,null,null,null,"X","X",null,null,null,null,null,null,null,null,"X",null,null,null,null,null,null,null,null,null,null,null,null,null,null,null,null,null,null,null,null,null,null,null,"$C$98",null,null,null,null,null,null,null,null,"TRUE"]
[null,"Detail","3.A.3.2.2","Storage and/or processing facilities","----",null,null,null,null,null,null,null,null,"X","X",null,null,null,null,null,null,null,null,"X",null,null,null,null,null,null,null,null,null,null,null,null,null,null,null,null,null,null,null,null,null,null,null,"$C$99",null,null,null,null,null,null,null,null,"TRUE"]
[null,"Detail","3.A.3.2.3","Information, ICT","----",null,null,null,null,null,null,null,null,"X","X",null,null,null,null,null,null,null,null,"X",null,null,null,null,null,null,null,null,null,null,null,null,null,null,null,null,null,null,null,null,null,null,null,"$C$100",null,null,null,null,null,null,null,null,"TRUE"]
[null,"Detail","3.A.3.2.4","Market linkages","----",null,null,null,null,null,null,null,null,"X","X",null,null,null,null,null,null,null,null,"X",null,null,null,null,null,null,null,null,null,null,null,null,null,null,null,null,null,null,null,null,null,null,null,"$C$101",null,null,null,null,null,null,null,null,"TRUE"]
[null,"Detail","3.A.3.2.5","Financial services","----",null,null,null,null,null,null,null,null,"X","X",null,null,null,null,null,null,null,null,"X",null,null,null,null,null,null,null,null,null,null,null,null,null,null,null,null,null,null,null,null,null,null,null,"$C$102",null,null,null,null,null,null,null,null,"TRUE"]
[null,"Detail","3.A.3.2.6","Capacity-building (education, training, extension, advisory, mentorship, peer visits, farm schools, etc.)","----",null,null,null,null,null,null,"PD9681",null,"X","X",null,null,null,null,null,null,null,null,"X",null,null,null,null,null,null,null,null,null,null,null,null,null,null,null,null,null,"S 1.2.1 Capacity Development",null,null,null,null,null,"$C$103",null,null,null,null,null,null,null,null,"TRUE"]
[null,"Detail","3.A.3.2.7","Opportunities for crop/product/income diversification","----",null,null,null,null,null,null,null,null,"X","X",null,null,null,null,null,null,null,null,"X",null,null,null,null,null,null,null,null,null,null,null,null,null,null,null,null,null,null,null,null,null,null,null,"$C$104",null,null,null,null,null,null,null,null,"TRUE"]
[null,"Indicator","3.A.3.3","The organisation implements actions to engage and support women and/or youth in the agricultural and food value chain:",null,null,"This indicator and its details focus here on preferential treatment provided to women and/or youth. If the organisation has non-discriminatory policies and practices, but nothing on preferential treatment, the answer should be NO. Non-discriminatory policies and practices are valued in other standards (on fair contracting and HR management).",null,null,null,"CSAF ESG",null,null,null,null,"X","X",null,null,null,null,null,null,null,null,"X",null,null,null,null,null,null,null,null,null,null,null,null,null,null,null,null,null,null,null,null,null,"$C$105",null,null,null,null,null,null,null,null,"TRUE"]
[null,"Detail","3.A.3.3.1","Preferential selection for purchasing of inputs, products, or ingredients","----",null,null,null,null,null,null,null,null,null,null,"X","X",null,null,null,null,null,null,null,null,"X",null,null,null,null,null,null,null,null,null,null,null,null,null,null,null,null,null,null,null,null,null,"$C$106",null,null,null,null,null,null,null,null,"TRUE"]
[null,"Detail","3.A.3.3.2","Privileged access to inputs, material, technologies, facilities, information, market linkages or financial services","----",null,null,null,null,null,null,null,null,null,null,"X","X",null,null,null,null,null,null,null,null,"X",null,null,null,null,null,null,null,null,null,null,null,null,null,null,null,null,null,null,null,null,null,"$C$107",null,null,null,null,null,null,null,null,"TRUE"]
[null,"Detail","3.A.3.3.3","Dedicated capacity building (education, training, extension, advisory, mentorship, peer visits, farm schools, business development support, etc.)","----",null,null,null,null,null,null,null,null,null,null,"X","X",null,null,null,null,null,null,null,null,"X",null,null,null,null,null,null,null,null,null,null,null,null,null,null,null,null,null,null,null,null,null,"$C$108",null,null,null,null,null,null,null,null,"TRUE"]
[null,"Detail","3.A.3.3.4","Advocacy on women and youth's equal rights to and control over productive land, natural resources, inputs, productive tools","----",null,null,null,null,null,null,null,null,null,null,"X","X",null,null,null,null,null,null,null,null,"X",null,null,null,null,null,null,null,null,null,null,null,null,null,null,null,null,null,null,null,null,null,"$C$109",null,null,null,null,null,null,null,null,"TRUE"]
[null,"Indicator","3.A.3.4","The organisation fosters the development and access to innovative production / processing technologies and practices:",null,null,null,null,null,null,null,null,null,null,"X",null,null,null,null,"X",null,null,null,null,null,null,null,null,"X",null,null,null,null,null,null,null,null,null,null,null,null,null,null,null,null,null,null,"$C$110",null,null,null,null,null,null,null,null,"TRUE"]
[null,"Detail","3.A.3.4.1","The organisation identifies or develops production /processing practices and technologies that are locally adapted, building on scientific research and traditional knowledge.","----",null,null,null,null,null,null,null,null,null,"X",null,null,null,null,"X",null,null,null,null,null,null,null,null,"X",null,null,null,null,null,null,null,null,null,null,null,null,null,null,null,null,null,null,"$C$111",null,null,null,null,null,null,null,null,"TRUE"]
[null,"Detail","3.A.3.4.2","The organisation transfers these technologies to smallholder farmers.","----",null,null,null,null,null,null,null,null,null,"X",null,null,null,null,"X",null,null,null,null,null,null,null,null,"X",null,null,null,null,null,null,null,null,null,null,null,null,null,null,null,null,null,null,"$C$112",null,null,null,null,null,null,null,null,"TRUE"]
[null,"Standard","3.B","The organisation promotes safe and healthy agricultural and food systems",null,null,null,null,null,null,null,null,null,null,null,null,null,null,null,null,"X",null,null,"X",null,null,null,null,null,null,null,null,null,null,null,null,null,null,null,null,null,null,null,null,null,null,null,"$C$113",null,null,null,null,null,null,null,null,"TRUE"]
[null,"EP","3.B.1","The organisation ensures the safety of its food products.",null,null,null,null,null,null,null,null,null,null,null,null,null,null,null,null,"X",null,null,"X",null,null,null,null,null,null,null,null,null,null,null,null,null,null,null,null,null,null,null,null,null,null,null,"$C$114",null,null,null,null,null,"X",null,null,"TRUE"]
[null,"Indicator","3.B.1.1","The organisation implements best agricultural and manufacturing practices to prevent and control food contamination, in compliance with international, regional, national and sectoral food safety standards (eg. Codex Alimentarius).",null,null,null,null,null,null,null,null,null,null,null,null,null,null,null,null,"X",null,null,"X",null,null,null,null,null,null,null,null,null,null,null,null,null,null,null,null,null,"C 3.1.3 Food Contamination",null,null,null,null,null,"$C$115",null,null,null,null,null,"X",null,null,"TRUE"]
[null,"Detail","3.B.1.1.1","The organisation provides its employees or outgrowers with adequate information, training, and equipment to ensure food safety and prevent contamination incidents.","----",null,null,null,null,null,null,null,null,null,null,null,null,null,null,null,"X",null,null,"X",null,null,null,null,null,null,null,null,null,null,null,null,null,null,null,null,null,null,null,null,null,null,null,"$C$116",null,null,null,null,null,"X",null,null,"TRUE"]
[null,"Detail","3.B.1.1.2","The organisation has effective mechanisms to control for food hazards and contamination.","----",null,null,null,null,null,null,null,null,null,null,null,null,null,null,null,"X",null,null,"X",null,null,null,null,null,null,null,null,null,null,null,null,null,null,null,null,null,"C 3.1.1 Control Measures",null,null,null,null,null,"$C$117",null,null,null,null,null,"X",null,null,"TRUE"]
[null,"Indicator","3.B.1.2","The organisation has a system to ensure the traceability of its agricultural and food products or ingredients, in particular for certified products.","----",null,null,null,null,null,null,null,null,null,null,null,null,null,null,null,"X",null,null,"X",null,null,null,null,null,null,null,null,null,null,null,null,null,null,null,null,null,"C 3.3.2 Traceability System + C3.3.3 Certified Production",null,null,null,null,null,"$C$118",null,null,null,null,null,"X",null,null,"TRUE"]
[null,"EP","3.B.2","The organisation supports animal welfare in its operations.",null,null,null,null,null,null,null,null,null,null,null,null,null,null,null,null,"X",null,null,null,null,null,null,null,null,null,null,null,null,null,null,null,null,null,null,null,null,null,null,null,null,null,"cf OECD","$C$119",null,null,null,null,"X",null,null,null,"TRUE"]
[null,"Indicator","3.B.2.1","The organisation has procedures and practices that ensure animal health, in compliance with global animal health standards, such as OIE standards.","----",null,null,null,null,null,null,null,null,null,null,null,null,null,null,null,"X",null,null,null,null,null,null,null,null,null,null,null,null,null,null,null,null,null,null,null,null,"E 6.1.1 Animal Health Practices","x",null,null,null,null,"$C$120",null,null,null,null,"X",null,null,null,"TRUE"]
[null,"Indicator","3.B.2.2","The organisations has procedures to ensure that the \"five freedoms\" for animal welfare are respected at the level of the organisation and/or of its outgrowers / suppliers:",null,null,null,null,null,null,null,null,null,null,null,null,null,null,null,null,"X",null,null,null,null,null,null,null,null,null,null,null,null,null,null,null,null,null,null,null,null,null,null,null,null,null,null,"$C$121",null,null,null,null,"X",null,null,null,"TRUE"]
[null,"Detail","3.B.2.2.1","Freedom from hunger, thirst, and malnutrition","----",null,null,null,null,null,null,null,null,null,null,null,null,null,null,null,"X",null,null,null,null,null,null,null,null,null,null,null,null,null,null,null,null,null,null,null,null,null,null,null,null,null,null,"$C$122",null,null,null,null,"X",null,null,null,"TRUE"]
[null,"Detail","3.B.2.2.2","Freedom from physical and thermal discomfort","----",null,null,null,null,null,null,null,null,null,null,null,null,null,null,null,"X",null,null,null,null,null,null,null,null,null,null,null,null,null,null,null,null,null,null,null,null,null,null,null,null,null,null,"$C$123",null,null,null,null,"X",null,null,null,"TRUE"]
[null,"Detail","3.B.2.2.3","Freedom from pain, injury, and disease","----",null,null,null,null,null,null,null,null,null,null,null,null,null,null,null,"X",null,null,null,null,null,null,null,null,null,null,null,null,null,null,null,null,null,null,null,null,null,null,null,null,null,null,"$C$124",null,null,null,null,"X",null,null,null,"TRUE"]
[null,"Detail","3.B.2.2.4","Freedom from fear and distress","----",null,null,null,null,null,null,null,null,null,null,null,null,null,null,null,"X",null,null,null,null,null,null,null,null,null,null,null,null,null,null,null,null,null,null,null,null,"E 6.2.1 Humane Animal Handling Practices",null,null,null,null,null,"$C$125",null,null,null,null,"X",null,null,null,"TRUE"]
[null,"Detail","3.B.2.2.5","Freedom to express normal patterns of behaviour","----",null,null,null,null,null,null,null,null,null,null,null,null,null,null,null,"X",null,null,null,null,null,null,null,null,null,null,null,null,null,null,null,null,null,null,null,null,null,null,null,null,null,null,"$C$126",null,null,null,null,"X",null,null,null,"TRUE"]
[null,"Dimension","4","Environmentally sustainable processes and products",null,null,null,null,null,null,null,null,null,null,null,null,null,null,"X",null,null,null,null,null,null,null,null,"X","X","X",null,null,null,null,null,null,null,null,null,null,null,null,null,null,null,null,null,"$C$127",null,null,null,null,null,null,null,null,"TRUE"]
[null,"Standard","4.A","The organisation identifies and manages its environmental risks.",null,null,null,null,null,null,"CSAF ESG",null,null,null,null,null,null,null,"X",null,null,null,null,null,null,null,null,"X",null,"X",null,null,null,null,null,null,null,null,null,null,null,null,null,null,null,null,null,"$C$128",null,null,null,null,null,null,null,null,"TRUE"]
[null,"EP","4.A.1","The organisation identifies its environmental risks.",null,null,null,null,null,null,"CSAF Impact",null,null,null,null,null,null,null,"X",null,null,null,null,null,null,null,null,"X",null,"X",null,null,null,null,null,null,null,null,null,null,null,null,null,null,null,null,null,"$C$129",null,null,null,null,null,null,null,null,"TRUE"]
[null,"Indicator","4.A.1.1","The organisation identifies the vulnerability of its properties, buildings, productions and human resources to climate change and environmental degradation, including vulnerabilities to:\n- drought and water scarcity\n- flooding and waterlogging\n- heat and frost (long-term trends or changes in temperature)\n- land degradation (erosion, pollution, poor soil quality and health)\n- biodiversity loss.","----",null,null,null,null,null,null,null,null,null,null,null,null,null,"X",null,null,null,null,null,null,null,null,null,null,"X",null,null,null,null,null,null,null,null,"X",null,null,null,null,null,null,null,null,"$C$130",null,null,null,null,null,null,null,null,"TRUE"]
[null,"Indicator","4.A.1.2","The organisation identifies the potential adverse impacts of its activities on the environment, linked to:\n- Land use / deforestation / degradation of natural habitats\n- Overexploitation of natural resources\n- Invasive alien species\n- Use of chemicals (herbicides, pesticides, fungicides, fertilisers...)\n- Water use and pollution\n- Energy use\n- Waste production, including hazardous waste\n- Emissions to air\n- Greehouse gas (GHG) emissions.","----",null,null,null,null,null,null,"PI6887",null,null,null,null,null,null,"X",null,null,null,null,null,null,null,null,"X",null,null,null,null,null,null,null,"X",null,null,"X",null,null,null,"x",null,null,null,null,"$C$131",null,null,null,null,null,null,null,null,"TRUE"]
[null,"Indicator","4.A.1.3","The organisation identifies the environmental risks of its key partners (farmers/suppliers/subcontractors), in terms of both vulnerabilities to climate change and environmental degradation, and adverse impacts on the environment.","----",null,"Can be done by looking at environmental certifications.",null,null,null,null,null,null,null,null,null,null,null,"X",null,null,null,null,null,null,null,null,"X",null,"X",null,null,null,null,null,null,null,null,null,null,null,null,null,null,null,null,"Farmers refer to agricultural producers that can either be members, outgrowers or suppliers of the organisation.","$C$132",null,null,null,null,null,null,null,null,"TRUE"]
[null,"EP","4.A.2","The organisation manages its environmental risks.",null,null,null,null,null,null,null,null,null,null,null,null,null,null,"X",null,null,null,null,null,null,null,null,"X",null,"X",null,null,null,null,null,null,null,null,null,null,null,null,null,null,null,null,null,"$C$133",null,null,null,null,null,null,null,null,"TRUE"]
[null,"Indicator","4.A.2.1","The organisation operates in accordance with national and international laws, regulations and standards to prevent key environmental impacts.",null,null,null,null,null,null,null,null,null,null,null,null,null,null,"X",null,null,null,null,null,null,null,null,"X",null,null,null,null,null,null,null,"X",null,null,null,null,null,null,"7B14",null,null,null,null,{"$f":"ADDRESS(ROW(C134),COLUMN(C134))","v":"$C$134"},null,null,null,null,null,null,null,null,{"$f":"IF(OR(AND(Scope_animal_welfare=\"No\",BA134=\"x\"),AND(Scope_food_safety=\"No\",BB134=\"x\"),AND(Scope_market_preferences=\"No\",BC134=\"x\"),AND(Scope_food_security=\"No\",BD134=\"x\")),\"FALSE\",\"TRUE\")","v":"TRUE"}]
[null,"Detail","4.A.2.1.1","The organisation operates in accordance with national law and international standards in areas of critical habitat (protected areas, protected species).","----",null,null,null,null,null,null,"OI2767",null,null,null,null,null,null,"X",null,null,null,null,null,null,null,null,"X",null,null,null,null,null,null,null,null,null,null,"X",null,null,"E 4.1.1. Landscape/Marine Habitat Conservation Plan","x",null,null,null,null,"$C$135",null,null,null,null,null,null,null,null,"TRUE"]
[null,"Detail","4.A.2.1.2","The organisation has a policy to prevent deforestation on the land directly cultivated by the organisation and/or on the land cultivated by its outgrowers/suppliers.","----",null,null,null,null,null,null,null,null,null,null,null,null,null,"X",null,null,null,null,null,null,null,null,"X",null,null,null,null,null,null,null,null,null,null,"X",null,null,"E 3.2.1 Land Conservation and Rehabilitation Plan","x",null,null,null,null,"$C$136",null,null,null,null,null,null,null,null,"TRUE"]
[null,"Detail","4.A.2.1.3","The organisation prohibits, for its own operations and that of its suppliers, the purchase, storage, use, manufacture or trade of chemicals and hazardous materials subject to international bans or phase-outs due to their high toxicity to living organisms, environmental persistence, potential for bioaccumulation, or potential for depletion of the ozone layer. \n[in particullar hazardous materials as listed in the  Fairtrade Prohibited Materials List (POP, PIC, PAN 12 “Dirty Dozen”, WHO 1a and 1b, EU banned substances and EPA banned pesticides)]","----",null,null,null,null,null,null,null,null,null,null,null,null,null,"X",null,null,null,null,null,null,null,null,"X",null,null,null,null,null,null,null,"X",null,null,null,null,null,"S 5.2.1 Public Health","x",null,null,null,"Link: https://files.fairtrade.net/standards/2014-05-15_EN_Prohibited_Materials_List.pdf","$C$137",null,null,null,null,null,null,null,null,"TRUE"]
[null,"Indicator","4.A.2.2","The organisation has a written plan for reducing the adverse impacts of its activities on the environment, with targets and indicators to monitor performance.","----",null,null,null,null,null,"CSAF Impact","OI8237",null,null,null,null,null,null,"X",null,null,null,null,null,null,null,null,"X",null,null,null,null,null,null,null,"X",null,null,null,null,null,"E 1.1.1 GHG Reduction Target + E 1.2.1 Air Pollution Reduction Target + E 2.2.1 Clean Water Target = E 3.2.1 Land Conservation and Rehabilitation Plan + E 4.1.1. Landscape/Marine Habitat Conservation Plan +  E 4.2.1 Species Conservation Target + E 5.3.1 Waste Reduction Target",null,null,null,null,null,"$C$138",null,null,null,null,null,null,null,null,"TRUE"]
[null,"Indicator","4.A.2.3","The organisation implements activities and practices to prevent and reduce the adverse impacts of its activities on the environment, linked to: ",null,null,null,null,null,null,null,null,null,null,null,null,null,null,"X",null,null,null,null,null,null,null,null,"X",null,null,null,null,null,null,null,"X",null,null,null,null,null,null,null,null,null,null,"Pesticide Use and Management\n14. The client will, where appropriate, formulate and implement an integrated pest management (IPM) and/or integrated vector management (IVM) approach targeting economically significant pest infestations and disease vectors of public health significance. The client’s IPM and IVM program will integrate coordinated use of pest and environmental information along with available pest control methods, including cultural practices, biological, genetic, and, as a last resort, chemical means to prevent economically significant pest damage and/or disease transmission to humans and animals. \n15. When pest management activities include the use of chemical pesticides, the client will select chemical pesticides that are low in human toxicity, that are known to be effective against the target species, and that have minimal effects on non-target species and the environment. When the client selects chemical pesticides, the selection will be based upon requirements that the pesticides be packaged in safe containers, be clearly labeled for safe and proper use, and that the pesticides have been manufactured by an entity currently licensed by relevant regulatory agencies.","$C$139",null,null,null,null,null,null,null,null,"TRUE"]
[null,"Detail","4.A.2.3.1","Land use/deforestation/degradation of natural habitats","----",null,null,null,null,null,null,null,null,null,null,null,null,null,"X",null,null,null,null,null,null,null,null,"X",null,null,null,null,null,null,null,"X",null,null,null,null,null,null,null,null,null,null,null,"$C$140",null,null,null,null,null,null,null,null,"TRUE"]
[null,"Detail","4.A.2.3.2","Overexploitation of natural resources","----",null,null,null,null,null,null,null,null,null,null,null,null,null,"X",null,null,null,null,null,null,null,null,"X",null,null,null,null,null,null,null,"X",null,null,null,null,null,null,null,null,null,null,null,"$C$141",null,null,null,null,null,null,null,null,"TRUE"]
[null,"Detail","4.A.2.3.3","Invasive alien species","----",null,null,null,null,null,null,null,null,null,null,null,null,null,"X",null,null,null,null,null,null,null,null,"X",null,null,null,null,null,null,null,"X",null,null,null,null,null,null,null,null,null,null,null,"$C$142",null,null,null,null,null,null,null,null,"TRUE"]
[null,"Detail","4.A.2.3.4","Use of chemicals (herbicides, pesticides, fungicides, fertilisers...)","----",null,null,null,null,null,null,null,null,null,null,null,null,null,"X",null,null,null,null,null,null,null,null,"X",null,null,null,null,null,null,null,"X",null,null,null,null,null,null,null,null,null,null,null,"$C$143",null,null,null,null,null,null,null,null,"TRUE"]
[null,"Detail","4.A.2.3.5","Water use and pollution","----",null,null,null,null,null,null,null,null,null,null,null,null,null,"X",null,null,null,null,null,null,null,null,"X",null,null,null,null,null,null,null,"X",null,null,null,null,null,"E 2.2.2 Water Pollution Prevention Practices",null,null,null,null,null,"$C$144",null,null,null,null,null,null,null,null,"TRUE"]
[null,"Detail","4.A.2.3.6","Energy use","----",null,null,null,null,null,null,null,null,null,null,null,null,null,"X",null,null,null,null,null,null,null,null,"X",null,null,null,null,null,null,null,"X",null,null,null,null,null,null,null,null,null,null,null,"$C$145",null,null,null,null,null,null,null,null,"TRUE"]
[null,"Detail","4.A.2.3.7","Waste production, including hazardous waste","----",null,null,null,null,null,null,null,null,null,null,null,null,null,"X",null,null,null,null,null,null,null,null,"X",null,null,null,null,null,null,null,"X",null,null,null,null,null,null,null,null,null,null,"The client will avoid the generation of hazardous and non-hazardous waste materials. Where waste generation cannot be avoided, the client will reduce the generation of waste, and recover and reuse waste in a manner that is safe for human health and the environment. Where waste cannot be recovered or reused, the client will treat, destroy, or dispose of it in an environmentally sound manner that includes the appropriate control of emissions and residues resulting from the handling and processing of the waste material","$C$146",null,null,null,null,null,null,null,null,"TRUE"]
[null,"Detail","4.A.2.3.8","Emissions to air","----",null,null,null,null,null,null,null,null,null,null,null,null,null,"X",null,null,null,null,null,null,null,null,"X",null,null,null,null,null,null,null,"X",null,null,null,null,null,"E 1.2.2 Air Pollution Prevention Practices",null,null,null,null,null,"$C$147",null,null,null,null,null,null,null,null,"TRUE"]
[null,"Detail","4.A.2.3.9","GHG emissions","----",null,null,null,null,null,null,null,null,null,null,null,null,null,"X",null,null,null,null,null,null,null,null,"X",null,null,null,null,null,null,null,"X",null,null,null,null,null,"E 1.1.2 GHG Mitigation Practices",null,null,null,null,null,"$C$148",null,null,null,null,null,null,null,null,"TRUE"]
[null,"Indicator","4.A.2.4","The organisation ensures that the operations of its suppliers and key business partners do not generate significant adverse impacts on the environment.",null,null,null,null,null,null,null,null,null,null,null,null,null,null,"X",null,null,null,null,null,null,null,null,"X",null,null,null,null,null,null,null,"X",null,null,null,null,null,null,null,null,null,null,null,"$C$149",null,null,null,null,null,null,null,null,"TRUE"]
[null,"Detail","4.A.2.4.1","The organisation uses environmental certifications or environmental criteria to select its key suppliers and business partners.","----",null,null,null,null,null,null,null,null,null,null,null,null,null,"X",null,null,null,null,null,null,null,null,"X",null,null,null,null,null,null,null,"X",null,null,null,null,null,null,null,null,null,null,null,"$C$150",null,null,null,null,null,null,null,null,"TRUE"]
[null,"Detail","4.A.2.4.2","Where there is a high risk of significant adverse impacts on the environment, the organisation introduces procedures and measures to ensure that key suppliers and business partners are taking steps to prevent or to mitigate these risks.","----",null,null,null,null,null,null,null,null,null,null,null,null,null,"X",null,null,null,null,null,null,null,null,"X",null,null,null,null,null,null,null,"X",null,null,null,null,null,null,null,null,null,null,null,"$C$151",null,null,null,null,null,null,null,null,"TRUE"]
[null,"Detail","4.A.2.4.3","The organisation regularly monitors and/or measures the environmental performance of its suppliers and key business partners, either through direct inspection or through partnerships with third-party actors.","----",null,null,null,null,null,"CSAF Impact",null,null,null,null,null,null,null,"X",null,null,null,null,null,null,null,null,"X",null,null,null,null,null,null,null,"X",null,null,null,null,null,null,null,null,null,null,"Partnerships with research institutions, NGOs, technical organisations, etc.","$C$152",null,null,null,null,null,null,null,null,"TRUE"]
[null,"Standard","4.B","The organisation implements or promotes environmentally sustainable practices.",null,null,null,null,null,null,null,null,null,null,null,null,null,null,"X",null,null,null,null,null,null,null,null,"X",null,"X",null,null,null,null,null,null,null,null,null,null,null,null,null,null,null,null,null,"$C$153",null,null,null,null,null,null,null,null,"TRUE"]
[null,"EP","4.B.1","The organisation supports the adoption of sustainable/climate-smart agricultural production practices.",null,null,null,null,null,null,null,"OI2092",null,null,null,null,null,null,"X",null,null,null,null,null,null,null,null,"X",null,"X",null,null,null,null,null,null,null,null,null,null,null,null,null,null,null,null,null,"$C$154",null,null,null,null,null,null,null,null,"TRUE"]
[null,"Indicator","4.B.1.1","The organisation conducts or supports research and development activities on sustainable / climate-smart agricultural practices, combining both scientific and traditional knowledge.","----",null,null,null,null,null,null,null,null,null,null,null,null,null,"X","X",null,null,null,null,null,null,null,null,"X","X",null,null,null,null,null,null,null,null,null,null,null,null,null,null,null,null,null,"$C$155",null,null,null,null,null,null,null,null,"TRUE"]
[null,"Indicator","4.B.1.2","The organisation provides its farmers/suppliers with the following environmentally-friendly inputs or assets:",null,null,null,null,null,null,null,null,null,null,null,null,null,null,"X",null,null,null,null,null,null,null,null,"X",null,null,null,null,null,null,null,null,null,null,null,null,null,null,null,null,null,null,null,"$C$156",null,null,null,null,null,null,null,null,"TRUE"]
[null,"Detail","4.B.1.2.1","Compost or other organic soil amendments, biopesticides","----",null,null,null,null,null,null,null,null,null,null,null,null,null,"X",null,null,null,null,null,null,null,null,"X",null,null,null,null,null,null,null,null,null,null,null,null,null,null,null,null,null,null,null,"$C$157",null,null,null,null,null,null,null,null,"TRUE"]
[null,"Detail","4.B.1.2.2","Climate-smart, resistant, locally-adapted, and biodiversified varietals","----",null,null,null,null,null,null,null,null,null,null,null,null,null,"X",null,null,null,null,null,null,null,null,null,null,"X",null,null,null,null,null,null,null,null,null,null,null,"E 4.3.5 Saving of Seeds and Breeds",null,null,null,null,null,"$C$158",null,null,null,null,null,null,null,null,"TRUE"]
[null,"Detail","4.B.1.2.3","Tree seedlings","----",null,null,null,null,null,null,null,null,null,null,null,null,null,"X",null,null,null,null,null,null,null,null,"X",null,null,null,null,null,null,null,null,null,null,null,null,null,null,null,null,null,null,null,"$C$159",null,null,null,null,null,null,null,null,"TRUE"]
[null,"Indicator","4.B.1.3","The organisation provides its farmers/suppliers, either directly or through partnerships, with education, training, extension, advisory services and/or agronomic assistance on the following sustainable agricultural practices:",null,null,null,null,null,null,"CSAF Impact",null,null,null,null,null,null,null,"X",null,null,null,null,null,null,null,null,"X",null,"X",null,null,null,null,null,null,null,null,null,null,null,null,null,null,null,null,null,"$C$160",null,null,null,null,null,null,null,null,"TRUE"]
[null,"Detail","4.B.1.3.1","Re/afforestation efforts or crop renovation","----",null,null,null,null,null,"CSAF Impact",null,null,null,null,null,null,null,"X",null,null,null,null,null,null,null,null,"X",null,null,null,null,null,null,null,null,null,null,null,null,null,null,null,null,null,null,"Crop renovation: In the context of tree crops, the removal of old trees and addition of new trees as a farm-level management practice.","$C$161",null,null,null,null,null,null,null,null,"TRUE"]
[null,"Detail","4.B.1.3.2","Soil health improvement practices","----",null,null,null,null,null,"CSAF Impact","OI1047",null,null,null,null,null,null,"X",null,null,null,null,null,null,null,null,"X",null,null,null,null,null,null,null,null,null,null,null,null,null,"E 3.1.1 Soil-Improvement Practices + E 3.2.2 Land Conservation and Rehabilitation Practices",null,null,null,null,"Examples include: on-farm crop diversification or use of intercropped systems; use of live barriers, vegetative strips or contour planting to prevent erosion and limit run-off; use of low- or no-till cultivation methods;  use of vegetative ground cover such as cover crops or leaf litter to prevent erosion and build soil fertility; rotation of crops and/or regular resting of land to allow recovery; rotational grazing.","$C$162",null,null,null,null,null,null,null,null,"TRUE"]
[null,"Detail","4.B.1.3.3","Conservation of local ecosystems and biodiversity","----",null,null,null,null,null,"CSAF Impact",null,null,null,null,null,null,null,"X",null,null,null,null,null,null,null,null,"X",null,null,null,null,null,null,null,null,null,null,null,null,null,"E 4.1.2 Ecosystem-Enhancing Practices + E 4.2.2 Species Conservation Practices",null,null,null,null,"Examples include: buffer zones between ag and non-ag areas; creating or restoring natural habitat for wildlife on the farm; managing a biodiversity protection plan to support conservation of endangered on-farm wildlife; management of or support of multistrata agroforestry farms; use of IPM and biological pest control to manage emerging pests and disease.","$C$163",null,null,null,null,null,null,null,null,"TRUE"]
[null,"Detail","4.B.1.3.4","Diversification of crops / sources of income","----",null,null,null,null,null,null,"PD1620",null,null,null,null,null,null,"X",null,null,null,null,null,null,null,null,null,null,"X",null,null,null,null,null,null,null,null,null,null,null,null,null,null,null,null,null,"$C$164",null,null,null,null,null,null,null,null,"TRUE"]
[null,"Indicator","4.B.1.4","The organisation supports its farmers/suppliers in obtaining environmental certifications (fairtrade, organic, sustainable…).","----",null,null,null,null,null,null,null,null,null,null,null,null,null,"X",null,null,null,null,null,null,null,null,"X",null,null,null,null,null,null,null,null,null,null,null,null,null,null,null,null,null,null,null,"$C$165",null,null,null,null,null,null,null,null,"TRUE"]
[null,"EP","4.B.2","The organisation implements sustainable practices for its processing or trading activities.",null,null,null,null,null,null,null,null,null,null,null,null,null,null,"X",null,null,null,null,null,null,null,null,"X",null,null,null,null,null,null,null,null,null,null,null,null,null,null,null,null,null,null,null,"$C$166",null,null,null,null,null,null,null,null,"TRUE"]
[null,"Indicator","4.B.2.1","The organisation practices or promotes sustainable energy usage.",null,null,null,null,null,null,"CSAF Impact","OI4531",null,null,null,null,null,null,"X",null,null,null,null,null,null,null,null,"X",null,null,null,null,null,null,null,null,null,null,null,null,null,null,null,null,null,null,null,"$C$167",null,null,null,null,null,null,null,null,"TRUE"]
[null,"Detail","4.B.2.1.1","The organisation uses renewable energy sources (such as solar, wind, water, biomass).","----",null,null,null,null,null,"CSAF Impact",null,null,null,null,null,null,null,"X",null,null,null,null,null,null,null,null,"X",null,null,null,null,null,null,null,"X",null,null,null,null,null,"E 5.2.1 Renewable Energy Use Target",null,null,null,null,null,"$C$168",null,null,null,null,null,null,null,null,"TRUE"]
[null,"Detail","4.B.2.1.2","The organisation uses energy-efficient equipment/machines/processes.","----",null,null,null,null,null,"CSAF Impact",null,null,null,null,null,null,null,"X",null,null,null,null,null,null,null,null,"X",null,null,null,null,null,null,null,"X",null,null,null,null,null,"E 5.2.2 Energy-Saving Practices",null,null,null,null,null,"$C$169",null,null,null,null,null,null,null,null,"TRUE"]
[null,"Indicator","4.B.2.2","The organisation adopts a circular approach for materials, water, and other resources used.",null,null,null,null,null,null,"CSAF Impact",null,null,null,null,null,null,null,"X",null,null,null,null,null,null,null,null,"X",null,null,null,null,null,null,null,null,null,null,null,null,null,"E 5.1.1 Material Consumption Practices",null,null,null,null,null,"$C$170",null,null,null,null,null,null,null,null,"TRUE"]
[null,"Detail","4.B.2.2.1","The organisation uses re-usable or easily biodegradable materials for packaging.","----",null,null,null,null,null,"CSAF Impact",null,null,null,null,null,null,null,"X",null,null,null,null,null,null,null,null,"X",null,null,null,null,null,null,null,null,null,null,null,null,null,null,null,null,null,null,null,"$C$171",null,null,null,null,null,null,null,null,"TRUE"]
[null,"Detail","4.B.2.2.2","The organisation uses by-products from farming and processing at farm and enterprise level (e.g. use of coffee husk for compost production or macadamia shells to fuel biodigestors).","----",null,null,null,null,null,"CSAF Impact",null,null,null,null,null,null,null,"X",null,null,null,null,null,null,null,null,"X",null,null,null,null,null,null,null,null,null,null,null,null,null,"E 5.3.2 Waste Reduction Practices",null,null,null,null,null,"$C$172",null,null,null,null,null,null,null,null,"TRUE"]
[null,"Detail","4.B.2.2.3","The organisation implements other practices that reduce and/or re-use wastes, energy or water.","----",null,null,null,null,null,"CSAF Impact",null,null,null,null,null,null,null,"X",null,null,null,null,null,null,null,null,"X",null,null,null,null,null,null,null,"X",null,null,null,null,null,null,null,null,null,null,null,"$C$173",null,null,null,null,null,null,null,null,"TRUE"]
[null,"Dimension","5","Responsible treatment of stakeholders",null,null,null,null,null,null,null,null,null,null,null,null,null,"X",null,"X",null,null,null,null,"X","X","X",null,null,null,null,null,null,null,null,null,null,null,null,null,null,null,null,null,null,null,null,"$C$174",null,null,null,null,null,null,null,null,"TRUE"]
[null,"Standard","5.A","The organisation respects legitimate tenure rights on land, fisheries, forests, and water.",null,null,null,null,null,null,"CSAF ESG",null,null,null,null,null,null,"X",null,null,null,null,null,null,null,null,"X",null,null,null,null,null,null,null,null,null,null,null,null,null,null,null,null,null,null,null,"Resources:\n* \"Introduction to the responsible governance of tenure\" - FAO elearning Academy - https://elearning.fao.org/course/view.php?id=173\n* \"Putting the voluntary guidelines on tenure into practice - a learning guide for civil society organisations\" - FAO elearning Academy - https://elearning.fao.org/course/view.php?id=349","$C$175",null,null,null,null,null,null,null,null,"TRUE"]
[null,"EP","5.A.1","The organisation identifies and recognises all right holders of land, fisheries, forests and water potentially affected by its activities.",null,null,null,null,null,null,null,null,null,null,null,null,null,"X",null,null,null,null,null,null,null,null,"X",null,null,null,null,null,null,null,null,null,null,null,null,null,null,null,null,null,null,null,null,"$C$176",null,null,null,null,null,null,null,null,"TRUE"]
[null,"Indicator","5.A.1.1","The organisation engages with the local communities to identify all right holders, including customary/informal rights that are legitimated by the communities.","----",null,null,null,null,null,null,null,null,null,null,null,null,"X",null,null,null,null,null,null,null,null,"X",null,null,null,null,null,null,null,null,null,null,null,null,"X",null,"G 4.4.1 Free, Prior and Informad Consent",null,null,null,null,null,"$C$177",null,null,null,null,null,null,null,null,"TRUE"]
[null,"Indicator","5.A.1.2","The organisation recognises all rights and uses on land, fisheries, forests, and water, in particular those of Indigenous People and women.","----",null,null,null,null,null,null,"OI6482",null,null,null,"X",null,"X",null,null,null,null,null,null,null,null,"X",null,null,null,null,null,null,null,null,null,null,null,null,"X",null,null,"x",null,null,null,null,"$C$178",null,null,null,null,null,null,null,null,"TRUE"]
[null,"EP","5.A.2","The organisation avoids displacement of tenure rights; if displacement is unavoidable, the organisation ensures fair and transparent transfer of tenure rights.",null,null,null,null,null,null,null,null,null,null,null,null,null,"X",null,null,null,null,null,null,null,null,"X",null,null,null,null,null,null,null,null,null,null,"X",null,null,null,null,null,null,null,null,null,"$C$179",null,null,null,null,null,null,null,null,"TRUE"]
[null,"Indicator","5.A.2.1","The organisation has an inclusive business model that avoids the displacement of tenure right holders, such as outgrower schemes, contract farming agreements, joint venture with smallhoder farmers, or farmers' organisations.","----",null,null,null,null,null,null,null,null,null,null,null,null,"X",null,null,null,null,null,null,null,null,"X",null,null,null,null,null,null,null,null,null,null,null,null,null,null,null,null,null,null,null,null,"$C$180",null,null,null,null,null,null,null,null,"TRUE"]
[null,"Indicator","5.A.2.2","When transfer of tenure rights cannot be avoided, the organisation has procedures to ensure fair negotiations and compensations to right holders:",null,null,null,null,null,null,null,null,null,null,null,null,null,"X",null,null,null,null,null,null,null,null,"X",null,null,null,null,null,null,null,null,null,null,"X",null,null,null,"G 4.4.2 Tenure Rights",null,null,null,null,"Resources:\n* \"Respecting Free, Prior and Informed Consent\" - FAO elearning Academy - https://elearning.fao.org/course/view.php?id=324\n* \"Free, Prior and Informed Consent (FPIC) - An indigenous peoples' right and a good practice for local communities\" - FAO elearning Academy - https://elearning.fao.org/course/view.php?id=500","$C$181",null,null,null,null,null,null,null,null,"TRUE"]
[null,"Detail","5.A.2.2.1","The organisation shares transparent information on lease/concession contract terms.","----",null,null,null,null,null,null,null,null,null,null,null,null,"X",null,null,null,null,null,null,null,null,"X",null,null,null,null,null,null,null,null,null,null,"X",null,null,null,null,null,null,null,null,null,"$C$182",null,null,null,null,null,null,null,null,"TRUE"]
[null,"Detail","5.A.2.2.2","The organisation ensures that all concerned right holders provide their free, prior, and informed consent (FPIC).","----",null,null,null,null,null,null,null,null,null,null,null,null,"X",null,null,null,null,null,null,null,null,"X",null,null,null,null,null,null,null,null,null,null,"X",null,null,null,"G 4.4.1 Free, Prior and Informad Consent",null,null,null,null,null,"$C$183",null,null,null,null,null,null,null,null,"TRUE"]
[null,"Detail","5.A.2.2.3","The organisation provides fair and prompt payment for acquired rights.","----",null,null,null,null,null,null,null,null,null,null,null,null,"X",null,null,null,null,null,null,null,null,"X",null,null,null,null,null,null,null,null,null,null,"X",null,null,null,null,null,null,null,null,null,"$C$184",null,null,null,null,null,null,null,null,"TRUE"]
[null,"EP","5.A.3","The organisation ensures fair access to water to all legitimate right holders.",null,null,null,null,null,null,null,null,null,null,null,null,null,"X",null,null,null,null,null,null,null,null,"X",null,null,null,null,null,null,null,null,null,null,null,null,null,null,null,null,null,null,null,null,"$C$185",null,null,null,null,null,null,null,null,"TRUE"]
[null,"Indicator","5.A.3.1","The organisation has a water management plan to ensure availability of water to all in its area of operations and that of its outgrowers/suppliers.","----",null,null,null,null,null,null,null,null,null,null,null,null,"X",null,null,null,null,null,null,null,null,"X",null,null,null,null,null,null,null,null,null,null,null,null,null,null,"E 2.1.1 Water Conservation Target",null,null,null,null,null,"$C$186",null,null,null,null,null,null,null,null,"TRUE"]
[null,"Indicator","5.A.3.2","The organisation optimises the use of water, including at outgrower/supplier level:",null,null,null,null,null,null,"CSAF Impact",null,null,null,null,null,null,"X","X",null,null,null,null,null,null,null,"X",null,null,null,null,null,null,null,null,null,null,null,null,null,null,"E 2.1.2 Water Conservation Practices",null,null,null,null,null,"$C$187",null,null,null,null,null,null,null,null,"TRUE"]
[null,"Detail","5.A.3.2.1","Use of water-capturing systems (e.g. rainwater catchment systems)","----",null,null,null,null,null,"CSAF Impact",null,null,null,null,null,null,"X","X",null,null,null,null,null,null,null,"X",null,null,null,null,null,null,null,null,null,null,null,null,null,null,null,null,null,null,null,null,"$C$188",null,null,null,null,null,null,null,null,"TRUE"]
[null,"Detail","5.A.3.2.2","Use of water-efficient systems (e.g. drip irrigation)","----",null,null,null,null,null,"CSAF Impact",null,null,null,null,null,null,"X","X",null,null,null,null,null,null,null,"X",null,null,null,null,null,null,null,null,null,null,null,null,null,null,null,null,null,null,null,null,"$C$189",null,null,null,null,null,null,null,null,"TRUE"]
[null,"Detail","5.A.3.2.3","Recycling of waste water","----",null,null,null,null,null,"CSAF Impact",null,null,null,null,null,null,"X","X",null,null,null,null,null,null,null,"X",null,null,null,null,null,null,null,null,null,null,null,null,null,null,null,null,null,null,null,null,"$C$190",null,null,null,null,null,null,null,null,"TRUE"]
[null,"Detail","5.A.3.2.4","Use of vegetative buffer zones to conserve water and prevent water pollution","----",null,null,null,null,null,"CSAF Impact",null,null,null,null,null,null,"X","X",null,null,null,null,null,null,null,"X",null,null,null,null,null,null,null,null,null,null,null,null,null,null,null,null,null,null,null,null,"$C$191",null,null,null,null,null,null,null,null,"TRUE"]
[null,"Standard","5.B","The organisation respects cultural heritage and traditional knowledge.",null,null,null,null,null,null,null,null,null,null,null,null,null,null,null,"X",null,null,null,null,null,"X",null,null,null,null,null,null,null,null,null,null,null,null,null,null,null,null,null,null,null,null,null,"$C$192",null,null,null,null,null,null,null,null,"TRUE"]
[null,"EP","5.B.1","The organisation respects cultural heritage sites.",null,null,null,null,null,null,null,null,null,null,null,null,null,null,null,"X",null,null,null,null,null,"X",null,null,null,null,null,null,null,null,null,null,null,null,null,null,"X",null,null,null,null,null,null,"$C$193",null,null,null,null,null,null,null,null,"TRUE"]
[null,"Indicator","5.B.1.1","The organisation identifies cultural heritage sites in its area of operations and ensures their preservation and access.","----",null,null,null,null,null,null,null,null,null,null,null,null,null,null,"X",null,null,null,null,null,"X",null,null,null,null,null,null,null,null,null,null,null,null,null,null,"X",null,null,null,null,null,null,"$C$194",null,null,null,null,null,null,null,null,"TRUE"]
[null,"EP","5.B.2","The organisation recognises the contributions of farmers, especially smallholder farmers, in conserving, improving, and making available genetic resources, including seeds.",null,null,null,null,null,null,null,null,null,null,null,null,null,null,null,"X",null,null,null,"X",null,null,null,null,null,null,null,null,null,null,null,null,null,null,null,null,null,null,null,null,null,null,null,"$C$195",null,null,null,null,null,null,null,null,"TRUE"]
[null,"Indicator","5.B.2.1","The organisation respects farmers' right to save, use, exchange and sell their genetic resources, including seeds.","----",null,null,null,null,null,null,null,null,null,null,null,null,null,null,"X",null,null,null,"X",null,null,null,null,null,null,null,null,null,null,null,null,null,null,null,null,null,null,null,null,null,null,null,"$C$196",null,null,null,null,null,null,null,null,"TRUE"]
[null,"Indicator","5.B.2.2","The organisation prioritises the purchase of inputs, production, or ingredients using locally adapted seed varieties or livestock breeds, or traditional or heirloom varieties.","----",null,null,null,null,null,null,null,null,null,null,null,null,null,null,"X",null,null,null,"X",null,null,null,null,null,null,null,null,null,null,null,null,null,null,null,null,null,"S 6.2.1 Food Sovereignty",null,null,null,null,null,"$C$197",null,null,null,null,null,null,null,null,"TRUE"]
[null,"EP","5.B.3","The organisation respects and rewards local communities for the use of genetic resources or traditional knowledge, including for commercial purposes.",null,null,null,null,null,null,null,null,null,null,null,null,null,null,null,"X",null,null,null,null,null,"X",null,null,null,null,null,null,null,null,null,null,null,null,null,null,null,null,null,null,null,null,null,{"$f":"ADDRESS(ROW(C198),COLUMN(C198))","v":"$C$198"},null,null,null,null,null,null,null,null,{"$f":"IF(OR(AND(Scope_animal_welfare=\"No\",BA198=\"x\"),AND(Scope_food_safety=\"No\",BB198=\"x\"),AND(Scope_market_preferences=\"No\",BC198=\"x\"),AND(Scope_food_security=\"No\",BD198=\"x\")),\"FALSE\",\"TRUE\")","v":"TRUE"}]
[null,"Indicator","5.B.3.1","When a project proposes to use the cultural heritage (including knowledge, innovations or practices) of local communities or Indigenous People for commercial purposes, the organisation ensures fair negotiations and compensations to right holders.",null,null,null,null,null,null,null,null,null,null,null,null,null,null,null,"X",null,null,null,null,null,"X",null,null,null,null,null,null,null,null,null,null,null,null,null,"X","X","S 6.1.1 Indigenous Knowledge",null,null,null,null,null,"$C$199",null,null,null,null,null,null,null,null,"TRUE"]
[null,"Detail","5.B.3.1.1","The organisation shares transparent information on the scope and nature of the proposed commercial development and its potential consequences.","----",null,null,null,null,null,null,null,null,null,null,null,null,null,null,"X",null,null,null,null,null,"X",null,null,null,null,null,null,null,null,null,null,null,null,null,"X","X",null,null,null,null,null,null,"$C$200",null,null,null,null,null,null,null,null,"TRUE"]
[null,"Detail","5.B.3.1.2","The organisation ensures that all concerned right holders provide their free, prior and informed consent (FPIC).","----",null,null,null,null,null,null,null,null,null,null,null,null,null,null,"X",null,null,null,null,null,"X",null,null,null,null,null,null,null,null,null,null,null,null,null,"X","X","G 4.4.1 Free, Prior and Informad Consent",null,null,null,null,null,"$C$201",null,null,null,null,null,null,null,null,"TRUE"]
[null,"Detail","5.B.3.1.3","The organisation provides fair and equitable sharings of benefits from commercialisation of such knowledge, innovation or practice, consistent with the customs and traditions of the local communities or Indigenous People.","----",null,null,null,null,null,null,null,null,null,null,null,null,null,null,"X",null,null,null,null,null,"X",null,null,null,null,null,null,null,null,null,null,null,null,null,"X","X",null,null,null,null,null,null,"$C$202",null,null,null,null,null,null,null,null,"TRUE"]
[null,"Standard","5.C","The organisation promotes responsible and fair contracting practices with its stakeholders.",null,null,null,null,null,null,null,"OI4753",null,null,"X",null,null,null,null,null,null,"X",null,null,"X",null,null,null,null,null,null,null,null,null,null,null,null,null,null,null,null,"S 2.1.1 Fair Pricing and Transparent Contracts",null,null,null,null,null,"$C$203",null,null,null,null,null,null,null,null,"TRUE"]
[null,"EP","5.C.1","The organisation is transparent on contract terms and conditions.",null,null,null,null,null,null,null,null,null,null,null,null,null,null,null,null,null,"X",null,null,"X",null,null,null,null,null,null,null,null,null,null,null,null,null,null,null,null,null,null,null,null,null,null,"$C$204",null,null,null,null,null,null,null,null,"TRUE"]
[null,"Indicator","5.C.1.1","Commercial relationships, in particular with smallholder farmers, are documented in written contracts, that include the following information:\n- agreed volumes\n- agreed quality of the product and what happens if the farmer is not able to deliver the agreed quality\n- price per unit\n- terms of delivery\n- terms of payment\n- risks of market price fluctuation with price scenarios\n- dispute resolution mechanisms and cancellation rights","----",null,null,null,null,null,null,null,null,null,null,null,null,null,null,null,null,"X",null,null,"X",null,null,null,null,null,null,null,null,null,null,null,null,null,null,null,null,null,"x",null,null,null,"cf FairTrade Standards","$C$205",null,null,null,null,null,null,null,null,"TRUE"]
[null,"Indicator","5.C.1.2","Contracts are available in the major local languages and are fully available prior to signature.","----",null,null,null,null,null,null,null,null,null,null,null,null,null,null,null,null,"X",null,null,"X",null,null,null,null,null,null,null,null,null,null,null,null,null,null,null,null,null,null,null,null,null,null,"$C$206",null,null,null,null,null,null,null,null,"TRUE"]
[null,"EP","5.C.2","The organisation offers fair conditions and prices.",null,null,null,null,null,null,null,null,null,null,"X",null,null,null,null,null,null,null,null,null,"X",null,null,null,null,null,null,null,null,null,null,null,null,null,null,null,null,null,null,null,null,null,null,"$C$207",null,null,null,null,null,null,null,null,"TRUE"]
[null,"Indicator","5.C.2.1","The organisation offers fair prices to farmers/suppliers.",null,null,null,null,null,null,null,null,null,null,"X",null,null,null,null,null,null,null,null,null,"X",null,null,null,null,null,null,null,null,null,null,null,null,null,null,null,null,null,"6B12",null,null,null,"Farmers refer to agricultural producers that can either be members, outgrowers or suppliers of the organisation.","$C$208",null,null,null,null,null,null,null,null,"TRUE"]
[null,"Detail","5.C.2.1.1","The organisation offers prices that are above minimum market rates.","----",null,null,null,null,null,"CSAF ESG",null,null,null,"X",null,null,null,null,null,null,null,null,null,"X",null,null,null,null,null,null,null,null,null,null,null,null,null,null,null,null,null,"?",null,null,null,null,"$C$209",null,null,null,null,null,null,null,null,"TRUE"]
[null,"Detail","5.C.2.1.2","The organisation offers equal prices to men and women farmers.","----",null,null,null,null,null,null,null,null,null,null,"X",null,null,null,null,null,null,null,null,null,"X",null,null,null,null,null,null,null,null,null,null,null,null,null,null,null,null,"x",null,null,null,null,"$C$210",null,null,null,null,null,null,null,null,"TRUE"]
[null,"Detail","5.C.2.1.3","The organisation has mechanisms in place to stabilise prices paid to farmers.","----",null,null,null,null,null,null,null,null,null,"X",null,null,null,null,null,null,null,null,null,"X",null,null,null,null,null,null,null,null,null,null,null,null,null,null,null,null,null,null,null,null,null,null,"$C$211",null,null,null,null,null,null,null,null,"TRUE"]
[null,"Detail","5.C.2.1.4","The organisation pays the smallholder farmer within a reasonable delay, and and no later than 15 days after the delivery of products.","----",null,null,null,null,null,null,null,null,null,"X",null,null,null,null,null,null,null,null,null,"X",null,null,null,null,null,null,null,null,null,null,null,null,null,null,null,null,null,null,null,null,null,"cf FairTrade Standards","$C$212",null,null,null,null,null,null,null,null,"TRUE"]
[null,"Indicator","5.C.2.2","The organisation offers fair conditions to farmers/suppliers.",null,null,null,null,null,null,null,null,null,null,"X",null,null,null,null,null,null,null,null,null,"X",null,null,null,null,null,null,null,null,null,null,null,null,null,null,null,null,null,null,null,null,null,null,"$C$213",null,null,null,null,null,null,null,null,"TRUE"]
[null,"Detail","5.C.2.2.1","The organisation engages in long-term relationships with farmers/suppliers, and/or commits in advance to purchasing certain volumes to its farmers/suppliers.","----",null,null,null,null,null,null,null,null,null,"X",null,null,null,null,null,null,null,null,null,"X",null,null,null,null,null,null,null,null,null,null,null,null,null,null,null,null,null,null,null,null,null,null,"$C$214",null,null,null,null,null,null,null,null,"TRUE"]
[null,"Detail","5.C.2.2.2","The organisation has a mechanism to absorb part of the losses in case of market price drop or circumstances outside of the farmer's control (e.g., climate disaster, harvest failures).","----",null,null,null,null,null,null,null,null,null,"X",null,null,null,null,null,null,null,null,null,"X",null,null,null,null,null,null,null,null,null,null,null,null,null,null,null,null,null,null,null,null,null,null,"$C$215",null,null,null,null,null,null,null,null,"TRUE"]
[null,"Detail","5.C.2.2.3","The organisation recognises and supports suppliers’ (particularly farmers’) rights to freedom of association and to collective bargaining.","----",null,null,null,null,null,null,null,null,null,"X",null,null,null,null,null,null,null,null,null,"X",null,null,null,null,null,null,null,null,null,null,null,null,null,null,null,null,"S 2.2.1 Rights of Suppliers",null,null,null,null,null,"$C$216",null,null,null,null,null,null,null,null,"TRUE"]
[null,"EP","5.C.3","When financial services are provided (e.g., in-kind or cash loans for inputs), the organisation does not overindebt farmers.",null,null,null,null,null,null,null,null,null,null,"X",null,null,null,null,null,null,null,null,null,"X",null,null,null,null,null,null,null,null,null,null,null,null,null,null,null,null,null,null,null,null,null,"To go deeper on this subject, please refer to ALINUS standards and practices on client protection.","$C$217",null,null,null,null,null,null,null,null,"TRUE"]
[null,"Indicator","5.C.3.1","The organisation conducts a cash flow analysis to evaluate repayment capacity.","----",null,null,null,null,null,null,null,null,null,"X",null,null,null,null,null,null,null,null,null,"X",null,null,null,null,null,null,null,null,null,null,null,null,null,null,null,null,null,null,null,null,null,null,"$C$218",null,null,null,null,null,null,null,null,"TRUE"]
[null,"Indicator","5.C.3.2","The percentage of a farmer's disposable income that can be applied to debt service may not be higher than 70% of the projected worst case scenario, including debt from the organisation and other lenders.","----",null,null,null,null,null,null,null,null,null,"X",null,null,null,null,null,null,null,null,null,"X",null,null,null,null,null,null,null,null,null,null,null,null,null,null,null,null,null,null,null,null,null,null,"$C$219",null,null,null,null,null,null,null,null,"TRUE"]
[null,"Dimension","6","Responsible Human Resource Development",null,null,null,null,null,null,null,null,null,null,"X",null,null,null,null,null,null,null,null,null,"X",null,null,null,null,null,null,null,null,null,"X",null,null,null,null,null,null,null,null,null,null,null,null,"$C$220",null,null,null,null,null,null,null,null,"TRUE"]
[null,"Standard","6.A","The organisation creates a safe and equitable work environment.",null,null,null,null,null,null,null,null,null,null,"X",null,null,null,null,null,null,null,null,null,"X",null,null,null,null,null,null,null,null,null,null,null,null,null,null,null,null,null,null,null,null,null,null,"$C$221",null,null,null,null,null,null,null,null,"TRUE"]
[null,"EP","6.A.1","A written Human Resources policy is available to all employees that explains and protects their rights.",null,null,null,null,null,null,null,null,null,null,"X",null,null,null,null,null,null,null,null,null,"X",null,null,null,null,null,null,null,null,null,"X",null,null,null,null,null,null,null,null,null,null,null,null,"$C$222",null,null,null,null,null,null,null,null,"TRUE"]
[null,"Indicator","6.A.1.1","The organisations' Human Resources policy explains employees' rights and responsibilities related to the following: ",null,null,null,null,null,null,null,null,null,null,"X",null,null,null,null,null,null,null,null,null,"X",null,null,null,null,null,null,null,null,null,null,null,null,null,null,null,null,null,"5A11",null,null,null,null,"$C$223",null,null,null,null,null,null,null,null,"TRUE"]
[null,"Detail","6.A.1.1.1","Work rules and disciplinary procedures","----",null,null,null,null,null,null,null,null,null,"X",null,null,null,null,null,null,null,null,null,"X",null,null,null,null,null,null,null,null,null,"X",null,null,null,null,null,null,null,"x",null,null,null,null,"$C$224",null,null,null,null,null,null,null,null,"TRUE"]
[null,"Detail","6.A.1.1.2","Grievance resolution","----",null,null,null,null,null,null,"OI3601",null,null,"X",null,null,null,null,null,null,null,null,null,"X",null,null,null,null,null,null,null,null,null,null,null,null,null,null,null,null,null,"x",null,null,null,null,"$C$225",null,null,null,null,null,null,null,null,"TRUE"]
[null,"Detail","6.A.1.1.3","Collective bargaining agreements and freedom of association","----",null,null,null,null,null,null,"OI4364",null,null,"X",null,null,null,null,null,null,null,null,null,"X",null,null,null,null,null,null,null,null,null,"X",null,null,null,null,null,null,"S 3.4.1 Freedom of Association and Right to Bargaining","x",null,null,null,null,"$C$226",null,null,null,null,null,null,null,null,"TRUE"]
[null,"Detail","6.A.1.1.4","Whistle blower safeguards","----",null,null,null,null,null,null,null,null,null,"X",null,null,null,null,null,null,null,null,null,"X",null,null,null,null,null,null,null,null,null,null,null,null,null,null,null,null,null,"x",null,null,null,null,"$C$227",null,null,null,null,null,null,null,null,"TRUE"]
[null,"Detail","6.A.1.1.5","Anti-harassment safeguards","----",null,null,null,null,null,null,"OI9088",null,null,"X",null,null,null,null,null,null,null,null,null,"X",null,null,null,null,null,null,null,null,null,null,null,null,null,null,null,null,null,"x",null,null,null,null,"$C$228",null,null,null,null,null,null,null,null,"TRUE"]
[null,"Detail","6.A.1.1.6","Conditions for dismissal and exit formalities","----",null,null,null,null,null,null,"OI9478",null,null,"X",null,null,null,null,null,null,null,null,null,"X",null,null,null,null,null,null,null,null,null,null,null,null,null,null,null,null,null,"x",null,null,null,null,"$C$229",null,null,null,null,null,null,null,null,"TRUE"]
[null,"Indicator","6.A.1.2","The organisation meets or exceeds legal regulations in the following areas:",null,null,null,null,null,null,"CSAF ESG",null,null,null,"X",null,null,null,null,null,null,null,null,null,"X",null,null,null,null,null,null,null,null,null,null,null,null,null,null,null,null,null,"5A12",null,null,null,null,"$C$230",null,null,null,null,null,null,null,null,"TRUE"]
[null,"Detail","6.A.1.2.1","Competitive wages","----",null,null,null,null,null,null,"OI3819",null,null,"X",null,null,null,null,null,null,null,null,null,"X",null,null,null,null,null,null,null,null,null,null,null,null,null,null,null,null,null,"x",null,null,null,null,"$C$231",null,null,null,null,null,null,null,null,"TRUE"]
[null,"Detail","6.A.1.2.2","Transparent salary scale","----",null,null,null,null,null,null,null,null,null,null,null,null,null,null,null,null,null,null,null,"X",null,null,null,null,null,null,null,null,null,null,null,null,null,null,null,null,null,null,null,null,null,null,"$C$232",null,null,null,null,null,null,null,null,"TRUE"]
[null,"Detail","6.A.1.2.3","Benefits/ social protection (health insurance, dental insurance, disability coverage, life insurance, retirements provisions)","----",null,null,null,null,null,null,"OI2742",null,null,"X",null,null,null,null,null,null,null,null,null,"X",null,null,null,null,null,null,null,null,null,"X",null,null,null,null,null,null,"S 5.1.3 Health Coverage and Access to Medical Care","x",null,null,null,null,"$C$233",null,null,null,null,null,null,null,null,"TRUE"]
[null,"Detail","6.A.1.2.4","Limits on working hours and overtime hours","----",null,null,null,null,null,null,null,null,null,"X",null,null,null,null,null,null,null,null,null,"X",null,null,null,null,null,null,null,null,null,"X",null,null,null,null,null,null,null,"x",null,null,null,null,"$C$234",null,null,null,null,null,null,null,null,"TRUE"]
[null,"Detail","6.A.1.2.5","Overtime pay and paid leaves","----",null,null,null,null,null,null,null,null,null,"X",null,null,null,null,null,null,null,null,null,"X",null,null,null,null,null,null,null,null,null,"X",null,null,null,null,null,null,null,null,null,null,null,null,"$C$235",null,null,null,null,null,null,null,null,"TRUE"]
[null,"Detail","6.A.1.2.6","Maternity/paternity leave","----",null,null,null,null,null,null,null,null,null,"X",null,null,null,null,null,null,null,null,null,"X",null,null,null,null,null,null,null,null,null,null,null,null,null,null,null,null,null,null,null,null,null,null,"$C$236",null,null,null,null,null,null,null,null,"TRUE"]
[null,"Indicator","6.A.1.3","The organisation's non-discrimination policy towards employees covers all internationally recognised Protected Categories. \n[Note: Protected Categories are as follows: People over 40 years old; Sex; Race/ethnicity/national extraction/social origin /caste; Religion; Health status, including HIV status; Disability; Sexual orientation; Political affiliation/opinion; Civil/marital status; Participation in a trade union.] ","----",null,null,null,null,null,null,"OI1150",null,null,"X","X",null,null,null,null,null,null,null,null,null,"X",null,null,null,null,null,null,null,null,"X",null,null,null,null,null,null,"S 4.1.1 Non Discrimination","5A13",null,null,null,null,"$C$237",null,null,null,null,null,null,null,null,"TRUE"]
[null,"Indicator","6.A.1.4","The organisation analyzes employee data by gender and job position to check that men and women are equally represented at different levels of the organisation.","----",null,null,null,null,null,null,null,null,null,null,"X",null,null,null,null,null,null,null,null,null,"X",null,null,null,null,null,null,null,null,"X",null,null,null,null,null,null,"S 4.2.1 Gender Equality",null,null,null,null,null,"$C$238",null,null,null,null,null,null,null,null,"TRUE"]
[null,"Indicator","6.A.1.5","The organisation operates in accordance with national law and international standards on child labour and forced labour. ",null,null,null,null,null,null,"CSAF ESG",null,null,null,"X",null,null,null,null,null,null,null,null,null,"X",null,null,null,null,null,null,null,null,null,"X",null,null,null,null,null,null,"S 3.2.1 Forced Labour","5A15",null,null,null,null,"$C$239",null,null,null,null,null,null,null,null,"TRUE"]
[null,"Detail","6.A.1.5.1","The organisation does not employ workers under 14 years-old. ","----",null,null,null,null,null,null,"OI4432",null,null,"X",null,null,null,null,null,null,null,null,null,"X",null,null,null,null,null,null,null,null,null,"X",null,null,null,null,null,null,"S 3.3.1 Child Labour","x",null,null,null,null,"$C$240",null,null,null,null,null,null,null,null,"TRUE"]
[null,"Detail","6.A.1.5.2","The organisation encourages its farmers / suppliers to eliminate or mitigate informal / hidden child labour, through awareness-raising, communication with parents, support to schools in the community, etc.","----",null,null,null,null,null,null,null,null,null,"X",null,null,null,null,null,null,null,null,null,"X",null,null,null,null,null,null,null,null,null,"X",null,null,null,null,null,null,null,"x",null,null,null,"Resources:\n\"Communicating effectively to end child labour in agriculture\", FAO elearning Academy - https://elearning.fao.org/course/view.php?id=513","$C$241",null,null,null,null,null,null,null,null,"TRUE"]
[null,"Detail","6.A.1.5.3","The organisation implements actions to prevent forced labour (including with migrants, vulnerable workers), through communication, awareness-raising, trainings of farmers/workers/management on human rights, shared code of ethics, etc.","----",null,null,null,null,null,null,"OI9650",null,null,"X",null,null,null,null,null,null,null,null,null,"X",null,null,null,null,null,null,null,null,null,"X",null,null,null,null,null,null,null,"x",null,null,null,null,"$C$242",null,null,null,null,null,null,null,null,"TRUE"]
[null,"EP","6.A.2","Employee compensation is equitable and adequate.",null,null,null,null,null,null,null,null,null,null,"X",null,null,null,null,null,null,null,null,null,"X",null,null,null,null,null,null,null,null,null,"X",null,null,null,null,null,null,null,null,null,null,null,null,"$C$243",null,null,null,null,null,null,null,null,"TRUE"]
[null,"Indicator","6.A.2.1","The organisation pays salaries based on market rates, and never below the sectoral minimum wage.","----",null,null,null,null,null,null,null,null,null,"X",null,null,null,null,null,null,null,null,null,"X",null,null,null,null,null,null,null,null,null,null,null,null,null,null,null,null,null,"5A21",null,null,null,null,"$C$244",null,null,null,null,null,null,null,null,"TRUE"]
[null,"Indicator","6.A.2.2","All employees' base pay (before incentives) is at least a living wage.","----",null,null,null,null,null,null,"OI4724",null,null,"X",null,null,null,null,null,null,null,null,null,"X",null,null,null,null,null,null,null,null,null,null,null,null,null,null,null,null,"S. 1.1.2 Wage Level",null,null,null,null,null,"$C$245",null,null,null,null,null,null,null,null,"TRUE"]
[null,"Indicator","6.A.2.3","The organisation analyses salary data to check that men and women receive equal pay for equal work and have equal opportunities for pay increase/ promotion.","----",null,null,null,null,null,null,"OI1855",null,null,null,"X",null,null,null,null,null,null,null,null,"X",null,null,null,null,null,null,null,null,null,null,null,null,null,null,null,null,"S 4.2.1 Gender Equality","5A23",null,null,null,null,"$C$246",null,null,null,null,null,null,null,null,"TRUE"]
[null,"EP","6.A.3","The organisation has a safety and health management system.",null,null,null,null,null,null,null,null,null,null,"X",null,null,null,null,null,null,null,null,null,"X",null,null,null,null,null,null,null,null,null,"X",null,null,null,null,null,null,null,null,null,null,null,null,"$C$247",null,null,null,null,null,null,null,null,"TRUE"]
[null,"Indicator","6.A.3.1","The organisation assesses the health and safety risks faced by its employees and audits its existing safety measures. Minimum frequency: annually","----",null,null,null,null,null,null,"OI8001",null,null,"X",null,null,null,null,null,null,null,null,null,"X",null,null,null,null,null,null,null,null,null,"X",null,null,null,null,null,null,null,"5A31",null,null,null,null,"$C$248",null,null,null,null,null,null,null,null,"TRUE"]
[null,"Indicator","6.A.3.2","The organisation documents and reports to management all occupational accidents, injuries, and illnesses. The results are disaggregated by gender and by position. Minimum frequency: annually","----",null,null,null,null,null,null,null,null,null,null,null,null,null,null,null,null,null,null,null,"X",null,null,null,null,null,null,null,null,null,null,null,null,null,null,null,null,null,null,null,null,null,null,"$C$249",null,null,null,null,null,null,null,null,"TRUE"]
[null,"Indicator","6.A.3.3","The organisation takes necessary measures to mitigate hazards.",null,null,null,null,null,null,null,null,null,null,"X",null,null,null,null,null,null,null,null,null,"X",null,null,null,null,null,null,null,null,null,"X",null,null,null,null,null,null,"C 3.1.2 Hazardous Pesticides",null,null,null,null,null,"$C$250",null,null,null,null,null,null,null,null,"TRUE"]
[null,"Detail","6.A.3.3.1","The organisation does not employ children under the age of 18 in hazardous work, including manipulation of hazardous chemicals (fertilisers, pesticides).","----",null,null,null,null,null,null,null,null,null,null,null,null,null,null,null,null,null,null,null,"X",null,null,null,null,null,null,null,null,null,"X",null,null,null,null,null,null,null,null,null,null,null,null,"$C$251",null,null,null,null,null,null,null,null,"TRUE"]
[null,"Detail","6.A.3.3.2","The organisation conducts trainings and provides adapted equipment and facilities for good safety practices.","----",null,null,null,null,null,null,null,null,null,"X",null,null,null,null,null,null,null,null,null,"X",null,null,null,null,null,null,null,null,null,"X",null,null,null,null,null,null,"S 5.1.1 Safety and Health Training + S 5.1.2 Safety of Workplace, Operations and Facilities ",null,null,null,null,null,"$C$252",null,null,null,null,null,null,null,null,"TRUE"]
[null,"Detail","6.A.3.3.3","The organisation has an emergency/disaster response plan and trains management and employees on how to follow the plan. Minimum training frequency: annually","----",null,null,null,null,null,null,null,null,null,null,null,null,null,null,null,null,null,null,null,"X",null,null,null,null,null,null,null,null,null,null,null,null,null,null,null,null,null,null,null,null,null,null,"$C$253",null,null,null,null,null,null,null,null,"TRUE"]
[null,"Detail","6.A.3.3.4","The organisation compensates employees who miss work due to work-related injuries","----",null,null,null,null,null,null,null,null,null,null,null,null,null,null,null,null,null,null,null,"X",null,null,null,null,null,null,null,null,null,null,null,null,null,null,null,null,null,null,null,null,null,null,"$C$254",null,null,null,null,null,null,null,null,"TRUE"]
[null,"Indicator","6.A.3.4","Where there is a high risk of significant safety issues related to supply chain workers, the organisation will introduce procedures and mitigation measures to ensure that primary suppliers within the supply chain are taking steps to prevent or to correct life-threatening situations.","----",null,null,null,null,null,null,null,null,null,null,null,null,null,null,null,null,null,null,null,"X",null,null,null,null,null,null,null,null,null,"X",null,null,null,null,null,null,null,null,null,null,null,null,"$C$255",null,null,null,null,null,null,null,null,"TRUE"]
[null,"Standard","6.B","The organisation's Human Resource Development system is designed to attract and maintain a qualified and motivated workforce.",null,null,null,null,null,null,null,null,null,null,"X",null,null,null,null,null,null,null,null,null,"X",null,null,null,null,null,null,null,null,null,null,null,null,null,null,null,null,null,null,null,null,null,null,"$C$256",null,null,null,null,null,null,null,null,"TRUE"]
[null,"EP","6.B.1","The organisation fosters the employment of women, youth and local communities.",null,null,null,null,null,null,"CSAF ESG",null,null,null,"X",null,null,null,null,null,null,null,null,null,null,"X",null,null,null,null,null,null,null,null,null,null,null,null,null,null,null,null,null,null,null,null,null,"$C$257",null,null,null,null,null,null,null,null,"TRUE"]
[null,"Indicator","6.B.1.1","When similar skills, profile and conditions are offered in relation to other candidates, the organisation has preferential hiring policies for the following categories:",null,null,null,null,null,null,null,null,null,null,"X",null,null,null,null,null,null,null,null,null,null,"X",null,null,null,null,null,null,null,null,null,null,null,null,null,null,null,null,null,null,null,null,null,"$C$258",null,null,null,null,null,null,null,null,"TRUE"]
[null,"Detail","6.B.1.1.1","Women","----",null,null,null,null,null,null,null,null,null,null,"X",null,null,null,null,null,null,null,null,null,"X",null,null,null,null,null,null,null,null,null,null,null,null,null,null,null,null,null,null,null,null,null,"$C$259",null,null,null,null,null,null,null,null,"TRUE"]
[null,"Detail","6.B.1.1.2","Youth (under 35)","----",null,null,null,null,null,null,null,null,null,null,null,"X",null,null,null,null,null,null,null,null,"X",null,null,null,null,null,null,null,null,null,null,null,null,null,null,null,null,null,null,null,null,null,"$C$260",null,null,null,null,null,null,null,null,"TRUE"]
[null,"Detail","6.B.1.1.3","Local communities","----",null,null,null,null,null,null,null,null,null,"X",null,null,null,null,null,null,null,null,null,null,"X",null,null,null,null,null,null,null,null,null,null,null,null,null,null,null,"C 4.1.1 Regional Workforce",null,null,null,null,null,"$C$261",null,null,null,null,null,null,null,null,"TRUE"]
[null,"Indicator","6.B.1.2","The organisation facilitates the integration of women, youth, Indigenous and local employees by offering an adapted work environment (i.e., schedule, language, childcare facilities, etc.).","----",null,null,null,null,null,null,null,null,null,null,"X","X",null,null,null,null,null,null,null,null,"X",null,null,null,null,null,null,null,null,null,null,null,null,null,null,null,null,null,null,null,null,null,"$C$262",null,null,null,null,null,null,null,null,{"$f":"IF(OR(AND(Scope_animal_welfare=\"No\",BA262=\"x\"),AND(Scope_food_safety=\"No\",BB262=\"x\"),AND(Scope_market_preferences=\"No\",BC262=\"x\"),AND(Scope_food_security=\"No\",BD262=\"x\")),\"FALSE\",\"TRUE\")","v":"TRUE"}]
[null,"EP","6.B.2","The organisation gives employees complete employment documentation and training to understand their job requirements.",null,null,null,null,null,null,null,null,null,null,"X","X",null,null,null,null,null,null,null,null,"X",null,null,null,null,null,null,null,null,null,null,null,null,null,null,null,null,null,null,null,null,null,null,{"$f":"ADDRESS(ROW(C263),COLUMN(C263))","v":"$C$263"},null,null,null,null,null,null,null,null,"TRUE"]
[null,"Indicator","6.B.2.1","The organisation communicates to employees their individual employment terms:",null,null,null,null,null,null,null,null,null,null,"X",null,null,null,null,null,null,null,null,null,"X",null,null,null,null,null,null,null,null,null,null,null,null,null,null,null,null,"S 3.1.1 Employment Relations",null,null,null,null,null,"$C$264",null,null,null,null,null,null,null,null,"TRUE"]
[null,"Detail","6.B.2.1.1","The organisation provides written contracts or terms of employment to all employees.","----",null,null,null,null,null,null,null,null,null,null,null,null,null,null,null,null,null,null,null,"X",null,null,null,null,null,null,null,null,null,null,null,null,null,null,null,null,null,null,null,null,null,null,"$C$265",null,null,null,null,null,null,null,null,"TRUE"]
[null,"Detail","6.B.2.1.2","Contracts or terms of employment specify the base salary and opportunities for any other type of compensation (overtime, incentive pay); the job description/scope of work; and the performance evaluation process.","----",null,null,null,null,null,null,null,null,null,null,null,null,null,null,null,null,null,null,null,"X",null,null,null,null,null,null,null,null,null,null,null,null,null,null,null,null,null,null,null,null,null,null,"$C$266",null,null,null,null,null,null,null,null,"TRUE"]
[null,"Detail","6.B.2.1.3","Contracts or terms of employment use clear terms and are available in the major local languages. When employees are not literate, the organisation makes provision for third-party verbal contract terms communications.","----",null,null,null,null,null,null,null,null,null,null,null,null,null,null,null,null,null,null,null,"X",null,null,null,null,null,null,null,null,null,null,null,null,null,null,null,null,null,null,null,null,null,null,"$C$267",null,null,null,null,null,null,null,null,"TRUE"]
[null,"Detail","6.B.2.1.4","Contracts are available in the major local languages and are fully available prior to signature and upon request.","----",null,null,null,null,null,null,null,null,null,null,null,null,null,null,null,null,null,null,null,"X",null,null,null,null,null,null,null,null,null,null,null,null,null,null,null,null,null,null,null,null,null,null,"$C$268",null,null,null,null,null,null,null,null,"TRUE"]
[null,"Indicator","6.B.2.2","All new employees receive an orientation and job-specific training.","----",null,null,null,null,null,null,null,null,null,null,null,null,null,null,null,null,null,null,null,"X",null,null,null,null,null,null,null,null,null,null,null,null,null,null,null,null,null,null,null,null,null,null,"$C$269",null,null,null,null,null,null,null,null,"TRUE"]
[null,"Indicator","6.B.2.3","The organisation makes professional development opportunities available to employees at every level.","----",null,null,null,null,null,null,"OI4884",null,null,"X",null,null,null,null,null,null,null,null,null,"X",null,null,null,null,null,null,null,null,null,null,null,null,null,null,null,null,null,null,null,null,null,null,"$C$270",null,null,null,null,null,null,null,null,"TRUE"]
[null,"Indicator","6.B.2.4","Men and women receive equal opportunities for training and skill development.","----",null,null,null,null,null,null,null,null,null,null,"X",null,null,null,null,null,null,null,null,"X",null,null,null,null,null,null,null,null,null,null,null,null,null,null,null,null,"S 1.2.1 Capacity Development",null,null,null,null,null,"$C$271",null,null,null,null,null,null,null,null,"TRUE"]
[null,"EP","6.B.3","The organisation gives employees formal opportunities to communicate with management.",null,null,null,null,null,null,null,null,null,null,"X","X",null,null,null,null,null,null,null,null,"X",null,null,null,null,null,null,null,null,null,null,null,null,null,null,null,null,null,null,null,null,null,null,"$C$272",null,null,null,null,null,null,null,null,"TRUE"]
[null,"Indicator","6.B.3.1","The organisation has a formal mechanism for consulting with employee representatives on HR decisions and policy development. The employee representatives have direct access to executive managers.","----",null,null,null,null,null,null,null,null,null,"X",null,null,null,null,null,null,null,null,null,"X",null,null,null,null,null,null,null,null,null,null,null,null,null,null,null,null,null,null,null,null,null,null,"$C$273",null,null,null,null,null,null,null,null,"TRUE"]
[null,"Indicator","6.B.3.2","The organisation has a formal grievance mechanism that allows employees to raise workplace concerns in a confidential manner.","----",null,null,null,null,null,null,null,null,null,null,"X",null,null,null,null,null,null,null,null,"X",null,null,null,null,null,null,null,null,null,"X",null,null,null,null,null,null,null,"5B22",null,null,null,null,"$C$274",null,null,null,null,null,null,null,null,"TRUE"]
[null,"Indicator","6.B.3.3","The organisation surveys employees on satisfaction and concerns with employment conditions. Minimum frequency: annually","----",null,null,null,null,null,null,null,null,null,null,null,null,null,null,null,null,null,null,null,"X",null,null,null,null,null,null,null,null,null,null,null,null,null,null,null,null,null,null,null,null,null,null,"$C$275",null,null,null,null,null,null,null,null,"TRUE"]
[null,"Standard","6.C","The organisation's Human Resource Development system supports its strategy on responsible business conduct.",null,null,null,null,null,null,null,null,null,null,null,null,null,null,null,null,null,null,null,null,null,null,null,null,null,null,null,null,null,null,null,null,null,null,null,null,null,null,null,null,null,null,null,"$C$276",null,null,null,null,null,null,null,null,"TRUE"]
[null,"EP","6.C.1","The organisation trains all employees on responsible business conduct.",null,null,null,null,null,null,null,null,null,null,null,null,null,null,null,null,null,null,null,null,null,null,null,null,null,null,null,null,null,null,null,null,null,null,null,null,null,null,null,null,null,null,null,"$C$277",null,null,null,null,null,null,null,null,"TRUE"]
[null,"Indicator","6.C.1.1","The organisation trains board members and senior management on their responsibilities regarding responsible business conduct.","----",null,null,null,null,null,null,null,null,null,null,null,null,null,null,null,null,null,null,null,null,null,null,null,null,null,null,null,null,null,null,null,null,null,null,null,null,"G 1.1.2 Mission Driven",null,null,null,null,null,"$C$278",null,null,null,null,null,null,null,null,"TRUE"]
[null,"Indicator","6.C.1.2","The organisation trains employees on responsible business conduct, in line with their roles and responsibilities (minimum frequency: annually). The training covers at minimum the following topics:",null,null,null,null,null,null,null,null,null,null,null,null,null,null,null,null,null,null,null,null,null,null,"X",null,null,null,"X","X",null,null,null,null,null,null,null,null,null,"G 1.1.1 Mission Explicitness",null,null,null,null,null,"$C$279",null,null,null,null,null,null,null,null,"TRUE"]
[null,"Detail","6.C.1.2.1","Respect of human rights, labour rights, tenure rights and cultural heritage","----",null,null,null,null,null,null,null,null,null,"X","X",null,"X",null,"X",null,null,null,null,null,null,"X",null,null,null,null,null,null,null,null,null,null,null,null,null,null,null,null,null,null,null,null,"$C$280",null,null,null,null,null,null,null,null,"TRUE"]
[null,"Detail","6.C.1.2.2","Transparency, anti-corruption policies, and fair contractual practices","----",null,null,null,null,null,null,null,null,null,"X",null,null,null,null,null,null,"X",null,null,null,null,null,null,null,null,"X",null,null,null,null,null,null,null,null,null,null,null,null,null,null,null,null,"$C$281",null,null,null,null,null,null,null,null,"TRUE"]
[null,"Detail","6.C.1.2.3","Prevention and mitigation of adverse social and environmental impacts","----",null,null,null,null,null,null,null,null,null,null,null,null,null,"X",null,null,null,"X",null,null,null,null,null,null,null,null,"X",null,null,null,null,null,null,null,null,null,null,null,null,null,null,null,"$C$282",null,null,null,null,null,null,null,null,"TRUE"]
[null,"Dimension","7","Financial transparency and benefit-sharing",null,null,null,null,null,null,null,null,null,null,"X",null,null,null,null,null,null,null,null,null,null,null,null,null,null,null,null,null,null,null,null,null,null,null,null,null,null,null,null,null,null,null,null,"$C$283",null,null,null,null,null,null,null,null,"TRUE"]
[null,"Standard","7.A","The organisation has a transparent financial structure.",null,null,null,null,null,null,null,null,null,null,"X","X","X",null,null,null,null,null,null,null,null,null,null,null,null,null,null,null,null,null,null,null,null,null,null,null,null,null,null,null,null,null,null,"$C$284",null,null,null,null,null,null,null,null,"TRUE"]
[null,"EP","7.A.1","The organisation discloses financial information to its stakeholders.",null,null,null,null,null,null,null,null,null,null,null,"X","X",null,null,null,null,null,null,null,null,null,null,null,null,null,"X",null,null,null,null,null,null,null,null,null,null,null,null,null,null,null,null,"$C$285",null,null,null,null,null,null,null,null,"TRUE"]
[null,"Indicator","7.A.1.1","The organisation publicly discloses its annual audited financial statements.","----",null,null,null,null,null,"CSAF ESG",null,null,null,null,"X",null,null,null,null,null,null,null,null,null,null,null,null,null,null,"X",null,null,null,null,null,null,null,null,null,null,null,"6C31?",null,null,null,null,"$C$286",null,null,null,null,null,null,null,null,"TRUE"]
[null,"Indicator","7.A.1.2","The organisation discloses the compensation of senior management to donors, raters, investors and other stakeholders upon request.","----",null,null,null,null,null,null,null,null,null,null,"X",null,null,null,null,null,null,null,null,null,null,null,null,null,null,"X",null,null,null,null,null,null,null,null,null,null,null,"2A43 ",null,null,null,null,"$C$287",null,null,null,null,null,null,null,null,"TRUE"]
[null,"EP","7.A.2","The organisation complies with its fiscal obligations.",null,null,null,null,null,null,null,null,null,null,null,null,null,null,null,null,null,null,null,null,"X",null,null,null,null,null,null,null,null,null,null,null,null,null,null,null,null,null,null,null,null,null,null,"$C$288",null,null,null,null,null,null,null,null,"TRUE"]
[null,"Indicator","7.A.2.1","The organisation pays all the local taxes that are applicable and due in all its countries of operation.","----",null,null,null,null,null,null,null,null,null,null,null,null,null,null,null,null,null,null,null,"X",null,null,null,null,null,null,null,null,null,null,null,null,null,null,null,null,"C 4.1.2 Fiscal Commitment",null,null,null,null,null,"$C$289",null,null,null,null,null,null,null,null,"TRUE"]
[null,"Standard","7.B","The organisation uses profits responsibly.",null,null,null,null,null,null,null,null,null,null,"X","X","X",null,null,null,null,null,null,null,"X",null,null,null,null,null,null,null,null,null,null,null,null,null,null,null,null,"C 1.1.1 Internal Investment - In which activities and practices has the enterprise invested during the last 5 years to improve and monitor its social, economic, environmental and governance performance?",null,null,null,null,null,"$C$290",null,null,null,null,null,null,null,null,"TRUE"]
[null,"EP","7.B.1","The organisation engages with equity investors whose investment strategy is aligned with its strategy on responsible business conduct.",null,null,null,null,null,null,null,null,null,null,null,null,null,null,null,null,null,null,null,null,null,null,null,null,null,null,null,null,null,null,null,null,null,null,null,null,null,null,null,null,null,null,null,"$C$291",null,null,null,null,null,null,null,null,"TRUE"]
[null,"Indicator","7.B.1.1","The organisation discusses commitment to responsible business conduct with potential equity investors and asks about their planned timeframe for investment and exit strategies to assess alignment on responsible business conduct strategy.","----",null,null,null,null,null,null,null,null,null,null,null,null,null,null,null,null,null,null,null,null,null,null,null,null,null,null,null,null,null,null,null,null,null,null,null,null,null,null,null,null,null,null,"$C$292",null,null,null,null,null,null,null,null,"TRUE"]
[null,"Indicator","7.B.1.2","The board of directors prioritises investment offers from equity investors whose investment strategy is aligned with the organisation's strategy on responsible business conduct.","----",null,null,null,null,null,null,null,null,null,null,null,null,null,null,null,null,null,null,null,null,null,null,null,null,null,null,null,null,null,null,null,null,null,null,null,null,null,null,null,null,null,null,"$C$293",null,null,null,null,null,null,null,null,"TRUE"]
[null,"Indicator","7.B.1.3","The shareholder agreement includes the following:",null,null,null,null,null,null,null,null,null,null,null,null,null,null,null,null,null,null,null,null,null,null,null,null,null,null,null,null,null,null,null,null,null,null,null,null,null,null,null,null,null,null,null,"$C$294",null,null,null,null,null,null,null,null,"TRUE"]
[null,"Detail","7.B.1.3.1","Commitment to responsible business conduct","----",null,null,null,null,null,null,null,null,null,null,null,null,null,null,null,null,null,null,null,null,null,null,null,null,null,null,null,null,null,null,null,null,null,null,null,null,null,null,null,null,null,null,"$C$295",null,null,null,null,null,null,null,null,"TRUE"]
[null,"Detail","7.B.1.3.2","Expected level and use of profits","----",null,null,null,null,null,null,null,null,null,null,null,null,null,null,null,null,null,null,null,null,null,null,null,null,null,null,null,null,null,null,null,null,null,null,null,null,null,null,null,null,null,null,"$C$296",null,null,null,null,null,null,null,null,"TRUE"]
[null,"Detail","7.B.1.3.3","Expected investment timeline/exit strategy","----",null,null,null,null,null,null,null,null,null,null,null,null,null,null,null,null,null,null,null,null,null,null,null,null,null,null,null,null,null,null,null,null,null,null,null,null,null,null,null,null,null,null,"$C$297",null,null,null,null,null,null,null,null,"TRUE"]
[null,"EP","7.B.2","The organisation uses its profits for expenditures that benefit responsible business conduct, local communities and local ecosystems.",null,null,null,null,null,null,null,null,null,null,"X",null,null,null,null,null,null,null,null,null,"X",null,null,null,null,null,null,null,null,null,null,null,null,null,null,null,null,null,null,null,null,null,null,"$C$298",null,null,null,null,null,null,null,null,"TRUE"]
[null,"Indicator","7.B.2.1","The organisation has a policy that specifies when dividends may be paid and in what amount, in alignment with its strategy on responsible business conduct.","----",null,null,null,null,null,null,null,null,null,"X",null,null,null,null,null,null,null,null,null,null,null,null,null,null,null,null,null,null,null,null,null,null,null,null,null,null,null,null,null,null,null,null,"$C$299",null,null,null,null,null,null,null,null,"TRUE"]
[null,"Indicator","7.B.2.2","The organisation uses its profits for investing in strengthening its responsible business conduct practices.","----",null,null,null,null,null,null,null,null,null,null,null,null,null,null,null,null,null,null,null,null,null,null,null,null,null,null,null,null,null,null,null,null,null,null,null,null,null,null,null,null,null,null,"$C$300",null,null,null,null,null,null,null,null,"TRUE"]
[null,"Indicator","7.B.2.3","The organisation uses its profits for local community investment, such as: providing support in case of an emergency (e.g., natural disaster, epidemic, conflict, etc.), developing access to basic services (e.g., water and sanitation, daycare, health, etc.), or supporting community-level initiatives.","----",null,null,null,null,null,null,null,null,null,"X",null,null,null,null,null,null,null,null,null,"X",null,null,null,null,"X",null,null,null,null,null,null,null,null,null,null,null,"C 1.2.1 Community Investment + S 4.3.1 Support to Vulnerable People",null,null,null,null,null,"$C$301",null,null,null,null,null,null,null,null,"TRUE"]
[null,"Indicator","7.B.2.4","The organisation uses its profits for investing in local ecosystem regeneration, such as: reforestation/tree planting, rehabilitation of degraded land/depollution, preservation or creation of habitats for biodiversity, conservation, and sharing of local biodiversity genetic resources.","----",null,null,null,null,null,null,null,null,null,null,null,null,null,"X",null,null,null,null,null,null,null,null,"X",null,null,null,null,null,null,null,null,null,null,null,null,null,null,null,null,null,null,null,"$C$302",null,null,null,null,null,null,null,null,"TRUE"]
[]
[]
[]
[]
[null,null,"----","----"]
[null,null,"Yes","Yes"]
[null,null,"No","No"]
[null,null,"Partially","Partially"]
[null,null,"N/A","N/A"]

{"sheet":"5. Outcomes","index":4,"n_rows":65,"n_cols":31,"rows_kept":65,"cut":false,"hidden":false,"merged":[[1,16,1,27],[1,1,1,4],[1,13,1,14],[2,8,3,8],[96,26,103,26],[221,26,225,26],[281,26,282,26],[2,16,2,25],[2,13,3,13],[2,14,3,14]]}
[]
[null,"OUTCOMES - Selected Economic, Social, and Environmental outcomes data",null,null,null,null,"For users: We welcome suggestions on how the tool could be improved.",null,null,null,null,null,null,"Sources of selected indicators",null,null,"Mapping against RAI related principles and guideliners (some examples)"]
[null,null,null,null,null,null,null,null,"Must have",null,null,null,null,null,null,null,"CFS-RAI principles",null,null,null,null,null,null,null,null,null,"SAFA TOOL 2.4.1","SDGs"]
[null,null,null,null,null,null,null,null,null,null,"Filter",null,null,null,null,null,1,2,3,4,5,6,7,8,9,10]
[null,"Reporting details","Data","Validation or explanation of response, comments, and clarifications","Explanation/note",null,"Suggestions",null,null,null,"x",null,null,"CSAF","IRIS+",null,1,2,3,4,5,6,7,8,9,10,null,null,null,null,"line number"]
[null,"As of date (DD/MM/YYYY)",null,null,"Period covered by data. DD/MM/YY. ",null,null,null,null,null,"x",null,null,null,null,null,null,null,null,null,null,null,null,null,null,null,null,null,null,null,{"$f":"ADDRESS(ROW(A6),COLUMN(C6))","v":"$C$6"}]
["cadre","EMPLOYEES AND GOVERNANCE",null,null,null,null,null,null,null,null,{"$f":"#REF!","v":{"$error":"#REF!"}},null,null,null,null,null,null,"X","X","X",null,null,null,null,null,null,null,null,null,null,{"$f":"ADDRESS(ROW(A7),COLUMN(C7))","v":"$C$7"}]
["O-01","Permanent employees (#)",null,null,"Number of people employed by the organisation at the end of the reporting period.  This is the sum of all paid full-time and part-time employees who are employed for a minimum period of 6 months/year. (GIIN IRIS PI8869 - Permanent Employees) ",null,null,null,null,null,{"$f":"#REF!","v":{"$error":"#REF!"}},null,null,"CSAF Impact","OI8869",null,null,"X",null,null,null,null,null,null,null,null,null,"SDG#8",null,null,"$C$8"]
["O-02","> Permanent employees: Female (#)",null,null,"Number of females employed by the organisation as of the end of the reporting period. This is the sum of all paid full-time and part-time female employees (GIIN IRIS OI2444 - Permanent Employees: Female)",null,null,null,null,null,{"$f":"#REF!","v":{"$error":"#REF!"}},null,null,"CSAF Impact",null,null,null,null,"X",null,null,null,null,null,null,null,null,"SDG#5",null,null,"$C$9"]
["O-03","> Permanent employees: Below 35 year (young) (#)",null,null,"Number of young workers (under 35) employed by the organisation as of the end of the reporting period. This is the sum of all paid full-time and part-time female employees.",null,null,null,null,null,{"$f":"#REF!","v":{"$error":"#REF!"}},null,null,null,null,null,null,null,null,"X",null,null,null,null,null,null,null,"SDG#8",null,null,"$C$10"]
["O-04","> Permanent employees: From the local communities (#)",null,null,null,null,null,null,null,null,{"$f":"#REF!","v":{"$error":"#REF!"}},null,null,null,null,null,null,"X",null,null,null,null,null,null,null,null,null,"SDG#8",null,null,"$C$11"]
["O-05","Temporary Employees (#)",null,null,"Number of temporary employees paid by the organisation during the reporting period (GIIN IRIS OI9028 - Temporary Employees)",null,null,null,null,null,{"$f":"#REF!","v":{"$error":"#REF!"}},null,null,"CSAF Impact",null,null,null,"X",null,null,null,null,null,null,null,null,null,"SDG#8",null,null,"$C$12"]
["O-06","> Temporary Employees: Female (#)",null,null,"Number of female temporary employees paid by the organisation during the reporting period. (OI6978)",null,null,null,null,null,{"$f":"#REF!","v":{"$error":"#REF!"}},null,null,"CSAF Impact",null,null,null,null,"X",null,null,null,null,null,null,null,null,"SDG#5",null,null,"$C$13"]
["O-07","Number of people in senior management (total) (#)",null,null,"Number of paid full-time management employees (managers) at the organisation as of the end of the reporting period (GIIN IRIS OI8251 - Full-time Employees: Managers)",null,null,null,null,null,{"$f":"#REF!","v":{"$error":"#REF!"}},null,null,"CSAF Impact",null,null,null,null,"X",null,null,null,null,null,null,null,null,"SDG#5",null,null,"$C$14"]
["O-08","> Number of women in senior management (#)",null,null,"Number of paid full-time female management employees (managers) at the organisation as of the end of the reporting period (GIIN IRIS OI1571 - Full-time Employees: Female managers)",null,null,null,null,null,{"$f":"#REF!","v":{"$error":"#REF!"}},null,null,"CSAF Impact","OI1571",null,null,null,"X",null,null,null,null,null,null,null,null,"SDG#5",null,null,"$C$15"]
["O-09","Number of total members on the organisation's Board of Directors or other governing body (#)",null,null,"Number of members of the organisation's board of directors or other governing body as of the end of the reporting period (GIIN IRIS OI1075 - Board of Directors: Total)",null,null,null,null,null,{"$f":"#REF!","v":{"$error":"#REF!"}},null,null,"CSAF Impact",null,null,null,null,"X",null,null,null,null,null,null,null,null,"SDG#5",null,null,"$C$16"]
["O-10","> Number of female members of the organisation's Board of Directors or other governing body (#)",null,null,"Number of female members of the organisation's board of directors or other governing body as of the end of the reporting period (GIIN IRIS OI8118 - Board of Directors: Female)",null,null,null,null,null,{"$f":"#REF!","v":{"$error":"#REF!"}},null,null,"CSAF Impact",null,null,null,null,"X",null,null,null,null,null,null,null,null,"SDG#5",null,null,"$C$17"]
["O-11","Share of women ownership (%)",null,null,"Percentage of the organisation that is female-owned, as of the end of the reporting period (GIIN IRIS OI2840 - Percent Female Ownership) - For privately owned businesses",null,null,null,null,null,{"$f":"#REF!","v":{"$error":"#REF!"}},null,null,"CSAF Impact","OI2840",null,null,null,"X",null,null,null,null,null,null,null,null,"SDG#5",null,null,"$C$18"]
["O-12","Employees trained on responsible business conduct (#)",null,null,"Number of employees (full-time, part-time, or temporary) who were trained through programs provided by the organisation (both internally and externally) during the reporting period. (OI4229)",null,null,null,null,null,{"$f":"#REF!","v":{"$error":"#REF!"}},null,null,"CSAF Optional","OI4229",null,null,"X",null,null,null,null,null,null,null,null,null,"SDG#4",null,null,"$C$19"]
["O-13","> Employees Trained: Female (#)",null,null,"Number of female employees (full-time, part-time, or temporary) who were trained through programs provided by the organisation (both internally and externally) during the reporting period.",null,null,null,null,null,{"$f":"#REF!","v":{"$error":"#REF!"}},null,null,null,null,null,null,null,"X",null,null,null,null,null,null,null,null,"SDG#4",null,null,"$C$20"]
["O-14","> Employees Trained: Below 35 year (young) (#)",null,null,"Number of young employees (under 35; full-time, part-time, or temporary) who were trained through programs provided by the organisation (both internally and externally) during the reporting period.",null,null,null,null,null,{"$f":"#REF!","v":{"$error":"#REF!"}},null,null,null,null,null,null,null,null,"X",null,null,null,null,null,null,null,"SDG#4",null,null,"$C$21"]
["O-15","Total employee wages (USD)",null,null,"Value of wages (including bonuses, excluding benefits) paid to all permanent and temporary employees of the organisation during the reporting period",null,null,null,null,null,{"$f":"#REF!","v":{"$error":"#REF!"}},null,null,"CSAF Impact","OI9677/OI4202",null,null,"X",null,null,null,null,null,null,null,null,null,"SDG#8",null,null,"$C$22"]
["O-16","Occupational injuries (#)",null,null,"Number of occupational injuries during the reporting period",null,null,null,null,null,{"$f":"#REF!","v":{"$error":"#REF!"}},null,null,null,"OI3757",null,null,null,null,null,null,null,null,null,null,null,null,null,null,null,"$C$23"]
["cadre",null,null,null,null,null,null,null,null,null,{"$f":"#REF!","v":{"$error":"#REF!"}},null,null,null,null,null,null,null,null,null,null,null,null,null,null,null,null,null,null,null,"$C$24"]
["cadre","FARMERS (SUPPLIERS)",null,null,null,null,null,null,null,null,{"$f":"#REF!","v":{"$error":"#REF!"}},null,null,null,null,null,null,"X","X","X",null,"X",null,null,null,null,null,null,null,null,"$C$25"]
["O-17","Number of farmers reached (#)",null,null,"Number of individual farmers who sold agricultural products to the organisation during the reporting period. (GIIN IRIS PI5350 - Supplier Individuals)",null,null,null,null,null,{"$f":"#REF!","v":{"$error":"#REF!"}},null,null,"CSAF Impact",null,null,null,"X",null,null,null,null,null,null,null,null,null,"SDG#2",null,null,"$C$26"]
["O-18","> Number of smallholder farmers reached (#)",null,null,"Number of individual smallholder farmers who sold agricultural products to the organisation during the reporting period. A smallholder farmer is defined as a family-owned farm operating on less than 10 hectares.",null,null,null,null,null,{"$f":"#REF!","v":{"$error":"#REF!"}},null,null,"CSAF Impact","PI9991",null,null,"X",null,null,null,null,null,null,null,null,null,"SDG#2",null,null,"$C$27"]
["O-19","> Number of female smallholder farmers reached (#)",null,null,"Number of female individual smallholder farmers who sold agricultural products to the organisation during the reporting period. (GIIN IRIS PI1728 - Supplier Individuals, Female)",null,null,null,null,null,{"$f":"#REF!","v":{"$error":"#REF!"}},null,null,"CSAF Impact","PI1728",null,null,null,"X",null,null,null,null,null,null,null,null,"SDG#5",null,null,"$C$28"]
["O-20","> Number of young smallholder farmers reached (#)",null,null,"Number of young individual smallholder farmers (under 35) who sold agricultural products to the organisation during the reporting period (not in IRIS)",null,null,null,null,null,{"$f":"#REF!","v":{"$error":"#REF!"}},null,null,null,null,null,null,null,null,"X",null,null,null,null,null,null,null,"SDG#2",null,null,"$C$29"]
["O-21","Number of smallholder farmers trained (#)",null,null,"Number of individual smallholder farmers who received training offered by the organisation during the reporting period (PI2998) - including one-on-one and group training or technical assistance",null,null,null,null,null,{"$f":"#REF!","v":{"$error":"#REF!"}},null,null,"CSAF Optional","PI2998",null,null,"X",null,null,null,null,null,null,null,null,null,"SDG#4",null,null,"$C$30"]
["O-22","> Number of smallholder farmers trained: Female (#)",null,null,"Number of female individual smallholder farmers who received training offered by the organisation during the reporting period (PI2998)",null,null,null,null,null,{"$f":"#REF!","v":{"$error":"#REF!"}},null,null,null,null,null,null,null,"X",null,null,null,null,null,null,null,null,"SDG#4",null,null,"$C$31"]
["O-23","> Number of smallholder farmers trained: Young (below 35 year) (#)",null,null,"Number of young individual smallholder farmers (below 35) who received training offered by the organisation during the reporting period",null,null,null,null,null,{"$f":"#REF!","v":{"$error":"#REF!"}},null,null,null,null,null,null,null,null,"X",null,null,null,null,null,null,null,"SDG#4",null,null,"$C$32"]
["O-24","Number of hectares directly cultivated by the organisation (#)",null,null,"Area of land directly controlled by the organisation and under cultivation. Report directly controlled land area cultivated during the reporting period. (OI1674)",null,null,null,null,null,{"$f":"#REF!","v":{"$error":"#REF!"}},null,null,"CSAF Optional",null,null,null,"X",null,null,null,null,null,null,null,null,null,"SDG#2",null,null,"$C$33"]
["O-25","Number of hectares indirectly cultivated by the organisation (#)",null,null,"Area of land indirectly controlled by the organisation and under cultivation (e.g., through contract farming/outgrower scheme). Report indirectly controlled land area cultivated during the reporting period (GIIN IRIS PI7403 - Land Indirectly Controlled: Cultivated).",null,null,null,null,null,{"$f":"#REF!","v":{"$error":"#REF!"}},null,null,"CSAF Impact",null,null,null,"X",null,null,null,null,null,null,null,null,null,"SDG#2",null,null,"$C$34"]
["O-26","Average agriculture yield of smallholder farmers (mt)",null,null,"Average agricultural yield per hectare of individual smallholder farmers who sold to the organisation (supplier individuals) during the reporting period (PI2046)",null,null,null,null,null,{"$f":"#REF!","v":{"$error":"#REF!"}},null,null,"CSAF Optional","PI5935",null,null,null,null,null,null,null,null,null,null,null,null,"SDG#2",null,null,"$C$35"]
["O-27","Total volume purchased from smallholder farmers (mt)",null,null,"Units/volume purchased from individuals who sold to the organisation during the reporting period (PI7923)",null,null,null,null,null,{"$f":"#REF!","v":{"$error":"#REF!"}},null,null,"CSAF Optional","PI7923",null,"X","X",null,null,null,null,null,null,null,null,null,"SDG#2",null,null,"$C$36"]
["O-28","> Total volume purchased from smallholder farmers  at price premium (mt)",null,null,null,null,null,null,null,null,{"$f":"#REF!","v":{"$error":"#REF!"}},null,null,null,"PI2422",null,null,null,null,null,null,null,null,null,null,null,null,null,null,null,"$C$37"]
["O-29","Payments to smallholder farmers (USD)",null,null,"Value of payments made by the organisation to individual smallholder farmers who sold to the organisation during the reporting period. (GIIN IRIS PI1492 - Payments to supplier individuals).  This should not include transportation, storage, transformation or other elements of costs of goods sold that are not related to purchases from farmers. This should include premiums. For CSAF purposes, this means annual data for the most recent date listed above.",null,null,null,null,null,{"$f":"#REF!","v":{"$error":"#REF!"}},null,null,"CSAF Impact","PI7852",null,null,"X",null,null,null,null,null,null,null,null,null,"SDG#2",null,null,"$C$38"]
["O-30","Price Premium (%)",null,null,"Price premium percentage that the producer (supplier) selling to the organisation obtains from the organisation for its goods or services during the reporting period (PI1568)",null,null,null,null,null,{"$f":"#REF!","v":{"$error":"#REF!"}},null,null,"CSAF Optional","PI1568",null,null,"X",null,null,null,null,null,null,null,null,null,"SDG#10",null,null,"$C$39"]
["cadre",null,null,null,null,null,null,null,null,null,{"$f":"#REF!","v":{"$error":"#REF!"}},null,null,null,null,null,null,null,null,null,null,null,null,null,null,null,null,null,null,null,"$C$40"]
["cadre","PRODUCTS AND SERVICES",null,null,null,null,null,null,null,null,{"$f":"#REF!","v":{"$error":"#REF!"}},null,null,null,null,null,"X","X",null,null,null,"X",null,null,null,null,null,null,null,null,"$C$41"]
["O-31","Sales - Volume (specify units - kg, quintales, etc.)",null,null,"Amount of the product/service sold by the organisation during the reporting period. (PI1263). For CSAF purposes, this means annual data for the most recent date listed above.",null,null,null,null,null,{"$f":"#REF!","v":{"$error":"#REF!"}},null,null,"CSAF Optional","PI1263",null,"X",null,null,null,null,null,null,null,null,null,null,"SDG#2",null,null,"$C$42"]
["O-32","Sales - Value (USD)",null,null,"Value of the revenue from sales of the organisation's products/services during the reporting period. (GIIN IRIS PI1775 - Sales Revenue).  For CSAF purposes, this means annual data for the most recent date listed above.",null,null,null,null,null,{"$f":"#REF!","v":{"$error":"#REF!"}},null,null,"CSAF Impact",null,null,null,"X",null,null,null,null,null,null,null,null,null,"SDG#8",null,null,"$C$43"]
["O-33","> Sales - Value for certified products (USD)",null,null,"Value of the revenue from sales of the organisation's certified products/services during the reporting period. (PI7321)",null,null,null,null,null,{"$f":"#REF!","v":{"$error":"#REF!"}},null,null,null,null,null,null,"X",null,null,null,"X",null,null,null,null,null,"SDG#12",null,null,"$C$44"]
["O-34","Number of clients (#)",null,null,"Number of unique individuals who were clients of the organisation during the reporting period (PI4060)",null,null,null,null,null,{"$f":"#REF!","v":{"$error":"#REF!"}},null,null,null,"PI6372",null,"X",null,null,null,null,null,null,null,null,null,null,"SDG#2",null,null,"$C$45"]
["O-35","> Number of clients provided new access (#)",null,null,"Number of unique client individuals who were served by the organisation and provided access, during the reporting period, to products/services they were unable to access prior to the reporting period (PI2822)",null,null,null,null,null,{"$f":"#REF!","v":{"$error":"#REF!"}},null,null,null,"PI2822",null,"X",null,null,null,null,null,null,null,null,null,null,"SDG#2",null,null,"$C$46"]
["cadre",null,null,null,null,null,null,null,null,null,{"$f":"#REF!","v":{"$error":"#REF!"}},null,null,null,null,null,null,null,null,null,null,null,null,null,null,null,null,null,null,null,"$C$47"]
["cadre","CHANGES AND SATISFACTION",null,null,"Based on surveys (frequency: every 3 years)",null,null,null,null,null,{"$f":"#REF!","v":{"$error":"#REF!"}},null,null,null,null,null,"X","X",null,null,null,null,null,null,null,null,null,null,null,null,"$C$48"]
["O-36","% of farmers reporting increased agricultural yields",null,null,"Percentage of individuals who were suppliers of the organisation during the reporting period reporting increased agricultural yields",null,null,null,null,null,{"$f":"#REF!","v":{"$error":"#REF!"}},null,null,null,"PI5935",null,null,"X",null,null,null,null,null,null,null,null,null,"SDG#2",null,null,"$C$49"]
["O-37","% of farmers reporting increased income",null,null,"Percentage of individuals who were suppliers of the organisation during the reporting period reporting increased income (PI9409)",null,null,null,null,null,{"$f":"#REF!","v":{"$error":"#REF!"}},null,null,null,"PI9409",null,null,"X",null,null,null,null,null,null,null,null,null,"SDG#2",null,null,"$C$50"]
["O-38","% of farmers reporting improved standards of living",null,null,null,null,null,null,null,null,{"$f":"#REF!","v":{"$error":"#REF!"}},null,null,null,null,null,null,"X",null,null,null,null,null,null,null,null,null,"SDG#1",null,null,"$C$51"]
["O-39","% of farmers satisfied with their business relation with the organisation",null,null,"(Percent of clients who rank themselves as “likely to recommend” (9-10 on scale) - Percent of clients who rank themselves as “unlikely to recommend” (0-6 on scale)",null,null,null,null,null,{"$f":"#REF!","v":{"$error":"#REF!"}},null,null,null,"PI7163",null,null,null,null,null,null,null,null,null,null,null,null,null,null,null,"$C$52"]
["O-40","% of clients reporting improved access to safe, nutritious and sufficient food",null,null,null,null,null,null,null,null,{"$f":"#REF!","v":{"$error":"#REF!"}},null,null,null,null,null,"X",null,null,null,null,null,null,null,null,null,null,"SDG#2",null,null,"$C$53"]
["O-41","% of clients satisfied with the organisation's products/services",null,null,"(Percent of clients who rank themselves as “likely to recommend” (9-10 on scale) - Percent of clients who rank themselves as “unlikely to recommend” (0-6 on scale)",null,null,null,null,null,{"$f":"#REF!","v":{"$error":"#REF!"}},null,null,null,"PI7163",null,"X",null,null,null,null,null,null,null,null,null,null,null,null,null,"$C$54"]
["cadre",null,null,null,null,null,null,null,null,null,{"$f":"#REF!","v":{"$error":"#REF!"}},null,null,null,null,null,null,null,null,null,null,null,null,null,null,null,null,null,null,null,"$C$55"]
["cadre","ENVIRONMENTAL FOOTPRINT",null,null,null,null,null,null,null,null,{"$f":"#REF!","v":{"$error":"#REF!"}},null,null,null,null,null,null,null,null,null,null,"X",null,null,null,null,null,null,null,null,"$C$56"]
["O-42","Total energy consumption (GWh)",null,null,null,null,null,null,null,null,{"$f":"#REF!","v":{"$error":"#REF!"}},null,null,null,null,null,null,null,null,null,null,"X",null,null,null,null,"E 5.2.3 Energy Consumption","SDG#7",null,null,"$C$57"]
["O-43","> Energy consumption from renewable energy sources (GWh)",null,null,null,null,null,null,null,null,{"$f":"#REF!","v":{"$error":"#REF!"}},null,null,null,null,null,null,null,null,null,null,"X",null,null,null,null,"E 5.2.4 Renewable Energies","SDG#7",null,null,"$C$58"]
["O-44","Water consumption (m3)",null,null,null,null,null,null,null,null,{"$f":"#REF!","v":{"$error":"#REF!"}},null,null,null,"OI3637",null,null,null,null,null,null,"X",null,null,null,null,null,"SDG#6",null,null,"$C$59"]
["O-45","Chemicals consumption (liters)",null,null,"Consumption of chemicals, such as fertilisers, pesticides, herbicides, fungicides",null,null,null,null,null,{"$f":"#REF!","v":{"$error":"#REF!"}},null,null,null,null,null,null,null,null,null,null,null,null,null,null,null,null,null,null,null,"$C$60"]
["O-46","Waste produced (tons)",null,null,null,null,null,null,null,null,{"$f":"#REF!","v":{"$error":"#REF!"}},null,null,null,"OI6709",null,null,null,null,null,null,"X",null,null,null,null,null,"SDG#12",null,null,"$C$61"]
["O-47","> Hazardous waste (tons)",null,null,null,null,null,null,null,null,{"$f":"#REF!","v":{"$error":"#REF!"}},null,null,null,"OI1346",null,null,null,null,null,null,"X",null,null,null,null,null,"SDG#12",null,null,"$C$62"]
["O-48","> Non-recycled waste (tons)",null,null,null,null,null,null,null,null,{"$f":"#REF!","v":{"$error":"#REF!"}},null,null,null,null,null,null,null,null,null,null,"X",null,null,null,null,null,"SDG#12",null,null,"$C$63"]
["O-49","Greenhouse Gas Emissions (m2 of CO2 equivalent)",null,null,null,null,null,null,null,null,{"$f":"#REF!","v":{"$error":"#REF!"}},null,null,null,"OI1479",null,null,null,null,null,null,"X",null,null,null,null,"E 1.1.3 GHG Balance","SDG#13",null,null,"$C$64"]
["O-50","Share of GHG emissions offset (%)",null,null,null,null,null,null,null,null,{"$f":"#REF!","v":{"$error":"#REF!"}},null,null,null,"PI2764",null,null,null,null,null,null,"X",null,null,null,null,null,"SDG#13",null,null,"$C$65"]

{"sheet":"DataOrgInfos","index":5,"n_rows":64,"n_cols":7,"rows_kept":64,"cut":false,"hidden":true,"merged":[]}
[null,"Code","Label","Answer","Sheet","Cell","Address"]
[null,"ID-1","As of date (DD/MM/YYYY)",{"$f":"IF(OR(ISBLANK('2. ID-Card'!D4),'2. ID-Card'!D4=\"----\"),FALSE,'2. ID-Card'!D4)","v":"YY/MM/YYYY"},"ID-Card",{"$f":"VLOOKUP(B2,'2. ID-Card'!$A$5:$Q$17,14,0)","v":0},{"$f":"E2&\"!\"&F2","v":"ID-Card!0"}]
[null,"ID-2","GENERAL INFORMATION",{"$f":"IF(OR(ISBLANK('2. ID-Card'!D6),'2. ID-Card'!D6=\"----\"),FALSE,'2. ID-Card'!D6)","v":false},"ID-Card",{"$f":"VLOOKUP(B3,'2. ID-Card'!$A$5:$Q$17,14,0)","v":0},{"$f":"E3&\"!\"&F3","v":"ID-Card!0"}]
[null,"ID-3","Name",{"$f":"IF(OR(ISBLANK('2. ID-Card'!D7),'2. ID-Card'!D7=\"----\"),FALSE,'2. ID-Card'!D7)","v":false},"ID-Card",{"$f":"VLOOKUP(B4,'2. ID-Card'!$A$5:$Q$17,14,0)","v":0},"ID-Card!0"]
[null,"ID-4","Acronym",{"$f":"IF(OR(ISBLANK('2. ID-Card'!D8),'2. ID-Card'!D8=\"----\"),FALSE,'2. ID-Card'!D8)","v":false},"ID-Card",{"$f":"VLOOKUP(B5,'2. ID-Card'!$A$5:$Q$17,14,0)","v":0},"ID-Card!0"]
[null,"ID-7","Primary country of operation",{"$f":"IF(OR(ISBLANK('2. ID-Card'!D11),'2. ID-Card'!D11=\"----\"),FALSE,'2. ID-Card'!D11)","v":false},"ID-Card",{"$f":"VLOOKUP(B6,'2. ID-Card'!$A$5:$Q$17,14,0)","v":0},"ID-Card!0"]
[null,"ID-8","Additional country(s) of operation",{"$f":"IF(OR(ISBLANK('2. ID-Card'!D12),'2. ID-Card'!D12=\"----\"),FALSE,'2. ID-Card'!D12)","v":false},"ID-Card",{"$f":"VLOOKUP(B7,'2. ID-Card'!$A$5:$Q$17,14,0)","v":0},"ID-Card!0"]
[null,"ID-5","Year of creation",{"$f":"IF(OR(ISBLANK('2. ID-Card'!D9),'2. ID-Card'!D9=\"----\"),FALSE,'2. ID-Card'!D9)","v":false},"ID-Card",{"$f":"VLOOKUP(B8,'2. ID-Card'!$A$5:$Q$17,14,0)","v":0},"ID-Card!0"]
[null,"ID-11","Legal status / type of ownership",{"$f":"IF(OR(ISBLANK('2. ID-Card'!D15),'2. ID-Card'!D15=\"----\"),FALSE,'2. ID-Card'!D15)","v":false},"ID-Card",{"$f":"VLOOKUP(B9,'2. ID-Card'!$A$5:$Q$17,14,0)","v":0},"ID-Card!0"]
[null,"ID-9","Parent company(ies), if any",{"$f":"IF(OR(ISBLANK('2. ID-Card'!D13),'2. ID-Card'!D13=\"----\"),FALSE,'2. ID-Card'!D13)","v":false},"ID-Card",{"$f":"VLOOKUP(B10,'2. ID-Card'!$A$5:$Q$17,14,0)","v":0},"ID-Card!0"]
[null,"ID-10","Country(ies) where the parent company(ies) are registered",{"$f":"IF(OR(ISBLANK('2. ID-Card'!D14),'2. ID-Card'!D14=\"----\"),FALSE,'2. ID-Card'!D14)","v":false},"ID-Card",{"$f":"VLOOKUP(B11,'2. ID-Card'!$A$5:$Q$17,14,0)","v":0},"ID-Card!0"]
[null,"ID-6","Country of registration",{"$f":"IF(OR(ISBLANK('2. ID-Card'!D10),'2. ID-Card'!D10=\"----\"),FALSE,'2. ID-Card'!D10)","v":false},"ID-Card",{"$f":"VLOOKUP(B12,'2. ID-Card'!$A$5:$Q$17,14,0)","v":0},"ID-Card!0"]
[null,"ID-12","Nature of business, main focus",{"$f":"IF(OR(ISBLANK('2. ID-Card'!D16),'2. ID-Card'!D16=\"----\"),FALSE,'2. ID-Card'!D16)","v":false},"ID-Card",{"$f":"VLOOKUP(B13,'2. ID-Card'!$A$5:$Q$17,14,0)","v":0},"ID-Card!0"]
[null,"ID-13","Mission statement",{"$f":"IF(OR(ISBLANK('2. ID-Card'!D17),'2. ID-Card'!D17=\"----\"),FALSE,'2. ID-Card'!D17)","v":false},"ID-Card",{"$f":"VLOOKUP(B14,'2. ID-Card'!$A$5:$Q$17,14,0)","v":0},"ID-Card!0"]
[null,"O-01","Permanent employees (#)",{"$f":"IF(OR(ISBLANK(VLOOKUP(B15,outcomes_input,3,0)),VLOOKUP(B15,outcomes_input,3,0)=\"----\"),FALSE,VLOOKUP(B15,outcomes_input,3,0))","v":false},"Outcomes",{"$f":"VLOOKUP(B15,'5. Outcomes'!A6:$AE$65,29,0)","v":0},"Outcomes!0"]
[null,"O-02","> Permanent employees: Female (#)",false,"Outcomes",{"$f":"VLOOKUP(B16,'5. Outcomes'!A7:$AE$65,29,0)","v":0},"Outcomes!0"]
[null,"O-03","> Permanent employees: Below 35 year (young) (#)",false,"Outcomes",{"$f":"VLOOKUP(B17,'5. Outcomes'!A8:$AE$65,29,0)","v":0},"Outcomes!0"]
[null,"O-04","> Permanent employees: From the local communities (#)",false,"Outcomes",{"$f":"VLOOKUP(B18,'5. Outcomes'!A9:$AE$65,29,0)","v":0},"Outcomes!0"]
[null,"O-05","Temporary Employees (#)",false,"Outcomes",{"$f":"VLOOKUP(B19,'5. Outcomes'!A10:$AE$65,29,0)","v":0},"Outcomes!0"]
[null,"O-06","> Temporary Employees: Female (#)",false,"Outcomes",{"$f":"VLOOKUP(B20,'5. Outcomes'!A11:$AE$65,29,0)","v":0},"Outcomes!0"]
[null,"O-07","Number of people in senior management (total) (#)",false,"Outcomes",{"$f":"VLOOKUP(B21,'5. Outcomes'!A12:$AE$65,29,0)","v":0},"Outcomes!0"]
[null,"O-08","> Number of women in senior management (#)",false,"Outcomes",{"$f":"VLOOKUP(B22,'5. Outcomes'!A13:$AE$65,29,0)","v":0},"Outcomes!0"]
[null,"O-09","Number of total members on the organisation's Board of Directors or other governing body (#)",false,"Outcomes",{"$f":"VLOOKUP(B23,'5. Outcomes'!A14:$AE$65,29,0)","v":0},"Outcomes!0"]
[null,"O-10","> Number of female members of the organization's Board of Directors or other governing body (#)",false,"Outcomes",{"$f":"VLOOKUP(B24,'5. Outcomes'!A15:$AE$65,29,0)","v":0},"Outcomes!0"]
[null,"O-11","Share of women ownership (%)",false,"Outcomes",{"$f":"VLOOKUP(B25,'5. Outcomes'!A16:$AE$65,29,0)","v":0},"Outcomes!0"]
[null,"O-12","Employees trained on responsible business conduct (#)",false,"Outcomes",{"$f":"VLOOKUP(B26,'5. Outcomes'!A17:$AE$65,29,0)","v":0},"Outcomes!0"]
[null,"O-13","> Employees Trained: Female (#)",false,"Outcomes",{"$f":"VLOOKUP(B27,'5. Outcomes'!A18:$AE$65,29,0)","v":0},"Outcomes!0"]
[null,"O-14","> Employees Trained: Below 35 year (young) (#)",false,"Outcomes",{"$f":"VLOOKUP(B28,'5. Outcomes'!A19:$AE$65,29,0)","v":0},"Outcomes!0"]
[null,"O-15","Total employee wages (USD)",false,"Outcomes",{"$f":"VLOOKUP(B29,'5. Outcomes'!A20:$AE$65,29,0)","v":0},"Outcomes!0"]
[null,"O-16","Occupational injuries (#)",false,"Outcomes",{"$f":"VLOOKUP(B30,'5. Outcomes'!A21:$AE$65,29,0)","v":0},"Outcomes!0"]
[null,"O-17","Number of farmers reached (#)",false,"Outcomes",{"$f":"VLOOKUP(B31,'5. Outcomes'!A22:$AE$65,29,0)","v":0},"Outcomes!0"]
[null,"O-18","> Number of smallholder farmers reached (#)",false,"Outcomes",{"$f":"VLOOKUP(B32,'5. Outcomes'!A23:$AE$65,29,0)","v":0},"Outcomes!0"]
[null,"O-19","> Number of female smallholder farmers reached (#)",false,"Outcomes",{"$f":"VLOOKUP(B33,'5. Outcomes'!A24:$AE$65,29,0)","v":0},"Outcomes!0"]
[null,"O-20","> Number of young smallholder farmers reached (#)",false,"Outcomes",{"$f":"VLOOKUP(B34,'5. Outcomes'!A25:$AE$65,29,0)","v":0},"Outcomes!0"]
[null,"O-21","Number of smallholder farmers trained (#)",false,"Outcomes",{"$f":"VLOOKUP(B35,'5. Outcomes'!A26:$AE$65,29,0)","v":0},"Outcomes!0"]
[null,"O-22","> Number of smallholder farmers trained: Female (#)",false,"Outcomes",{"$f":"VLOOKUP(B36,'5. Outcomes'!A27:$AE$65,29,0)","v":0},"Outcomes!0"]
[null,"O-23","> Number of smallholder farmers trained: Young (below 35 year) (#)",false,"Outcomes",{"$f":"VLOOKUP(B37,'5. Outcomes'!A28:$AE$65,29,0)","v":0},"Outcomes!0"]
[null,"O-24","Number of hectares directly cultivated by the organization (#)",false,"Outcomes",{"$f":"VLOOKUP(B38,'5. Outcomes'!A29:$AE$65,29,0)","v":0},"Outcomes!0"]
[null,"O-25","Number of hectares indirectly cultivated by the organization (#)",false,"Outcomes",{"$f":"VLOOKUP(B39,'5. Outcomes'!A30:$AE$65,29,0)","v":0},"Outcomes!0"]
[null,"O-26","Average agriculture yield of smallholder farmers (specify units - kg, quintales, etc.)",false,"Outcomes",{"$f":"VLOOKUP(B40,'5. Outcomes'!A31:$AE$65,29,0)","v":0},"Outcomes!0"]
[null,"O-27","Total volume purchased from smallholder farmers (specify units - kg, quintales, etc.)",false,"Outcomes",{"$f":"VLOOKUP(B41,'5. Outcomes'!A32:$AE$65,29,0)","v":0},"Outcomes!0"]
[null,"O-28","> Total volume purchased from smallholder farmers  at price premium (specify units - kg, quintales, etc.)",false,"Outcomes",{"$f":"VLOOKUP(B42,'5. Outcomes'!A33:$AE$65,29,0)","v":0},"Outcomes!0"]
[null,"O-29","Payments to smallholder farmers (USD)",false,"Outcomes",{"$f":"VLOOKUP(B43,'5. Outcomes'!A34:$AE$65,29,0)","v":0},"Outcomes!0"]
[null,"O-30","Price Premium (%)",false,"Outcomes",{"$f":"VLOOKUP(B44,'5. Outcomes'!A35:$AE$65,29,0)","v":0},"Outcomes!0"]
[null,"O-31","Sales - Volume (specify units - kg, quintales, etc.)",false,"Outcomes",{"$f":"VLOOKUP(B45,'5. Outcomes'!A36:$AE$65,29,0)","v":0},"Outcomes!0"]
[null,"O-32","Sales - Value (USD)",false,"Outcomes",{"$f":"VLOOKUP(B46,'5. Outcomes'!A37:$AE$65,29,0)","v":0},"Outcomes!0"]
[null,"O-33","> Sales - Value for certified products (USD)",{"$f":"IF(OR(ISBLANK(VLOOKUP(B47,outcomes_input,3,0)),VLOOKUP(B47,outcomes_input,3,0)=\"----\"),FALSE,VLOOKUP(B47,outcomes_input,3,0))","v":false},"Outcomes",{"$f":"VLOOKUP(B47,'5. Outcomes'!A38:$AE$65,29,0)","v":0},"Outcomes!0"]
[null,"O-34","Number of clients (#)",false,"Outcomes",{"$f":"VLOOKUP(B48,'5. Outcomes'!A39:$AE$65,29,0)","v":0},"Outcomes!0"]
[null,"O-35","> Number of clients provided new access (#)",false,"Outcomes",{"$f":"VLOOKUP(B49,'5. Outcomes'!A40:$AE$65,29,0)","v":0},"Outcomes!0"]
[null,"O-36","% of farmers reporting increased agricultural yields",false,"Outcomes",{"$f":"VLOOKUP(B50,'5. Outcomes'!A41:$AE$65,29,0)","v":0},"Outcomes!0"]
[null,"O-37","% of farmers reporting increased income",false,"Outcomes",{"$f":"VLOOKUP(B51,'5. Outcomes'!A42:$AE$65,29,0)","v":0},"Outcomes!0"]
[null,"O-38","% of farmers reporting improved standards of living",false,"Outcomes",{"$f":"VLOOKUP(B52,'5. Outcomes'!A43:$AE$65,29,0)","v":0},"Outcomes!0"]
[null,"O-39","% of farmers satisfied with their business relation with the organization",false,"Outcomes",{"$f":"VLOOKUP(B53,'5. Outcomes'!A44:$AE$65,29,0)","v":0},"Outcomes!0"]
[null,"O-40","% of clients reporting improved access to safe, nutritious and sufficient food",false,"Outcomes",{"$f":"VLOOKUP(B54,'5. Outcomes'!A45:$AE$65,29,0)","v":0},"Outcomes!0"]
[null,"O-41","% of clients satisfied with the organization's products/services",false,"Outcomes",{"$f":"VLOOKUP(B55,'5. Outcomes'!A46:$AE$65,29,0)","v":0},"Outcomes!0"]
[null,"O-42","Total energy consumption (GWh)",false,"Outcomes",{"$f":"VLOOKUP(B56,'5. Outcomes'!A47:$AE$65,29,0)","v":0},"Outcomes!0"]
[null,"O-43","> Energy consumption from renewable energy sources (GWh)",false,"Outcomes",{"$f":"VLOOKUP(B57,'5. Outcomes'!A48:$AE$65,29,0)","v":0},"Outcomes!0"]
[null,"O-44","Water consumption (m3)",false,"Outcomes",{"$f":"VLOOKUP(B58,'5. Outcomes'!A49:$AE$65,29,0)","v":0},"Outcomes!0"]
[null,"O-45","Chemicals consumption (liters)",false,"Outcomes",{"$f":"VLOOKUP(B59,'5. Outcomes'!A50:$AE$65,29,0)","v":0},"Outcomes!0"]
[null,"O-46","Waste produced (tons)",false,"Outcomes",{"$f":"VLOOKUP(B60,'5. Outcomes'!A51:$AE$65,29,0)","v":0},"Outcomes!0"]
[null,"O-47","> Hazardous waste (tons)",false,"Outcomes",{"$f":"VLOOKUP(B61,'5. Outcomes'!A52:$AE$65,29,0)","v":0},"Outcomes!0"]
[null,"O-48","> Non-recycled waste (tons)",false,"Outcomes",{"$f":"VLOOKUP(B62,'5. Outcomes'!A53:$AE$65,29,0)","v":0},"Outcomes!0"]
[null,"O-49","Greenhouse Gas Emissions (m2 of CO2 equivalent)",false,"Outcomes",{"$f":"VLOOKUP(B63,'5. Outcomes'!A54:$AE$65,29,0)","v":0},"Outcomes!0"]
[null,"O-50","Share of GHG emissions offset (%)",false,"Outcomes",{"$f":"VLOOKUP(B64,'5. Outcomes'!A55:$AE$65,29,0)","v":0},"Outcomes!0"]

{"sheet":"Data","index":6,"n_rows":306,"n_cols":12,"rows_kept":306,"cut":false,"hidden":true,"merged":[]}
[]
[]
[]
[null,"Code","Level","AnswerB","Label","filter","=cell","check answer","answer","Score"]
[null,"1","Dimension",false,"Strategy and accountability on responsible agriculture",{"$f":"VLOOKUP(B5,'4. Practices'!C:BE,55,0)","v":"TRUE"},{"$f":"VLOOKUP(B5,'4. Practices'!C:E,3,0)","v":0},{"$f":"IF(COUNTIF($L$5:$L$8,G5)=1,TRUE,FALSE)","v":false},{"$f":"IF(AND(D5=TRUE,H5=TRUE,F5=\"TRUE\"),G5,FALSE)","v":false},{"$f":"IFERROR(VLOOKUP(B5,Scoring!Q$4:R$10,2,0)*100,0)","v":0},null,"Yes"]
[null,"1.A","Standard",false,"The organization has a strategy on responsible business conduct and systems in place to implement it.\n[Responsible business conduct is defined by OECD as “making a positive contribution to economic, environmental and social progress with a view to achieving sustainable development, and avoiding and addressing adverse impacts related to an enterprise's direct and indirect operations, products or services”]",{"$f":"VLOOKUP(B6,'4. Practices'!C:BE,55,0)","v":"TRUE"},{"$f":"VLOOKUP(B6,'4. Practices'!C:E,3,0)","v":0},false,{"$f":"IF(AND(D6=TRUE,H6=TRUE,F6=\"TRUE\"),G6,FALSE)","v":false},{"$f":"IFERROR(VLOOKUP(B6,Scoring!Q$4:R$10,2,0)*100,0)","v":0},null,"No"]
[null,"1.A.1","EP",false,"The organization has a documented strategy on responsible business conduct.",{"$f":"VLOOKUP(B7,'4. Practices'!C:BE,55,0)","v":"TRUE"},{"$f":"VLOOKUP(B7,'4. Practices'!C:E,3,0)","v":0},false,false,{"$f":"IFERROR(VLOOKUP(B7,Scoring!Q$4:R$10,2,0)*100,0)","v":0},null,"Partially"]
[null,"1.A.1.1","Indicator",true,"The strategy defines the positive contribution to sustainable development and inclusive growth that the organization seeks to create, such as:\n- contributing to food security and nutrition,\n- contributing to sustainable and inclusive economic development,\n- fostering gender equality and women empowerment,\n- fostering rural youth empowerment,\n- other.",{"$f":"VLOOKUP(B8,'4. Practices'!C:BE,55,0)","v":"TRUE"},{"$f":"VLOOKUP(B8,'4. Practices'!C:E,3,0)","v":"----"},false,false,{"$f":"IFERROR(VLOOKUP(B8,Scoring!Q$4:R$10,2,0)*100,0)","v":0},null,"N/A"]
[null,"1.A.1.2","Indicator",false,"The strategy articulates how the organization will mitigate the social and environmental risks related to its direct or indirect operations, products and services:",{"$f":"VLOOKUP(B9,'4. Practices'!C:BE,55,0)","v":"TRUE"},{"$f":"VLOOKUP(B9,'4. Practices'!C:E,3,0)","v":0},false,false,{"$f":"IFERROR(VLOOKUP(B9,Scoring!S$4:T$24,2,0)*100,0)","v":0}]
[null,"1.A.1.2.1","Detail",true,"Negative effects on stakeholders (farmers, suppliers, clients, consumers, local communities…)",{"$f":"VLOOKUP(B10,'4. Practices'!C:BE,55,0)","v":"TRUE"},{"$f":"VLOOKUP(B10,'4. Practices'!C:E,3,0)","v":"----"},false,false,{"$f":"IFERROR(VLOOKUP(B10,Scoring!S$4:T$24,2,0)*100,0)","v":0}]
[null,"1.A.1.2.2","Detail",true,"Violations of human rights, labor rights, tenure rights or cultural heritage",{"$f":"VLOOKUP(B11,'4. Practices'!C:BE,55,0)","v":"TRUE"},{"$f":"VLOOKUP(B11,'4. Practices'!C:E,3,0)","v":"----"},false,false,{"$f":"IFERROR(VLOOKUP(B11,Scoring!S$4:T$24,2,0)*100,0)","v":0}]
[null,"1.A.1.2.3","Detail",true,"Negative impacts on the environment",{"$f":"VLOOKUP(B12,'4. Practices'!C:BE,55,0)","v":"TRUE"},{"$f":"VLOOKUP(B12,'4. Practices'!C:E,3,0)","v":"----"},false,false,{"$f":"IFERROR(VLOOKUP(B12,Scoring!S$4:T$24,2,0)*100,0)","v":0}]
[null,"1.A.1.3","Indicator",true,"The strategy defines indicators and targets to measure the organization's progress towards its responsible business conduct objectives.",{"$f":"VLOOKUP(B13,'4. Practices'!C:BE,55,0)","v":"TRUE"},{"$f":"VLOOKUP(B13,'4. Practices'!C:E,3,0)","v":"----"},false,false,{"$f":"IFERROR(VLOOKUP(B13,Scoring!S$4:T$24,2,0)*100,0)","v":0}]
[null,"1.A.2","EP",false,"The organization ensures the implementation and oversight of the strategy on responsible business conduct.",{"$f":"VLOOKUP(B14,'4. Practices'!C:BE,55,0)","v":"TRUE"},{"$f":"VLOOKUP(B14,'4. Practices'!C:E,3,0)","v":0},false,false,{"$f":"IFERROR(VLOOKUP(B14,Scoring!S$4:T$24,2,0)*100,0)","v":0}]
[null,"1.A.2.1","Indicator",false,"The organization ensures that its own operations comply with its strategy on responsible business conduct:",{"$f":"VLOOKUP(B15,'4. Practices'!C:BE,55,0)","v":"TRUE"},{"$f":"VLOOKUP(B15,'4. Practices'!C:E,3,0)","v":0},false,false,{"$f":"IFERROR(VLOOKUP(B15,Scoring!S$4:T$24,2,0)*100,0)","v":0}]
[null,"1.A.2.1.1","Detail",true,"The organization includes goals and targets related to responsible business conduct in the business plan or operational plan.",{"$f":"VLOOKUP(B16,'4. Practices'!C:BE,55,0)","v":"TRUE"},{"$f":"VLOOKUP(B16,'4. Practices'!C:E,3,0)","v":"----"},false,false,{"$f":"IFERROR(VLOOKUP(B16,Scoring!S$4:T$24,2,0)*100,0)","v":0}]
[null,"1.A.2.1.2","Detail",true,"The organization defines roles and responsibilities in implementing its strategy on responsible business conduct.",{"$f":"VLOOKUP(B17,'4. Practices'!C:BE,55,0)","v":"TRUE"},{"$f":"VLOOKUP(B17,'4. Practices'!C:E,3,0)","v":"----"},false,false,{"$f":"IFERROR(VLOOKUP(B17,Scoring!S$4:T$24,2,0)*100,0)","v":0}]
[null,"1.A.2.1.3","Detail",true,"The organization monitors regularly the compliance of its operations, products and services with its strategy on responsible business conduct, and with all applicable international and national laws, regulations, and voluntary standards related to responsible business conduct.",{"$f":"VLOOKUP(B18,'4. Practices'!C:BE,55,0)","v":"TRUE"},{"$f":"VLOOKUP(B18,'4. Practices'!C:E,3,0)","v":"----"},false,false,{"$f":"IFERROR(VLOOKUP(B18,Scoring!S$4:T$24,2,0)*100,0)","v":0}]
[null,"1.A.2.2","Indicator",false,"The organization seeks to ensure that the operations of its suppliers and key business partners are aligned with its strategy on responsible business conduct:",{"$f":"VLOOKUP(B19,'4. Practices'!C:BE,55,0)","v":"TRUE"},{"$f":"VLOOKUP(B19,'4. Practices'!C:E,3,0)","v":0},false,false,{"$f":"IFERROR(VLOOKUP(B19,Scoring!S$4:T$24,2,0)*100,0)","v":0}]
[null,"1.A.2.2.1","Detail",true,"Prior to signing a contract with a supplier or business partner, the organization conducts an evaluation of its practices related to responsible business conduct (i.e. existence of a code of conduct, organization of trainings on responsible business conduct, Environmental & Social Monitoring System in place, etc.). ",{"$f":"VLOOKUP(B20,'4. Practices'!C:BE,55,0)","v":"TRUE"},{"$f":"VLOOKUP(B20,'4. Practices'!C:E,3,0)","v":"----"},false,false,{"$f":"IFERROR(VLOOKUP(B20,Scoring!S$4:T$24,2,0)*100,0)","v":0}]
[null,"1.A.2.2.2","Detail",true,"The organization integrates responsible business conduct conditions into its contractual agreements with key suppliers and business partners.",{"$f":"VLOOKUP(B21,'4. Practices'!C:BE,55,0)","v":"TRUE"},{"$f":"VLOOKUP(B21,'4. Practices'!C:E,3,0)","v":"----"},false,false,{"$f":"IFERROR(VLOOKUP(B21,Scoring!S$4:T$24,2,0)*100,0)","v":0}]
[null,"1.A.2.2.3","Detail",true,"The organization regularly monitors the performance of key suppliers and business partners in terms of responsible business conduct.",{"$f":"VLOOKUP(B22,'4. Practices'!C:BE,55,0)","v":"TRUE"},{"$f":"VLOOKUP(B22,'4. Practices'!C:E,3,0)","v":"----"},false,false,{"$f":"IFERROR(VLOOKUP(B22,Scoring!S$4:T$24,2,0)*100,0)","v":0}]
[null,"1.A.2.3","Indicator",false,"The board and senior management make strategic decisions based on data related to responsible business conduct, such as:",{"$f":"VLOOKUP(B23,'4. Practices'!C:BE,55,0)","v":"TRUE"},{"$f":"VLOOKUP(B23,'4. Practices'!C:E,3,0)","v":0},false,false,{"$f":"IFERROR(VLOOKUP(B23,Scoring!S$4:T$24,2,0)*100,0)","v":0}]
[null,"1.A.2.3.1","Detail",true,"Assessment of actual and potential environmental and social risks and impacts",{"$f":"VLOOKUP(B24,'4. Practices'!C:BE,55,0)","v":"TRUE"},{"$f":"VLOOKUP(B24,'4. Practices'!C:E,3,0)","v":"----"},false,false,{"$f":"IF(C24=\"EP\",VLOOKUP(B24,Scoring!U$4:V$48,2,0),IF(H24=\"Yes\",1,IF(H24=\"No\",0,IF(H24=\"Partially\",0.5,\"\"))))","v":""}]
[null,"1.A.2.3.2","Detail",true,"Stakeholders' consultation reports",{"$f":"VLOOKUP(B25,'4. Practices'!C:BE,55,0)","v":"TRUE"},{"$f":"VLOOKUP(B25,'4. Practices'!C:E,3,0)","v":"----"},false,false,{"$f":"IF(C25=\"EP\",VLOOKUP(B25,Scoring!U$4:V$48,2,0),IF(H25=\"Yes\",1,IF(H25=\"No\",0,IF(H25=\"Partially\",0.5,\"\"))))","v":""}]
[null,"1.A.2.3.3","Detail",true,"Analysis of grievances received from stakeholders",{"$f":"VLOOKUP(B26,'4. Practices'!C:BE,55,0)","v":"TRUE"},{"$f":"VLOOKUP(B26,'4. Practices'!C:E,3,0)","v":"----"},false,false,{"$f":"IF(C26=\"EP\",VLOOKUP(B26,Scoring!U$4:V$48,2,0),IF(H26=\"Yes\",1,IF(H26=\"No\",0,IF(H26=\"Partially\",0.5,\"\"))))","v":""}]
[null,"1.A.2.3.4","Detail",true,"Employee turnover rate, by gender",{"$f":"VLOOKUP(B27,'4. Practices'!C:BE,55,0)","v":"TRUE"},{"$f":"VLOOKUP(B27,'4. Practices'!C:E,3,0)","v":"----"},false,false,{"$f":"IF(C27=\"EP\",VLOOKUP(B27,Scoring!U$4:V$48,2,0),IF(H27=\"Yes\",1,IF(H27=\"No\",0,IF(H27=\"Partially\",0.5,\"\"))))","v":""}]
[null,"1.A.2.3.5","Detail",true,"Analysis of employee satisfaction surveys",{"$f":"VLOOKUP(B28,'4. Practices'!C:BE,55,0)","v":"TRUE"},{"$f":"VLOOKUP(B28,'4. Practices'!C:E,3,0)","v":"----"},false,false,{"$f":"IF(C28=\"EP\",VLOOKUP(B28,Scoring!U$4:V$48,2,0),IF(H28=\"Yes\",1,IF(H28=\"No\",0,IF(H28=\"Partially\",0.5,\"\"))))","v":""}]
[null,"1.B","Standard",false,"The organization assesses and manages its environmental and social (E&S) risks and impacts.",{"$f":"VLOOKUP(B29,'4. Practices'!C:BE,55,0)","v":"TRUE"},{"$f":"VLOOKUP(B29,'4. Practices'!C:E,3,0)","v":0},false,false,{"$f":"IF(C29=\"EP\",VLOOKUP(B29,Scoring!U$4:V$48,2,0),IF(H29=\"Yes\",1,IF(H29=\"No\",0,IF(H29=\"Partially\",0.5,\"\"))))","v":""}]
[null,"1.B.1","EP",false,"The organization assesses its current and potential E&S risks and impacts.",{"$f":"VLOOKUP(B30,'4. Practices'!C:BE,55,0)","v":"TRUE"},{"$f":"VLOOKUP(B30,'4. Practices'!C:E,3,0)","v":0},false,false,{"$f":"IF(C30=\"EP\",VLOOKUP(B30,Scoring!U$4:V$48,2,0),IF(H30=\"Yes\",1,IF(H30=\"No\",0,IF(H30=\"Partially\",0.5,\"\"))))","v":0}]
[null,"1.B.1.1","Indicator",false,"The organization conducts regular assessments of the actual and potential E&S risks and impacts of its operations, processes, products and services, over their full life-cycle:",{"$f":"VLOOKUP(B31,'4. Practices'!C:BE,55,0)","v":"TRUE"},{"$f":"VLOOKUP(B31,'4. Practices'!C:E,3,0)","v":0},false,false,{"$f":"IF(C31=\"EP\",VLOOKUP(B31,Scoring!U$4:V$48,2,0),IF(H31=\"Yes\",1,IF(H31=\"No\",0,IF(H31=\"Partially\",0.5,\"\"))))","v":""}]
[null,"1.B.1.1.1","Detail",true,"The organization has documented policies or procedures defining the scope and level of effort devoted to E&S risks and impacts assessment.",{"$f":"VLOOKUP(B32,'4. Practices'!C:BE,55,0)","v":"TRUE"},{"$f":"VLOOKUP(B32,'4. Practices'!C:E,3,0)","v":"----"},false,false,{"$f":"IF(C32=\"EP\",VLOOKUP(B32,Scoring!U$4:V$48,2,0),IF(H32=\"Yes\",1,IF(H32=\"No\",0,IF(H32=\"Partially\",0.5,\"\"))))","v":""}]
[null,"1.B.1.1.2","Detail",true,"The organization defines indicators and targets to monitor its E&S risks and impacts over time.",{"$f":"VLOOKUP(B33,'4. Practices'!C:BE,55,0)","v":"TRUE"},{"$f":"VLOOKUP(B33,'4. Practices'!C:E,3,0)","v":"----"},false,false,{"$f":"IF(C33=\"EP\",VLOOKUP(B33,Scoring!U$4:V$48,2,0),IF(H33=\"Yes\",1,IF(H33=\"No\",0,IF(H33=\"Partially\",0.5,\"\"))))","v":""}]
[null,"1.B.1.1.3","Detail",true,"The assessments are conducted on a regular basis and cover all E&S risks and impacts relevant to the organization.",{"$f":"VLOOKUP(B34,'4. Practices'!C:BE,55,0)","v":"TRUE"},{"$f":"VLOOKUP(B34,'4. Practices'!C:E,3,0)","v":"----"},false,false,{"$f":"IF(C34=\"EP\",VLOOKUP(B34,Scoring!U$4:V$48,2,0),IF(H34=\"Yes\",1,IF(H34=\"No\",0,IF(H34=\"Partially\",0.5,\"\"))))","v":""}]
[null,"1.B.1.2","Indicator",false,"The assessments are conducted in a sincere, inclusive and transparent way:",{"$f":"VLOOKUP(B35,'4. Practices'!C:BE,55,0)","v":"TRUE"},{"$f":"VLOOKUP(B35,'4. Practices'!C:E,3,0)","v":0},false,false,{"$f":"IF(C35=\"EP\",VLOOKUP(B35,Scoring!U$4:V$48,2,0),IF(H35=\"Yes\",1,IF(H35=\"No\",0,IF(H35=\"Partially\",0.5,\"\"))))","v":""}]
[null,"1.B.1.2.1","Detail",true,"The organization uses certifications or other recognized frameworks or tools for assessing its E&S risks and impacts.",{"$f":"VLOOKUP(B36,'4. Practices'!C:BE,55,0)","v":"TRUE"},{"$f":"VLOOKUP(B36,'4. Practices'!C:E,3,0)","v":"----"},false,false,{"$f":"IF(C36=\"EP\",VLOOKUP(B36,Scoring!U$4:V$48,2,0),IF(H36=\"Yes\",1,IF(H36=\"No\",0,IF(H36=\"Partially\",0.5,\"\"))))","v":""}]
[null,"1.B.1.2.2","Detail",true,"The assessments are conducted by independant third-parties.",{"$f":"VLOOKUP(B37,'4. Practices'!C:BE,55,0)","v":"TRUE"},{"$f":"VLOOKUP(B37,'4. Practices'!C:E,3,0)","v":"----"},{"$f":"IF(COUNTIF($L$5:$L$8,G37)=1,TRUE,FALSE)","v":false},false,{"$f":"IF(C37=\"EP\",VLOOKUP(B37,Scoring!U$4:V$48,2,0),IF(H37=\"Yes\",1,IF(H37=\"No\",0,IF(H37=\"Partially\",0.5,\"\"))))","v":""}]
[null,"1.B.1.2.3","Detail",true,"The organization involves all relevant stakeholders in the assessment process, including the most vulnerable.",{"$f":"VLOOKUP(B38,'4. Practices'!C:BE,55,0)","v":"TRUE"},{"$f":"VLOOKUP(B38,'4. Practices'!C:E,3,0)","v":"----"},false,false,{"$f":"IF(C38=\"EP\",VLOOKUP(B38,Scoring!U$4:V$48,2,0),IF(H38=\"Yes\",1,IF(H38=\"No\",0,IF(H38=\"Partially\",0.5,\"\"))))","v":""}]
[null,"1.B.1.2.4","Detail",true,"The assessments analyzes risks and impacts specifically pertaing to individuals or groups identified as disadvantaged or vulnerable, such as smallholder farmers, women, youth, and indigenous people.  ",{"$f":"VLOOKUP(B39,'4. Practices'!C:BE,55,0)","v":"TRUE"},{"$f":"VLOOKUP(B39,'4. Practices'!C:E,3,0)","v":"----"},false,false,{"$f":"IF(C39=\"EP\",VLOOKUP(B39,Scoring!U$4:V$48,2,0),IF(H39=\"Yes\",1,IF(H39=\"No\",0,IF(H39=\"Partially\",0.5,\"\"))))","v":""}]
[null,"1.B.1.2.5","Detail",true,"The assessment identifies both direct impacts (at the level of the organization) and indirect impacts (at the level of its suppliers).",{"$f":"VLOOKUP(B40,'4. Practices'!C:BE,55,0)","v":"TRUE"},{"$f":"VLOOKUP(B40,'4. Practices'!C:E,3,0)","v":"----"},false,false,{"$f":"IF(C40=\"EP\",VLOOKUP(B40,Scoring!U$4:V$48,2,0),IF(H40=\"Yes\",1,IF(H40=\"No\",0,IF(H40=\"Partially\",0.5,\"\"))))","v":""}]
[null,"1.B.2","EP",false,"The organization manages its current and potential E&S risks and impacts.",{"$f":"VLOOKUP(B41,'4. Practices'!C:BE,55,0)","v":"TRUE"},{"$f":"VLOOKUP(B41,'4. Practices'!C:E,3,0)","v":0},false,false,{"$f":"IF(C41=\"EP\",VLOOKUP(B41,Scoring!U$4:V$48,2,0),IF(H41=\"Yes\",1,IF(H41=\"No\",0,IF(H41=\"Partially\",0.5,\"\"))))","v":0}]
[null,"1.B.2.1","Indicator",true,"The organization adopts and implements mitigation measures to avoid, or minimize if unavoidable, the E&S risks and impacts identified.",{"$f":"VLOOKUP(B42,'4. Practices'!C:BE,55,0)","v":"TRUE"},{"$f":"VLOOKUP(B42,'4. Practices'!C:E,3,0)","v":"----"},false,false,{"$f":"IF(C42=\"EP\",VLOOKUP(B42,Scoring!U$4:V$48,2,0),IF(H42=\"Yes\",1,IF(H42=\"No\",0,IF(H42=\"Partially\",0.5,\"\"))))","v":""}]
[null,"1.B.2.2","Indicator",true,"When adverse impacts cannot be avoided, the organization proposes prompt and adequate redress (remedy, restoration, or compensation) to affected stakeholders.",{"$f":"VLOOKUP(B43,'4. Practices'!C:BE,55,0)","v":"TRUE"},{"$f":"VLOOKUP(B43,'4. Practices'!C:E,3,0)","v":"----"},false,false,{"$f":"IF(C43=\"EP\",VLOOKUP(B43,Scoring!U$4:V$48,2,0),IF(H43=\"Yes\",1,IF(H43=\"No\",0,IF(H43=\"Partially\",0.5,\"\"))))","v":""}]
[null,"2","Dimension",false,"Inclusive and transparent structure",{"$f":"VLOOKUP(B44,'4. Practices'!C:BE,55,0)","v":"TRUE"},{"$f":"VLOOKUP(B44,'4. Practices'!C:E,3,0)","v":0},false,false,{"$f":"IF(C44=\"EP\",VLOOKUP(B44,Scoring!U$4:V$48,2,0),IF(H44=\"Yes\",1,IF(H44=\"No\",0,IF(H44=\"Partially\",0.5,\"\"))))","v":""}]
[null,"2.A","Standard",false,"The organization communicates in a transparent way.",{"$f":"VLOOKUP(B45,'4. Practices'!C:BE,55,0)","v":"TRUE"},{"$f":"VLOOKUP(B45,'4. Practices'!C:E,3,0)","v":0},false,false,{"$f":"IF(C45=\"EP\",VLOOKUP(B45,Scoring!U$4:V$48,2,0),IF(H45=\"Yes\",1,IF(H45=\"No\",0,IF(H45=\"Partially\",0.5,\"\"))))","v":""}]
[null,"2.A.1","EP",false,"The organization shares information transparently with all relevant stakeholders.",{"$f":"VLOOKUP(B46,'4. Practices'!C:BE,55,0)","v":"TRUE"},{"$f":"VLOOKUP(B46,'4. Practices'!C:E,3,0)","v":0},false,false,{"$f":"IF(C46=\"EP\",VLOOKUP(B46,Scoring!U$4:V$48,2,0),IF(H46=\"Yes\",1,IF(H46=\"No\",0,IF(H46=\"Partially\",0.5,\"\"))))","v":0}]
[null,"2.A.1.1","Indicator",false,"The organization discloses transparent, clear, accurate information with all relevant stakeholders, on the following:",{"$f":"VLOOKUP(B47,'4. Practices'!C:BE,55,0)","v":"TRUE"},{"$f":"VLOOKUP(B47,'4. Practices'!C:E,3,0)","v":0},false,false,{"$f":"IF(C47=\"EP\",VLOOKUP(B47,Scoring!U$4:V$48,2,0),IF(H47=\"Yes\",1,IF(H47=\"No\",0,IF(H47=\"Partially\",0.5,\"\"))))","v":""}]
[null,"2.A.1.1.1","Detail",true,"New operations or projects (purpose, nature, scale, etc.);",{"$f":"VLOOKUP(B48,'4. Practices'!C:BE,55,0)","v":"TRUE"},{"$f":"VLOOKUP(B48,'4. Practices'!C:E,3,0)","v":"----"},false,false,{"$f":"IF(C48=\"EP\",VLOOKUP(B48,Scoring!U$4:V$48,2,0),IF(H48=\"Yes\",1,IF(H48=\"No\",0,IF(H48=\"Partially\",0.5,\"\"))))","v":""}]
[null,"2.A.1.1.2","Detail",true,"Current processes, products and services (quality and safety information, costs, etc.);",{"$f":"VLOOKUP(B49,'4. Practices'!C:BE,55,0)","v":"TRUE"},{"$f":"VLOOKUP(B49,'4. Practices'!C:E,3,0)","v":"----"},false,false,{"$f":"IF(C49=\"EP\",VLOOKUP(B49,Scoring!U$4:V$48,2,0),IF(H49=\"Yes\",1,IF(H49=\"No\",0,IF(H49=\"Partially\",0.5,\"\"))))","v":""}]
[null,"2.A.1.1.3","Detail",true,"Identified E&S risks and impacts, corrective measures to mitigate them, and their outcomes;",{"$f":"VLOOKUP(B50,'4. Practices'!C:BE,55,0)","v":"TRUE"},{"$f":"VLOOKUP(B50,'4. Practices'!C:E,3,0)","v":"----"},false,false,{"$f":"IF(C50=\"EP\",VLOOKUP(B50,Scoring!U$4:V$48,2,0),IF(H50=\"Yes\",1,IF(H50=\"No\",0,IF(H50=\"Partially\",0.5,\"\"))))","v":""}]
[null,"2.A.1.2","Indicator",false,"The organization shares information in a way that supports informed decision-making by stakeholders (outgrowers, suppliers, local communities, consumers, etc.):",{"$f":"VLOOKUP(B51,'4. Practices'!C:BE,55,0)","v":"TRUE"},{"$f":"VLOOKUP(B51,'4. Practices'!C:E,3,0)","v":0},false,false,{"$f":"IF(C51=\"EP\",VLOOKUP(B51,Scoring!U$4:V$48,2,0),IF(H51=\"Yes\",1,IF(H51=\"No\",0,IF(H51=\"Partially\",0.5,\"\"))))","v":""}]
[null,"2.A.1.2.1","Detail",true,"The organizations communicates in languages and through channels that are appropriate and accessible to relevant stakeholders.",{"$f":"VLOOKUP(B52,'4. Practices'!C:BE,55,0)","v":"TRUE"},{"$f":"VLOOKUP(B52,'4. Practices'!C:E,3,0)","v":"----"},false,false,{"$f":"IF(C52=\"EP\",VLOOKUP(B52,Scoring!U$4:V$48,2,0),IF(H52=\"Yes\",1,IF(H52=\"No\",0,IF(H52=\"Partially\",0.5,\"\"))))","v":""}]
[null,"2.A.1.2.2","Detail",true,"The organization provides information in due time to inform stakeholders' decision-making.",{"$f":"VLOOKUP(B53,'4. Practices'!C:BE,55,0)","v":"TRUE"},{"$f":"VLOOKUP(B53,'4. Practices'!C:E,3,0)","v":"----"},false,false,{"$f":"IF(C53=\"EP\",VLOOKUP(B53,Scoring!U$4:V$48,2,0),IF(H53=\"Yes\",1,IF(H53=\"No\",0,IF(H53=\"Partially\",0.5,\"\"))))","v":""}]
[null,"2.B","Standard",false,"The organization consults its stakeholders to inform decision-making.",{"$f":"VLOOKUP(B54,'4. Practices'!C:BE,55,0)","v":"TRUE"},{"$f":"VLOOKUP(B54,'4. Practices'!C:E,3,0)","v":0},false,false,{"$f":"IF(C54=\"EP\",VLOOKUP(B54,Scoring!U$4:V$48,2,0),IF(H54=\"Yes\",1,IF(H54=\"No\",0,IF(H54=\"Partially\",0.5,\"\"))))","v":""}]
[null,"2.B.1","EP",false,"The organization has specific procedures to consult its stakeholders.",{"$f":"VLOOKUP(B55,'4. Practices'!C:BE,55,0)","v":"TRUE"},{"$f":"VLOOKUP(B55,'4. Practices'!C:E,3,0)","v":0},false,false,{"$f":"IF(C55=\"EP\",VLOOKUP(B55,Scoring!U$4:V$48,2,0),IF(H55=\"Yes\",1,IF(H55=\"No\",0,IF(H55=\"Partially\",0.5,\"\"))))","v":0}]
[null,"2.B.1.1","Indicator",true,"The organization has documented policies or procedures defining how stakeholders are consulted and engaged, based on the type, scale, level of E&S risks and impacts, and development stage of its operations.",{"$f":"VLOOKUP(B56,'4. Practices'!C:BE,55,0)","v":"TRUE"},{"$f":"VLOOKUP(B56,'4. Practices'!C:E,3,0)","v":"----"},false,false,{"$f":"IF(C56=\"EP\",VLOOKUP(B56,Scoring!U$4:V$48,2,0),IF(H56=\"Yes\",1,IF(H56=\"No\",0,IF(H56=\"Partially\",0.5,\"\"))))","v":""}]
[null,"2.B.1.2","Indicator",true,"The consultation policies and procedures provide clear definition on who represent local stakeholders (not limited to leaders only), how these spokepersons are identified and endorsed, and what is the required quorum attendance.",{"$f":"VLOOKUP(B57,'4. Practices'!C:BE,55,0)","v":"TRUE"},{"$f":"VLOOKUP(B57,'4. Practices'!C:E,3,0)","v":"----"},false,false,{"$f":"IF(C57=\"EP\",VLOOKUP(B57,Scoring!U$4:V$48,2,0),IF(H57=\"Yes\",1,IF(H57=\"No\",0,IF(H57=\"Partially\",0.5,\"\"))))","v":""}]
[null,"2.B.1.3","Indicator",true,"The organization uses specific mechanisms to ensure active and efficient participation of minorities or vulnerable groups, in particular: smallholder farmers, women, youth, indigenous people, and local communities.",{"$f":"VLOOKUP(B58,'4. Practices'!C:BE,55,0)","v":"TRUE"},{"$f":"VLOOKUP(B58,'4. Practices'!C:E,3,0)","v":"----"},false,false,{"$f":"IF(C58=\"EP\",VLOOKUP(B58,Scoring!U$4:V$48,2,0),IF(H58=\"Yes\",1,IF(H58=\"No\",0,IF(H58=\"Partially\",0.5,\"\"))))","v":""}]
[null,"2.B.2","EP",false,"The organization organizes regular consultations with its stakeholders.",{"$f":"VLOOKUP(B59,'4. Practices'!C:BE,55,0)","v":"TRUE"},{"$f":"VLOOKUP(B59,'4. Practices'!C:E,3,0)","v":0},false,false,{"$f":"IF(C59=\"EP\",VLOOKUP(B59,Scoring!U$4:V$48,2,0),IF(H59=\"Yes\",1,IF(H59=\"No\",0,IF(H59=\"Partially\",0.5,\"\"))))","v":0}]
[null,"2.B.2.1","Indicator",true,"The organization consults all relevant stakeholders before, during and after any operation that may affect them.",{"$f":"VLOOKUP(B60,'4. Practices'!C:BE,55,0)","v":"TRUE"},{"$f":"VLOOKUP(B60,'4. Practices'!C:E,3,0)","v":"----"},false,false,{"$f":"IF(C60=\"EP\",VLOOKUP(B60,Scoring!U$4:V$48,2,0),IF(H60=\"Yes\",1,IF(H60=\"No\",0,IF(H60=\"Partially\",0.5,\"\"))))","v":""}]
[null,"2.B.2.2","Indicator",true,"The consultations are convenient and accessible to all, well publicized, and culturally appropriate (in terms of language, decision-making customs, etc.).",{"$f":"VLOOKUP(B61,'4. Practices'!C:BE,55,0)","v":"TRUE"},{"$f":"VLOOKUP(B61,'4. Practices'!C:E,3,0)","v":"----"},false,false,{"$f":"IF(C61=\"EP\",VLOOKUP(B61,Scoring!U$4:V$48,2,0),IF(H61=\"Yes\",1,IF(H61=\"No\",0,IF(H61=\"Partially\",0.5,\"\"))))","v":""}]
[null,"2.B.3","EP",false,"The organization uses insights from stakeholders to make strategic and operational decisions.",{"$f":"VLOOKUP(B62,'4. Practices'!C:BE,55,0)","v":"TRUE"},{"$f":"VLOOKUP(B62,'4. Practices'!C:E,3,0)","v":0},false,false,{"$f":"IF(C62=\"EP\",VLOOKUP(B62,Scoring!U$4:V$48,2,0),IF(H62=\"Yes\",1,IF(H62=\"No\",0,IF(H62=\"Partially\",0.5,\"\"))))","v":0}]
[null,"2.B.3.1","Indicator",true,"The Board and management analyze stakeholder consultation reports to inform their decisions. ",{"$f":"VLOOKUP(B63,'4. Practices'!C:BE,55,0)","v":"TRUE"},{"$f":"VLOOKUP(B63,'4. Practices'!C:E,3,0)","v":"----"},false,false,{"$f":"IF(C63=\"EP\",VLOOKUP(B63,Scoring!U$4:V$48,2,0),IF(H63=\"Yes\",1,IF(H63=\"No\",0,IF(H63=\"Partially\",0.5,\"\"))))","v":""}]
[null,"2.B.3.2","Indicator",true,"Stakeholders are directly involved in the decision-making process through their participation in governance structures (i.e. as Board members or participants to General Assemblies).",{"$f":"VLOOKUP(B64,'4. Practices'!C:BE,55,0)","v":"TRUE"},{"$f":"VLOOKUP(B64,'4. Practices'!C:E,3,0)","v":"----"},false,false,{"$f":"IF(C64=\"EP\",VLOOKUP(B64,Scoring!U$4:V$48,2,0),IF(H64=\"Yes\",1,IF(H64=\"No\",0,IF(H64=\"Partially\",0.5,\"\"))))","v":""}]
[null,"2.C","Standard",false,"The organization receives and resolves grievances from the following stakeholders: smallholder farmers / local communities / clients / other affected stakeholders.",{"$f":"VLOOKUP(B65,'4. Practices'!C:BE,55,0)","v":"TRUE"},{"$f":"VLOOKUP(B65,'4. Practices'!C:E,3,0)","v":0},false,false,{"$f":"IF(C65=\"EP\",VLOOKUP(B65,Scoring!U$4:V$48,2,0),IF(H65=\"Yes\",1,IF(H65=\"No\",0,IF(H65=\"Partially\",0.5,\"\"))))","v":""}]
[null,"2.C.1","EP",false,"The organization has a grievance mechanism that is easily accessible to its stakeholders (farmers, local communities, clients, other affected stakeholders), and adapted to their needs.",{"$f":"VLOOKUP(B66,'4. Practices'!C:BE,55,0)","v":"TRUE"},{"$f":"VLOOKUP(B66,'4. Practices'!C:E,3,0)","v":0},false,false,{"$f":"IF(C66=\"EP\",VLOOKUP(B66,Scoring!U$4:V$48,2,0),IF(H66=\"Yes\",1,IF(H66=\"No\",0,IF(H66=\"Partially\",0.5,\"\"))))","v":0}]
[null,"2.C.1.1","Indicator",false,"The channels for complaints and responses are adapted to stakeholders' profiles and needs: ",{"$f":"VLOOKUP(B67,'4. Practices'!C:BE,55,0)","v":"TRUE"},{"$f":"VLOOKUP(B67,'4. Practices'!C:E,3,0)","v":0},false,false,{"$f":"IF(C67=\"EP\",VLOOKUP(B67,Scoring!U$4:V$48,2,0),IF(H67=\"Yes\",1,IF(H67=\"No\",0,IF(H67=\"Partially\",0.5,\"\"))))","v":""}]
[null,"2.C.1.1.1","Detail",true,"Stakeholders have the choice between at least two channels, with at least one of these channels being with live, human interaction.",{"$f":"VLOOKUP(B68,'4. Practices'!C:BE,55,0)","v":"TRUE"},{"$f":"VLOOKUP(B68,'4. Practices'!C:E,3,0)","v":"----"},false,false,{"$f":"IF(C68=\"EP\",VLOOKUP(B68,Scoring!U$4:V$48,2,0),IF(H68=\"Yes\",1,IF(H68=\"No\",0,IF(H68=\"Partially\",0.5,\"\"))))","v":""}]
[null,"2.C.1.1.2","Detail",true,"The channels are available in local languages, in written and oral format.",{"$f":"VLOOKUP(B69,'4. Practices'!C:BE,55,0)","v":"TRUE"},{"$f":"VLOOKUP(B69,'4. Practices'!C:E,3,0)","v":"----"},false,false,{"$f":"IF(C69=\"EP\",VLOOKUP(B69,Scoring!U$4:V$48,2,0),IF(H69=\"Yes\",1,IF(H69=\"No\",0,IF(H69=\"Partially\",0.5,\"\"))))","v":""}]
[null,"2.C.1.1.3","Detail",true,"The channels are free of charge to submit grievances.",{"$f":"VLOOKUP(B70,'4. Practices'!C:BE,55,0)","v":"TRUE"},{"$f":"VLOOKUP(B70,'4. Practices'!C:E,3,0)","v":"----"},false,{"$f":"IF(AND(D70=TRUE,H70=TRUE,F70=\"TRUE\"),G70,FALSE)","v":false},{"$f":"IF(C70=\"EP\",VLOOKUP(B70,Scoring!U$4:V$48,2,0),IF(H70=\"Yes\",1,IF(H70=\"No\",0,IF(H70=\"Partially\",0.5,\"\"))))","v":""}]
[null,"2.C.1.1.4","Detail",true,"The channels are easily accessible, in particular to the most vulnerable and marginalized stakeholders.",{"$f":"VLOOKUP(B71,'4. Practices'!C:BE,55,0)","v":"TRUE"},{"$f":"VLOOKUP(B71,'4. Practices'!C:E,3,0)","v":"----"},false,false,{"$f":"IF(C71=\"EP\",VLOOKUP(B71,Scoring!U$4:V$48,2,0),IF(H71=\"Yes\",1,IF(H71=\"No\",0,IF(H71=\"Partially\",0.5,\"\"))))","v":""}]
[null,"2.C.1.2","Indicator",false,"The channels for complaints and responses are adapted to stakeholders' profiles and needs: ",{"$f":"VLOOKUP(B72,'4. Practices'!C:BE,55,0)","v":"TRUE"},{"$f":"VLOOKUP(B72,'4. Practices'!C:E,3,0)","v":"----"},false,false,{"$f":"IF(C72=\"EP\",VLOOKUP(B72,Scoring!U$4:V$48,2,0),IF(H72=\"Yes\",1,IF(H72=\"No\",0,IF(H72=\"Partially\",0.5,\"\"))))","v":""}]
[null,"2.C.1.2.1","Detail",true,"Stakeholders have the choice between at least two channels, with at least one of these channels being with live, human interaction.",{"$f":"VLOOKUP(B73,'4. Practices'!C:BE,55,0)","v":{"$error":"#N/A"}},{"$f":"VLOOKUP(B73,'4. Practices'!C:E,3,0)","v":{"$error":"#N/A"}},false,{"$error":"#N/A"},{"$f":"IF(C73=\"EP\",VLOOKUP(B73,Scoring!U$4:V$48,2,0),IF(H73=\"Yes\",1,IF(H73=\"No\",0,IF(H73=\"Partially\",0.5,\"\"))))","v":""}]
[null,"2.C.1.2.2","Detail",true,"The channels are available in local languages, in written and oral format.",{"$f":"VLOOKUP(B74,'4. Practices'!C:BE,55,0)","v":{"$error":"#N/A"}},{"$f":"VLOOKUP(B74,'4. Practices'!C:E,3,0)","v":{"$error":"#N/A"}},{"$f":"IF(COUNTIF($L$5:$L$8,G74)=1,TRUE,FALSE)","v":false},{"$error":"#N/A"},{"$f":"IF(C74=\"EP\",VLOOKUP(B74,Scoring!U$4:V$48,2,0),IF(H74=\"Yes\",1,IF(H74=\"No\",0,IF(H74=\"Partially\",0.5,\"\"))))","v":""}]
[null,"2.C.1.2.3","Detail",true,"The channels are free of charge to submit grievances.",{"$f":"VLOOKUP(B75,'4. Practices'!C:BE,55,0)","v":{"$error":"#N/A"}},{"$f":"VLOOKUP(B75,'4. Practices'!C:E,3,0)","v":{"$error":"#N/A"}},false,{"$error":"#N/A"},{"$f":"IF(C75=\"EP\",VLOOKUP(B75,Scoring!U$4:V$48,2,0),IF(H75=\"Yes\",1,IF(H75=\"No\",0,IF(H75=\"Partially\",0.5,\"\"))))","v":""}]
[null,"2.C.1.2.4","Detail",true,"The channels are easily accessible, in particular to the most vulnerable and marginalized stakeholders.",{"$f":"VLOOKUP(B76,'4. Practices'!C:BE,55,0)","v":{"$error":"#N/A"}},{"$f":"VLOOKUP(B76,'4. Practices'!C:E,3,0)","v":{"$error":"#N/A"}},false,{"$error":"#N/A"},{"$f":"IF(C76=\"EP\",VLOOKUP(B76,Scoring!U$4:V$48,2,0),IF(H76=\"Yes\",1,IF(H76=\"No\",0,IF(H76=\"Partially\",0.5,\"\"))))","v":""}]
[null,"2.C.1.3","Indicator",true,"The organization informs its stakeholders on how to submit a grievance.",{"$f":"VLOOKUP(B77,'4. Practices'!C:BE,55,0)","v":{"$error":"#N/A"}},{"$f":"VLOOKUP(B77,'4. Practices'!C:E,3,0)","v":{"$error":"#N/A"}},false,{"$error":"#N/A"},{"$f":"IF(C77=\"EP\",VLOOKUP(B77,Scoring!U$4:V$48,2,0),IF(H77=\"Yes\",1,IF(H77=\"No\",0,IF(H77=\"Partially\",0.5,\"\"))))","v":""}]
[null,"2.C.2","EP",false,"The organization uses information from grievances to resolve disputes and manage operations.",{"$f":"VLOOKUP(B78,'4. Practices'!C:BE,55,0)","v":"TRUE"},{"$f":"VLOOKUP(B78,'4. Practices'!C:E,3,0)","v":0},false,false,{"$f":"IF(C78=\"EP\",VLOOKUP(B78,Scoring!U$4:V$48,2,0),IF(H78=\"Yes\",1,IF(H78=\"No\",0,IF(H78=\"Partially\",0.5,\"\"))))","v":0}]
[null,"2.C.2.1","Indicator",true,"The grievance mechanism ensures that all formal complaints are registered in a secure system and reach the relevant person within the organization.",{"$f":"VLOOKUP(B79,'4. Practices'!C:BE,55,0)","v":"TRUE"},{"$f":"VLOOKUP(B79,'4. Practices'!C:E,3,0)","v":"----"},false,false,{"$f":"IF(C79=\"EP\",VLOOKUP(B79,Scoring!U$4:V$48,2,0),IF(H79=\"Yes\",1,IF(H79=\"No\",0,IF(H79=\"Partially\",0.5,\"\"))))","v":""}]
[null,"2.C.2.2","Indicator",true,"The organization resolves complaints that are directly linked with its operations, products and services within one month.",{"$f":"VLOOKUP(B80,'4. Practices'!C:BE,55,0)","v":"TRUE"},{"$f":"VLOOKUP(B80,'4. Practices'!C:E,3,0)","v":"----"},false,false,{"$f":"IF(C80=\"EP\",VLOOKUP(B80,Scoring!U$4:V$48,2,0),IF(H80=\"Yes\",1,IF(H80=\"No\",0,IF(H80=\"Partially\",0.5,\"\"))))","v":""}]
[null,"2.C.2.3","Indicator",true,"The management analyzes grievances' reports on a regular basis (e.g. monthly), and takes corrective action to resolve systematic problems leading to complaints.",{"$f":"VLOOKUP(B81,'4. Practices'!C:BE,55,0)","v":"TRUE"},{"$f":"VLOOKUP(B81,'4. Practices'!C:E,3,0)","v":"----"},false,false,{"$f":"IF(C81=\"EP\",VLOOKUP(B81,Scoring!U$4:V$48,2,0),IF(H81=\"Yes\",1,IF(H81=\"No\",0,IF(H81=\"Partially\",0.5,\"\"))))","v":""}]
[null,"3","Dimension",false,"Safe and responsible agri and food systems",{"$f":"VLOOKUP(B82,'4. Practices'!C:BE,55,0)","v":"TRUE"},{"$f":"VLOOKUP(B82,'4. Practices'!C:E,3,0)","v":0},false,false,{"$f":"IF(C82=\"EP\",VLOOKUP(B82,Scoring!U$4:V$48,2,0),IF(H82=\"Yes\",1,IF(H82=\"No\",0,IF(H82=\"Partially\",0.5,\"\"))))","v":""}]
[null,"3.A","Standard",false,"The organization contributes to food security and nutrition",{"$f":"VLOOKUP(B83,'4. Practices'!C:BE,55,0)","v":"TRUE"},{"$f":"VLOOKUP(B83,'4. Practices'!C:E,3,0)","v":0},false,false,{"$f":"IF(C83=\"EP\",VLOOKUP(B83,Scoring!U$4:V$48,2,0),IF(H83=\"Yes\",1,IF(H83=\"No\",0,IF(H83=\"Partially\",0.5,\"\"))))","v":""}]
[null,"3.A.1","EP",false,"The organization avoids shifting land use away from nutritious crop production for local consumption.",{"$f":"VLOOKUP(B84,'4. Practices'!C:BE,55,0)","v":"TRUE"},{"$f":"VLOOKUP(B84,'4. Practices'!C:E,3,0)","v":0},false,false,{"$f":"IF(C84=\"EP\",VLOOKUP(B84,Scoring!U$4:V$48,2,0),IF(H84=\"Yes\",1,IF(H84=\"No\",0,IF(H84=\"Partially\",0.5,\"\"))))","v":0}]
[null,"3.A.1.1","Indicator",true,"The organization identifies current land use before starting new production activities, at the level of the organization and/or of its outgrowers/suppliers.",{"$f":"VLOOKUP(B85,'4. Practices'!C:BE,55,0)","v":"TRUE"},{"$f":"VLOOKUP(B85,'4. Practices'!C:E,3,0)","v":"----"},false,false,{"$f":"IF(C85=\"EP\",VLOOKUP(B85,Scoring!U$4:V$48,2,0),IF(H85=\"Yes\",1,IF(H85=\"No\",0,IF(H85=\"Partially\",0.5,\"\"))))","v":""}]
[null,"3.A.1.2","Indicator",false,"The organization has policies that prevent the shift of land use from nutritious crop production for local consumption, to non-food production or cash crop for export, both at the organization and/or outgrowers/suppliers level:",{"$f":"VLOOKUP(B86,'4. Practices'!C:BE,55,0)","v":"TRUE"},{"$f":"VLOOKUP(B86,'4. Practices'!C:E,3,0)","v":0},false,false,{"$f":"IF(C86=\"EP\",VLOOKUP(B86,Scoring!U$4:V$48,2,0),IF(H86=\"Yes\",1,IF(H86=\"No\",0,IF(H86=\"Partially\",0.5,\"\"))))","v":""}]
[null,"3.A.1.2.1","Detail",true,"The organization reclaims degraded land.",{"$f":"VLOOKUP(B87,'4. Practices'!C:BE,55,0)","v":"TRUE"},{"$f":"VLOOKUP(B87,'4. Practices'!C:E,3,0)","v":"----"},false,false,{"$f":"IF(C87=\"EP\",VLOOKUP(B87,Scoring!U$4:V$48,2,0),IF(H87=\"Yes\",1,IF(H87=\"No\",0,IF(H87=\"Partially\",0.5,\"\"))))","v":""}]
[null,"3.A.1.2.2","Detail",true,"The organization chooses land that has not been previously used for agriculture yet is not environmentally sensitive.",{"$f":"VLOOKUP(B88,'4. Practices'!C:BE,55,0)","v":"TRUE"},{"$f":"VLOOKUP(B88,'4. Practices'!C:E,3,0)","v":"----"},false,false,{"$f":"IF(C88=\"EP\",VLOOKUP(B88,Scoring!U$4:V$48,2,0),IF(H88=\"Yes\",1,IF(H88=\"No\",0,IF(H88=\"Partially\",0.5,\"\"))))","v":""}]
[null,"3.A.1.2.3","Detail",true,"The organization focuses on sustainable agricultural intensification.",{"$f":"VLOOKUP(B89,'4. Practices'!C:BE,55,0)","v":"TRUE"},{"$f":"VLOOKUP(B89,'4. Practices'!C:E,3,0)","v":"----"},false,false,{"$f":"IF(C89=\"EP\",VLOOKUP(B89,Scoring!U$4:V$48,2,0),IF(H89=\"Yes\",1,IF(H89=\"No\",0,IF(H89=\"Partially\",0.5,\"\"))))","v":""}]
[null,"3.A.1.3","Indicator",true,"The organization sets aside land for production of food for local consumption.",{"$f":"VLOOKUP(B90,'4. Practices'!C:BE,55,0)","v":"TRUE"},{"$f":"VLOOKUP(B90,'4. Practices'!C:E,3,0)","v":"----"},false,false,{"$f":"IF(C90=\"EP\",VLOOKUP(B90,Scoring!U$4:V$48,2,0),IF(H90=\"Yes\",1,IF(H90=\"No\",0,IF(H90=\"Partially\",0.5,\"\"))))","v":""}]
[null,"3.A.2","EP",false,"The organization addresses the food needs of the local market.",{"$f":"VLOOKUP(B91,'4. Practices'!C:BE,55,0)","v":"TRUE"},{"$f":"VLOOKUP(B91,'4. Practices'!C:E,3,0)","v":0},false,false,{"$f":"IF(C91=\"EP\",VLOOKUP(B91,Scoring!U$4:V$48,2,0),IF(H91=\"Yes\",1,IF(H91=\"No\",0,IF(H91=\"Partially\",0.5,\"\"))))","v":0}]
[null,"3.A.2.1","Indicator",true,"The organization has carried out market studies on the food concerns, dietary preferences and purchasing power of local populations.",{"$f":"VLOOKUP(B92,'4. Practices'!C:BE,55,0)","v":"TRUE"},{"$f":"VLOOKUP(B92,'4. Practices'!C:E,3,0)","v":"----"},false,false,{"$f":"IF(C92=\"EP\",VLOOKUP(B92,Scoring!U$4:V$48,2,0),IF(H92=\"Yes\",1,IF(H92=\"No\",0,IF(H92=\"Partially\",0.5,\"\"))))","v":""}]
[null,"3.A.2.2","Indicator",false,"The organization offers nutritious and diverse food products that meet the needs and preferences of local populations.",{"$f":"VLOOKUP(B93,'4. Practices'!C:BE,55,0)","v":"TRUE"},{"$f":"VLOOKUP(B93,'4. Practices'!C:E,3,0)","v":0},false,false,{"$f":"IF(C93=\"EP\",VLOOKUP(B93,Scoring!U$4:V$48,2,0),IF(H93=\"Yes\",1,IF(H93=\"No\",0,IF(H93=\"Partially\",0.5,\"\"))))","v":""}]
[null,"3.A.2.2.1","Detail",true,"The organization offers food products that are diverse and culturally appropriate.",{"$f":"VLOOKUP(B94,'4. Practices'!C:BE,55,0)","v":"TRUE"},{"$f":"VLOOKUP(B94,'4. Practices'!C:E,3,0)","v":"----"},false,false,{"$f":"IF(C94=\"EP\",VLOOKUP(B94,Scoring!U$4:V$48,2,0),IF(H94=\"Yes\",1,IF(H94=\"No\",0,IF(H94=\"Partially\",0.5,\"\"))))","v":""}]
[null,"3.A.2.2.2","Detail",true,"The organization offers food products that meet expected food quality levels and high nutritional standards.",{"$f":"VLOOKUP(B95,'4. Practices'!C:BE,55,0)","v":"TRUE"},{"$f":"VLOOKUP(B95,'4. Practices'!C:E,3,0)","v":"----"},false,false,{"$f":"IF(C95=\"EP\",VLOOKUP(B95,Scoring!U$4:V$48,2,0),IF(H95=\"Yes\",1,IF(H95=\"No\",0,IF(H95=\"Partially\",0.5,\"\"))))","v":""}]
[null,"3.A.2.2.3","Detail",true,"The organization offers food products at a price that is affordable for local populations.",{"$f":"VLOOKUP(B96,'4. Practices'!C:BE,55,0)","v":"TRUE"},{"$f":"VLOOKUP(B96,'4. Practices'!C:E,3,0)","v":"----"},false,false,{"$f":"IF(C96=\"EP\",VLOOKUP(B96,Scoring!U$4:V$48,2,0),IF(H96=\"Yes\",1,IF(H96=\"No\",0,IF(H96=\"Partially\",0.5,\"\"))))","v":""}]
[null,"3.A.2.3","Indicator",true,"The organization has mechanisms in place to stabilize prices of food products for the local market.",{"$f":"VLOOKUP(B97,'4. Practices'!C:BE,55,0)","v":"TRUE"},{"$f":"VLOOKUP(B97,'4. Practices'!C:E,3,0)","v":"----"},false,false,{"$f":"IF(C97=\"EP\",VLOOKUP(B97,Scoring!U$4:V$48,2,0),IF(H97=\"Yes\",1,IF(H97=\"No\",0,IF(H97=\"Partially\",0.5,\"\"))))","v":""}]
[null,"3.A.2.4","Indicator",true,"The organization educates local populations on how to prepare, provide, and maintain safe and nutritious food.",{"$f":"VLOOKUP(B98,'4. Practices'!C:BE,55,0)","v":"TRUE"},{"$f":"VLOOKUP(B98,'4. Practices'!C:E,3,0)","v":"----"},false,false,{"$f":"IF(C98=\"EP\",VLOOKUP(B98,Scoring!U$4:V$48,2,0),IF(H98=\"Yes\",1,IF(H98=\"No\",0,IF(H98=\"Partially\",0.5,\"\"))))","v":""}]
[null,"3.A.3","EP",false,"The organization contributes to strenthening the agricultural value chain.",{"$f":"VLOOKUP(B99,'4. Practices'!C:BE,55,0)","v":"TRUE"},{"$f":"VLOOKUP(B99,'4. Practices'!C:E,3,0)","v":0},false,false,{"$f":"IF(C99=\"EP\",VLOOKUP(B99,Scoring!U$4:V$48,2,0),IF(H99=\"Yes\",1,IF(H99=\"No\",0,IF(H99=\"Partially\",0.5,\"\"))))","v":0}]
[null,"3.A.3.1","Indicator",true,"The organization implements a procurement policy that prioritizes the purchase of inputs, products and ingredients from local suppliers.",{"$f":"VLOOKUP(B100,'4. Practices'!C:BE,55,0)","v":"TRUE"},{"$f":"VLOOKUP(B100,'4. Practices'!C:E,3,0)","v":"----"},false,false,{"$f":"IF(C100=\"EP\",VLOOKUP(B100,Scoring!U$4:V$48,2,0),IF(H100=\"Yes\",1,IF(H100=\"No\",0,IF(H100=\"Partially\",0.5,\"\"))))","v":""}]
[null,"3.A.3.2","Indicator",false,"The organization provides smallholder farmers, directly or through partnerships, with access to:",{"$f":"VLOOKUP(B101,'4. Practices'!C:BE,55,0)","v":"TRUE"},{"$f":"VLOOKUP(B101,'4. Practices'!C:E,3,0)","v":0},false,false,{"$f":"IF(C101=\"EP\",VLOOKUP(B101,Scoring!U$4:V$48,2,0),IF(H101=\"Yes\",1,IF(H101=\"No\",0,IF(H101=\"Partially\",0.5,\"\"))))","v":""}]
[null,"3.A.3.2.1","Detail",true,"Inputs, material, technologies",{"$f":"VLOOKUP(B102,'4. Practices'!C:BE,55,0)","v":"TRUE"},{"$f":"VLOOKUP(B102,'4. Practices'!C:E,3,0)","v":"----"},false,false,{"$f":"IF(C102=\"EP\",VLOOKUP(B102,Scoring!U$4:V$48,2,0),IF(H102=\"Yes\",1,IF(H102=\"No\",0,IF(H102=\"Partially\",0.5,\"\"))))","v":""}]
[null,"3.A.3.2.2","Detail",true,"Storage and/or processing facilities",{"$f":"VLOOKUP(B103,'4. Practices'!C:BE,55,0)","v":"TRUE"},{"$f":"VLOOKUP(B103,'4. Practices'!C:E,3,0)","v":"----"},false,false,{"$f":"IF(C103=\"EP\",VLOOKUP(B103,Scoring!U$4:V$48,2,0),IF(H103=\"Yes\",1,IF(H103=\"No\",0,IF(H103=\"Partially\",0.5,\"\"))))","v":""}]
[null,"3.A.3.2.3","Detail",true,"Information, ICT",{"$f":"VLOOKUP(B104,'4. Practices'!C:BE,55,0)","v":"TRUE"},{"$f":"VLOOKUP(B104,'4. Practices'!C:E,3,0)","v":"----"},false,false,{"$f":"IF(C104=\"EP\",VLOOKUP(B104,Scoring!U$4:V$48,2,0),IF(H104=\"Yes\",1,IF(H104=\"No\",0,IF(H104=\"Partially\",0.5,\"\"))))","v":""}]
[null,"3.A.3.2.4","Detail",true,"Market linkages",{"$f":"VLOOKUP(B105,'4. Practices'!C:BE,55,0)","v":"TRUE"},{"$f":"VLOOKUP(B105,'4. Practices'!C:E,3,0)","v":"----"},false,false,{"$f":"IF(C105=\"EP\",VLOOKUP(B105,Scoring!U$4:V$48,2,0),IF(H105=\"Yes\",1,IF(H105=\"No\",0,IF(H105=\"Partially\",0.5,\"\"))))","v":""}]
[null,"3.A.3.2.5","Detail",true,"Financial services",{"$f":"VLOOKUP(B106,'4. Practices'!C:BE,55,0)","v":"TRUE"},{"$f":"VLOOKUP(B106,'4. Practices'!C:E,3,0)","v":"----"},{"$f":"IF(COUNTIF($L$5:$L$8,G106)=1,TRUE,FALSE)","v":false},false,{"$f":"IF(C106=\"EP\",VLOOKUP(B106,Scoring!U$4:V$48,2,0),IF(H106=\"Yes\",1,IF(H106=\"No\",0,IF(H106=\"Partially\",0.5,\"\"))))","v":""}]
[null,"3.A.3.2.6","Detail",true,"Capacity-building (education, training, extension, advisory, mentorship, peer visits, farm schools, etc.)",{"$f":"VLOOKUP(B107,'4. Practices'!C:BE,55,0)","v":"TRUE"},{"$f":"VLOOKUP(B107,'4. Practices'!C:E,3,0)","v":"----"},false,false,{"$f":"IF(C107=\"EP\",VLOOKUP(B107,Scoring!U$4:V$48,2,0),IF(H107=\"Yes\",1,IF(H107=\"No\",0,IF(H107=\"Partially\",0.5,\"\"))))","v":""}]
[null,"3.A.3.2.7","Detail",true,"Opportunities for crop / product / income diversification",{"$f":"VLOOKUP(B108,'4. Practices'!C:BE,55,0)","v":"TRUE"},{"$f":"VLOOKUP(B108,'4. Practices'!C:E,3,0)","v":"----"},false,false,{"$f":"IF(C108=\"EP\",VLOOKUP(B108,Scoring!U$4:V$48,2,0),IF(H108=\"Yes\",1,IF(H108=\"No\",0,IF(H108=\"Partially\",0.5,\"\"))))","v":""}]
[null,"3.A.3.3","Indicator",false,"The organization implements actions to engage and support women and/or youth in the agricultural and food value chain:",{"$f":"VLOOKUP(B109,'4. Practices'!C:BE,55,0)","v":"TRUE"},{"$f":"VLOOKUP(B109,'4. Practices'!C:E,3,0)","v":0},false,false,{"$f":"IF(C109=\"EP\",VLOOKUP(B109,Scoring!U$4:V$48,2,0),IF(H109=\"Yes\",1,IF(H109=\"No\",0,IF(H109=\"Partially\",0.5,\"\"))))","v":""}]
[null,"3.A.3.3.1","Detail",true,"Preferential selection for purchasing of inputs, products or ingredients",{"$f":"VLOOKUP(B110,'4. Practices'!C:BE,55,0)","v":"TRUE"},{"$f":"VLOOKUP(B110,'4. Practices'!C:E,3,0)","v":"----"},false,false,{"$f":"IF(C110=\"EP\",VLOOKUP(B110,Scoring!U$4:V$48,2,0),IF(H110=\"Yes\",1,IF(H110=\"No\",0,IF(H110=\"Partially\",0.5,\"\"))))","v":""}]
[null,"3.A.3.3.2","Detail",true,"Privileged access to inputs, material, technologies, facilities, information, market linkages or financial services",{"$f":"VLOOKUP(B111,'4. Practices'!C:BE,55,0)","v":"TRUE"},{"$f":"VLOOKUP(B111,'4. Practices'!C:E,3,0)","v":"----"},false,false,{"$f":"IF(C111=\"EP\",VLOOKUP(B111,Scoring!U$4:V$48,2,0),IF(H111=\"Yes\",1,IF(H111=\"No\",0,IF(H111=\"Partially\",0.5,\"\"))))","v":""}]
[null,"3.A.3.3.3","Detail",true,"Dedicated capacity-building (education, training, extension, advisory, mentorship, peer visits, farm schools, business development support, etc.)",{"$f":"VLOOKUP(B112,'4. Practices'!C:BE,55,0)","v":"TRUE"},{"$f":"VLOOKUP(B112,'4. Practices'!C:E,3,0)","v":"----"},false,false,{"$f":"IF(C112=\"EP\",VLOOKUP(B112,Scoring!U$4:V$48,2,0),IF(H112=\"Yes\",1,IF(H112=\"No\",0,IF(H112=\"Partially\",0.5,\"\"))))","v":""}]
[null,"3.A.3.3.4","Detail",true,"Advocacy on women and youth's equal rights to and control over productive land, natural resources, inputs, productive tools",{"$f":"VLOOKUP(B113,'4. Practices'!C:BE,55,0)","v":"TRUE"},{"$f":"VLOOKUP(B113,'4. Practices'!C:E,3,0)","v":"----"},false,false,{"$f":"IF(C113=\"EP\",VLOOKUP(B113,Scoring!U$4:V$48,2,0),IF(H113=\"Yes\",1,IF(H113=\"No\",0,IF(H113=\"Partially\",0.5,\"\"))))","v":""}]
[null,"3.A.3.4","Indicator",false,"The organization fosters the development and access to innovative production / processing technologies and practices:",{"$f":"VLOOKUP(B114,'4. Practices'!C:BE,55,0)","v":"TRUE"},{"$f":"VLOOKUP(B114,'4. Practices'!C:E,3,0)","v":0},false,false,{"$f":"IF(C114=\"EP\",VLOOKUP(B114,Scoring!U$4:V$48,2,0),IF(H114=\"Yes\",1,IF(H114=\"No\",0,IF(H114=\"Partially\",0.5,\"\"))))","v":""}]
[null,"3.A.3.4.1","Detail",true,"The organization identifies or develops production /processing practices and technologies that are locally adapted, building on scientific research and traditional knowledge.",{"$f":"VLOOKUP(B115,'4. Practices'!C:BE,55,0)","v":"TRUE"},{"$f":"VLOOKUP(B115,'4. Practices'!C:E,3,0)","v":"----"},false,false,{"$f":"IF(C115=\"EP\",VLOOKUP(B115,Scoring!U$4:V$48,2,0),IF(H115=\"Yes\",1,IF(H115=\"No\",0,IF(H115=\"Partially\",0.5,\"\"))))","v":""}]
[null,"3.A.3.4.2","Detail",true,"The organization transfers these technologies to smallholder farmers.",{"$f":"VLOOKUP(B116,'4. Practices'!C:BE,55,0)","v":"TRUE"},{"$f":"VLOOKUP(B116,'4. Practices'!C:E,3,0)","v":"----"},false,false,{"$f":"IF(C116=\"EP\",VLOOKUP(B116,Scoring!U$4:V$48,2,0),IF(H116=\"Yes\",1,IF(H116=\"No\",0,IF(H116=\"Partially\",0.5,\"\"))))","v":""}]
[null,"3.B","Standard",false,"The organization promotes safe and healthy agricultural and food systems",{"$f":"VLOOKUP(B117,'4. Practices'!C:BE,55,0)","v":"TRUE"},{"$f":"VLOOKUP(B117,'4. Practices'!C:E,3,0)","v":0},false,false,{"$f":"IF(C117=\"EP\",VLOOKUP(B117,Scoring!U$4:V$48,2,0),IF(H117=\"Yes\",1,IF(H117=\"No\",0,IF(H117=\"Partially\",0.5,\"\"))))","v":""}]
[null,"3.B.1","EP",false,"The organization ensures the safety of its food products.",{"$f":"VLOOKUP(B118,'4. Practices'!C:BE,55,0)","v":"TRUE"},{"$f":"VLOOKUP(B118,'4. Practices'!C:E,3,0)","v":0},false,false,{"$f":"IF(C118=\"EP\",VLOOKUP(B118,Scoring!U$4:V$48,2,0),IF(H118=\"Yes\",1,IF(H118=\"No\",0,IF(H118=\"Partially\",0.5,\"\"))))","v":0}]
[null,"3.B.1.1","Indicator",false,"The organization implements best agricultural and manufacturing practices to prevent and control food contamination, in compliance with international, regional, national and sectoral food safety standards (eg. Codex Alimentarius).",{"$f":"VLOOKUP(B119,'4. Practices'!C:BE,55,0)","v":"TRUE"},{"$f":"VLOOKUP(B119,'4. Practices'!C:E,3,0)","v":0},false,false,{"$f":"IF(C119=\"EP\",VLOOKUP(B119,Scoring!U$4:V$48,2,0),IF(H119=\"Yes\",1,IF(H119=\"No\",0,IF(H119=\"Partially\",0.5,\"\"))))","v":""}]
[null,"3.B.1.1.1","Detail",true,"The organization provides its employees or outgrowers with adequate information, training and equipment to ensure food safety and prevent contamination incidents.",{"$f":"VLOOKUP(B120,'4. Practices'!C:BE,55,0)","v":"TRUE"},{"$f":"VLOOKUP(B120,'4. Practices'!C:E,3,0)","v":"----"},false,false,{"$f":"IF(C120=\"EP\",VLOOKUP(B120,Scoring!U$4:V$48,2,0),IF(H120=\"Yes\",1,IF(H120=\"No\",0,IF(H120=\"Partially\",0.5,\"\"))))","v":""}]
[null,"3.B.1.1.2","Detail",true,"The organization has effective mechanisms to control for food hazards and contamination.",{"$f":"VLOOKUP(B121,'4. Practices'!C:BE,55,0)","v":"TRUE"},{"$f":"VLOOKUP(B121,'4. Practices'!C:E,3,0)","v":"----"},false,false,{"$f":"IF(C121=\"EP\",VLOOKUP(B121,Scoring!U$4:V$48,2,0),IF(H121=\"Yes\",1,IF(H121=\"No\",0,IF(H121=\"Partially\",0.5,\"\"))))","v":""}]
[null,"3.B.1.2","Indicator",true,"The organization has a system to ensure the traceability of its agricultural and food products or ingredients, in particular for certified products.",{"$f":"VLOOKUP(B122,'4. Practices'!C:BE,55,0)","v":"TRUE"},{"$f":"VLOOKUP(B122,'4. Practices'!C:E,3,0)","v":"----"},false,false,{"$f":"IF(C122=\"EP\",VLOOKUP(B122,Scoring!U$4:V$48,2,0),IF(H122=\"Yes\",1,IF(H122=\"No\",0,IF(H122=\"Partially\",0.5,\"\"))))","v":""}]
[null,"3.B.2","EP",false,"The organization supports animal welfare in its operations.",{"$f":"VLOOKUP(B123,'4. Practices'!C:BE,55,0)","v":"TRUE"},{"$f":"VLOOKUP(B123,'4. Practices'!C:E,3,0)","v":0},false,false,{"$f":"IF(C123=\"EP\",VLOOKUP(B123,Scoring!U$4:V$48,2,0),IF(H123=\"Yes\",1,IF(H123=\"No\",0,IF(H123=\"Partially\",0.5,\"\"))))","v":0}]
[null,"3.B.2.1","Indicator",true,"The organization has procedures and practices that ensure animal health, in compliance with global animal health standards, such as OIE standards.",{"$f":"VLOOKUP(B124,'4. Practices'!C:BE,55,0)","v":"TRUE"},{"$f":"VLOOKUP(B124,'4. Practices'!C:E,3,0)","v":"----"},false,false,{"$f":"IF(C124=\"EP\",VLOOKUP(B124,Scoring!U$4:V$48,2,0),IF(H124=\"Yes\",1,IF(H124=\"No\",0,IF(H124=\"Partially\",0.5,\"\"))))","v":""}]
[null,"3.B.2.2","Indicator",false,"The organizations has procedures to ensure that the \"five freedoms\" for animal welfare are respected at the level of the organization and/or of its outgrowers / suppliers:",{"$f":"VLOOKUP(B125,'4. Practices'!C:BE,55,0)","v":"TRUE"},{"$f":"VLOOKUP(B125,'4. Practices'!C:E,3,0)","v":0},false,false,{"$f":"IF(C125=\"EP\",VLOOKUP(B125,Scoring!U$4:V$48,2,0),IF(H125=\"Yes\",1,IF(H125=\"No\",0,IF(H125=\"Partially\",0.5,\"\"))))","v":""}]
[null,"3.B.2.2.1","Detail",true,"Freedom from hunger, thirst and malnutrition",{"$f":"VLOOKUP(B126,'4. Practices'!C:BE,55,0)","v":"TRUE"},{"$f":"VLOOKUP(B126,'4. Practices'!C:E,3,0)","v":"----"},false,false,{"$f":"IF(C126=\"EP\",VLOOKUP(B126,Scoring!U$4:V$48,2,0),IF(H126=\"Yes\",1,IF(H126=\"No\",0,IF(H126=\"Partially\",0.5,\"\"))))","v":""}]
[null,"3.B.2.2.2","Detail",true,"Freedom from physical and thermal discomfort",{"$f":"VLOOKUP(B127,'4. Practices'!C:BE,55,0)","v":"TRUE"},{"$f":"VLOOKUP(B127,'4. Practices'!C:E,3,0)","v":"----"},false,false,{"$f":"IF(C127=\"EP\",VLOOKUP(B127,Scoring!U$4:V$48,2,0),IF(H127=\"Yes\",1,IF(H127=\"No\",0,IF(H127=\"Partially\",0.5,\"\"))))","v":""}]
[null,"3.B.2.2.3","Detail",true,"Freedom from pain, injury and disease",{"$f":"VLOOKUP(B128,'4. Practices'!C:BE,55,0)","v":"TRUE"},{"$f":"VLOOKUP(B128,'4. Practices'!C:E,3,0)","v":"----"},false,false,{"$f":"IF(C128=\"EP\",VLOOKUP(B128,Scoring!U$4:V$48,2,0),IF(H128=\"Yes\",1,IF(H128=\"No\",0,IF(H128=\"Partially\",0.5,\"\"))))","v":""}]
[null,"3.B.2.2.4","Detail",true,"Freedom from fear and distress",{"$f":"VLOOKUP(B129,'4. Practices'!C:BE,55,0)","v":"TRUE"},{"$f":"VLOOKUP(B129,'4. Practices'!C:E,3,0)","v":"----"},false,false,{"$f":"IF(C129=\"EP\",VLOOKUP(B129,Scoring!U$4:V$48,2,0),IF(H129=\"Yes\",1,IF(H129=\"No\",0,IF(H129=\"Partially\",0.5,\"\"))))","v":""}]
[null,"3.B.2.2.5","Detail",true,"Freedom to express normal patterns of behaviour",{"$f":"VLOOKUP(B130,'4. Practices'!C:BE,55,0)","v":"TRUE"},{"$f":"VLOOKUP(B130,'4. Practices'!C:E,3,0)","v":"----"},false,false,{"$f":"IF(C130=\"EP\",VLOOKUP(B130,Scoring!U$4:V$48,2,0),IF(H130=\"Yes\",1,IF(H130=\"No\",0,IF(H130=\"Partially\",0.5,\"\"))))","v":""}]
[null,"4","Dimension",false,"Environmentally sustainable processes and products",{"$f":"VLOOKUP(B131,'4. Practices'!C:BE,55,0)","v":"TRUE"},{"$f":"VLOOKUP(B131,'4. Practices'!C:E,3,0)","v":0},false,false,{"$f":"IF(C131=\"EP\",VLOOKUP(B131,Scoring!U$4:V$48,2,0),IF(H131=\"Yes\",1,IF(H131=\"No\",0,IF(H131=\"Partially\",0.5,\"\"))))","v":""}]
[null,"4.A","Standard",false,"The organization identifies and manages its environmental risks.",{"$f":"VLOOKUP(B132,'4. Practices'!C:BE,55,0)","v":"TRUE"},{"$f":"VLOOKUP(B132,'4. Practices'!C:E,3,0)","v":0},false,false,{"$f":"IF(C132=\"EP\",VLOOKUP(B132,Scoring!U$4:V$48,2,0),IF(H132=\"Yes\",1,IF(H132=\"No\",0,IF(H132=\"Partially\",0.5,\"\"))))","v":""}]
[null,"4.A.1","EP",false,"The organization identifies its environmental risks",{"$f":"VLOOKUP(B133,'4. Practices'!C:BE,55,0)","v":"TRUE"},{"$f":"VLOOKUP(B133,'4. Practices'!C:E,3,0)","v":0},false,false,{"$f":"IF(C133=\"EP\",VLOOKUP(B133,Scoring!U$4:V$48,2,0),IF(H133=\"Yes\",1,IF(H133=\"No\",0,IF(H133=\"Partially\",0.5,\"\"))))","v":0}]
[null,"4.A.1.1","Indicator",true,"The organization identifies the vulnerability of its properties, buildings, productions and human resources to climate change and environmental degradation, including vulnerabilities to:\n- drought and water scarcity\n- flooding and waterlogging\n- heat and frost (long-term trends or changes in temperature)\n- land degradation (erosion, pollution, poor soil quality and health)\n- biodiversity loss.",{"$f":"VLOOKUP(B134,'4. Practices'!C:BE,55,0)","v":"TRUE"},{"$f":"VLOOKUP(B134,'4. Practices'!C:E,3,0)","v":"----"},false,{"$f":"IF(AND(D134=TRUE,H134=TRUE,F134=\"TRUE\"),G134,FALSE)","v":false},{"$f":"IF(C134=\"EP\",VLOOKUP(B134,Scoring!U$4:V$48,2,0),IF(H134=\"Yes\",1,IF(H134=\"No\",0,IF(H134=\"Partially\",0.5,\"\"))))","v":""}]
[null,"4.A.1.2","Indicator",true,"The organization identifies the potential adverse impacts of its activities on the environment, linked to:\n- Land use / deforestation / degradation of natural habitats\n- Overexploitation of natural resources\n- Invasive alien species\n- Use of chemicals (herbicides, pesticides, fungicides, fertilizers...)\n- Water use and pollution\n- Energy use\n- Waste production, including hazardous waste\n- Emissions to air\n- Greehouse gas (GHG) emissions.",{"$f":"VLOOKUP(B135,'4. Practices'!C:BE,55,0)","v":"TRUE"},{"$f":"VLOOKUP(B135,'4. Practices'!C:E,3,0)","v":"----"},false,false,{"$f":"IF(C135=\"EP\",VLOOKUP(B135,Scoring!U$4:V$48,2,0),IF(H135=\"Yes\",1,IF(H135=\"No\",0,IF(H135=\"Partially\",0.5,\"\"))))","v":""}]
[null,"4.A.1.3","Indicator",true,"The organization identifies the environmental risks of its key partners (farmers / suppliers / sub-contractors), in terms of both vulnerabilities to climate change and environmental degradation, and adverse impacts on the environment.",{"$f":"VLOOKUP(B136,'4. Practices'!C:BE,55,0)","v":"TRUE"},{"$f":"VLOOKUP(B136,'4. Practices'!C:E,3,0)","v":"----"},false,false,{"$f":"IF(C136=\"EP\",VLOOKUP(B136,Scoring!U$4:V$48,2,0),IF(H136=\"Yes\",1,IF(H136=\"No\",0,IF(H136=\"Partially\",0.5,\"\"))))","v":""}]
[null,"4.A.2","EP",false,"The organization manages its environmental risks.",{"$f":"VLOOKUP(B137,'4. Practices'!C:BE,55,0)","v":"TRUE"},{"$f":"VLOOKUP(B137,'4. Practices'!C:E,3,0)","v":0},false,false,{"$f":"IF(C137=\"EP\",VLOOKUP(B137,Scoring!U$4:V$48,2,0),IF(H137=\"Yes\",1,IF(H137=\"No\",0,IF(H137=\"Partially\",0.5,\"\"))))","v":0}]
[null,"4.A.2.1","Indicator",false,"The organization operates in accordance with national and international laws, regulations and standards to prevent key environmental impacts:",{"$f":"VLOOKUP(B138,'4. Practices'!C:BE,55,0)","v":"TRUE"},{"$f":"VLOOKUP(B138,'4. Practices'!C:E,3,0)","v":0},{"$f":"IF(COUNTIF($L$5:$L$8,G138)=1,TRUE,FALSE)","v":false},false,{"$f":"IF(C138=\"EP\",VLOOKUP(B138,Scoring!U$4:V$48,2,0),IF(H138=\"Yes\",1,IF(H138=\"No\",0,IF(H138=\"Partially\",0.5,\"\"))))","v":""}]
[null,"4.A.2.1.1","Detail",true,"The organization operates in accordance with national law and international standards in areas of critical habitat (protected areas, protected species).",{"$f":"VLOOKUP(B139,'4. Practices'!C:BE,55,0)","v":"TRUE"},{"$f":"VLOOKUP(B139,'4. Practices'!C:E,3,0)","v":"----"},false,false,{"$f":"IF(C139=\"EP\",VLOOKUP(B139,Scoring!U$4:V$48,2,0),IF(H139=\"Yes\",1,IF(H139=\"No\",0,IF(H139=\"Partially\",0.5,\"\"))))","v":""}]
[null,"4.A.2.1.2","Detail",true,"The organization has a policy to prevent deforestation on the land directly cultivated by the organization and/or on the land cultivated by its outgrowers / suppliers.",{"$f":"VLOOKUP(B140,'4. Practices'!C:BE,55,0)","v":"TRUE"},{"$f":"VLOOKUP(B140,'4. Practices'!C:E,3,0)","v":"----"},false,false,{"$f":"IF(C140=\"EP\",VLOOKUP(B140,Scoring!U$4:V$48,2,0),IF(H140=\"Yes\",1,IF(H140=\"No\",0,IF(H140=\"Partially\",0.5,\"\"))))","v":""}]
[null,"4.A.2.1.3","Detail",true,"The organization prohibits, for its own operations and that of its suppliers, the purchase, storage, use, manufacture or trade of chemicals and hazardous materials subject to international bans or phase-outs due to their high toxicity to living organisms, environmental persistence, potential for bioaccumulation, or potential for depletion of the ozone layer. \n[in particullar hazardous materials as listed in the  Fairtrade Prohibited Materials List (POP, PIC, PAN 12 “Dirty Dozen”, WHO 1a and 1b, EU banned substances and EPA banned pesticides)]",{"$f":"VLOOKUP(B141,'4. Practices'!C:BE,55,0)","v":"TRUE"},{"$f":"VLOOKUP(B141,'4. Practices'!C:E,3,0)","v":"----"},false,false,{"$f":"IF(C141=\"EP\",VLOOKUP(B141,Scoring!U$4:V$48,2,0),IF(H141=\"Yes\",1,IF(H141=\"No\",0,IF(H141=\"Partially\",0.5,\"\"))))","v":""}]
[null,"4.A.2.2","Indicator",true,"The organization has a written plan for reducing the adverse impacts of its activities on the environment, with targets and indicators to monitor performance.",{"$f":"VLOOKUP(B142,'4. Practices'!C:BE,55,0)","v":"TRUE"},{"$f":"VLOOKUP(B142,'4. Practices'!C:E,3,0)","v":"----"},false,false,{"$f":"IF(C142=\"EP\",VLOOKUP(B142,Scoring!U$4:V$48,2,0),IF(H142=\"Yes\",1,IF(H142=\"No\",0,IF(H142=\"Partially\",0.5,\"\"))))","v":""}]
[null,"4.A.2.3","Indicator",false,"The organization implements activities and practices to prevent and reduce the adverse impacts of its activities on the environment, linked to: ",{"$f":"VLOOKUP(B143,'4. Practices'!C:BE,55,0)","v":"TRUE"},{"$f":"VLOOKUP(B143,'4. Practices'!C:E,3,0)","v":0},false,false,{"$f":"IF(C143=\"EP\",VLOOKUP(B143,Scoring!U$4:V$48,2,0),IF(H143=\"Yes\",1,IF(H143=\"No\",0,IF(H143=\"Partially\",0.5,\"\"))))","v":""}]
[null,"4.A.2.3.1","Detail",true,"Land use / deforestation / degradation of natural habitats",{"$f":"VLOOKUP(B144,'4. Practices'!C:BE,55,0)","v":"TRUE"},{"$f":"VLOOKUP(B144,'4. Practices'!C:E,3,0)","v":"----"},false,false,{"$f":"IF(C144=\"EP\",VLOOKUP(B144,Scoring!U$4:V$48,2,0),IF(H144=\"Yes\",1,IF(H144=\"No\",0,IF(H144=\"Partially\",0.5,\"\"))))","v":""}]
[null,"4.A.2.3.2","Detail",true,"Overexploitation of natural resources",{"$f":"VLOOKUP(B145,'4. Practices'!C:BE,55,0)","v":"TRUE"},{"$f":"VLOOKUP(B145,'4. Practices'!C:E,3,0)","v":"----"},false,false,{"$f":"IF(C145=\"EP\",VLOOKUP(B145,Scoring!U$4:V$48,2,0),IF(H145=\"Yes\",1,IF(H145=\"No\",0,IF(H145=\"Partially\",0.5,\"\"))))","v":""}]
[null,"4.A.2.3.3","Detail",true,"Invasive alien species",{"$f":"VLOOKUP(B146,'4. Practices'!C:BE,55,0)","v":"TRUE"},{"$f":"VLOOKUP(B146,'4. Practices'!C:E,3,0)","v":"----"},false,false,{"$f":"IF(C146=\"EP\",VLOOKUP(B146,Scoring!U$4:V$48,2,0),IF(H146=\"Yes\",1,IF(H146=\"No\",0,IF(H146=\"Partially\",0.5,\"\"))))","v":""}]
[null,"4.A.2.3.4","Detail",true,"Use of chemicals (herbicides, pesticides, fungicides, fertilizers...)",{"$f":"VLOOKUP(B147,'4. Practices'!C:BE,55,0)","v":"TRUE"},{"$f":"VLOOKUP(B147,'4. Practices'!C:E,3,0)","v":"----"},false,false,{"$f":"IF(C147=\"EP\",VLOOKUP(B147,Scoring!U$4:V$48,2,0),IF(H147=\"Yes\",1,IF(H147=\"No\",0,IF(H147=\"Partially\",0.5,\"\"))))","v":""}]
[null,"4.A.2.3.5","Detail",true,"Water use and pollution",{"$f":"VLOOKUP(B148,'4. Practices'!C:BE,55,0)","v":"TRUE"},{"$f":"VLOOKUP(B148,'4. Practices'!C:E,3,0)","v":"----"},false,false,{"$f":"IF(C148=\"EP\",VLOOKUP(B148,Scoring!U$4:V$48,2,0),IF(H148=\"Yes\",1,IF(H148=\"No\",0,IF(H148=\"Partially\",0.5,\"\"))))","v":""}]
[null,"4.A.2.3.6","Detail",true,"Energy use",{"$f":"VLOOKUP(B149,'4. Practices'!C:BE,55,0)","v":"TRUE"},{"$f":"VLOOKUP(B149,'4. Practices'!C:E,3,0)","v":"----"},false,false,{"$f":"IF(C149=\"EP\",VLOOKUP(B149,Scoring!U$4:V$48,2,0),IF(H149=\"Yes\",1,IF(H149=\"No\",0,IF(H149=\"Partially\",0.5,\"\"))))","v":""}]
[null,"4.A.2.3.7","Detail",true,"Waste production, including hazardous waste",{"$f":"VLOOKUP(B150,'4. Practices'!C:BE,55,0)","v":"TRUE"},{"$f":"VLOOKUP(B150,'4. Practices'!C:E,3,0)","v":"----"},false,false,{"$f":"IF(C150=\"EP\",VLOOKUP(B150,Scoring!U$4:V$48,2,0),IF(H150=\"Yes\",1,IF(H150=\"No\",0,IF(H150=\"Partially\",0.5,\"\"))))","v":""}]
[null,"4.A.2.3.8","Detail",true,"Emissions to air",{"$f":"VLOOKUP(B151,'4. Practices'!C:BE,55,0)","v":"TRUE"},{"$f":"VLOOKUP(B151,'4. Practices'!C:E,3,0)","v":"----"},false,false,{"$f":"IF(C151=\"EP\",VLOOKUP(B151,Scoring!U$4:V$48,2,0),IF(H151=\"Yes\",1,IF(H151=\"No\",0,IF(H151=\"Partially\",0.5,\"\"))))","v":""}]
[null,"4.A.2.3.9","Detail",true,"GHG emissions",{"$f":"VLOOKUP(B152,'4. Practices'!C:BE,55,0)","v":"TRUE"},{"$f":"VLOOKUP(B152,'4. Practices'!C:E,3,0)","v":"----"},false,false,{"$f":"IF(C152=\"EP\",VLOOKUP(B152,Scoring!U$4:V$48,2,0),IF(H152=\"Yes\",1,IF(H152=\"No\",0,IF(H152=\"Partially\",0.5,\"\"))))","v":""}]
[null,"4.A.2.4","Indicator",false,"The organization ensures that the operations of its suppliers and key business partners do not generate significant adverse impacts on the environment.",{"$f":"VLOOKUP(B153,'4. Practices'!C:BE,55,0)","v":"TRUE"},{"$f":"VLOOKUP(B153,'4. Practices'!C:E,3,0)","v":0},false,false,{"$f":"IF(C153=\"EP\",VLOOKUP(B153,Scoring!U$4:V$48,2,0),IF(H153=\"Yes\",1,IF(H153=\"No\",0,IF(H153=\"Partially\",0.5,\"\"))))","v":""}]
[null,"4.A.2.4.1","Detail",true,"The organization uses environmental certifications or environmental criteria to select its key suppliers and business partners.",{"$f":"VLOOKUP(B154,'4. Practices'!C:BE,55,0)","v":"TRUE"},{"$f":"VLOOKUP(B154,'4. Practices'!C:E,3,0)","v":"----"},false,false,{"$f":"IF(C154=\"EP\",VLOOKUP(B154,Scoring!U$4:V$48,2,0),IF(H154=\"Yes\",1,IF(H154=\"No\",0,IF(H154=\"Partially\",0.5,\"\"))))","v":""}]
[null,"4.A.2.4.2","Detail",true,"Where there is a high risk of significant adverse impacts on the environment, the organization introduces procedures and measures to ensure that key suppliers and business partners are taking steps to prevent or to mitigate these risks.",{"$f":"VLOOKUP(B155,'4. Practices'!C:BE,55,0)","v":"TRUE"},{"$f":"VLOOKUP(B155,'4. Practices'!C:E,3,0)","v":"----"},false,false,{"$f":"IF(C155=\"EP\",VLOOKUP(B155,Scoring!U$4:V$48,2,0),IF(H155=\"Yes\",1,IF(H155=\"No\",0,IF(H155=\"Partially\",0.5,\"\"))))","v":""}]
[null,"4.A.2.4.3","Detail",true,"The organization regularly monitors and/or measures the environmental performance of its suppliers and key business partners, either through direct inspection or through partnerships with third-party actors.",{"$f":"VLOOKUP(B156,'4. Practices'!C:BE,55,0)","v":"TRUE"},{"$f":"VLOOKUP(B156,'4. Practices'!C:E,3,0)","v":"----"},false,false,{"$f":"IF(C156=\"EP\",VLOOKUP(B156,Scoring!U$4:V$48,2,0),IF(H156=\"Yes\",1,IF(H156=\"No\",0,IF(H156=\"Partially\",0.5,\"\"))))","v":""}]
[null,"4.B","Standard",false,"The organization implements or promotes environmentally sustainable practices.",{"$f":"VLOOKUP(B157,'4. Practices'!C:BE,55,0)","v":"TRUE"},{"$f":"VLOOKUP(B157,'4. Practices'!C:E,3,0)","v":0},false,false,{"$f":"IF(C157=\"EP\",VLOOKUP(B157,Scoring!U$4:V$48,2,0),IF(H157=\"Yes\",1,IF(H157=\"No\",0,IF(H157=\"Partially\",0.5,\"\"))))","v":""}]
[null,"4.B.1","EP",false,"The organization supports the adoption of sustainable / climate-smart agricultural production practices.",{"$f":"VLOOKUP(B158,'4. Practices'!C:BE,55,0)","v":"TRUE"},{"$f":"VLOOKUP(B158,'4. Practices'!C:E,3,0)","v":0},false,false,{"$f":"IF(C158=\"EP\",VLOOKUP(B158,Scoring!U$4:V$48,2,0),IF(H158=\"Yes\",1,IF(H158=\"No\",0,IF(H158=\"Partially\",0.5,\"\"))))","v":0}]
[null,"4.B.1.1","Indicator",true,"The organization conducts or supports research and development activities on sustainable / climate-smart agricultural practices, combining both scientific and traditional knowledge.",{"$f":"VLOOKUP(B159,'4. Practices'!C:BE,55,0)","v":"TRUE"},{"$f":"VLOOKUP(B159,'4. Practices'!C:E,3,0)","v":"----"},false,false,{"$f":"IF(C159=\"EP\",VLOOKUP(B159,Scoring!U$4:V$48,2,0),IF(H159=\"Yes\",1,IF(H159=\"No\",0,IF(H159=\"Partially\",0.5,\"\"))))","v":""}]
[null,"4.B.1.2","Indicator",false,"The organization provides its farmers / suppliers with the following environmentally-friendly inputs or assets:",{"$f":"VLOOKUP(B160,'4. Practices'!C:BE,55,0)","v":"TRUE"},{"$f":"VLOOKUP(B160,'4. Practices'!C:E,3,0)","v":0},false,false,{"$f":"IF(C160=\"EP\",VLOOKUP(B160,Scoring!U$4:V$48,2,0),IF(H160=\"Yes\",1,IF(H160=\"No\",0,IF(H160=\"Partially\",0.5,\"\"))))","v":""}]
[null,"4.B.1.2.1","Detail",true,"Compost or other organic soil amendments, biopesticides",{"$f":"VLOOKUP(B161,'4. Practices'!C:BE,55,0)","v":"TRUE"},{"$f":"VLOOKUP(B161,'4. Practices'!C:E,3,0)","v":"----"},false,false,{"$f":"IF(C161=\"EP\",VLOOKUP(B161,Scoring!U$4:V$48,2,0),IF(H161=\"Yes\",1,IF(H161=\"No\",0,IF(H161=\"Partially\",0.5,\"\"))))","v":""}]
[null,"4.B.1.2.2","Detail",true,"Climate-smart, resistant, locally-adapted, and biodiversified varietals",{"$f":"VLOOKUP(B162,'4. Practices'!C:BE,55,0)","v":"TRUE"},{"$f":"VLOOKUP(B162,'4. Practices'!C:E,3,0)","v":"----"},false,false,{"$f":"IF(C162=\"EP\",VLOOKUP(B162,Scoring!U$4:V$48,2,0),IF(H162=\"Yes\",1,IF(H162=\"No\",0,IF(H162=\"Partially\",0.5,\"\"))))","v":""}]
[null,"4.B.1.2.3","Detail",true,"Tree seedlings",{"$f":"VLOOKUP(B163,'4. Practices'!C:BE,55,0)","v":"TRUE"},{"$f":"VLOOKUP(B163,'4. Practices'!C:E,3,0)","v":"----"},false,false,{"$f":"IF(C163=\"EP\",VLOOKUP(B163,Scoring!U$4:V$48,2,0),IF(H163=\"Yes\",1,IF(H163=\"No\",0,IF(H163=\"Partially\",0.5,\"\"))))","v":""}]
[null,"4.B.1.3","Indicator",false,"The organization provides its farmers / suppliers, either directly or through partnerships, with education, training, extension, advisory services and/or agronomic assistance on the following sustainable agricultural practices:",{"$f":"VLOOKUP(B164,'4. Practices'!C:BE,55,0)","v":"TRUE"},{"$f":"VLOOKUP(B164,'4. Practices'!C:E,3,0)","v":0},false,false,{"$f":"IF(C164=\"EP\",VLOOKUP(B164,Scoring!U$4:V$48,2,0),IF(H164=\"Yes\",1,IF(H164=\"No\",0,IF(H164=\"Partially\",0.5,\"\"))))","v":""}]
[null,"4.B.1.3.1","Detail",true,"Re/afforestation efforts or crop renovation",{"$f":"VLOOKUP(B165,'4. Practices'!C:BE,55,0)","v":"TRUE"},{"$f":"VLOOKUP(B165,'4. Practices'!C:E,3,0)","v":"----"},false,false,{"$f":"IF(C165=\"EP\",VLOOKUP(B165,Scoring!U$4:V$48,2,0),IF(H165=\"Yes\",1,IF(H165=\"No\",0,IF(H165=\"Partially\",0.5,\"\"))))","v":""}]
[null,"4.B.1.3.2","Detail",true,"Soil health improvement practices",{"$f":"VLOOKUP(B166,'4. Practices'!C:BE,55,0)","v":"TRUE"},{"$f":"VLOOKUP(B166,'4. Practices'!C:E,3,0)","v":"----"},false,false,{"$f":"IF(C166=\"EP\",VLOOKUP(B166,Scoring!U$4:V$48,2,0),IF(H166=\"Yes\",1,IF(H166=\"No\",0,IF(H166=\"Partially\",0.5,\"\"))))","v":""}]
[null,"4.B.1.3.3","Detail",true,"Conservation of local ecosystems and biodiversity",{"$f":"VLOOKUP(B167,'4. Practices'!C:BE,55,0)","v":"TRUE"},{"$f":"VLOOKUP(B167,'4. Practices'!C:E,3,0)","v":"----"},false,false,{"$f":"IF(C167=\"EP\",VLOOKUP(B167,Scoring!U$4:V$48,2,0),IF(H167=\"Yes\",1,IF(H167=\"No\",0,IF(H167=\"Partially\",0.5,\"\"))))","v":""}]
[null,"4.B.1.3.4","Detail",true,"Diversification of crops / sources of income",{"$f":"VLOOKUP(B168,'4. Practices'!C:BE,55,0)","v":"TRUE"},{"$f":"VLOOKUP(B168,'4. Practices'!C:E,3,0)","v":"----"},false,false,{"$f":"IF(C168=\"EP\",VLOOKUP(B168,Scoring!U$4:V$48,2,0),IF(H168=\"Yes\",1,IF(H168=\"No\",0,IF(H168=\"Partially\",0.5,\"\"))))","v":""}]
[null,"4.B.1.4","Indicator",true,"The organization supports its farmers / suppliers in obtaining environmental certifications (fairtrade, organic, sustainable…).",{"$f":"VLOOKUP(B169,'4. Practices'!C:BE,55,0)","v":"TRUE"},{"$f":"VLOOKUP(B169,'4. Practices'!C:E,3,0)","v":"----"},false,false,{"$f":"IF(C169=\"EP\",VLOOKUP(B169,Scoring!U$4:V$48,2,0),IF(H169=\"Yes\",1,IF(H169=\"No\",0,IF(H169=\"Partially\",0.5,\"\"))))","v":""}]
[null,"4.B.2","EP",false,"The organization implements sustainable practices for its processing or trading activities.",{"$f":"VLOOKUP(B170,'4. Practices'!C:BE,55,0)","v":"TRUE"},{"$f":"VLOOKUP(B170,'4. Practices'!C:E,3,0)","v":0},{"$f":"IF(COUNTIF($L$5:$L$8,G170)=1,TRUE,FALSE)","v":false},false,{"$f":"IF(C170=\"EP\",VLOOKUP(B170,Scoring!U$4:V$48,2,0),IF(H170=\"Yes\",1,IF(H170=\"No\",0,IF(H170=\"Partially\",0.5,\"\"))))","v":0}]
[null,"4.B.2.1","Indicator",false,"The organization practices or promotes sustainable energy usage.",{"$f":"VLOOKUP(B171,'4. Practices'!C:BE,55,0)","v":"TRUE"},{"$f":"VLOOKUP(B171,'4. Practices'!C:E,3,0)","v":0},false,false,{"$f":"IF(C171=\"EP\",VLOOKUP(B171,Scoring!U$4:V$48,2,0),IF(H171=\"Yes\",1,IF(H171=\"No\",0,IF(H171=\"Partially\",0.5,\"\"))))","v":""}]
[null,"4.B.2.1.1","Detail",true,"The organization uses renewable energy sources (such as solar, wind, water, biomass).",{"$f":"VLOOKUP(B172,'4. Practices'!C:BE,55,0)","v":"TRUE"},{"$f":"VLOOKUP(B172,'4. Practices'!C:E,3,0)","v":"----"},false,false,{"$f":"IF(C172=\"EP\",VLOOKUP(B172,Scoring!U$4:V$48,2,0),IF(H172=\"Yes\",1,IF(H172=\"No\",0,IF(H172=\"Partially\",0.5,\"\"))))","v":""}]
[null,"4.B.2.1.2","Detail",true,"The organization uses energy-efficient equipment / machines / processes.",{"$f":"VLOOKUP(B173,'4. Practices'!C:BE,55,0)","v":"TRUE"},{"$f":"VLOOKUP(B173,'4. Practices'!C:E,3,0)","v":"----"},false,false,{"$f":"IF(C173=\"EP\",VLOOKUP(B173,Scoring!U$4:V$48,2,0),IF(H173=\"Yes\",1,IF(H173=\"No\",0,IF(H173=\"Partially\",0.5,\"\"))))","v":""}]
[null,"4.B.2.2","Indicator",false,"The organization adopts a circular approach for materials, water and other resources used.",{"$f":"VLOOKUP(B174,'4. Practices'!C:BE,55,0)","v":"TRUE"},{"$f":"VLOOKUP(B174,'4. Practices'!C:E,3,0)","v":0},false,false,{"$f":"IF(C174=\"EP\",VLOOKUP(B174,Scoring!U$4:V$48,2,0),IF(H174=\"Yes\",1,IF(H174=\"No\",0,IF(H174=\"Partially\",0.5,\"\"))))","v":""}]
[null,"4.B.2.2.1","Detail",true,"The organization uses re-usable or easily biodegradable materials for packaging.",{"$f":"VLOOKUP(B175,'4. Practices'!C:BE,55,0)","v":"TRUE"},{"$f":"VLOOKUP(B175,'4. Practices'!C:E,3,0)","v":"----"},false,false,{"$f":"IF(C175=\"EP\",VLOOKUP(B175,Scoring!U$4:V$48,2,0),IF(H175=\"Yes\",1,IF(H175=\"No\",0,IF(H175=\"Partially\",0.5,\"\"))))","v":""}]
[null,"4.B.2.2.2","Detail",true,"The organization uses by-products from farming and processing at farm and enterprise level (e.g. use of coffee husk for compost production or macadamia shells to fuel biodigestors).",{"$f":"VLOOKUP(B176,'4. Practices'!C:BE,55,0)","v":"TRUE"},{"$f":"VLOOKUP(B176,'4. Practices'!C:E,3,0)","v":"----"},false,false,{"$f":"IF(C176=\"EP\",VLOOKUP(B176,Scoring!U$4:V$48,2,0),IF(H176=\"Yes\",1,IF(H176=\"No\",0,IF(H176=\"Partially\",0.5,\"\"))))","v":""}]
[null,"4.B.2.2.3","Detail",true,"The organization implements other practices that reduce and/or re-use wastes, energy or water.",{"$f":"VLOOKUP(B177,'4. Practices'!C:BE,55,0)","v":"TRUE"},{"$f":"VLOOKUP(B177,'4. Practices'!C:E,3,0)","v":"----"},false,false,{"$f":"IF(C177=\"EP\",VLOOKUP(B177,Scoring!U$4:V$48,2,0),IF(H177=\"Yes\",1,IF(H177=\"No\",0,IF(H177=\"Partially\",0.5,\"\"))))","v":""}]
[null,"5","Dimension",false,"Responsible treatment of stakeholders",{"$f":"VLOOKUP(B178,'4. Practices'!C:BE,55,0)","v":"TRUE"},{"$f":"VLOOKUP(B178,'4. Practices'!C:E,3,0)","v":0},false,false,{"$f":"IF(C178=\"EP\",VLOOKUP(B178,Scoring!U$4:V$48,2,0),IF(H178=\"Yes\",1,IF(H178=\"No\",0,IF(H178=\"Partially\",0.5,\"\"))))","v":""}]
[null,"5.A","Standard",false,"The organization respects legitimate tenure rights on land, fisheries, forests and water.",{"$f":"VLOOKUP(B179,'4. Practices'!C:BE,55,0)","v":"TRUE"},{"$f":"VLOOKUP(B179,'4. Practices'!C:E,3,0)","v":0},false,false,{"$f":"IF(C179=\"EP\",VLOOKUP(B179,Scoring!U$4:V$48,2,0),IF(H179=\"Yes\",1,IF(H179=\"No\",0,IF(H179=\"Partially\",0.5,\"\"))))","v":""}]
[null,"5.A.1","EP",false,"The organization identifies and recognizes all right holders of land, fisheries, forests and water potentially affected by its activities.",{"$f":"VLOOKUP(B180,'4. Practices'!C:BE,55,0)","v":"TRUE"},{"$f":"VLOOKUP(B180,'4. Practices'!C:E,3,0)","v":0},false,false,{"$f":"IF(C180=\"EP\",VLOOKUP(B180,Scoring!U$4:V$48,2,0),IF(H180=\"Yes\",1,IF(H180=\"No\",0,IF(H180=\"Partially\",0.5,\"\"))))","v":0}]
[null,"5.A.1.1","Indicator",true,"The organization engages with the local communities to identify all right holders, including customary / informal rights that are legitimated by the communities.",{"$f":"VLOOKUP(B181,'4. Practices'!C:BE,55,0)","v":"TRUE"},{"$f":"VLOOKUP(B181,'4. Practices'!C:E,3,0)","v":"----"},false,false,{"$f":"IF(C181=\"EP\",VLOOKUP(B181,Scoring!U$4:V$48,2,0),IF(H181=\"Yes\",1,IF(H181=\"No\",0,IF(H181=\"Partially\",0.5,\"\"))))","v":""}]
[null,"5.A.1.2","Indicator",true,"The organization recognizes all rights and uses on land, fisheries, forests and water, in particular those of indigenous people and women.",{"$f":"VLOOKUP(B182,'4. Practices'!C:BE,55,0)","v":"TRUE"},{"$f":"VLOOKUP(B182,'4. Practices'!C:E,3,0)","v":"----"},false,false,{"$f":"IF(C182=\"EP\",VLOOKUP(B182,Scoring!U$4:V$48,2,0),IF(H182=\"Yes\",1,IF(H182=\"No\",0,IF(H182=\"Partially\",0.5,\"\"))))","v":""}]
[null,"5.A.2","EP",false,"The organization avoids displacement of tenure rights; if displacement is unavoidable, the organization ensures fair and transparent transfer of tenure rights.",{"$f":"VLOOKUP(B183,'4. Practices'!C:BE,55,0)","v":"TRUE"},{"$f":"VLOOKUP(B183,'4. Practices'!C:E,3,0)","v":0},false,false,{"$f":"IF(C183=\"EP\",VLOOKUP(B183,Scoring!U$4:V$48,2,0),IF(H183=\"Yes\",1,IF(H183=\"No\",0,IF(H183=\"Partially\",0.5,\"\"))))","v":0}]
[null,"5.A.2.1","Indicator",true,"The organization has an inclusive business model that avoids the displacement of tenure right holders, such as outgrower schemes, contract farming agreements, joint venture with smallhoder farmers, or farmers' organizations.",{"$f":"VLOOKUP(B184,'4. Practices'!C:BE,55,0)","v":"TRUE"},{"$f":"VLOOKUP(B184,'4. Practices'!C:E,3,0)","v":"----"},false,false,{"$f":"IF(C184=\"EP\",VLOOKUP(B184,Scoring!U$4:V$48,2,0),IF(H184=\"Yes\",1,IF(H184=\"No\",0,IF(H184=\"Partially\",0.5,\"\"))))","v":""}]
[null,"5.A.2.2","Indicator",false,"When transfer of tenure rights cannot be avoided, the organization has procedures to ensure fair negotiations and compensations to right holders:",{"$f":"VLOOKUP(B185,'4. Practices'!C:BE,55,0)","v":"TRUE"},{"$f":"VLOOKUP(B185,'4. Practices'!C:E,3,0)","v":0},false,false,{"$f":"IF(C185=\"EP\",VLOOKUP(B185,Scoring!U$4:V$48,2,0),IF(H185=\"Yes\",1,IF(H185=\"No\",0,IF(H185=\"Partially\",0.5,\"\"))))","v":""}]
[null,"5.A.2.2.1","Detail",true,"The organization shares transparent information on lease/concession contract terms.",{"$f":"VLOOKUP(B186,'4. Practices'!C:BE,55,0)","v":"TRUE"},{"$f":"VLOOKUP(B186,'4. Practices'!C:E,3,0)","v":"----"},false,false,{"$f":"IF(C186=\"EP\",VLOOKUP(B186,Scoring!U$4:V$48,2,0),IF(H186=\"Yes\",1,IF(H186=\"No\",0,IF(H186=\"Partially\",0.5,\"\"))))","v":""}]
[null,"5.A.2.2.2","Detail",true,"The organization ensures that all concerned right holders provide their free, prior and informed consent (FPIC).",{"$f":"VLOOKUP(B187,'4. Practices'!C:BE,55,0)","v":"TRUE"},{"$f":"VLOOKUP(B187,'4. Practices'!C:E,3,0)","v":"----"},false,false,{"$f":"IF(C187=\"EP\",VLOOKUP(B187,Scoring!U$4:V$48,2,0),IF(H187=\"Yes\",1,IF(H187=\"No\",0,IF(H187=\"Partially\",0.5,\"\"))))","v":""}]
[null,"5.A.2.2.3","Detail",true,"The organization provides fair and prompt payment for acquired rights.",{"$f":"VLOOKUP(B188,'4. Practices'!C:BE,55,0)","v":"TRUE"},{"$f":"VLOOKUP(B188,'4. Practices'!C:E,3,0)","v":"----"},false,false,{"$f":"IF(C188=\"EP\",VLOOKUP(B188,Scoring!U$4:V$48,2,0),IF(H188=\"Yes\",1,IF(H188=\"No\",0,IF(H188=\"Partially\",0.5,\"\"))))","v":""}]
[null,"5.A.3","EP",false,"The organization ensures fair access to water to all legitimate right holders.",{"$f":"VLOOKUP(B189,'4. Practices'!C:BE,55,0)","v":"TRUE"},{"$f":"VLOOKUP(B189,'4. Practices'!C:E,3,0)","v":0},false,false,{"$f":"IF(C189=\"EP\",VLOOKUP(B189,Scoring!U$4:V$48,2,0),IF(H189=\"Yes\",1,IF(H189=\"No\",0,IF(H189=\"Partially\",0.5,\"\"))))","v":0}]
[null,"5.A.3.1","Indicator",true,"The organization has a water management plan to ensure availability of water to all in its area of operations and that of its outgrowers / suppliers.",{"$f":"VLOOKUP(B190,'4. Practices'!C:BE,55,0)","v":"TRUE"},{"$f":"VLOOKUP(B190,'4. Practices'!C:E,3,0)","v":"----"},false,false,{"$f":"IF(C190=\"EP\",VLOOKUP(B190,Scoring!U$4:V$48,2,0),IF(H190=\"Yes\",1,IF(H190=\"No\",0,IF(H190=\"Partially\",0.5,\"\"))))","v":""}]
[null,"5.A.3.2","Indicator",false,"The organization optimizes the use of water, including at outgrower / supplier level:",{"$f":"VLOOKUP(B191,'4. Practices'!C:BE,55,0)","v":"TRUE"},{"$f":"VLOOKUP(B191,'4. Practices'!C:E,3,0)","v":0},false,false,{"$f":"IF(C191=\"EP\",VLOOKUP(B191,Scoring!U$4:V$48,2,0),IF(H191=\"Yes\",1,IF(H191=\"No\",0,IF(H191=\"Partially\",0.5,\"\"))))","v":""}]
[null,"5.A.3.2.1","Detail",true,"Use of water-capturing systems (e.g. rainwater catchment systems)",{"$f":"VLOOKUP(B192,'4. Practices'!C:BE,55,0)","v":"TRUE"},{"$f":"VLOOKUP(B192,'4. Practices'!C:E,3,0)","v":"----"},false,false,{"$f":"IF(C192=\"EP\",VLOOKUP(B192,Scoring!U$4:V$48,2,0),IF(H192=\"Yes\",1,IF(H192=\"No\",0,IF(H192=\"Partially\",0.5,\"\"))))","v":""}]
[null,"5.A.3.2.2","Detail",true,"Use of water-efficient systems (e.g. drip irrigation)",{"$f":"VLOOKUP(B193,'4. Practices'!C:BE,55,0)","v":"TRUE"},{"$f":"VLOOKUP(B193,'4. Practices'!C:E,3,0)","v":"----"},false,false,{"$f":"IF(C193=\"EP\",VLOOKUP(B193,Scoring!U$4:V$48,2,0),IF(H193=\"Yes\",1,IF(H193=\"No\",0,IF(H193=\"Partially\",0.5,\"\"))))","v":""}]
[null,"5.A.3.2.3","Detail",true,"Recycling of waste water",{"$f":"VLOOKUP(B194,'4. Practices'!C:BE,55,0)","v":"TRUE"},{"$f":"VLOOKUP(B194,'4. Practices'!C:E,3,0)","v":"----"},false,false,{"$f":"IF(C194=\"EP\",VLOOKUP(B194,Scoring!U$4:V$48,2,0),IF(H194=\"Yes\",1,IF(H194=\"No\",0,IF(H194=\"Partially\",0.5,\"\"))))","v":""}]
[null,"5.A.3.2.4","Detail",true,"Use of vegetative buffer zones to conserve water and prevent water pollution",{"$f":"VLOOKUP(B195,'4. Practices'!C:BE,55,0)","v":"TRUE"},{"$f":"VLOOKUP(B195,'4. Practices'!C:E,3,0)","v":"----"},false,false,{"$f":"IF(C195=\"EP\",VLOOKUP(B195,Scoring!U$4:V$48,2,0),IF(H195=\"Yes\",1,IF(H195=\"No\",0,IF(H195=\"Partially\",0.5,\"\"))))","v":""}]
[null,"5.B","Standard",false,"The organization respects cultural heritage and traditional knowledge.",{"$f":"VLOOKUP(B196,'4. Practices'!C:BE,55,0)","v":"TRUE"},{"$f":"VLOOKUP(B196,'4. Practices'!C:E,3,0)","v":0},false,false,{"$f":"IF(C196=\"EP\",VLOOKUP(B196,Scoring!U$4:V$48,2,0),IF(H196=\"Yes\",1,IF(H196=\"No\",0,IF(H196=\"Partially\",0.5,\"\"))))","v":""}]
[null,"5.B.1","EP",false,"The organization respects cultural heritage sites.",{"$f":"VLOOKUP(B197,'4. Practices'!C:BE,55,0)","v":"TRUE"},{"$f":"VLOOKUP(B197,'4. Practices'!C:E,3,0)","v":0},false,false,{"$f":"IF(C197=\"EP\",VLOOKUP(B197,Scoring!U$4:V$48,2,0),IF(H197=\"Yes\",1,IF(H197=\"No\",0,IF(H197=\"Partially\",0.5,\"\"))))","v":0}]
[null,"5.B.1.1","Indicator",true,"The organization identifies cultural heritage sites in its area of operations and ensures their preservation and access.",{"$f":"VLOOKUP(B198,'4. Practices'!C:BE,55,0)","v":"TRUE"},{"$f":"VLOOKUP(B198,'4. Practices'!C:E,3,0)","v":"----"},false,{"$f":"IF(AND(D198=TRUE,H198=TRUE,F198=\"TRUE\"),G198,FALSE)","v":false},{"$f":"IF(C198=\"EP\",VLOOKUP(B198,Scoring!U$4:V$48,2,0),IF(H198=\"Yes\",1,IF(H198=\"No\",0,IF(H198=\"Partially\",0.5,\"\"))))","v":""}]
[null,"5.B.2","EP",false,"The organization recognizes the contributions of farmers, especially smallholder farmers, in conserving, improving, and making available genetic resources, including seeds.",{"$f":"VLOOKUP(B199,'4. Practices'!C:BE,55,0)","v":"TRUE"},{"$f":"VLOOKUP(B199,'4. Practices'!C:E,3,0)","v":0},false,false,{"$f":"IF(C199=\"EP\",VLOOKUP(B199,Scoring!U$4:V$48,2,0),IF(H199=\"Yes\",1,IF(H199=\"No\",0,IF(H199=\"Partially\",0.5,\"\"))))","v":0}]
[null,"5.B.2.1","Indicator",true,"The organization respects farmers' right to save, use, exchange and sell their genetic resources, including seeds.",{"$f":"VLOOKUP(B200,'4. Practices'!C:BE,55,0)","v":"TRUE"},{"$f":"VLOOKUP(B200,'4. Practices'!C:E,3,0)","v":"----"},false,false,{"$f":"IF(C200=\"EP\",VLOOKUP(B200,Scoring!U$4:V$48,2,0),IF(H200=\"Yes\",1,IF(H200=\"No\",0,IF(H200=\"Partially\",0.5,\"\"))))","v":""}]
[null,"5.B.2.2","Indicator",true,"The organization prioritize the purchase of inputs, production or ingredients using locally-adapted seed varieties or livestock breeds, or traditional or heirloom varieties.",{"$f":"VLOOKUP(B201,'4. Practices'!C:BE,55,0)","v":"TRUE"},{"$f":"VLOOKUP(B201,'4. Practices'!C:E,3,0)","v":"----"},false,false,{"$f":"IF(C201=\"EP\",VLOOKUP(B201,Scoring!U$4:V$48,2,0),IF(H201=\"Yes\",1,IF(H201=\"No\",0,IF(H201=\"Partially\",0.5,\"\"))))","v":""}]
[null,"5.B.3","EP",false,"The organization respects and rewards local communities for the use of genetic resources or traditional knowledge, including for commercial purposes.",{"$f":"VLOOKUP(B202,'4. Practices'!C:BE,55,0)","v":"TRUE"},{"$f":"VLOOKUP(B202,'4. Practices'!C:E,3,0)","v":0},{"$f":"IF(COUNTIF($L$5:$L$8,G202)=1,TRUE,FALSE)","v":false},false,{"$f":"IF(C202=\"EP\",VLOOKUP(B202,Scoring!U$4:V$48,2,0),IF(H202=\"Yes\",1,IF(H202=\"No\",0,IF(H202=\"Partially\",0.5,\"\"))))","v":0}]
[null,"5.B.3.1","Indicator",false,"When a project proposes to use the cultural heritage (including knowledge, innovations or practices) of local communities or Indigenous people for commercial purposes, the organization ensures fair negotiations and compensations to right holders.",{"$f":"VLOOKUP(B203,'4. Practices'!C:BE,55,0)","v":"TRUE"},{"$f":"VLOOKUP(B203,'4. Practices'!C:E,3,0)","v":0},false,false,{"$f":"IF(C203=\"EP\",VLOOKUP(B203,Scoring!U$4:V$48,2,0),IF(H203=\"Yes\",1,IF(H203=\"No\",0,IF(H203=\"Partially\",0.5,\"\"))))","v":""}]
[null,"5.B.3.1.1","Detail",true,"The organization shares transparent information on the scope and nature of the proposed commercial development and its potential consequences.",{"$f":"VLOOKUP(B204,'4. Practices'!C:BE,55,0)","v":"TRUE"},{"$f":"VLOOKUP(B204,'4. Practices'!C:E,3,0)","v":"----"},false,false,{"$f":"IF(C204=\"EP\",VLOOKUP(B204,Scoring!U$4:V$48,2,0),IF(H204=\"Yes\",1,IF(H204=\"No\",0,IF(H204=\"Partially\",0.5,\"\"))))","v":""}]
[null,"5.B.3.1.2","Detail",true,"The organization ensures that all concerned right holders provide their free, prior and informed consent (FPIC).",{"$f":"VLOOKUP(B205,'4. Practices'!C:BE,55,0)","v":"TRUE"},{"$f":"VLOOKUP(B205,'4. Practices'!C:E,3,0)","v":"----"},false,false,{"$f":"IF(C205=\"EP\",VLOOKUP(B205,Scoring!U$4:V$48,2,0),IF(H205=\"Yes\",1,IF(H205=\"No\",0,IF(H205=\"Partially\",0.5,\"\"))))","v":""}]
[null,"5.B.3.1.3","Detail",true,"The organization provides fair and equitable sharings of benefits from commercialization of such knowledge, innovation or practice, consistent with the customs and traditions of the local communities or Indigenous people.",{"$f":"VLOOKUP(B206,'4. Practices'!C:BE,55,0)","v":"TRUE"},{"$f":"VLOOKUP(B206,'4. Practices'!C:E,3,0)","v":"----"},false,false,{"$f":"IF(C206=\"EP\",VLOOKUP(B206,Scoring!U$4:V$48,2,0),IF(H206=\"Yes\",1,IF(H206=\"No\",0,IF(H206=\"Partially\",0.5,\"\"))))","v":""}]
[null,"5.C","Standard",false,"The organization promotes responsible and fair contracting practices with its stakeholders.",{"$f":"VLOOKUP(B207,'4. Practices'!C:BE,55,0)","v":"TRUE"},{"$f":"VLOOKUP(B207,'4. Practices'!C:E,3,0)","v":0},false,false,{"$f":"IF(C207=\"EP\",VLOOKUP(B207,Scoring!U$4:V$48,2,0),IF(H207=\"Yes\",1,IF(H207=\"No\",0,IF(H207=\"Partially\",0.5,\"\"))))","v":""}]
[null,"5.C.1","EP",false,"The organization is transparent on contract terms and conditions.",{"$f":"VLOOKUP(B208,'4. Practices'!C:BE,55,0)","v":"TRUE"},{"$f":"VLOOKUP(B208,'4. Practices'!C:E,3,0)","v":0},{"$f":"IF(COUNTIF($L$5:$L$8,G208)=1,TRUE,FALSE)","v":false},false,{"$f":"IF(C208=\"EP\",VLOOKUP(B208,Scoring!U$4:V$48,2,0),IF(H208=\"Yes\",1,IF(H208=\"No\",0,IF(H208=\"Partially\",0.5,\"\"))))","v":0}]
[null,"5.C.1.1","Indicator",true,"Commercial relationships, in particular with smallholder farmers, are documented in written contracts, that include the following information:\n- Agreed volumes\n- Agreed quality of the product and what happens if the farmer is not able to deliver the agreed quality\n- Price per unit\n- Terms of delivery\n- Terms of payment\n- Risks of market price fluctuation with price scenarios\n- Dispute resolution mechanisms and cancellation rights",{"$f":"VLOOKUP(B209,'4. Practices'!C:BE,55,0)","v":"TRUE"},{"$f":"VLOOKUP(B209,'4. Practices'!C:E,3,0)","v":"----"},false,false,{"$f":"IF(C209=\"EP\",VLOOKUP(B209,Scoring!U$4:V$48,2,0),IF(H209=\"Yes\",1,IF(H209=\"No\",0,IF(H209=\"Partially\",0.5,\"\"))))","v":""}]
[null,"5.C.1.2","Indicator",true,"Contracts are available in the major local languages and are fully available prior to signature.",{"$f":"VLOOKUP(B210,'4. Practices'!C:BE,55,0)","v":"TRUE"},{"$f":"VLOOKUP(B210,'4. Practices'!C:E,3,0)","v":"----"},false,false,{"$f":"IF(C210=\"EP\",VLOOKUP(B210,Scoring!U$4:V$48,2,0),IF(H210=\"Yes\",1,IF(H210=\"No\",0,IF(H210=\"Partially\",0.5,\"\"))))","v":""}]
[null,"5.C.2","EP",false,"The organization offers fair conditions and prices.",{"$f":"VLOOKUP(B211,'4. Practices'!C:BE,55,0)","v":"TRUE"},{"$f":"VLOOKUP(B211,'4. Practices'!C:E,3,0)","v":0},false,false,{"$f":"IF(C211=\"EP\",VLOOKUP(B211,Scoring!U$4:V$48,2,0),IF(H211=\"Yes\",1,IF(H211=\"No\",0,IF(H211=\"Partially\",0.5,\"\"))))","v":0}]
[null,"5.C.2.1","Indicator",false,"The organization offers fair prices to farmers / suppliers.",{"$f":"VLOOKUP(B212,'4. Practices'!C:BE,55,0)","v":"TRUE"},{"$f":"VLOOKUP(B212,'4. Practices'!C:E,3,0)","v":0},false,false,{"$f":"IF(C212=\"EP\",VLOOKUP(B212,Scoring!U$4:V$48,2,0),IF(H212=\"Yes\",1,IF(H212=\"No\",0,IF(H212=\"Partially\",0.5,\"\"))))","v":""}]
[null,"5.C.2.1.1","Detail",true,"The organization offers prices that are above minimum market rates.",{"$f":"VLOOKUP(B213,'4. Practices'!C:BE,55,0)","v":"TRUE"},{"$f":"VLOOKUP(B213,'4. Practices'!C:E,3,0)","v":"----"},false,false,{"$f":"IF(C213=\"EP\",VLOOKUP(B213,Scoring!U$4:V$48,2,0),IF(H213=\"Yes\",1,IF(H213=\"No\",0,IF(H213=\"Partially\",0.5,\"\"))))","v":""}]
[null,"5.C.2.1.2","Detail",true,"The organization offers equal prices to men and women farmers.",{"$f":"VLOOKUP(B214,'4. Practices'!C:BE,55,0)","v":"TRUE"},{"$f":"VLOOKUP(B214,'4. Practices'!C:E,3,0)","v":"----"},false,false,{"$f":"IF(C214=\"EP\",VLOOKUP(B214,Scoring!U$4:V$48,2,0),IF(H214=\"Yes\",1,IF(H214=\"No\",0,IF(H214=\"Partially\",0.5,\"\"))))","v":""}]
[null,"5.C.2.1.3","Detail",true,"The organization has mechanisms in place to stabilize prices paid to farmers.",{"$f":"VLOOKUP(B215,'4. Practices'!C:BE,55,0)","v":"TRUE"},{"$f":"VLOOKUP(B215,'4. Practices'!C:E,3,0)","v":"----"},false,false,{"$f":"IF(C215=\"EP\",VLOOKUP(B215,Scoring!U$4:V$48,2,0),IF(H215=\"Yes\",1,IF(H215=\"No\",0,IF(H215=\"Partially\",0.5,\"\"))))","v":""}]
[null,"5.C.2.1.4","Detail",true,"The organization pays the smallholder farmer within a reasonable delay, and and no later than 15 days after the delivery of products.",{"$f":"VLOOKUP(B216,'4. Practices'!C:BE,55,0)","v":"TRUE"},{"$f":"VLOOKUP(B216,'4. Practices'!C:E,3,0)","v":"----"},false,false,{"$f":"IF(C216=\"EP\",VLOOKUP(B216,Scoring!U$4:V$48,2,0),IF(H216=\"Yes\",1,IF(H216=\"No\",0,IF(H216=\"Partially\",0.5,\"\"))))","v":""}]
[null,"5.C.2.2","Indicator",false,"The organization offers fair conditions to farmers / suppliers.",{"$f":"VLOOKUP(B217,'4. Practices'!C:BE,55,0)","v":"TRUE"},{"$f":"VLOOKUP(B217,'4. Practices'!C:E,3,0)","v":0},false,false,{"$f":"IF(C217=\"EP\",VLOOKUP(B217,Scoring!U$4:V$48,2,0),IF(H217=\"Yes\",1,IF(H217=\"No\",0,IF(H217=\"Partially\",0.5,\"\"))))","v":""}]
[null,"5.C.2.2.1","Detail",true,"The organization engages in long-term relationships with farmers / suppliers, and/or commits in advance to purchasing certain volumes to its farmers / suppliers.",{"$f":"VLOOKUP(B218,'4. Practices'!C:BE,55,0)","v":"TRUE"},{"$f":"VLOOKUP(B218,'4. Practices'!C:E,3,0)","v":"----"},false,false,{"$f":"IF(C218=\"EP\",VLOOKUP(B218,Scoring!U$4:V$48,2,0),IF(H218=\"Yes\",1,IF(H218=\"No\",0,IF(H218=\"Partially\",0.5,\"\"))))","v":""}]
[null,"5.C.2.2.2","Detail",true,"The organization has a mechanism to absorb part of the losses in case of market price drop or circumstances outside of the farmer's control (eg: climate disaster, harvest failures).",{"$f":"VLOOKUP(B219,'4. Practices'!C:BE,55,0)","v":"TRUE"},{"$f":"VLOOKUP(B219,'4. Practices'!C:E,3,0)","v":"----"},false,false,{"$f":"IF(C219=\"EP\",VLOOKUP(B219,Scoring!U$4:V$48,2,0),IF(H219=\"Yes\",1,IF(H219=\"No\",0,IF(H219=\"Partially\",0.5,\"\"))))","v":""}]
[null,"5.C.2.2.3","Detail",true,"The organization recognizes and supports suppliers’ (particularly farmers’) rights to freedom of association and to collective bargaining.",{"$f":"VLOOKUP(B220,'4. Practices'!C:BE,55,0)","v":"TRUE"},{"$f":"VLOOKUP(B220,'4. Practices'!C:E,3,0)","v":"----"},false,false,{"$f":"IF(C220=\"EP\",VLOOKUP(B220,Scoring!U$4:V$48,2,0),IF(H220=\"Yes\",1,IF(H220=\"No\",0,IF(H220=\"Partially\",0.5,\"\"))))","v":""}]
[null,"5.C.3","EP",false,"When financial services are provided (e.g. in-kind or cash loans for inputs), the organization does not overindebt farmers.",{"$f":"VLOOKUP(B221,'4. Practices'!C:BE,55,0)","v":"TRUE"},{"$f":"VLOOKUP(B221,'4. Practices'!C:E,3,0)","v":0},false,false,{"$f":"IF(C221=\"EP\",VLOOKUP(B221,Scoring!U$4:V$48,2,0),IF(H221=\"Yes\",1,IF(H221=\"No\",0,IF(H221=\"Partially\",0.5,\"\"))))","v":0}]
[null,"5.C.3.1","Indicator",true,"The organization conducts a cash flow analysis to evaluate repayment capacity.",{"$f":"VLOOKUP(B222,'4. Practices'!C:BE,55,0)","v":"TRUE"},{"$f":"VLOOKUP(B222,'4. Practices'!C:E,3,0)","v":"----"},false,false,{"$f":"IF(C222=\"EP\",VLOOKUP(B222,Scoring!U$4:V$48,2,0),IF(H222=\"Yes\",1,IF(H222=\"No\",0,IF(H222=\"Partially\",0.5,\"\"))))","v":""}]
[null,"5.C.3.2","Indicator",true,"The percentage of a farmer's disposable income that can be applied to debt service may not be higher than 70% of the projected worst case scenario, including debt from the organization and other lenders.",{"$f":"VLOOKUP(B223,'4. Practices'!C:BE,55,0)","v":"TRUE"},{"$f":"VLOOKUP(B223,'4. Practices'!C:E,3,0)","v":"----"},false,false,{"$f":"IF(C223=\"EP\",VLOOKUP(B223,Scoring!U$4:V$48,2,0),IF(H223=\"Yes\",1,IF(H223=\"No\",0,IF(H223=\"Partially\",0.5,\"\"))))","v":""}]
[null,"6","Dimension",false,"Responsible Human Resource Development",{"$f":"VLOOKUP(B224,'4. Practices'!C:BE,55,0)","v":"TRUE"},{"$f":"VLOOKUP(B224,'4. Practices'!C:E,3,0)","v":0},false,false,{"$f":"IF(C224=\"EP\",VLOOKUP(B224,Scoring!U$4:V$48,2,0),IF(H224=\"Yes\",1,IF(H224=\"No\",0,IF(H224=\"Partially\",0.5,\"\"))))","v":""}]
[null,"6.A","Standard",false,"The organization creates a safe and equitable work environment.",{"$f":"VLOOKUP(B225,'4. Practices'!C:BE,55,0)","v":"TRUE"},{"$f":"VLOOKUP(B225,'4. Practices'!C:E,3,0)","v":0},false,false,{"$f":"IF(C225=\"EP\",VLOOKUP(B225,Scoring!U$4:V$48,2,0),IF(H225=\"Yes\",1,IF(H225=\"No\",0,IF(H225=\"Partially\",0.5,\"\"))))","v":""}]
[null,"6.A.1","EP",false,"A written Human Resources policy is available to all employees that explains and protects their rights.",{"$f":"VLOOKUP(B226,'4. Practices'!C:BE,55,0)","v":"TRUE"},{"$f":"VLOOKUP(B226,'4. Practices'!C:E,3,0)","v":0},false,false,{"$f":"IF(C226=\"EP\",VLOOKUP(B226,Scoring!U$4:V$48,2,0),IF(H226=\"Yes\",1,IF(H226=\"No\",0,IF(H226=\"Partially\",0.5,\"\"))))","v":0}]
[null,"6.A.1.1","Indicator",false,"The organizations' Human Resources policy explains employees' rights and responsibilities related to the following: ",{"$f":"VLOOKUP(B227,'4. Practices'!C:BE,55,0)","v":"TRUE"},{"$f":"VLOOKUP(B227,'4. Practices'!C:E,3,0)","v":0},false,false,{"$f":"IF(C227=\"EP\",VLOOKUP(B227,Scoring!U$4:V$48,2,0),IF(H227=\"Yes\",1,IF(H227=\"No\",0,IF(H227=\"Partially\",0.5,\"\"))))","v":""}]
[null,"6.A.1.1.1","Detail",true,"Work rules and disciplinary procedures",{"$f":"VLOOKUP(B228,'4. Practices'!C:BE,55,0)","v":"TRUE"},{"$f":"VLOOKUP(B228,'4. Practices'!C:E,3,0)","v":"----"},false,false,{"$f":"IF(C228=\"EP\",VLOOKUP(B228,Scoring!U$4:V$48,2,0),IF(H228=\"Yes\",1,IF(H228=\"No\",0,IF(H228=\"Partially\",0.5,\"\"))))","v":""}]
[null,"6.A.1.1.2","Detail",true,"Grievance resolution",{"$f":"VLOOKUP(B229,'4. Practices'!C:BE,55,0)","v":"TRUE"},{"$f":"VLOOKUP(B229,'4. Practices'!C:E,3,0)","v":"----"},false,false,{"$f":"IF(C229=\"EP\",VLOOKUP(B229,Scoring!U$4:V$48,2,0),IF(H229=\"Yes\",1,IF(H229=\"No\",0,IF(H229=\"Partially\",0.5,\"\"))))","v":""}]
[null,"6.A.1.1.3","Detail",true,"Collective bargaining agreements and freedom of association",{"$f":"VLOOKUP(B230,'4. Practices'!C:BE,55,0)","v":"TRUE"},{"$f":"VLOOKUP(B230,'4. Practices'!C:E,3,0)","v":"----"},false,false,{"$f":"IF(C230=\"EP\",VLOOKUP(B230,Scoring!U$4:V$48,2,0),IF(H230=\"Yes\",1,IF(H230=\"No\",0,IF(H230=\"Partially\",0.5,\"\"))))","v":""}]
[null,"6.A.1.1.4","Detail",true,"Whistle blower safeguards",{"$f":"VLOOKUP(B231,'4. Practices'!C:BE,55,0)","v":"TRUE"},{"$f":"VLOOKUP(B231,'4. Practices'!C:E,3,0)","v":"----"},false,false,{"$f":"IF(C231=\"EP\",VLOOKUP(B231,Scoring!U$4:V$48,2,0),IF(H231=\"Yes\",1,IF(H231=\"No\",0,IF(H231=\"Partially\",0.5,\"\"))))","v":""}]
[null,"6.A.1.1.5","Detail",true,"Anti-harassment safeguards",{"$f":"VLOOKUP(B232,'4. Practices'!C:BE,55,0)","v":"TRUE"},{"$f":"VLOOKUP(B232,'4. Practices'!C:E,3,0)","v":"----"},false,false,{"$f":"IF(C232=\"EP\",VLOOKUP(B232,Scoring!U$4:V$48,2,0),IF(H232=\"Yes\",1,IF(H232=\"No\",0,IF(H232=\"Partially\",0.5,\"\"))))","v":""}]
[null,"6.A.1.1.6","Detail",true,"Conditions for dismissal and exit formalities",{"$f":"VLOOKUP(B233,'4. Practices'!C:BE,55,0)","v":"TRUE"},{"$f":"VLOOKUP(B233,'4. Practices'!C:E,3,0)","v":"----"},false,false,{"$f":"IF(C233=\"EP\",VLOOKUP(B233,Scoring!U$4:V$48,2,0),IF(H233=\"Yes\",1,IF(H233=\"No\",0,IF(H233=\"Partially\",0.5,\"\"))))","v":""}]
[null,"6.A.1.2","Indicator",false,"The organization meets or exceeds legal regulations in the following areas:",{"$f":"VLOOKUP(B234,'4. Practices'!C:BE,55,0)","v":"TRUE"},{"$f":"VLOOKUP(B234,'4. Practices'!C:E,3,0)","v":0},false,false,{"$f":"IF(C234=\"EP\",VLOOKUP(B234,Scoring!U$4:V$48,2,0),IF(H234=\"Yes\",1,IF(H234=\"No\",0,IF(H234=\"Partially\",0.5,\"\"))))","v":""}]
[null,"6.A.1.2.1","Detail",true,"Competitive wages",{"$f":"VLOOKUP(B235,'4. Practices'!C:BE,55,0)","v":"TRUE"},{"$f":"VLOOKUP(B235,'4. Practices'!C:E,3,0)","v":"----"},false,false,{"$f":"IF(C235=\"EP\",VLOOKUP(B235,Scoring!U$4:V$48,2,0),IF(H235=\"Yes\",1,IF(H235=\"No\",0,IF(H235=\"Partially\",0.5,\"\"))))","v":""}]
[null,"6.A.1.2.2","Detail",true,"Transparent salary scale",{"$f":"VLOOKUP(B236,'4. Practices'!C:BE,55,0)","v":"TRUE"},{"$f":"VLOOKUP(B236,'4. Practices'!C:E,3,0)","v":"----"},false,false,{"$f":"IF(C236=\"EP\",VLOOKUP(B236,Scoring!U$4:V$48,2,0),IF(H236=\"Yes\",1,IF(H236=\"No\",0,IF(H236=\"Partially\",0.5,\"\"))))","v":""}]
[null,"6.A.1.2.3","Detail",true,"Benefits/ social protection (health insurance, dental insurance, disability coverage, life insurance, retirements provisions)",{"$f":"VLOOKUP(B237,'4. Practices'!C:BE,55,0)","v":"TRUE"},{"$f":"VLOOKUP(B237,'4. Practices'!C:E,3,0)","v":"----"},false,false,{"$f":"IF(C237=\"EP\",VLOOKUP(B237,Scoring!U$4:V$48,2,0),IF(H237=\"Yes\",1,IF(H237=\"No\",0,IF(H237=\"Partially\",0.5,\"\"))))","v":""}]
[null,"6.A.1.2.4","Detail",true,"Limits on working hours and overtime hours",{"$f":"VLOOKUP(B238,'4. Practices'!C:BE,55,0)","v":"TRUE"},{"$f":"VLOOKUP(B238,'4. Practices'!C:E,3,0)","v":"----"},false,false,{"$f":"IF(C238=\"EP\",VLOOKUP(B238,Scoring!U$4:V$48,2,0),IF(H238=\"Yes\",1,IF(H238=\"No\",0,IF(H238=\"Partially\",0.5,\"\"))))","v":""}]
[null,"6.A.1.2.5","Detail",true,"Overtime pay and paid leaves",{"$f":"VLOOKUP(B239,'4. Practices'!C:BE,55,0)","v":"TRUE"},{"$f":"VLOOKUP(B239,'4. Practices'!C:E,3,0)","v":"----"},false,false,{"$f":"IF(C239=\"EP\",VLOOKUP(B239,Scoring!U$4:V$48,2,0),IF(H239=\"Yes\",1,IF(H239=\"No\",0,IF(H239=\"Partially\",0.5,\"\"))))","v":""}]
[null,"6.A.1.2.6","Detail",true,"Maternity/paternity leave",{"$f":"VLOOKUP(B240,'4. Practices'!C:BE,55,0)","v":"TRUE"},{"$f":"VLOOKUP(B240,'4. Practices'!C:E,3,0)","v":"----"},false,false,{"$f":"IF(C240=\"EP\",VLOOKUP(B240,Scoring!U$4:V$48,2,0),IF(H240=\"Yes\",1,IF(H240=\"No\",0,IF(H240=\"Partially\",0.5,\"\"))))","v":""}]
[null,"6.A.1.3","Indicator",true,"The organization's non-discrimination policy towards employees covers all internationally recognized Protected Categories. \n[Note: Protected Categories are as follows: People over 40 years old; Sex; Race/ethnicity/national extraction/social origin /caste; Religion; Health status, including HIV status; Disability; Sexual orientation; Political affiliation/opinion; Civil/marital status; Participation in a trade union.] ",{"$f":"VLOOKUP(B241,'4. Practices'!C:BE,55,0)","v":"TRUE"},{"$f":"VLOOKUP(B241,'4. Practices'!C:E,3,0)","v":"----"},false,false,{"$f":"IF(C241=\"EP\",VLOOKUP(B241,Scoring!U$4:V$48,2,0),IF(H241=\"Yes\",1,IF(H241=\"No\",0,IF(H241=\"Partially\",0.5,\"\"))))","v":""}]
[null,"6.A.1.4","Indicator",true,"The organization analyzes employee data by gender and job position to check that men and women are equally represented at different levels of the organization.",{"$f":"VLOOKUP(B242,'4. Practices'!C:BE,55,0)","v":"TRUE"},{"$f":"VLOOKUP(B242,'4. Practices'!C:E,3,0)","v":"----"},false,false,{"$f":"IF(C242=\"EP\",VLOOKUP(B242,Scoring!U$4:V$48,2,0),IF(H242=\"Yes\",1,IF(H242=\"No\",0,IF(H242=\"Partially\",0.5,\"\"))))","v":""}]
[null,"6.A.1.5","Indicator",false,"The organization operates in accordance with national law and international standards on child labour and forced labor. ",{"$f":"VLOOKUP(B243,'4. Practices'!C:BE,55,0)","v":"TRUE"},{"$f":"VLOOKUP(B243,'4. Practices'!C:E,3,0)","v":0},false,false,{"$f":"IF(C243=\"EP\",VLOOKUP(B243,Scoring!U$4:V$48,2,0),IF(H243=\"Yes\",1,IF(H243=\"No\",0,IF(H243=\"Partially\",0.5,\"\"))))","v":""}]
[null,"6.A.1.5.1","Detail",true,"The organization does not employ workers under 14 years-old. ",{"$f":"VLOOKUP(B244,'4. Practices'!C:BE,55,0)","v":"TRUE"},{"$f":"VLOOKUP(B244,'4. Practices'!C:E,3,0)","v":"----"},false,false,{"$f":"IF(C244=\"EP\",VLOOKUP(B244,Scoring!U$4:V$48,2,0),IF(H244=\"Yes\",1,IF(H244=\"No\",0,IF(H244=\"Partially\",0.5,\"\"))))","v":""}]
[null,"6.A.1.5.2","Detail",true,"The organization encourages its farmers / suppliers to eliminate or mitigate informal / hidden child labour, through awareness-raising, communication with parents, support to schools in the community, etc.",{"$f":"VLOOKUP(B245,'4. Practices'!C:BE,55,0)","v":"TRUE"},{"$f":"VLOOKUP(B245,'4. Practices'!C:E,3,0)","v":"----"},false,false,{"$f":"IF(C245=\"EP\",VLOOKUP(B245,Scoring!U$4:V$48,2,0),IF(H245=\"Yes\",1,IF(H245=\"No\",0,IF(H245=\"Partially\",0.5,\"\"))))","v":""}]
[null,"6.A.1.5.3","Detail",true,"The organization implements actions to prevent forced labor (including with migrants, vulnerable workers), through communication, awareness-raising, trainings of farmers/workers/management on human rights, shared code of ethics, etc.",{"$f":"VLOOKUP(B246,'4. Practices'!C:BE,55,0)","v":"TRUE"},{"$f":"VLOOKUP(B246,'4. Practices'!C:E,3,0)","v":"----"},false,false,{"$f":"IF(C246=\"EP\",VLOOKUP(B246,Scoring!U$4:V$48,2,0),IF(H246=\"Yes\",1,IF(H246=\"No\",0,IF(H246=\"Partially\",0.5,\"\"))))","v":""}]
[null,"6.A.2","EP",false,"Employee compensation is equitable and adequate.",{"$f":"VLOOKUP(B247,'4. Practices'!C:BE,55,0)","v":"TRUE"},{"$f":"VLOOKUP(B247,'4. Practices'!C:E,3,0)","v":0},false,false,""]
[null,"6.A.2.1","Indicator",true,"The organization pays salaries based on market rates, and never below the sectoral minimum wage.",{"$f":"VLOOKUP(B248,'4. Practices'!C:BE,55,0)","v":"TRUE"},{"$f":"VLOOKUP(B248,'4. Practices'!C:E,3,0)","v":"----"},false,false,""]
[null,"6.A.2.2","Indicator",true,"All employees' base pay (before incentives) is at least a living wage.",{"$f":"VLOOKUP(B249,'4. Practices'!C:BE,55,0)","v":"TRUE"},{"$f":"VLOOKUP(B249,'4. Practices'!C:E,3,0)","v":"----"},false,false,""]
[null,"6.A.2.3","Indicator",true,"The organization analyzes salary data to check that men and women receive equal pay for equal work and have equal opportunities for pay increase/ promotion.",{"$f":"VLOOKUP(B250,'4. Practices'!C:BE,55,0)","v":"TRUE"},{"$f":"VLOOKUP(B250,'4. Practices'!C:E,3,0)","v":"----"},false,false,""]
[null,"6.A.3","EP",false,"The organization has a safety and health management system.",{"$f":"VLOOKUP(B251,'4. Practices'!C:BE,55,0)","v":"TRUE"},{"$f":"VLOOKUP(B251,'4. Practices'!C:E,3,0)","v":0},false,false,""]
[null,"6.A.3.1","Indicator",true,"The organization assesses the health and safety risks faced by its employees and audits its existing safety measures. Minimum frequency: annually",{"$f":"VLOOKUP(B252,'4. Practices'!C:BE,55,0)","v":"TRUE"},{"$f":"VLOOKUP(B252,'4. Practices'!C:E,3,0)","v":"----"},false,false,""]
[null,"6.A.3.2","Indicator",true,"The organization documents and reports to management all occupational accidents, injuries, and illnesses. The results are disaggregated by gender and by position. Minimum frequency: annually",{"$f":"VLOOKUP(B253,'4. Practices'!C:BE,55,0)","v":"TRUE"},{"$f":"VLOOKUP(B253,'4. Practices'!C:E,3,0)","v":"----"},false,false,""]
[null,"6.A.3.3","Indicator",false,"The organization takes necessary measures to mitigate hazards.",{"$f":"VLOOKUP(B254,'4. Practices'!C:BE,55,0)","v":"TRUE"},{"$f":"VLOOKUP(B254,'4. Practices'!C:E,3,0)","v":0},false,false,""]
[null,"6.A.3.3.1","Detail",true,"The organization does not employ children under the age of 18 in hazardous work, including manipulation of hazardous chemicals (fertilizers, pesticides).",{"$f":"VLOOKUP(B255,'4. Practices'!C:BE,55,0)","v":"TRUE"},{"$f":"VLOOKUP(B255,'4. Practices'!C:E,3,0)","v":"----"},false,false,""]
[null,"6.A.3.3.2","Detail",true,"The organization conducts trainings and provides adapted equipment and facilities for good safety practices.",{"$f":"VLOOKUP(B256,'4. Practices'!C:BE,55,0)","v":"TRUE"},{"$f":"VLOOKUP(B256,'4. Practices'!C:E,3,0)","v":"----"},false,false,""]
[null,"6.A.3.3.3","Detail",true,"The organization has an emergency/disaster response plan and trains management and employees on how to follow the plan. Minimum training frequency: annually",{"$f":"VLOOKUP(B257,'4. Practices'!C:BE,55,0)","v":"TRUE"},{"$f":"VLOOKUP(B257,'4. Practices'!C:E,3,0)","v":"----"},false,false,""]
[null,"6.A.3.3.4","Detail",true,"The organization compensates employees who miss work due to work-related injuries",{"$f":"VLOOKUP(B258,'4. Practices'!C:BE,55,0)","v":"TRUE"},{"$f":"VLOOKUP(B258,'4. Practices'!C:E,3,0)","v":"----"},false,false,""]
[null,"6.A.3.4","Indicator",true,"Where there is a high risk of significant safety issues related to supply chain workers, the organization will introduce procedures and mitigation measures to ensure that primary suppliers within the supply chain are taking steps to prevent or to correct life-threatening situations.",{"$f":"VLOOKUP(B259,'4. Practices'!C:BE,55,0)","v":"TRUE"},{"$f":"VLOOKUP(B259,'4. Practices'!C:E,3,0)","v":"----"},false,false,""]
[null,"6.B","Standard",false,"The organization's Human Resource Development system is designed to attract and maintain a qualified and motivated workforce.",{"$f":"VLOOKUP(B260,'4. Practices'!C:BE,55,0)","v":"TRUE"},{"$f":"VLOOKUP(B260,'4. Practices'!C:E,3,0)","v":0},false,false,""]
[null,"6.B.1","EP",false,"The organization fosters the employment of women, youth and local communities.",{"$f":"VLOOKUP(B261,'4. Practices'!C:BE,55,0)","v":"TRUE"},{"$f":"VLOOKUP(B261,'4. Practices'!C:E,3,0)","v":0},false,false,""]
[null,"6.B.1.1","Indicator",false,"When similar skills, profile and conditions are offered in relation to other candidates, the organization has preferential hiring policies for the following categories:",{"$f":"VLOOKUP(B262,'4. Practices'!C:BE,55,0)","v":"TRUE"},{"$f":"VLOOKUP(B262,'4. Practices'!C:E,3,0)","v":0},false,{"$f":"IF(AND(D262=TRUE,H262=TRUE,F262=\"TRUE\"),G262,FALSE)","v":false},""]
[null,"6.B.1.1.1","Detail",true,"Women",{"$f":"VLOOKUP(B263,'4. Practices'!C:BE,55,0)","v":"TRUE"},{"$f":"VLOOKUP(B263,'4. Practices'!C:E,3,0)","v":"----"},false,false,""]
[null,"6.B.1.1.2","Detail",true,"Youth (under 35)",{"$f":"VLOOKUP(B264,'4. Practices'!C:BE,55,0)","v":"TRUE"},{"$f":"VLOOKUP(B264,'4. Practices'!C:E,3,0)","v":"----"},false,false,""]
[null,"6.B.1.1.3","Detail",true,"Local communities",{"$f":"VLOOKUP(B265,'4. Practices'!C:BE,55,0)","v":"TRUE"},{"$f":"VLOOKUP(B265,'4. Practices'!C:E,3,0)","v":"----"},false,false,""]
[null,"6.B.1.2","Indicator",true,"The organization facilitates the integration of women, youth, indigenous and local employees by offering an adapted work environment (i.e. schedule, language, childcare facilities, etc.).",{"$f":"VLOOKUP(B266,'4. Practices'!C:BE,55,0)","v":"TRUE"},{"$f":"VLOOKUP(B266,'4. Practices'!C:E,3,0)","v":"----"},false,false,""]
[null,"6.B.2","EP",false,"The organization gives employees complete employment documentation and training to understand their job requirements.",{"$f":"VLOOKUP(B267,'4. Practices'!C:BE,55,0)","v":"TRUE"},{"$f":"VLOOKUP(B267,'4. Practices'!C:E,3,0)","v":0},false,false,""]
[null,"6.B.2.1","Indicator",false,"The organization communicates to employees their individual employment terms:",{"$f":"VLOOKUP(B268,'4. Practices'!C:BE,55,0)","v":"TRUE"},{"$f":"VLOOKUP(B268,'4. Practices'!C:E,3,0)","v":0},false,false,""]
[null,"6.B.2.1.1","Detail",true,"The organization provides written contracts or terms of employment to all employees.",{"$f":"VLOOKUP(B269,'4. Practices'!C:BE,55,0)","v":"TRUE"},{"$f":"VLOOKUP(B269,'4. Practices'!C:E,3,0)","v":"----"},false,false,""]
[null,"6.B.2.1.2","Detail",true,"Contracts or terms of employment specify the base salary and opportunities for any other type of compensation (overtime, incentive pay); the job description / scope of work; and the performance evaluation process.",{"$f":"VLOOKUP(B270,'4. Practices'!C:BE,55,0)","v":"TRUE"},{"$f":"VLOOKUP(B270,'4. Practices'!C:E,3,0)","v":"----"},false,false,""]
[null,"6.B.2.1.3","Detail",true,"Contracts or terms of employment use clear terms and are available in the major local languages. When employees are not literate, the organization makes provision for third-party verbal contract terms communications.",{"$f":"VLOOKUP(B271,'4. Practices'!C:BE,55,0)","v":"TRUE"},{"$f":"VLOOKUP(B271,'4. Practices'!C:E,3,0)","v":"----"},false,false,""]
[null,"6.B.2.1.4","Detail",true,"Contracts are available in the major local languages and are fully available prior to signature and upon request.",{"$f":"VLOOKUP(B272,'4. Practices'!C:BE,55,0)","v":"TRUE"},{"$f":"VLOOKUP(B272,'4. Practices'!C:E,3,0)","v":"----"},{"$f":"IF(COUNTIF($L$5:$L$8,G272)=1,TRUE,FALSE)","v":false},false,""]
[null,"6.B.2.2","Indicator",true,"All new employees receive an orientation and job-specific training.",{"$f":"VLOOKUP(B273,'4. Practices'!C:BE,55,0)","v":"TRUE"},{"$f":"VLOOKUP(B273,'4. Practices'!C:E,3,0)","v":"----"},false,false,""]
[null,"6.B.2.3","Indicator",true,"The organization makes professional development opportunities available to employees at every level.",{"$f":"VLOOKUP(B274,'4. Practices'!C:BE,55,0)","v":"TRUE"},{"$f":"VLOOKUP(B274,'4. Practices'!C:E,3,0)","v":"----"},false,false,""]
[null,"6.B.2.4","Indicator",true,"Men and women receive equal opportunities for training and skill development.",{"$f":"VLOOKUP(B275,'4. Practices'!C:BE,55,0)","v":"TRUE"},{"$f":"VLOOKUP(B275,'4. Practices'!C:E,3,0)","v":"----"},false,false,""]
[null,"6.B.3","EP",false,"The organization gives employees formal opportunities to communicate with management.",{"$f":"VLOOKUP(B276,'4. Practices'!C:BE,55,0)","v":"TRUE"},{"$f":"VLOOKUP(B276,'4. Practices'!C:E,3,0)","v":0},false,false,""]
[null,"6.B.3.1","Indicator",true,"The organization has a formal mechanism for consulting with employee representatives on HR decisions and policy development. The employee representatives have direct access to executive managers.",{"$f":"VLOOKUP(B277,'4. Practices'!C:BE,55,0)","v":"TRUE"},{"$f":"VLOOKUP(B277,'4. Practices'!C:E,3,0)","v":"----"},false,false,""]
[null,"6.B.3.2","Indicator",true,"The organization has a formal grievance mechanism that allows employees to raise workplace concerns in a confidential manner.",{"$f":"VLOOKUP(B278,'4. Practices'!C:BE,55,0)","v":"TRUE"},{"$f":"VLOOKUP(B278,'4. Practices'!C:E,3,0)","v":"----"},false,false,""]
[null,"6.B.3.3","Indicator",true,"The organization surveys employees on satisfaction and concerns with employment conditions. Minimum frequency: annually",{"$f":"VLOOKUP(B279,'4. Practices'!C:BE,55,0)","v":"TRUE"},{"$f":"VLOOKUP(B279,'4. Practices'!C:E,3,0)","v":"----"},{"$f":"IF(COUNTIF($L$5:$L$8,G279)=1,TRUE,FALSE)","v":false},false,""]
[null,"6.C","Standard",false,"The organization's Human Resource Development system supports its strategy on responsible business conduct.",{"$f":"VLOOKUP(B280,'4. Practices'!C:BE,55,0)","v":"TRUE"},{"$f":"VLOOKUP(B280,'4. Practices'!C:E,3,0)","v":0},false,false,""]
[null,"6.C.1","EP",false,"The organization trains all employees on responsible business conduct.",{"$f":"VLOOKUP(B281,'4. Practices'!C:BE,55,0)","v":"TRUE"},{"$f":"VLOOKUP(B281,'4. Practices'!C:E,3,0)","v":0},false,false,""]
[null,"6.C.1.1","Indicator",true,"The organization trains board members and senior management on their responsibilities regarding responsible business conduct.",{"$f":"VLOOKUP(B282,'4. Practices'!C:BE,55,0)","v":"TRUE"},{"$f":"VLOOKUP(B282,'4. Practices'!C:E,3,0)","v":"----"},false,false,""]
[null,"6.C.1.2","Indicator",false,"The organization trains employees on responsible business conduct, in line with their roles and responsibilities (minimum frequency: annually). The training covers at minimum the following topics:",{"$f":"VLOOKUP(B283,'4. Practices'!C:BE,55,0)","v":"TRUE"},{"$f":"VLOOKUP(B283,'4. Practices'!C:E,3,0)","v":0},false,false,""]
[null,"6.C.1.2.1","Detail",true,"Respect of human rights, labour rights, tenure rights and cultural heritage",{"$f":"VLOOKUP(B284,'4. Practices'!C:BE,55,0)","v":"TRUE"},{"$f":"VLOOKUP(B284,'4. Practices'!C:E,3,0)","v":"----"},false,false,""]
[null,"6.C.1.2.2","Detail",true,"Transparency, anti-corruption policies, and fair contractual practices",{"$f":"VLOOKUP(B285,'4. Practices'!C:BE,55,0)","v":"TRUE"},{"$f":"VLOOKUP(B285,'4. Practices'!C:E,3,0)","v":"----"},false,false,""]
[null,"6.C.1.2.3","Detail",true,"Prevention and mitigation of adverse social and environmental impacts",{"$f":"VLOOKUP(B286,'4. Practices'!C:BE,55,0)","v":"TRUE"},{"$f":"VLOOKUP(B286,'4. Practices'!C:E,3,0)","v":"----"},false,false,""]
[null,"7","Dimension",false,"Financial transparency and benefit-sharing",{"$f":"VLOOKUP(B287,'4. Practices'!C:BE,55,0)","v":"TRUE"},{"$f":"VLOOKUP(B287,'4. Practices'!C:E,3,0)","v":0},false,false,""]
[null,"7.A","Standard",false,"The organization has a transparent financial structure.",{"$f":"VLOOKUP(B288,'4. Practices'!C:BE,55,0)","v":"TRUE"},{"$f":"VLOOKUP(B288,'4. Practices'!C:E,3,0)","v":0},false,false,""]
[null,"7.A.1","EP",false,"The organization discloses financial information to its stakeholders.",{"$f":"VLOOKUP(B289,'4. Practices'!C:BE,55,0)","v":"TRUE"},{"$f":"VLOOKUP(B289,'4. Practices'!C:E,3,0)","v":0},false,false,""]
[null,"7.A.1.1","Indicator",true,"The organization publicly discloses its annual audited financial statements.",{"$f":"VLOOKUP(B290,'4. Practices'!C:BE,55,0)","v":"TRUE"},{"$f":"VLOOKUP(B290,'4. Practices'!C:E,3,0)","v":"----"},false,false,""]
[null,"7.A.1.2","Indicator",true,"The organization discloses the compensation of senior management to donors, raters, investors and other stakeholders upon request.",{"$f":"VLOOKUP(B291,'4. Practices'!C:BE,55,0)","v":"TRUE"},{"$f":"VLOOKUP(B291,'4. Practices'!C:E,3,0)","v":"----"},false,false,""]
[null,"7.A.2","EP",false,"The organization complies with its fiscal obligations.",{"$f":"VLOOKUP(B292,'4. Practices'!C:BE,55,0)","v":"TRUE"},{"$f":"VLOOKUP(B292,'4. Practices'!C:E,3,0)","v":0},false,false,""]
[null,"7.A.2.1","Indicator",true,"The organization pays all the local taxes that are applicable and due in all its countries of operation.",{"$f":"VLOOKUP(B293,'4. Practices'!C:BE,55,0)","v":"TRUE"},{"$f":"VLOOKUP(B293,'4. Practices'!C:E,3,0)","v":"----"},false,false,""]
[null,"7.B","Standard",false,"The organization uses profits responsibly.",{"$f":"VLOOKUP(B294,'4. Practices'!C:BE,55,0)","v":"TRUE"},{"$f":"VLOOKUP(B294,'4. Practices'!C:E,3,0)","v":0},false,false,""]
[null,"7.B.1","EP",false,"The organization engages with equity investors whose investment strategy is aligned with its strategy on responsible business conduct.",{"$f":"VLOOKUP(B295,'4. Practices'!C:BE,55,0)","v":"TRUE"},{"$f":"VLOOKUP(B295,'4. Practices'!C:E,3,0)","v":0},false,false,""]
[null,"7.B.1.1","Indicator",true,"The organization discusses commitment to responsible business conduct with potential equity investors and asks about their planned timeframe for investment and exit strategies to assess alignment on responsible business conduct strategy.",{"$f":"VLOOKUP(B296,'4. Practices'!C:BE,55,0)","v":"TRUE"},{"$f":"VLOOKUP(B296,'4. Practices'!C:E,3,0)","v":"----"},false,false,""]
[null,"7.B.1.2","Indicator",true,"The board of directors prioritizes investment offers from equity investors whose investment strategy is aligned with the organization's strategy on responsible business conduct.",{"$f":"VLOOKUP(B297,'4. Practices'!C:BE,55,0)","v":"TRUE"},{"$f":"VLOOKUP(B297,'4. Practices'!C:E,3,0)","v":"----"},false,false,""]
[null,"7.B.1.3","Indicator",false,"The shareholder agreement includes the following:",{"$f":"VLOOKUP(B298,'4. Practices'!C:BE,55,0)","v":"TRUE"},{"$f":"VLOOKUP(B298,'4. Practices'!C:E,3,0)","v":0},false,false,""]
[null,"7.B.1.3.1","Detail",true,"Commitment to responsible business conduct",{"$f":"VLOOKUP(B299,'4. Practices'!C:BE,55,0)","v":"TRUE"},{"$f":"VLOOKUP(B299,'4. Practices'!C:E,3,0)","v":"----"},false,false,""]
[null,"7.B.1.3.2","Detail",true,"Expected level and use of profits",{"$f":"VLOOKUP(B300,'4. Practices'!C:BE,55,0)","v":"TRUE"},{"$f":"VLOOKUP(B300,'4. Practices'!C:E,3,0)","v":"----"},false,false,""]
[null,"7.B.1.3.3","Detail",true,"Expected investment timeline / exit strategy",{"$f":"VLOOKUP(B301,'4. Practices'!C:BE,55,0)","v":"TRUE"},{"$f":"VLOOKUP(B301,'4. Practices'!C:E,3,0)","v":"----"},false,false,""]
[null,"7.B.2","EP",false,"The organization uses its profits for expenditures that benefit responsible business conduct, local communities and local ecosystems.",{"$f":"VLOOKUP(B302,'4. Practices'!C:BE,55,0)","v":"TRUE"},{"$f":"VLOOKUP(B302,'4. Practices'!C:E,3,0)","v":0},false,false,""]
[null,"7.B.2.1","Indicator",true,"The organization has a policy that specifies when dividends may be paid and in what amount, in alignment with its strategy on responsible business conduct.",{"$f":"VLOOKUP(B303,'4. Practices'!C:BE,55,0)","v":"TRUE"},{"$f":"VLOOKUP(B303,'4. Practices'!C:E,3,0)","v":"----"},false,false,""]
[null,"7.B.2.2","Indicator",true,"The organization uses its profits for investing in strengthening its responsible business conduct practices.",{"$f":"VLOOKUP(B304,'4. Practices'!C:BE,55,0)","v":"TRUE"},{"$f":"VLOOKUP(B304,'4. Practices'!C:E,3,0)","v":"----"},false,false,""]
[null,"7.B.2.3","Indicator",true,"The organization uses its profits for local community investment, such as: providing support in case of an emergency (e.g. natural disaster, epidemic, conflict, etc.), developing access to basic services (e.g. water and sanitation, day-care, health, etc.), or supporting community-level initiatives.",{"$f":"VLOOKUP(B305,'4. Practices'!C:BE,55,0)","v":"TRUE"},{"$f":"VLOOKUP(B305,'4. Practices'!C:E,3,0)","v":"----"},false,false,""]
[null,"7.B.2.4","Indicator",true,"The organization uses its profits for investing in local ecosystem regeneration, such as: reforestation / tree planting, rehabilitation of degraded land / depollution, preservation or creation of habitats for biodiversity, conservation and sharing of local biodiversity genetic resources.",{"$f":"VLOOKUP(B306,'4. Practices'!C:BE,55,0)","v":"TRUE"},{"$f":"VLOOKUP(B306,'4. Practices'!C:E,3,0)","v":"----"},false,false,""]

{"sheet":"6. RAI_dashboard","index":7,"n_rows":66,"n_cols":21,"rows_kept":66,"cut":false,"hidden":false,"merged":[[15,0,17,0],[3,3,3,6],[49,2,49,8],[5,2,5,3],[13,2,13,7],[8,2,8,8],[9,2,12,8],[26,4,26,7],[27,4,27,7],[37,4,38,4],[39,4,40,4],[37,2,38,3],[39,2,40,3],[26,2,26,3],[27,2,27,3]]}
[null,null,null,null,null,null,null,null,null,null,null,null,null,null,"ANSWER"]
[]
[null,null,null,null,null,null,null,null,null,null,null,null,null,null,"ID-1","As of date:",{"$f":"VLOOKUP(O3,data_org,3,0)","v":"YY/MM/YYYY"}]
["WELCOME PAGE",null,null,"RAI TOOL DASHBOARD",null,null,null,null,null,null,null,null,null,null,"ID-3","Name",{"$f":"VLOOKUP(O4,data_org,3,0)","v":false}]
["ID-CARD",null,{"$f":"IF(Q4=FALSE,P4,Q4)&\" (\"&IF(Q5=FALSE,\"\",Q5)&\")\"","v":"Name ()"},null,null,null,{"$f":"IFERROR(IF(ISBLANK(INDEX(data_org,MATCH(#REF!,label_data_org,0),3)),\"\",UPPER(INDEX(data_org,MATCH(#REF!,label_data_org,0),3))),\"\")","v":""},{"$f":"P3","v":"As of date:"},{"$f":"IF(Q3=FALSE,P3,Q3)","v":"YY/MM/YYYY"},null,null,null,null,null,"ID-4","Acronym",{"$f":"VLOOKUP(O5,data_org,3,0)","v":false}]
["PRACTICES",null,{"$f":"IF(Q6=FALSE,P6,Q6)","v":"Primary country of operation"},null,null,null,null,null,null,null,null,null,null,null,"ID-7","Primary country of operation",{"$f":"VLOOKUP(O6,data_org,3,0)","v":false}]
["OUTCOMES",null,{"$f":"IF(Q13=FALSE,P13,Q13)","v":"Legal status / type of ownership"}]
["STANDARDS OUTPUT",null,"Year of establishment:",{"$f":"IF(Q12=FALSE,P12,Q12)","v":"Year of creation"},null,null,null,{"$f":"IF(I8=\"\",\"\",\"Date of Due Diligence:\")","v":""},"",null,null,null,null,null,"ID-8","Additional country(s) of operation",{"$f":"VLOOKUP(O8,data_org,3,0)","v":false}]
[null,null,"Nature of business, main focus, mission statement"]
[null,null,{"$f":"IF(Q14=FALSE,IF(Q11=FALSE,P11,Q11),Q14)","v":"Nature of business, main focus, mission statement"}]
[null,null,null,null,null,null,null,null,null,null,null,null,null,null,"ID-12","Nature of business, main focus, mission statement",{"$f":"VLOOKUP(O11,data_org,3,0)","v":false}]
[null,null,null,null,null,null,null,null,null,null,null,null,null,null,"ID-5","Year of creation",false]
[null,null,null,null,null,null,null,null,null,null,null,null,null,null,"ID-11","Legal status / type of ownership",false]
[null,null,"RAI SCORES",null,null,null,null,null,{"$f":"IF(Q38=FALSE,\"\",Q38)","v":0},null,null,null,null,null,"ID-13","Nature of business, main focus, mission statement",false,null,"Gender",null,"%"]
[null,null,null,null,null,null,null,null,null,null,null,null,null,null,"O-01","Permanent employees (#)",false,null,"Permanent employees",{"$f":"Q15","v":false}]
[null,null,null,null,null,null,null,null,null,null,null,null,null,null,"O-02","> Permanent employees: Female (#)",false,null,"Male",{"$f":"T15-T17","v":0},{"$f":"IFERROR(T16/T15,\"\")","v":""}]
[null,null,null,null,null,null,null,null,null,null,null,null,null,null,"O-03","> Permanent employees: Below 35 year (young) (#)",false,null,"Female",{"$f":"Q16","v":false},{"$f":"IFERROR(T17/T15,\"\")","v":""}]
[null,null,null,null,null,null,null,null,null,null,null,null,null,null,"O-04","> Permanent employees: From the local communities (#)",false,null,"Temporary",{"$f":"Q19","v":false}]
[null,null,null,null,null,null,null,null,null,null,null,null,null,null,"O-05","Temporary Employees (#)",false,null,"Male",{"$f":"T18-T20","v":0},{"$f":"IFERROR(T19/T18,\"\")","v":""}]
[null,null,null,null,null,null,null,null,null,null,null,null,null,null,"O-06","> Temporary Employees: Female (#)",false,null,"Female",{"$f":"Q20","v":false},{"$f":"IFERROR(T20/T18,\"\")","v":""}]
[null,null,null,null,null,null,null,null,null,null,null,null,null,null,"O-07","Number of people in senior management (total) (#)",false,null,"Management",{"$f":"Q21","v":false}]
[null,null,null,null,null,null,null,null,null,null,null,null,null,null,"O-08","> Number of women in senior management (#)",false,null,"Male",{"$f":"T21-T23","v":0},{"$f":"IFERROR(T22/T21,\"\")","v":""}]
[null,null,null,null,null,null,null,null,null,null,null,null,null,null,"O-09","Number of total members on the organisation's Board of Directors or other governing body (#)",false,null,"Female",{"$f":"Q22","v":false},{"$f":"IFERROR(T23/T21,\"\")","v":""}]
[null,null,null,null,null,null,null,null,null,null,null,null,null,null,"O-10","> Number of female members of the organisation's Board of Directors or other governing body (#)",false,null,"Board members",{"$f":"Q23","v":false}]
[null,null,null,null,null,null,null,null,null,null,null,null,null,null,"O-17","Number of farmers reached (#)",false,null,"Male",{"$f":"T24-T26","v":0},{"$f":"IFERROR(T25/T24,\"\")","v":""}]
[null,null,null,null,null,null,null,null,null,null,null,null,null,null,null,null,null,null,"Female",{"$f":"Q24","v":false},{"$f":"IFERROR(T26/T24,\"\")","v":""}]
[null,null,"Best scoring Standard:",null,{"$f":"P56","v":"The organisation has a strategy on responsible business conduct and systems in place to implement it"},null,null,null,{"$f":"IFERROR(Q56,\"\")","v":0}]
[null,null,"Lowest scoring Standard:",null,{"$f":"P57","v":"The organisation has a strategy on responsible business conduct and systems in place to implement it"},null,null,null,{"$f":"IFERROR(Q57,\"\")","v":0},null,null,null,null,null,"O-29","Payments to smallholder farmers (USD)",{"$f":"VLOOKUP(O28,data_org,3,0)","v":false}]
[null,null,null,null,null,null,null,null,null,null,null,null,null,null,"O-31","Sales - Volume (specify units - kg, quintales, etc.)",{"$f":"VLOOKUP(O29,data_org,3,0)","v":false}]
[null,null,"BOARD AND STAFF COMPOSITION",null,null,null,null,null,null,null,null,null,null,null,"O-32","Sales - Value (USD)",{"$f":"VLOOKUP(O30,data_org,3,0)","v":false}]
[null,null,null,null,null,null,null,null,null,null,null,null,null,null,"1",null,{"$f":"Scoring!R4","v":0}]
[null,null,"Permanent employees ",null,{"$f":"IF(Q15=FALSE,\"\",Q15)","v":""},null,null,null,null,null,null,null,null,null,"2",null,{"$f":"Scoring!R5","v":0}]
[null,null,"> Permanent employees: Female ",null,{"$f":"IF(Q16=FALSE,\"\",Q16)","v":""},null,null,null,null,null,null,null,null,null,"3",null,{"$f":"Scoring!R6","v":0}]
[null,null,"Temporary Employees ",null,{"$f":"IF(Q19=FALSE,\"\",Q19)","v":""},null,null,null,null,null,null,null,null,null,"4",null,{"$f":"Scoring!R7","v":0}]
[null,null,"> Temporary Employees: Female ",null,{"$f":"IF(Q20=FALSE,\"\",Q20)","v":""},null,null,null,null,null,null,null,null,null,"5",null,{"$f":"Scoring!R8","v":0}]
[null,null,"Number of people in senior management (total) ",null,{"$f":"IF(Q21=FALSE,\"\",Q21)","v":""},null,null,null,null,null,null,null,null,null,"6",null,{"$f":"Scoring!R9","v":0}]
[null,null,"> Number of women in senior management ",null,{"$f":"IF(Q22=FALSE,\"\",Q22)","v":""},null,null,null,null,null,null,null,null,null,"7",null,{"$f":"Scoring!R10","v":0}]
[null,null,"Number of total members on the organisation's Board of Directors or other governing body ",null,{"$f":"IF(Q23=FALSE,\"\",Q23)","v":""},null,null,null,null,null,null,null,null,null,"total",null,{"$f":"IFERROR(AVERAGE(Q31:Q37),FALSE)","v":0}]
[null,null,null,null,null,null,null,null,null,null,null,null,null,null,"1.A","The organisation has a strategy on responsible business conduct and systems in place to implement it",{"$f":"Scoring!T4","v":0}]
[null,null,"> Number of female members of the organisation's Board of Directors or other governing body ",null,{"$f":"IF(Q24=FALSE,\"\",Q24)","v":""},null,null,null,null,null,null,null,null,null,"1.B","The organisation assesses and manages its impacts.",{"$f":"Scoring!T5","v":0}]
[null,null,null,null,null,null,null,null,null,null,null,null,null,null,"2.A","The organisation communicates in a transparent way.",{"$f":"Scoring!T6","v":0}]
[null,null,"NUMBER OF FARMERS AND SALES",null,null,null,null,null,null,null,null,null,null,null,"2.B","The organisation consults its stakeholders to inform decision-making.",{"$f":"Scoring!T7","v":0}]
[null,null,null,null,null,null,null,null,null,null,null,null,null,null,"2.C","The organisation receives and resolves stakeholders' grievances.",{"$f":"Scoring!T8","v":0}]
[null,null,"Number of farmers reached (#)",null,{"$f":"IF(Q25=FALSE,\"\",Q25)","v":""},null,null,null,null,null,null,null,null,null,"3.A","The organisation contributes to food security and nutrition",{"$f":"Scoring!T9","v":0}]
[null,null,"Payments to farmers (USD)",null,{"$f":"IF(Q28=FALSE,\"\",Q28)","v":""},null,null,null,null,null,null,null,null,null,"3.B","The organisation promotes safe and healthy agricultural and food systems",{"$f":"Scoring!T10","v":0}]
[null,null,"Sales - Volume (specify units - mt)",null,{"$f":"IF(Q29=FALSE,\"\",Q29)","v":""},null,null,null,null,null,null,null,null,null,"4.A","The organisation identifies and manages its environmental risks.",{"$f":"Scoring!T11","v":0}]
[null,null,"Sales - Value (USD)",null,{"$f":"IF(Q30=FALSE,\"\",Q30)","v":""},null,null,null,null,null,null,null,null,null,"4.B","The organisation implements or promotes sustainable practices",{"$f":"Scoring!T12","v":0}]
[null,null,null,null,null,null,null,null,null,null,null,null,null,null,"5.A","The organisation respects legitimate tenure rights on land, fisheries, forests and water.",{"$f":"Scoring!T13","v":0}]
[null,null,null,null,null,null,null,null,null,null,null,null,null,null,"5.B","The organisation respects cultural heritage and traditional knowledge.",{"$f":"Scoring!T14","v":0}]
[null,null,"COMMENTS",null,null,null,null,null,null,null,null,null,null,null,"5.C","The organisation promotes responsible and fair contracting practices with its stakeholders.",{"$f":"Scoring!T15","v":0}]
[null,null,null,null,null,null,null,null,null,null,null,null,null,null,"6.A","The organisation creates a safe and equitable work environment.",{"$f":"Scoring!T16","v":0}]
[null,null,null,null,null,null,null,null,null,null,null,null,null,null,"6.B","The Human Resource Development system is designed to attract and maintain a qualified and motivated workforce.",{"$f":"Scoring!T17","v":0}]
[null,null,null,null,null,null,null,null,null,null,null,null,null,null,"6.C","The organisation's Human Resource Development system supports its strategy on responsible agriculture.",{"$f":"Scoring!T18","v":0}]
[null,null,null,null,null,null,null,null,null,null,null,null,null,null,"7.A","The organisation has a transparent financial structure.",{"$f":"Scoring!T19","v":0}]
[null,null,null,null,null,null,null,null,null,null,null,null,null,null,"7.B","The organisation uses profits responsibly.",{"$f":"Scoring!T20","v":0}]
[null,null,null,null,null,null,null,null,null,null,null,null,null,null,"1 top",{"$f":"IFERROR(_xlfn.XLOOKUP(Q56,Q39:Q55,P39:P55,0,0),\"\")","v":"The organisation has a strategy on responsible business conduct and systems in place to implement it"},{"$f":"MAX(Q39:Q55)","v":0}]
[null,null,null,null,null,null,null,null,null,null,null,null,null,null,"1low",{"$f":"IFERROR(_xlfn.XLOOKUP(Q57,Q39:Q55,P39:P55,0,0),\"\")","v":"The organisation has a strategy on responsible business conduct and systems in place to implement it"},{"$f":"MIN(Q39:Q55)","v":0}]
[]
[null,null,null,null,null,null,null,null,null,null,null,null,null,null,"Dimension"]
[null,null,null,null,null,null,null,null,null,null,null,null,null,null,"1 - Strategy and accountability on responsible agriculture"]
[null,null,null,null,null,null,null,null,null,null,null,null,null,null,"2 - Inclusive and transparent structure"]
[null,null,null,null,null,null,null,null,null,null,null,null,null,null,"3 - Responsible processes, products and services"]
[null,null,null,null,null,null,null,null,null,null,null,null,null,null,"4 - Environmentally sustainable processes, products and services"]
[null,null,null,null,null,null,null,null,null,null,null,null,null,null,"5 - Responsible treatment of stakeholders"]
[null,null,null,null,null,null,null,null,null,null,null,null,null,null,"6 - Responsible Human Resource Development"]
[null,null,null,null,null,null,null,null,null,null,null,null,null,null,"7 - Financial transparency and benefit-sharing"]

{"sheet":"7. RAI_Scores","index":8,"n_rows":27,"n_cols":18,"rows_kept":27,"cut":false,"hidden":false,"merged":[[1,1,1,10],[1,11,1,13]]}
[]
["WELCOME PAGE","RAI Scores by Dimensions and Standards",null,null,null,null,null,null,null,null,null,"RAI DASHBOARD"]
[]
[null,null,null,null,null,null,null,null,null,null,null,null,null,null,null,null,null,"1 - Strategy and accountability on responsible agriculture"]
[null,null,null,null,null,null,null,null,null,null,null,null,null,null,null,null,null,"2 - Inclusive and transparent structure"]
[null,null,null,null,null,null,null,null,null,null,null,null,null,null,null,null,null,"3- Safe and responsible agriculture and food systems and operations"]
[null,null,null,null,null,null,null,null,null,null,null,null,null,null,null,null,null,"4 - Environmentally sustainable processes and products"]
[null,null,null,null,null,null,null,null,null,null,null,null,null,null,null,null,null,"5 - Responsible treatment of stakeholders"]
[null,null,null,null,null,null,null,null,null,null,null,null,null,null,null,null,null,"6 - Responsible Human Resource Development"]
[null,null,null,null,null,null,null,null,null,null,null,null,null,null,null,null,null,"7 - Financial transparency and benefit-sharing"]
[null,null,null,null,null,null,null,null,null,null,null,null,null,null,null,null,null,"1.A - The organisation has a strategy on responsible business conduct and systems in place to implement it"]
[null,null,null,null,null,null,null,null,null,null,null,null,null,null,null,null,null,"1.B - The organisation assesses and manages its impacts."]
[null,null,null,null,null,null,null,null,null,null,null,null,null,null,null,null,null,"2.A - The organisation communicates in a transparent way."]
[null,null,null,null,null,null,null,null,null,null,null,null,null,null,null,null,null,"2.B - The organisation consults its stakeholders to inform decision-making."]
[null,null,null,null,null,null,null,null,null,null,null,null,null,null,null,null,null,"2.C - The organisation receives and resolves stakeholders' grievances."]
[null,null,null,null,null,null,null,null,null,null,null,null,null,null,null,null,null,"3.A - The organisation contributes to food security and nutrition"]
[null,null,null,null,null,null,null,null,null,null,null,null,null,null,null,null,null,"3.B - The organisation promotes safe and healthy agricultural and food systems"]
[null,null,null,null,null,null,null,null,null,null,null,null,null,null,null,null,null,"4.A - The organisation identifies and manages its environmental risks."]
[null,null,null,null,null,null,null,null,null,null,null,null,null,null,null,null,null,"4.B - The organisation implements or promotes sustainable practices"]
[null,null,null,null,null,null,null,null,null,null,null,null,null,null,null,null,null,"5.A - The organisation respects legitimate tenure rights on land, fisheries, forests and water."]
[null,null,null,null,null,null,null,null,null,null,null,null,null,null,null,null,null,"5.B - The organisation respects cultural heritage and traditional knowledge."]
[null,null,null,null,null,null,null,null,null,null,null,null,null,null,null,null,null,"5.C - The organisation promotes responsible and fair contracting practices with its stakeholders."]
[null,null,null,null,null,null,null,null,null,null,null,null,null,null,null,null,null,"6.A - The organisation creates a safe and equitable work environment."]
[null,null,null,null,null,null,null,null,null,null,null,null,null,null,null,null,null,"6.B - The Human Resource Development system is designed to attract and maintain a qualified and motivated workforce."]
[null,null,null,null,null,null,null,null,null,null,null,null,null,null,null,null,null,"6.C - The organisation's Human Resource Development system supports its strategy on responsible agriculture."]
[null,null,null,null,null,null,null,null,null,null,null,null,null,null,null,null,null,"7.A - The organisation has a transparent financial structure."]
[null,null,null,null,null,null,null,null,null,null,null,null,null,null,null,null,null,"7.B - The organisation uses profits responsibly."]

{"sheet":"8. Scoring explanations","index":9,"n_rows":22,"n_cols":5,"rows_kept":22,"cut":false,"hidden":false,"merged":[[1,1,2,13]]}
[]
[null,"Explanations on the scoping and scoring:"]
[]
[]
[null,"SCOPING"]
[null,"By default, all indicators remain visible."]
[null,"On the \"Scoping\" sheet, filters will be applied for each scoping question to which an answer is provided. Non-relevant indicators will then be hidden on the Practices form."]
[null,"To avoid filling in non-relevant indicators, the best use of the function of the tool is  to FIRST APPLY THE FILTERS, and then fill in the Practices and Outcomes sections."]
[]
[null,"SCORING"]
[null,"For indicators of the Practices sheet, the scoring is computed as follows:"]
[null,"----","Not counted (no answer)",null,"=> This means that to get an accurate overview of the agribusiness' performance, ALL relevant indicators should be answered."]
[null,"Yes","= 1"]
[null,"Partially","= 0.5"]
[null,"No","= 0"]
[null,"N/A","Not counted "]
[]
[null,"Global scores are computed as follows:"]
[null,"- Essential Practices = average of scored elements (this EP score is only provided for information)"]
[null,"- Standards = average of scored elements (indicators or details)"]
[null,"- Dimensions = average of Standards"]
[null,"- Global score = average of Dimensions"]

{"sheet":"codes","index":10,"n_rows":298,"n_cols":6,"rows_kept":298,"cut":false,"hidden":true,"merged":[]}
["Dimension",1,"Label_code","nb car","Level","Answer"]
["Standard",3,{"$f":"'4. Practices'!C6:C302","v":"1"},{"$f":"LEN(C2)","v":1},{"$f":"_xlfn.XLOOKUP(D2,$B$1:$B$6,$A$1:$A$6)","v":"Dimension"},false]
["EP",5,"1.A",{"$f":"LEN(C3)","v":3},{"$f":"_xlfn.XLOOKUP(D3,$B$1:$B$6,$A$1:$A$6)","v":"Standard"},false]
["Indicator",7,"1.A.1",5,"EP",false]
["Detail",9,"1.A.1.1",7,"Indicator",true]
["Detail",10,"1.A.1.2",7,"Indicator",false]
[null,null,"1.A.1.2.1",9,"Detail",true]
[null,null,"1.A.1.2.2",9,"Detail",true]
[null,null,"1.A.1.2.3",9,"Detail",true]
[null,null,"1.A.1.3",7,"Indicator",true]
[null,null,"1.A.2",5,"EP",false]
[null,null,"1.A.2.1",7,"Indicator",false]
[null,null,"1.A.2.1.1",9,"Detail",true]
[null,null,"1.A.2.1.2",9,"Detail",true]
[null,null,"1.A.2.1.3",9,"Detail",true]
[null,null,"1.A.2.2",7,"Indicator",false]
[null,null,"1.A.2.2.1",9,"Detail",true]
[null,null,"1.A.2.2.2",9,"Detail",true]
[null,null,"1.A.2.2.3",9,"Detail",true]
[null,null,"1.A.2.3",7,"Indicator",false]
[null,null,"1.A.2.3.1",9,"Detail",true]
[null,null,"1.A.2.3.2",9,"Detail",true]
[null,null,"1.A.2.3.3",9,"Detail",true]
[null,null,"1.A.2.3.4",9,"Detail",true]
[null,null,"1.A.2.3.5",9,"Detail",true]
[null,null,"1.B",3,"Standard",false]
[null,null,"1.B.1",5,"EP",false]
[null,null,"1.B.1.1",7,"Indicator",false]
[null,null,"1.B.1.1.1",9,"Detail",true]
[null,null,"1.B.1.1.2",9,"Detail",true]
[null,null,"1.B.1.1.3",9,"Detail",true]
[null,null,"1.B.1.2",7,"Indicator",false]
[null,null,"1.B.1.2.1",9,"Detail",true]
[null,null,"1.B.1.2.2",9,"Detail",true]
[null,null,"1.B.1.2.3",9,"Detail",true]
[null,null,"1.B.1.2.4",9,"Detail",true]
[null,null,"1.B.1.2.5",9,"Detail",true]
[null,null,"1.B.2",5,"EP",false]
[null,null,"1.B.2.1",7,"Indicator",true]
[null,null,"1.B.2.2",7,"Indicator",true]
[null,null,"2",1,"Dimension",false]
[null,null,"2.A",3,"Standard",false]
[null,null,"2.A.1",5,"EP",false]
[null,null,"2.A.1.1",7,"Indicator",false]
[null,null,"2.A.1.1.1",9,"Detail",true]
[null,null,"2.A.1.1.2",9,"Detail",true]
[null,null,"2.A.1.1.3",9,"Detail",true]
[null,null,"2.A.1.2",7,"Indicator",false]
[null,null,"2.A.1.2.1",9,"Detail",true]
[null,null,"2.A.1.2.2",9,"Detail",true]
[null,null,"2.B",3,"Standard",false]
[null,null,"2.B.1",5,"EP",false]
[null,null,"2.B.1.1",7,"Indicator",true]
[null,null,"2.B.1.2",7,"Indicator",true]
[null,null,"2.B.1.3",7,"Indicator",true]
[null,null,"2.B.2",5,"EP",false]
[null,null,"2.B.2.1",7,"Indicator",true]
[null,null,"2.B.2.2",7,"Indicator",true]
[null,null,"2.B.3",5,"EP",false]
[null,null,"2.B.3.1",7,"Indicator",true]
[null,null,"2.B.3.2",7,"Indicator",true]
[null,null,"2.C",3,"Standard",false]
[null,null,"2.C.1",5,"EP",false]
[null,null,"2.C.1.1",7,"Indicator",false]
[null,null,"2.C.1.1.1",9,"Detail",true]
[null,null,"2.C.1.1.2",9,"Detail",true]
[null,null,"2.C.1.1.3",{"$f":"LEN(C67)","v":9},{"$f":"_xlfn.XLOOKUP(D67,$B$1:$B$6,$A$1:$A$6)","v":"Detail"},true]
[null,null,"2.C.1.1.4",9,"Detail",true]
[null,null,"2.C.1.2",7,"Indicator",true]
[null,null,"2.C.2",5,"EP",false]
[null,null,"2.C.2.1",7,"Indicator",true]
[null,null,"2.C.2.2",7,"Indicator",true]
[null,null,"2.C.2.3",7,"Indicator",true]
[null,null,"3",1,"Dimension",false]
[null,null,"3.A",3,"Standard",false]
[null,null,"3.A.1",5,"EP",false]
[null,null,"3.A.1.1",7,"Indicator",true]
[null,null,"3.A.1.2",7,"Indicator",false]
[null,null,"3.A.1.2.1",9,"Detail",true]
[null,null,"3.A.1.2.2",9,"Detail",true]
[null,null,"3.A.1.2.3",9,"Detail",true]
[null,null,"3.A.1.3",7,"Indicator",true]
[null,null,"3.A.2",5,"EP",false]
[null,null,"3.A.2.1",7,"Indicator",true]
[null,null,"3.A.2.2",7,"Indicator",false]
[null,null,"3.A.2.2.1",9,"Detail",true]
[null,null,"3.A.2.2.2",9,"Detail",true]
[null,null,"3.A.2.2.3",9,"Detail",true]
[null,null,"3.A.2.3",7,"Indicator",true]
[null,null,"3.A.2.4",7,"Indicator",true]
[null,null,"3.A.3",5,"EP",false]
[null,null,"3.A.3.1",7,"Indicator",true]
[null,null,"3.A.3.2",7,"Indicator",false]
[null,null,"3.A.3.2.1",9,"Detail",true]
[null,null,"3.A.3.2.2",9,"Detail",true]
[null,null,"3.A.3.2.3",9,"Detail",true]
[null,null,"3.A.3.2.4",9,"Detail",true]
[null,null,"3.A.3.2.5",9,"Detail",true]
[null,null,"3.A.3.2.6",9,"Detail",true]
[null,null,"3.A.3.2.7",9,"Detail",true]
[null,null,"3.A.3.3",7,"Indicator",false]
[null,null,"3.A.3.3.1",9,"Detail",true]
[null,null,"3.A.3.3.2",9,"Detail",true]
[null,null,"3.A.3.3.3",9,"Detail",true]
[null,null,"3.A.3.3.4",9,"Detail",true]
[null,null,"3.A.3.4",7,"Indicator",false]
[null,null,"3.A.3.4.1",9,"Detail",true]
[null,null,"3.A.3.4.2",9,"Detail",true]
[null,null,"3.B",3,"Standard",false]
[null,null,"3.B.1",5,"EP",false]
[null,null,"3.B.1.1",7,"Indicator",false]
[null,null,"3.B.1.1.1",9,"Detail",true]
[null,null,"3.B.1.1.2",9,"Detail",true]
[null,null,"3.B.1.2",7,"Indicator",true]
[null,null,"3.B.2",5,"EP",false]
[null,null,"3.B.2.1",7,"Indicator",true]
[null,null,"3.B.2.2",7,"Indicator",false]
[null,null,"3.B.2.2.1",9,"Detail",true]
[null,null,"3.B.2.2.2",9,"Detail",true]
[null,null,"3.B.2.2.3",9,"Detail",true]
[null,null,"3.B.2.2.4",9,"Detail",true]
[null,null,"3.B.2.2.5",9,"Detail",true]
[null,null,"4",1,"Dimension",false]
[null,null,"4.A",3,"Standard",false]
[null,null,"4.A.1",5,"EP",false]
[null,null,"4.A.1.1",7,"Indicator",true]
[null,null,"4.A.1.2",7,"Indicator",true]
[null,null,"4.A.1.3",7,"Indicator",true]
[null,null,"4.A.2",5,"EP",false]
[null,null,"4.A.2.1",7,"Indicator",false]
[null,null,"4.A.2.1.1",{"$f":"LEN(C131)","v":9},{"$f":"_xlfn.XLOOKUP(D131,$B$1:$B$6,$A$1:$A$6)","v":"Detail"},true]
[null,null,"4.A.2.1.2",9,"Detail",true]
[null,null,"4.A.2.1.3",9,"Detail",true]
[null,null,"4.A.2.2",7,"Indicator",true]
[null,null,"4.A.2.3",7,"Indicator",false]
[null,null,"4.A.2.3.1",9,"Detail",true]
[null,null,"4.A.2.3.2",9,"Detail",true]
[null,null,"4.A.2.3.3",9,"Detail",true]
[null,null,"4.A.2.3.4",9,"Detail",true]
[null,null,"4.A.2.3.5",9,"Detail",true]
[null,null,"4.A.2.3.6",9,"Detail",true]
[null,null,"4.A.2.3.7",9,"Detail",true]
[null,null,"4.A.2.3.8",9,"Detail",true]
[null,null,"4.A.2.3.9",9,"Detail",true]
[null,null,"4.A.2.4",7,"Indicator",false]
[null,null,"4.A.2.4.1",9,"Detail",true]
[null,null,"4.A.2.4.2",9,"Detail",true]
[null,null,"4.A.2.4.3",9,"Detail",true]
[null,null,"4.B",3,"Standard",false]
[null,null,"4.B.1",5,"EP",false]
[null,null,"4.B.1.1",7,"Indicator",true]
[null,null,"4.B.1.2",7,"Indicator",false]
[null,null,"4.B.1.2.1",9,"Detail",true]
[null,null,"4.B.1.2.2",9,"Detail",true]
[null,null,"4.B.1.2.3",9,"Detail",true]
[null,null,"4.B.1.3",7,"Indicator",false]
[null,null,"4.B.1.3.1",9,"Detail",true]
[null,null,"4.B.1.3.2",9,"Detail",true]
[null,null,"4.B.1.3.3",9,"Detail",true]
[null,null,"4.B.1.3.4",9,"Detail",true]
[null,null,"4.B.1.4",7,"Indicator",true]
[null,null,"4.B.2",5,"EP",false]
[null,null,"4.B.2.1",7,"Indicator",false]
[null,null,"4.B.2.1.1",9,"Detail",true]
[null,null,"4.B.2.1.2",9,"Detail",true]
[null,null,"4.B.2.2",7,"Indicator",false]
[null,null,"4.B.2.2.1",9,"Detail",true]
[null,null,"4.B.2.2.2",9,"Detail",true]
[null,null,"4.B.2.2.3",9,"Detail",true]
[null,null,"5",1,"Dimension",false]
[null,null,"5.A",3,"Standard",false]
[null,null,"5.A.1",5,"EP",false]
[null,null,"5.A.1.1",7,"Indicator",true]
[null,null,"5.A.1.2",7,"Indicator",true]
[null,null,"5.A.2",5,"EP",false]
[null,null,"5.A.2.1",7,"Indicator",true]
[null,null,"5.A.2.2",7,"Indicator",false]
[null,null,"5.A.2.2.1",9,"Detail",true]
[null,null,"5.A.2.2.2",9,"Detail",true]
[null,null,"5.A.2.2.3",9,"Detail",true]
[null,null,"5.A.3",5,"EP",false]
[null,null,"5.A.3.1",7,"Indicator",true]
[null,null,"5.A.3.2",7,"Indicator",false]
[null,null,"5.A.3.2.1",9,"Detail",true]
[null,null,"5.A.3.2.2",9,"Detail",true]
[null,null,"5.A.3.2.3",9,"Detail",true]
[null,null,"5.A.3.2.4",9,"Detail",true]
[null,null,"5.B",3,"Standard",false]
[null,null,"5.B.1",5,"EP",false]
[null,null,"5.B.1.1",7,"Indicator",true]
[null,null,"5.B.2",5,"EP",false]
[null,null,"5.B.2.1",7,"Indicator",true]
[null,null,"5.B.2.2",7,"Indicator",true]
[null,null,"5.B.3",5,"EP",false]
[null,null,"5.B.3.1",{"$f":"LEN(C195)","v":7},{"$f":"_xlfn.XLOOKUP(D195,$B$1:$B$6,$A$1:$A$6)","v":"Indicator"},false]
[null,null,"5.B.3.1.1",9,"Detail",true]
[null,null,"5.B.3.1.2",9,"Detail",true]
[null,null,"5.B.3.1.3",9,"Detail",true]
[null,null,"5.C",3,"Standard",false]
[null,null,"5.C.1",5,"EP",false]
[null,null,"5.C.1.1",7,"Indicator",true]
[null,null,"5.C.1.2",7,"Indicator",true]
[null,null,"5.C.2",5,"EP",false]
[null,null,"5.C.2.1",7,"Indicator",false]
[null,null,"5.C.2.1.1",9,"Detail",true]
[null,null,"5.C.2.1.2",9,"Detail",true]
[null,null,"5.C.2.1.3",9,"Detail",true]
[null,null,"5.C.2.1.4",9,"Detail",true]
[null,null,"5.C.2.2",7,"Indicator",false]
[null,null,"5.C.2.2.1",9,"Detail",true]
[null,null,"5.C.2.2.2",9,"Detail",true]
[null,null,"5.C.2.2.3",9,"Detail",true]
[null,null,"5.C.3",5,"EP",false]
[null,null,"5.C.3.1",7,"Indicator",true]
[null,null,"5.C.3.2",7,"Indicator",true]
[null,null,"6",1,"Dimension",false]
[null,null,"6.A",3,"Standard",false]
[null,null,"6.A.1",5,"EP",false]
[null,null,"6.A.1.1",7,"Indicator",false]
[null,null,"6.A.1.1.1",9,"Detail",true]
[null,null,"6.A.1.1.2",9,"Detail",true]
[null,null,"6.A.1.1.3",9,"Detail",true]
[null,null,"6.A.1.1.4",9,"Detail",true]
[null,null,"6.A.1.1.5",9,"Detail",true]
[null,null,"6.A.1.1.6",9,"Detail",true]
[null,null,"6.A.1.2",7,"Indicator",false]
[null,null,"6.A.1.2.1",9,"Detail",true]
[null,null,"6.A.1.2.2",9,"Detail",true]
[null,null,"6.A.1.2.3",9,"Detail",true]
[null,null,"6.A.1.2.4",9,"Detail",true]
[null,null,"6.A.1.2.5",9,"Detail",true]
[null,null,"6.A.1.2.6",9,"Detail",true]
[null,null,"6.A.1.3",7,"Indicator",true]
[null,null,"6.A.1.4",7,"Indicator",true]
[null,null,"6.A.1.5",7,"Indicator",false]
[null,null,"6.A.1.5.1",9,"Detail",true]
[null,null,"6.A.1.5.2",9,"Detail",true]
[null,null,"6.A.1.5.3",9,"Detail",true]
[null,null,"6.A.2",5,"EP",false]
[null,null,"6.A.2.1",7,"Indicator",true]
[null,null,"6.A.2.2",7,"Indicator",true]
[null,null,"6.A.2.3",7,"Indicator",true]
[null,null,"6.A.3",5,"EP",false]
[null,null,"6.A.3.1",7,"Indicator",true]
[null,null,"6.A.3.2",7,"Indicator",true]
[null,null,"6.A.3.3",7,"Indicator",false]
[null,null,"6.A.3.3.1",9,"Detail",true]
[null,null,"6.A.3.3.2",9,"Detail",true]
[null,null,"6.A.3.3.3",9,"Detail",true]
[null,null,"6.A.3.3.4",9,"Detail",true]
[null,null,"6.A.3.4",7,"Indicator",true]
[null,null,"6.B",3,"Standard",false]
[null,null,"6.B.1",5,"EP",false]
[null,null,"6.B.1.1",7,"Indicator",false]
[null,null,"6.B.1.1.1",9,"Detail",true]
[null,null,"6.B.1.1.2",9,"Detail",true]
[null,null,"6.B.1.1.3",9,"Detail",true]
[null,null,"6.B.1.2",7,"Indicator",true]
[null,null,"6.B.2",{"$f":"LEN(C259)","v":5},{"$f":"_xlfn.XLOOKUP(D259,$B$1:$B$6,$A$1:$A$6)","v":"EP"},false]
[null,null,"6.B.2.1",7,"Indicator",false]
[null,null,"6.B.2.1.1",9,"Detail",true]
[null,null,"6.B.2.1.2",9,"Detail",true]
[null,null,"6.B.2.1.3",9,"Detail",true]
[null,null,"6.B.2.1.4",9,"Detail",true]
[null,null,"6.B.2.2",7,"Indicator",true]
[null,null,"6.B.2.3",7,"Indicator",true]
[null,null,"6.B.2.4",7,"Indicator",true]
[null,null,"6.B.3",5,"EP",false]
[null,null,"6.B.3.1",7,"Indicator",true]
[null,null,"6.B.3.2",7,"Indicator",true]
[null,null,"6.B.3.3",7,"Indicator",true]
[null,null,"6.C",3,"Standard",false]
[null,null,"6.C.1",5,"EP",false]
[null,null,"6.C.1.1",7,"Indicator",true]
[null,null,"6.C.1.2",7,"Indicator",false]
[null,null,"6.C.1.2.1",9,"Detail",true]
[null,null,"6.C.1.2.2",9,"Detail",true]
[null,null,"6.C.1.2.3",9,"Detail",true]
[null,null,"7",1,"Dimension",false]
[null,null,"7.A",3,"Standard",false]
[null,null,"7.A.1",5,"EP",false]
[null,null,"7.A.1.1",7,"Indicator",true]
[null,null,"7.A.1.2",7,"Indicator",true]
[null,null,"7.A.2",5,"EP",false]
[null,null,"7.A.2.1",7,"Indicator",true]
[null,null,"7.B",3,"Standard",false]
[null,null,"7.B.1",5,"EP",false]
[null,null,"7.B.1.1",7,"Indicator",true]
[null,null,"7.B.1.2",7,"Indicator",true]
[null,null,"7.B.1.3",7,"Indicator",false]
[null,null,"7.B.1.3.1",9,"Detail",true]
[null,null,"7.B.1.3.2",9,"Detail",true]
[null,null,"7.B.1.3.3",9,"Detail",true]
[null,null,"7.B.2",5,"EP",false]
[null,null,"7.B.2.1",7,"Indicator",true]
[null,null,"7.B.2.2",7,"Indicator",true]
[null,null,"7.B.2.3",7,"Indicator",true]
[null,null,"7.B.2.4",7,"Indicator",true]

{"sheet":"Scoring","index":11,"n_rows":301,"n_cols":22,"rows_kept":301,"cut":false,"hidden":true,"merged":[[2,16,2,17],[2,18,2,19],[2,20,2,21]]}
[null,null,"DO NOT ADD COLUMNS"]
["Yes",1,null,"Code","Type","AnswerB","Answer","Score type","Score","EP Group","EP score","Standard group","Standard score","Dimension group","Dimension Score",null,"RECAP"]
["No",0,null,{"$f":"codes!C2:C298","v":"1"},{"$f":"codes!E2:E298","v":"Dimension"},{"$f":"codes!F2:F298","v":false},{"$f":"IF(F3=TRUE,IF(VLOOKUP(D3,Data!$B$5:$I$306,8,0)=FALSE,FALSE,VLOOKUP(D3,Data!$B$5:$I$306,8,0)),FALSE)","v":false},{"$f":"IF(OR(E3=A$7,E3=A$8,E3=A$9),\"Calculated\",\"Answer\")","v":"Calculated"},{"$f":"IF(G3=FALSE,FALSE,VLOOKUP(G3,$A$2:B$5,2,0))","v":false},{"$f":"IF(F3=TRUE,LEFT(D3,5),\"\")","v":""},{"$f":"IFERROR(IF(AND(F3=TRUE,COUNTIF(INDIRECT(\"J\"&ROW(J4)&\":J\"&$B$13),J3)=0),AVERAGEIFS(I:I,J:J,LEFT(D3,5)),\"\"),\"\")","v":""},{"$f":"IF(F3=TRUE,LEFT(D3,3),\"\")","v":""},{"$f":"IFERROR(IF(AND(F3=TRUE,COUNTIF(INDIRECT(\"L\"&ROW(L4)&\":L\"&$B$13),L3)=0),AVERAGEIFS(I:I,L:L,LEFT(D3,3)),\"\"),\"\")","v":""},{"$f":"IF(F3=TRUE,LEFT(D3,1),\"\")","v":""},{"$f":"IFERROR(IF(AND(F3=TRUE,COUNTIF(INDIRECT(\"n\"&ROW(N4)&\":n\"&$B$13),N3)=0),AVERAGEIFS(M:M,N:N,LEFT(D3,1)),\"\"),\"\")","v":""},null,"Dimension",null,"Standard",null,"EP"]
["Partially",0.5,null,"1.A","Standard",false,{"$f":"IF(F4=TRUE,IF(VLOOKUP(D4,Data!$B$5:$I$306,8,0)=FALSE,FALSE,VLOOKUP(D4,Data!$B$5:$I$306,8,0)),FALSE)","v":false},"Calculated",{"$f":"IF(G4=FALSE,FALSE,VLOOKUP(G4,$A$2:B$5,2,0))","v":false},{"$f":"IF(F4=TRUE,LEFT(D4,5),\"\")","v":""},"",{"$f":"IF(F4=TRUE,LEFT(D4,3),\"\")","v":""},"",{"$f":"IF(F4=TRUE,LEFT(D4,1),\"\")","v":""},"",null,"1",{"$f":"_xlfn.MAXIFS(O:O,N:N,Q4)","v":0},{"$f":"_xlfn._xlws.FILTER(D:D,E:E=S3)","v":"1.A"},{"$f":"_xlfn.MAXIFS(M:M,L:L,S4)","v":0},{"$f":"_xlfn._xlws.FILTER(D:D,E:E=U3)","v":"1.A.1"},{"$f":"_xlfn.MAXIFS(K:K,J:J,U4)","v":0}]
["N/A","N/A",null,"1.A.1","EP",false,{"$f":"IF(F5=TRUE,IF(VLOOKUP(D5,Data!$B$5:$I$306,8,0)=FALSE,FALSE,VLOOKUP(D5,Data!$B$5:$I$306,8,0)),FALSE)","v":false},"Calculated",{"$f":"IF(G5=FALSE,FALSE,VLOOKUP(G5,$A$2:B$5,2,0))","v":false},"","","","","","",null,"2",0,"1.B",0,"1.A.2",0]
[null,null,null,"1.A.1.1","Indicator",true,{"$f":"IF(F6=TRUE,IF(VLOOKUP(D6,Data!$B$5:$I$306,8,0)=FALSE,FALSE,VLOOKUP(D6,Data!$B$5:$I$306,8,0)),FALSE)","v":false},"Answer",{"$f":"IF(G6=FALSE,FALSE,VLOOKUP(G6,$A$2:B$5,2,0))","v":false},"1.A.1","","1.A","","1","",null,"3",0,"2.A",0,"1.B.1",0]
["Dimension",{"$f":"COUNTIF(E:E,A7)","v":7},null,"1.A.1.2","Indicator",false,{"$f":"IF(F7=TRUE,IF(VLOOKUP(D7,Data!$B$5:$I$306,8,0)=FALSE,FALSE,VLOOKUP(D7,Data!$B$5:$I$306,8,0)),FALSE)","v":false},"Answer",{"$f":"IF(G7=FALSE,FALSE,VLOOKUP(G7,$A$2:B$5,2,0))","v":false},"","","","","","",null,"4",0,"2.B",0,"1.B.2",0]
["Standard",{"$f":"COUNTIF(E:E,A8)","v":17},null,"1.A.1.2.1","Detail",true,{"$f":"IF(F8=TRUE,IF(VLOOKUP(D8,Data!$B$5:$I$306,8,0)=FALSE,FALSE,VLOOKUP(D8,Data!$B$5:$I$306,8,0)),FALSE)","v":false},"Answer",{"$f":"IF(G8=FALSE,FALSE,VLOOKUP(G8,$A$2:B$5,2,0))","v":false},"1.A.1","","1.A","","1","",null,"5",0,"2.C",0,"2.A.1",0]
["EP",{"$f":"COUNTIF(E:E,A9)","v":39},null,"1.A.1.2.2","Detail",true,{"$f":"IF(F9=TRUE,IF(VLOOKUP(D9,Data!$B$5:$I$306,8,0)=FALSE,FALSE,VLOOKUP(D9,Data!$B$5:$I$306,8,0)),FALSE)","v":false},"Answer",{"$f":"IF(G9=FALSE,FALSE,VLOOKUP(G9,$A$2:B$5,2,0))","v":false},"1.A.1","","1.A","","1","",null,"6",0,"3.A",0,"2.B.1",0]
["Indicator",{"$f":"COUNTIF(E:E,A10)","v":101},null,"1.A.1.2.3","Detail",true,{"$f":"IF(F10=TRUE,IF(VLOOKUP(D10,Data!$B$5:$I$306,8,0)=FALSE,FALSE,VLOOKUP(D10,Data!$B$5:$I$306,8,0)),FALSE)","v":false},"Answer",{"$f":"IF(G10=FALSE,FALSE,VLOOKUP(G10,$A$2:B$5,2,0))","v":false},"1.A.1","","1.A","","1","",null,"7",0,"3.B",0,"2.B.2",0]
["Detail",{"$f":"COUNTIF(E:E,A11)","v":133},null,"1.A.1.3","Indicator",true,{"$f":"IF(F11=TRUE,IF(VLOOKUP(D11,Data!$B$5:$I$306,8,0)=FALSE,FALSE,VLOOKUP(D11,Data!$B$5:$I$306,8,0)),FALSE)","v":false},"Answer",{"$f":"IF(G11=FALSE,FALSE,VLOOKUP(G11,$A$2:B$5,2,0))","v":false},"1.A.1","","1.A","","1","",null,null,null,"4.A",0,"2.B.3",0]
[null,null,null,"1.A.2","EP",false,{"$f":"IF(F12=TRUE,IF(VLOOKUP(D12,Data!$B$5:$I$306,8,0)=FALSE,FALSE,VLOOKUP(D12,Data!$B$5:$I$306,8,0)),FALSE)","v":false},"Calculated",{"$f":"IF(G12=FALSE,FALSE,VLOOKUP(G12,$A$2:B$5,2,0))","v":false},"","","","","","",null,null,null,"4.B",0,"2.C.1",0]
["Number of lines",{"$f":"COUNTIF(D3:D1048576,\"<>\")+3","v":300},null,"1.A.2.1","Indicator",false,{"$f":"IF(F13=TRUE,IF(VLOOKUP(D13,Data!$B$5:$I$306,8,0)=FALSE,FALSE,VLOOKUP(D13,Data!$B$5:$I$306,8,0)),FALSE)","v":false},"Answer",{"$f":"IF(G13=FALSE,FALSE,VLOOKUP(G13,$A$2:B$5,2,0))","v":false},"","","","","","",null,null,null,"5.A",0,"2.C.2",0]
[null,null,null,"1.A.2.1.1","Detail",true,{"$f":"IF(F14=TRUE,IF(VLOOKUP(D14,Data!$B$5:$I$306,8,0)=FALSE,FALSE,VLOOKUP(D14,Data!$B$5:$I$306,8,0)),FALSE)","v":false},"Answer",{"$f":"IF(G14=FALSE,FALSE,VLOOKUP(G14,$A$2:B$5,2,0))","v":false},"1.A.2","","1.A","","1","",null,null,null,"5.B",0,"3.A.1",0]
[null,null,null,"1.A.2.1.2","Detail",true,{"$f":"IF(F15=TRUE,IF(VLOOKUP(D15,Data!$B$5:$I$306,8,0)=FALSE,FALSE,VLOOKUP(D15,Data!$B$5:$I$306,8,0)),FALSE)","v":false},"Answer",{"$f":"IF(G15=FALSE,FALSE,VLOOKUP(G15,$A$2:B$5,2,0))","v":false},"1.A.2","","1.A","","1","",null,null,null,"5.C",0,"3.A.2",0]
[null,null,null,"1.A.2.1.3","Detail",true,{"$f":"IF(F16=TRUE,IF(VLOOKUP(D16,Data!$B$5:$I$306,8,0)=FALSE,FALSE,VLOOKUP(D16,Data!$B$5:$I$306,8,0)),FALSE)","v":false},"Answer",{"$f":"IF(G16=FALSE,FALSE,VLOOKUP(G16,$A$2:B$5,2,0))","v":false},"1.A.2","","1.A","","1","",null,null,null,"6.A",0,"3.A.3",0]
[null,null,null,"1.A.2.2","Indicator",false,{"$f":"IF(F17=TRUE,IF(VLOOKUP(D17,Data!$B$5:$I$306,8,0)=FALSE,FALSE,VLOOKUP(D17,Data!$B$5:$I$306,8,0)),FALSE)","v":false},"Answer",{"$f":"IF(G17=FALSE,FALSE,VLOOKUP(G17,$A$2:B$5,2,0))","v":false},"","","","","","",null,null,null,"6.B",0,"3.B.1",0]
[null,null,null,"1.A.2.2.1","Detail",true,{"$f":"IF(F18=TRUE,IF(VLOOKUP(D18,Data!$B$5:$I$306,8,0)=FALSE,FALSE,VLOOKUP(D18,Data!$B$5:$I$306,8,0)),FALSE)","v":false},"Answer",{"$f":"IF(G18=FALSE,FALSE,VLOOKUP(G18,$A$2:B$5,2,0))","v":false},"1.A.2","","1.A","","1","",null,null,null,"6.C",0,"3.B.2",0]
[null,null,null,"1.A.2.2.2","Detail",true,{"$f":"IF(F19=TRUE,IF(VLOOKUP(D19,Data!$B$5:$I$306,8,0)=FALSE,FALSE,VLOOKUP(D19,Data!$B$5:$I$306,8,0)),FALSE)","v":false},"Answer",{"$f":"IF(G19=FALSE,FALSE,VLOOKUP(G19,$A$2:B$5,2,0))","v":false},"1.A.2","","1.A","","1","",null,null,null,"7.A",0,"4.A.1",0]
[null,null,null,"1.A.2.2.3","Detail",true,{"$f":"IF(F20=TRUE,IF(VLOOKUP(D20,Data!$B$5:$I$306,8,0)=FALSE,FALSE,VLOOKUP(D20,Data!$B$5:$I$306,8,0)),FALSE)","v":false},"Answer",{"$f":"IF(G20=FALSE,FALSE,VLOOKUP(G20,$A$2:B$5,2,0))","v":false},"1.A.2","","1.A","","1","",null,null,null,"7.B",0,"4.A.2",0]
[null,null,null,"1.A.2.3","Indicator",false,{"$f":"IF(F21=TRUE,IF(VLOOKUP(D21,Data!$B$5:$I$306,8,0)=FALSE,FALSE,VLOOKUP(D21,Data!$B$5:$I$306,8,0)),FALSE)","v":false},"Answer",{"$f":"IF(G21=FALSE,FALSE,VLOOKUP(G21,$A$2:B$5,2,0))","v":false},"","","","","","",null,null,null,null,{"$f":"_xlfn.XLOOKUP(S21,L:L,M:M,0,0,-1)","v":0},"4.B.1",0]
[null,null,null,"1.A.2.3.1","Detail",true,{"$f":"IF(F22=TRUE,IF(VLOOKUP(D22,Data!$B$5:$I$306,8,0)=FALSE,FALSE,VLOOKUP(D22,Data!$B$5:$I$306,8,0)),FALSE)","v":false},"Answer",{"$f":"IF(G22=FALSE,FALSE,VLOOKUP(G22,$A$2:B$5,2,0))","v":false},"1.A.2","","1.A","","1","",null,null,null,null,0,"4.B.2",0]
[null,null,null,"1.A.2.3.2","Detail",true,{"$f":"IF(F23=TRUE,IF(VLOOKUP(D23,Data!$B$5:$I$306,8,0)=FALSE,FALSE,VLOOKUP(D23,Data!$B$5:$I$306,8,0)),FALSE)","v":false},"Answer",{"$f":"IF(G23=FALSE,FALSE,VLOOKUP(G23,$A$2:B$5,2,0))","v":false},"1.A.2","","1.A","","1","",null,null,null,null,0,"5.A.1",0]
[null,null,null,"1.A.2.3.3","Detail",true,{"$f":"IF(F24=TRUE,IF(VLOOKUP(D24,Data!$B$5:$I$306,8,0)=FALSE,FALSE,VLOOKUP(D24,Data!$B$5:$I$306,8,0)),FALSE)","v":false},"Answer",{"$f":"IF(G24=FALSE,FALSE,VLOOKUP(G24,$A$2:B$5,2,0))","v":false},"1.A.2","","1.A","","1","",null,null,null,null,0,"5.A.2",0]
[null,null,null,"1.A.2.3.4","Detail",true,{"$f":"IF(F25=TRUE,IF(VLOOKUP(D25,Data!$B$5:$I$306,8,0)=FALSE,FALSE,VLOOKUP(D25,Data!$B$5:$I$306,8,0)),FALSE)","v":false},"Answer",{"$f":"IF(G25=FALSE,FALSE,VLOOKUP(G25,$A$2:B$5,2,0))","v":false},"1.A.2","","1.A","","1","",null,null,null,null,0,"5.A.3",0]
[null,null,null,"1.A.2.3.5","Detail",true,{"$f":"IF(F26=TRUE,IF(VLOOKUP(D26,Data!$B$5:$I$306,8,0)=FALSE,FALSE,VLOOKUP(D26,Data!$B$5:$I$306,8,0)),FALSE)","v":false},"Answer",{"$f":"IF(G26=FALSE,FALSE,VLOOKUP(G26,$A$2:B$5,2,0))","v":false},"1.A.2","","1.A","","1","",null,null,null,null,0,"5.B.1",0]
[null,null,null,"1.B","Standard",false,{"$f":"IF(F27=TRUE,IF(VLOOKUP(D27,Data!$B$5:$I$306,8,0)=FALSE,FALSE,VLOOKUP(D27,Data!$B$5:$I$306,8,0)),FALSE)","v":false},"Calculated",{"$f":"IF(G27=FALSE,FALSE,VLOOKUP(G27,$A$2:B$5,2,0))","v":false},"","","","","","",null,null,null,null,0,"5.B.2",0]
[null,null,null,"1.B.1","EP",false,{"$f":"IF(F28=TRUE,IF(VLOOKUP(D28,Data!$B$5:$I$306,8,0)=FALSE,FALSE,VLOOKUP(D28,Data!$B$5:$I$306,8,0)),FALSE)","v":false},"Calculated",{"$f":"IF(G28=FALSE,FALSE,VLOOKUP(G28,$A$2:B$5,2,0))","v":false},"","","","","","",null,null,null,null,0,"5.B.3",0]
[null,null,null,"1.B.1.1","Indicator",false,{"$f":"IF(F29=TRUE,IF(VLOOKUP(D29,Data!$B$5:$I$306,8,0)=FALSE,FALSE,VLOOKUP(D29,Data!$B$5:$I$306,8,0)),FALSE)","v":false},"Answer",{"$f":"IF(G29=FALSE,FALSE,VLOOKUP(G29,$A$2:B$5,2,0))","v":false},"","","","","","",null,null,null,null,0,"5.C.1",0]
[null,null,null,"1.B.1.1.1","Detail",true,{"$f":"IF(F30=TRUE,IF(VLOOKUP(D30,Data!$B$5:$I$306,8,0)=FALSE,FALSE,VLOOKUP(D30,Data!$B$5:$I$306,8,0)),FALSE)","v":false},"Answer",{"$f":"IF(G30=FALSE,FALSE,VLOOKUP(G30,$A$2:B$5,2,0))","v":false},"1.B.1","","1.B","","1","",null,null,null,null,0,"5.C.2",0]
[null,null,null,"1.B.1.1.2","Detail",true,{"$f":"IF(F31=TRUE,IF(VLOOKUP(D31,Data!$B$5:$I$306,8,0)=FALSE,FALSE,VLOOKUP(D31,Data!$B$5:$I$306,8,0)),FALSE)","v":false},"Answer",{"$f":"IF(G31=FALSE,FALSE,VLOOKUP(G31,$A$2:B$5,2,0))","v":false},"1.B.1","","1.B","","1","",null,null,null,null,0,"5.C.3",0]
[null,null,null,"1.B.1.1.3","Detail",true,{"$f":"IF(F32=TRUE,IF(VLOOKUP(D32,Data!$B$5:$I$306,8,0)=FALSE,FALSE,VLOOKUP(D32,Data!$B$5:$I$306,8,0)),FALSE)","v":false},"Answer",{"$f":"IF(G32=FALSE,FALSE,VLOOKUP(G32,$A$2:B$5,2,0))","v":false},"1.B.1","","1.B","","1","",null,null,null,null,0,"6.A.1",0]
[null,null,null,"1.B.1.2","Indicator",false,{"$f":"IF(F33=TRUE,IF(VLOOKUP(D33,Data!$B$5:$I$306,8,0)=FALSE,FALSE,VLOOKUP(D33,Data!$B$5:$I$306,8,0)),FALSE)","v":false},"Answer",{"$f":"IF(G33=FALSE,FALSE,VLOOKUP(G33,$A$2:B$5,2,0))","v":false},"","","","","","",null,null,null,null,0,"6.A.2",0]
[null,null,null,"1.B.1.2.1","Detail",true,{"$f":"IF(F34=TRUE,IF(VLOOKUP(D34,Data!$B$5:$I$306,8,0)=FALSE,FALSE,VLOOKUP(D34,Data!$B$5:$I$306,8,0)),FALSE)","v":false},"Answer",{"$f":"IF(G34=FALSE,FALSE,VLOOKUP(G34,$A$2:B$5,2,0))","v":false},"1.B.1","","1.B","","1","",null,null,null,null,0,"6.A.3",0]
[null,null,null,"1.B.1.2.2","Detail",true,{"$f":"IF(F35=TRUE,IF(VLOOKUP(D35,Data!$B$5:$I$306,8,0)=FALSE,FALSE,VLOOKUP(D35,Data!$B$5:$I$306,8,0)),FALSE)","v":false},"Answer",{"$f":"IF(G35=FALSE,FALSE,VLOOKUP(G35,$A$2:B$5,2,0))","v":false},"1.B.1","","1.B","","1","",null,null,null,null,0,"6.B.1",0]
[null,null,null,"1.B.1.2.3","Detail",true,{"$f":"IF(F36=TRUE,IF(VLOOKUP(D36,Data!$B$5:$I$306,8,0)=FALSE,FALSE,VLOOKUP(D36,Data!$B$5:$I$306,8,0)),FALSE)","v":false},"Answer",{"$f":"IF(G36=FALSE,FALSE,VLOOKUP(G36,$A$2:B$5,2,0))","v":false},"1.B.1","","1.B","","1","",null,null,null,null,0,"6.B.2",0]
[null,null,null,"1.B.1.2.4","Detail",true,{"$f":"IF(F37=TRUE,IF(VLOOKUP(D37,Data!$B$5:$I$306,8,0)=FALSE,FALSE,VLOOKUP(D37,Data!$B$5:$I$306,8,0)),FALSE)","v":false},"Answer",{"$f":"IF(G37=FALSE,FALSE,VLOOKUP(G37,$A$2:B$5,2,0))","v":false},"1.B.1","","1.B","","1","",null,null,null,null,0,"6.B.3",0]
[null,null,null,"1.B.1.2.5","Detail",true,{"$f":"IF(F38=TRUE,IF(VLOOKUP(D38,Data!$B$5:$I$306,8,0)=FALSE,FALSE,VLOOKUP(D38,Data!$B$5:$I$306,8,0)),FALSE)","v":false},"Answer",{"$f":"IF(G38=FALSE,FALSE,VLOOKUP(G38,$A$2:B$5,2,0))","v":false},"1.B.1","","1.B","","1","",null,null,null,null,0,"6.C.1",0]
[null,null,null,"1.B.2","EP",false,{"$f":"IF(F39=TRUE,IF(VLOOKUP(D39,Data!$B$5:$I$306,8,0)=FALSE,FALSE,VLOOKUP(D39,Data!$B$5:$I$306,8,0)),FALSE)","v":false},"Calculated",{"$f":"IF(G39=FALSE,FALSE,VLOOKUP(G39,$A$2:B$5,2,0))","v":false},"","","","","","",null,null,null,null,0,"7.A.1",0]
[null,null,null,"1.B.2.1","Indicator",true,{"$f":"IF(F40=TRUE,IF(VLOOKUP(D40,Data!$B$5:$I$306,8,0)=FALSE,FALSE,VLOOKUP(D40,Data!$B$5:$I$306,8,0)),FALSE)","v":false},"Answer",{"$f":"IF(G40=FALSE,FALSE,VLOOKUP(G40,$A$2:B$5,2,0))","v":false},"1.B.2","","1.B","","1","",null,null,null,null,0,"7.A.2",0]
[null,null,null,"1.B.2.2","Indicator",true,{"$f":"IF(F41=TRUE,IF(VLOOKUP(D41,Data!$B$5:$I$306,8,0)=FALSE,FALSE,VLOOKUP(D41,Data!$B$5:$I$306,8,0)),FALSE)","v":false},"Answer",{"$f":"IF(G41=FALSE,FALSE,VLOOKUP(G41,$A$2:B$5,2,0))","v":false},"1.B.2","","1.B","","1","",null,null,null,null,0,"7.B.1",0]
[null,null,null,"2","Dimension",false,{"$f":"IF(F42=TRUE,IF(VLOOKUP(D42,Data!$B$5:$I$306,8,0)=FALSE,FALSE,VLOOKUP(D42,Data!$B$5:$I$306,8,0)),FALSE)","v":false},"Calculated",{"$f":"IF(G42=FALSE,FALSE,VLOOKUP(G42,$A$2:B$5,2,0))","v":false},"","","","","","",null,null,null,null,0,"7.B.2",{"$f":"_xlfn.XLOOKUP(U42,J:J,K:K,0,0,-1)","v":""}]
[null,null,null,"2.A","Standard",false,{"$f":"IF(F43=TRUE,IF(VLOOKUP(D43,Data!$B$5:$I$306,8,0)=FALSE,FALSE,VLOOKUP(D43,Data!$B$5:$I$306,8,0)),FALSE)","v":false},"Calculated",{"$f":"IF(G43=FALSE,FALSE,VLOOKUP(G43,$A$2:B$5,2,0))","v":false},"","","","","","",null,null,null,null,0,null,0]
[null,null,null,"2.A.1","EP",false,{"$f":"IF(F44=TRUE,IF(VLOOKUP(D44,Data!$B$5:$I$306,8,0)=FALSE,FALSE,VLOOKUP(D44,Data!$B$5:$I$306,8,0)),FALSE)","v":false},"Calculated",{"$f":"IF(G44=FALSE,FALSE,VLOOKUP(G44,$A$2:B$5,2,0))","v":false},"","","","","","",null,null,null,null,0,null,0]
[null,null,null,"2.A.1.1","Indicator",false,{"$f":"IF(F45=TRUE,IF(VLOOKUP(D45,Data!$B$5:$I$306,8,0)=FALSE,FALSE,VLOOKUP(D45,Data!$B$5:$I$306,8,0)),FALSE)","v":false},"Answer",{"$f":"IF(G45=FALSE,FALSE,VLOOKUP(G45,$A$2:B$5,2,0))","v":false},"","","","","","",null,null,null,null,0,null,0]
[null,null,null,"2.A.1.1.1","Detail",true,{"$f":"IF(F46=TRUE,IF(VLOOKUP(D46,Data!$B$5:$I$306,8,0)=FALSE,FALSE,VLOOKUP(D46,Data!$B$5:$I$306,8,0)),FALSE)","v":false},"Answer",{"$f":"IF(G46=FALSE,FALSE,VLOOKUP(G46,$A$2:B$5,2,0))","v":false},"2.A.1","","2.A","","2","",null,null,null,null,0,null,0]
[null,null,null,"2.A.1.1.2","Detail",true,{"$f":"IF(F47=TRUE,IF(VLOOKUP(D47,Data!$B$5:$I$306,8,0)=FALSE,FALSE,VLOOKUP(D47,Data!$B$5:$I$306,8,0)),FALSE)","v":false},"Answer",{"$f":"IF(G47=FALSE,FALSE,VLOOKUP(G47,$A$2:B$5,2,0))","v":false},"2.A.1","","2.A","","2","",null,null,null,null,0,null,0]
[null,null,null,"2.A.1.1.3","Detail",true,{"$f":"IF(F48=TRUE,IF(VLOOKUP(D48,Data!$B$5:$I$306,8,0)=FALSE,FALSE,VLOOKUP(D48,Data!$B$5:$I$306,8,0)),FALSE)","v":false},"Answer",{"$f":"IF(G48=FALSE,FALSE,VLOOKUP(G48,$A$2:B$5,2,0))","v":false},"2.A.1","","2.A","","2","",null,null,null,null,0,null,0]
[null,null,null,"2.A.1.2","Indicator",false,{"$f":"IF(F49=TRUE,IF(VLOOKUP(D49,Data!$B$5:$I$306,8,0)=FALSE,FALSE,VLOOKUP(D49,Data!$B$5:$I$306,8,0)),FALSE)","v":false},"Answer",{"$f":"IF(G49=FALSE,FALSE,VLOOKUP(G49,$A$2:B$5,2,0))","v":false},"","","","","",""]
[null,null,null,"2.A.1.2.1","Detail",true,{"$f":"IF(F50=TRUE,IF(VLOOKUP(D50,Data!$B$5:$I$306,8,0)=FALSE,FALSE,VLOOKUP(D50,Data!$B$5:$I$306,8,0)),FALSE)","v":false},"Answer",{"$f":"IF(G50=FALSE,FALSE,VLOOKUP(G50,$A$2:B$5,2,0))","v":false},"2.A.1","","2.A","","2",""]
[null,null,null,"2.A.1.2.2","Detail",true,{"$f":"IF(F51=TRUE,IF(VLOOKUP(D51,Data!$B$5:$I$306,8,0)=FALSE,FALSE,VLOOKUP(D51,Data!$B$5:$I$306,8,0)),FALSE)","v":false},"Answer",{"$f":"IF(G51=FALSE,FALSE,VLOOKUP(G51,$A$2:B$5,2,0))","v":false},"2.A.1","","2.A","","2",""]
[null,null,null,"2.B","Standard",false,{"$f":"IF(F52=TRUE,IF(VLOOKUP(D52,Data!$B$5:$I$306,8,0)=FALSE,FALSE,VLOOKUP(D52,Data!$B$5:$I$306,8,0)),FALSE)","v":false},"Calculated",{"$f":"IF(G52=FALSE,FALSE,VLOOKUP(G52,$A$2:B$5,2,0))","v":false},"","","","","",""]
[null,null,null,"2.B.1","EP",false,{"$f":"IF(F53=TRUE,IF(VLOOKUP(D53,Data!$B$5:$I$306,8,0)=FALSE,FALSE,VLOOKUP(D53,Data!$B$5:$I$306,8,0)),FALSE)","v":false},"Calculated",{"$f":"IF(G53=FALSE,FALSE,VLOOKUP(G53,$A$2:B$5,2,0))","v":false},"","","","","",""]
[null,null,null,"2.B.1.1","Indicator",true,{"$f":"IF(F54=TRUE,IF(VLOOKUP(D54,Data!$B$5:$I$306,8,0)=FALSE,FALSE,VLOOKUP(D54,Data!$B$5:$I$306,8,0)),FALSE)","v":false},"Answer",{"$f":"IF(G54=FALSE,FALSE,VLOOKUP(G54,$A$2:B$5,2,0))","v":false},"2.B.1","","2.B","","2",""]
[null,null,null,"2.B.1.2","Indicator",true,{"$f":"IF(F55=TRUE,IF(VLOOKUP(D55,Data!$B$5:$I$306,8,0)=FALSE,FALSE,VLOOKUP(D55,Data!$B$5:$I$306,8,0)),FALSE)","v":false},"Answer",{"$f":"IF(G55=FALSE,FALSE,VLOOKUP(G55,$A$2:B$5,2,0))","v":false},"2.B.1","","2.B","","2",""]
[null,null,null,"2.B.1.3","Indicator",true,{"$f":"IF(F56=TRUE,IF(VLOOKUP(D56,Data!$B$5:$I$306,8,0)=FALSE,FALSE,VLOOKUP(D56,Data!$B$5:$I$306,8,0)),FALSE)","v":false},"Answer",{"$f":"IF(G56=FALSE,FALSE,VLOOKUP(G56,$A$2:B$5,2,0))","v":false},"2.B.1","","2.B","","2",""]
[null,null,null,"2.B.2","EP",false,{"$f":"IF(F57=TRUE,IF(VLOOKUP(D57,Data!$B$5:$I$306,8,0)=FALSE,FALSE,VLOOKUP(D57,Data!$B$5:$I$306,8,0)),FALSE)","v":false},"Calculated",{"$f":"IF(G57=FALSE,FALSE,VLOOKUP(G57,$A$2:B$5,2,0))","v":false},"","","","","",""]
[null,null,null,"2.B.2.1","Indicator",true,{"$f":"IF(F58=TRUE,IF(VLOOKUP(D58,Data!$B$5:$I$306,8,0)=FALSE,FALSE,VLOOKUP(D58,Data!$B$5:$I$306,8,0)),FALSE)","v":false},"Answer",{"$f":"IF(G58=FALSE,FALSE,VLOOKUP(G58,$A$2:B$5,2,0))","v":false},"2.B.2","","2.B","","2",""]
[null,null,null,"2.B.2.2","Indicator",true,{"$f":"IF(F59=TRUE,IF(VLOOKUP(D59,Data!$B$5:$I$306,8,0)=FALSE,FALSE,VLOOKUP(D59,Data!$B$5:$I$306,8,0)),FALSE)","v":false},"Answer",{"$f":"IF(G59=FALSE,FALSE,VLOOKUP(G59,$A$2:B$5,2,0))","v":false},"2.B.2","","2.B","","2",""]
[null,null,null,"2.B.3","EP",false,{"$f":"IF(F60=TRUE,IF(VLOOKUP(D60,Data!$B$5:$I$306,8,0)=FALSE,FALSE,VLOOKUP(D60,Data!$B$5:$I$306,8,0)),FALSE)","v":false},"Calculated",{"$f":"IF(G60=FALSE,FALSE,VLOOKUP(G60,$A$2:B$5,2,0))","v":false},"","","","","",""]
[null,null,null,"2.B.3.1","Indicator",true,{"$f":"IF(F61=TRUE,IF(VLOOKUP(D61,Data!$B$5:$I$306,8,0)=FALSE,FALSE,VLOOKUP(D61,Data!$B$5:$I$306,8,0)),FALSE)","v":false},"Answer",{"$f":"IF(G61=FALSE,FALSE,VLOOKUP(G61,$A$2:B$5,2,0))","v":false},"2.B.3","","2.B","","2",""]
[null,null,null,"2.B.3.2","Indicator",true,{"$f":"IF(F62=TRUE,IF(VLOOKUP(D62,Data!$B$5:$I$306,8,0)=FALSE,FALSE,VLOOKUP(D62,Data!$B$5:$I$306,8,0)),FALSE)","v":false},"Answer",{"$f":"IF(G62=FALSE,FALSE,VLOOKUP(G62,$A$2:B$5,2,0))","v":false},"2.B.3","","2.B","","2",""]
[null,null,null,"2.C","Standard",false,{"$f":"IF(F63=TRUE,IF(VLOOKUP(D63,Data!$B$5:$I$306,8,0)=FALSE,FALSE,VLOOKUP(D63,Data!$B$5:$I$306,8,0)),FALSE)","v":false},"Calculated",{"$f":"IF(G63=FALSE,FALSE,VLOOKUP(G63,$A$2:B$5,2,0))","v":false},"","","","","",""]
[null,null,null,"2.C.1","EP",false,{"$f":"IF(F64=TRUE,IF(VLOOKUP(D64,Data!$B$5:$I$306,8,0)=FALSE,FALSE,VLOOKUP(D64,Data!$B$5:$I$306,8,0)),FALSE)","v":false},"Calculated",{"$f":"IF(G64=FALSE,FALSE,VLOOKUP(G64,$A$2:B$5,2,0))","v":false},"","","","","",""]
[null,null,null,"2.C.1.1","Indicator",false,{"$f":"IF(F65=TRUE,IF(VLOOKUP(D65,Data!$B$5:$I$306,8,0)=FALSE,FALSE,VLOOKUP(D65,Data!$B$5:$I$306,8,0)),FALSE)","v":false},"Answer",{"$f":"IF(G65=FALSE,FALSE,VLOOKUP(G65,$A$2:B$5,2,0))","v":false},"","","","","",""]
[null,null,null,"2.C.1.1.1","Detail",true,{"$f":"IF(F66=TRUE,IF(VLOOKUP(D66,Data!$B$5:$I$306,8,0)=FALSE,FALSE,VLOOKUP(D66,Data!$B$5:$I$306,8,0)),FALSE)","v":false},"Answer",{"$f":"IF(G66=FALSE,FALSE,VLOOKUP(G66,$A$2:B$5,2,0))","v":false},"2.C.1","","2.C","","2",""]
[null,null,null,"2.C.1.1.2","Detail",true,{"$f":"IF(F67=TRUE,IF(VLOOKUP(D67,Data!$B$5:$I$306,8,0)=FALSE,FALSE,VLOOKUP(D67,Data!$B$5:$I$306,8,0)),FALSE)","v":false},{"$f":"IF(OR(E67=A$7,E67=A$8,E67=A$9),\"Calculated\",\"Answer\")","v":"Answer"},{"$f":"IF(G67=FALSE,FALSE,VLOOKUP(G67,$A$2:B$5,2,0))","v":false},"2.C.1",{"$f":"IFERROR(IF(AND(F67=TRUE,COUNTIF(INDIRECT(\"J\"&ROW(J68)&\":J\"&$B$13),J67)=0),AVERAGEIFS(I:I,J:J,LEFT(D67,5)),\"\"),\"\")","v":""},"2.C",{"$f":"IFERROR(IF(AND(F67=TRUE,COUNTIF(INDIRECT(\"L\"&ROW(L68)&\":L\"&$B$13),L67)=0),AVERAGEIFS(I:I,L:L,LEFT(D67,3)),\"\"),\"\")","v":""},"2",{"$f":"IFERROR(IF(AND(F67=TRUE,COUNTIF(INDIRECT(\"n\"&ROW(N68)&\":n\"&$B$13),N67)=0),AVERAGEIFS(M:M,N:N,LEFT(D67,1)),\"\"),\"\")","v":""}]
[null,null,null,"2.C.1.1.3","Detail",true,{"$f":"IF(F68=TRUE,IF(VLOOKUP(D68,Data!$B$5:$I$306,8,0)=FALSE,FALSE,VLOOKUP(D68,Data!$B$5:$I$306,8,0)),FALSE)","v":false},"Answer",{"$f":"IF(G68=FALSE,FALSE,VLOOKUP(G68,$A$2:B$5,2,0))","v":false},{"$f":"IF(F68=TRUE,LEFT(D68,5),\"\")","v":"2.C.1"},"",{"$f":"IF(F68=TRUE,LEFT(D68,3),\"\")","v":"2.C"},"",{"$f":"IF(F68=TRUE,LEFT(D68,1),\"\")","v":"2"},""]
[null,null,null,"2.C.1.1.4","Detail",true,{"$f":"IF(F69=TRUE,IF(VLOOKUP(D69,Data!$B$5:$I$306,8,0)=FALSE,FALSE,VLOOKUP(D69,Data!$B$5:$I$306,8,0)),FALSE)","v":false},"Answer",{"$f":"IF(G69=FALSE,FALSE,VLOOKUP(G69,$A$2:B$5,2,0))","v":false},"2.C.1","","2.C","","2",""]
[null,null,null,"2.C.1.2","Indicator",true,{"$f":"IF(F70=TRUE,IF(VLOOKUP(D70,Data!$B$5:$I$306,8,0)=FALSE,FALSE,VLOOKUP(D70,Data!$B$5:$I$306,8,0)),FALSE)","v":false},"Answer",{"$f":"IF(G70=FALSE,FALSE,VLOOKUP(G70,$A$2:B$5,2,0))","v":false},"2.C.1","","2.C","","2",""]
[null,null,null,"2.C.2","EP",false,{"$f":"IF(F71=TRUE,IF(VLOOKUP(D71,Data!$B$5:$I$306,8,0)=FALSE,FALSE,VLOOKUP(D71,Data!$B$5:$I$306,8,0)),FALSE)","v":false},"Calculated",{"$f":"IF(G71=FALSE,FALSE,VLOOKUP(G71,$A$2:B$5,2,0))","v":false},"","","","","",""]
[null,null,null,"2.C.2.1","Indicator",true,{"$f":"IF(F72=TRUE,IF(VLOOKUP(D72,Data!$B$5:$I$306,8,0)=FALSE,FALSE,VLOOKUP(D72,Data!$B$5:$I$306,8,0)),FALSE)","v":false},"Answer",{"$f":"IF(G72=FALSE,FALSE,VLOOKUP(G72,$A$2:B$5,2,0))","v":false},"2.C.2","","2.C","","2",""]
[null,null,null,"2.C.2.2","Indicator",true,{"$f":"IF(F73=TRUE,IF(VLOOKUP(D73,Data!$B$5:$I$306,8,0)=FALSE,FALSE,VLOOKUP(D73,Data!$B$5:$I$306,8,0)),FALSE)","v":false},"Answer",{"$f":"IF(G73=FALSE,FALSE,VLOOKUP(G73,$A$2:B$5,2,0))","v":false},"2.C.2","","2.C","","2",""]
[null,null,null,"2.C.2.3","Indicator",true,{"$f":"IF(F74=TRUE,IF(VLOOKUP(D74,Data!$B$5:$I$306,8,0)=FALSE,FALSE,VLOOKUP(D74,Data!$B$5:$I$306,8,0)),FALSE)","v":false},"Answer",{"$f":"IF(G74=FALSE,FALSE,VLOOKUP(G74,$A$2:B$5,2,0))","v":false},"2.C.2","","2.C","","2",""]
[null,null,null,"3","Dimension",false,{"$f":"IF(F75=TRUE,IF(VLOOKUP(D75,Data!$B$5:$I$306,8,0)=FALSE,FALSE,VLOOKUP(D75,Data!$B$5:$I$306,8,0)),FALSE)","v":false},"Calculated",{"$f":"IF(G75=FALSE,FALSE,VLOOKUP(G75,$A$2:B$5,2,0))","v":false},"","","","","",""]
[null,null,null,"3.A","Standard",false,{"$f":"IF(F76=TRUE,IF(VLOOKUP(D76,Data!$B$5:$I$306,8,0)=FALSE,FALSE,VLOOKUP(D76,Data!$B$5:$I$306,8,0)),FALSE)","v":false},"Calculated",{"$f":"IF(G76=FALSE,FALSE,VLOOKUP(G76,$A$2:B$5,2,0))","v":false},"","","","","",""]
[null,null,null,"3.A.1","EP",false,{"$f":"IF(F77=TRUE,IF(VLOOKUP(D77,Data!$B$5:$I$306,8,0)=FALSE,FALSE,VLOOKUP(D77,Data!$B$5:$I$306,8,0)),FALSE)","v":false},"Calculated",{"$f":"IF(G77=FALSE,FALSE,VLOOKUP(G77,$A$2:B$5,2,0))","v":false},"","","","","",""]
[null,null,null,"3.A.1.1","Indicator",true,{"$f":"IF(F78=TRUE,IF(VLOOKUP(D78,Data!$B$5:$I$306,8,0)=FALSE,FALSE,VLOOKUP(D78,Data!$B$5:$I$306,8,0)),FALSE)","v":false},"Answer",{"$f":"IF(G78=FALSE,FALSE,VLOOKUP(G78,$A$2:B$5,2,0))","v":false},"3.A.1","","3.A","","3",""]
[null,null,null,"3.A.1.2","Indicator",false,{"$f":"IF(F79=TRUE,IF(VLOOKUP(D79,Data!$B$5:$I$306,8,0)=FALSE,FALSE,VLOOKUP(D79,Data!$B$5:$I$306,8,0)),FALSE)","v":false},"Answer",{"$f":"IF(G79=FALSE,FALSE,VLOOKUP(G79,$A$2:B$5,2,0))","v":false},"","","","","",""]
[null,null,null,"3.A.1.2.1","Detail",true,{"$f":"IF(F80=TRUE,IF(VLOOKUP(D80,Data!$B$5:$I$306,8,0)=FALSE,FALSE,VLOOKUP(D80,Data!$B$5:$I$306,8,0)),FALSE)","v":false},"Answer",{"$f":"IF(G80=FALSE,FALSE,VLOOKUP(G80,$A$2:B$5,2,0))","v":false},"3.A.1","","3.A","","3",""]
[null,null,null,"3.A.1.2.2","Detail",true,{"$f":"IF(F81=TRUE,IF(VLOOKUP(D81,Data!$B$5:$I$306,8,0)=FALSE,FALSE,VLOOKUP(D81,Data!$B$5:$I$306,8,0)),FALSE)","v":false},"Answer",{"$f":"IF(G81=FALSE,FALSE,VLOOKUP(G81,$A$2:B$5,2,0))","v":false},"3.A.1","","3.A","","3",""]
[null,null,null,"3.A.1.2.3","Detail",true,{"$f":"IF(F82=TRUE,IF(VLOOKUP(D82,Data!$B$5:$I$306,8,0)=FALSE,FALSE,VLOOKUP(D82,Data!$B$5:$I$306,8,0)),FALSE)","v":false},"Answer",{"$f":"IF(G82=FALSE,FALSE,VLOOKUP(G82,$A$2:B$5,2,0))","v":false},"3.A.1","","3.A","","3",""]
[null,null,null,"3.A.1.3","Indicator",true,{"$f":"IF(F83=TRUE,IF(VLOOKUP(D83,Data!$B$5:$I$306,8,0)=FALSE,FALSE,VLOOKUP(D83,Data!$B$5:$I$306,8,0)),FALSE)","v":false},"Answer",{"$f":"IF(G83=FALSE,FALSE,VLOOKUP(G83,$A$2:B$5,2,0))","v":false},"3.A.1","","3.A","","3",""]
[null,null,null,"3.A.2","EP",false,{"$f":"IF(F84=TRUE,IF(VLOOKUP(D84,Data!$B$5:$I$306,8,0)=FALSE,FALSE,VLOOKUP(D84,Data!$B$5:$I$306,8,0)),FALSE)","v":false},"Calculated",{"$f":"IF(G84=FALSE,FALSE,VLOOKUP(G84,$A$2:B$5,2,0))","v":false},"","","","","",""]
[null,null,null,"3.A.2.1","Indicator",true,{"$f":"IF(F85=TRUE,IF(VLOOKUP(D85,Data!$B$5:$I$306,8,0)=FALSE,FALSE,VLOOKUP(D85,Data!$B$5:$I$306,8,0)),FALSE)","v":false},"Answer",{"$f":"IF(G85=FALSE,FALSE,VLOOKUP(G85,$A$2:B$5,2,0))","v":false},"3.A.2","","3.A","","3",""]
[null,null,null,"3.A.2.2","Indicator",false,{"$f":"IF(F86=TRUE,IF(VLOOKUP(D86,Data!$B$5:$I$306,8,0)=FALSE,FALSE,VLOOKUP(D86,Data!$B$5:$I$306,8,0)),FALSE)","v":false},"Answer",{"$f":"IF(G86=FALSE,FALSE,VLOOKUP(G86,$A$2:B$5,2,0))","v":false},"","","","","",""]
[null,null,null,"3.A.2.2.1","Detail",true,{"$f":"IF(F87=TRUE,IF(VLOOKUP(D87,Data!$B$5:$I$306,8,0)=FALSE,FALSE,VLOOKUP(D87,Data!$B$5:$I$306,8,0)),FALSE)","v":false},"Answer",{"$f":"IF(G87=FALSE,FALSE,VLOOKUP(G87,$A$2:B$5,2,0))","v":false},"3.A.2","","3.A","","3",""]
[null,null,null,"3.A.2.2.2","Detail",true,{"$f":"IF(F88=TRUE,IF(VLOOKUP(D88,Data!$B$5:$I$306,8,0)=FALSE,FALSE,VLOOKUP(D88,Data!$B$5:$I$306,8,0)),FALSE)","v":false},"Answer",{"$f":"IF(G88=FALSE,FALSE,VLOOKUP(G88,$A$2:B$5,2,0))","v":false},"3.A.2","","3.A","","3",""]
[null,null,null,"3.A.2.2.3","Detail",true,{"$f":"IF(F89=TRUE,IF(VLOOKUP(D89,Data!$B$5:$I$306,8,0)=FALSE,FALSE,VLOOKUP(D89,Data!$B$5:$I$306,8,0)),FALSE)","v":false},"Answer",{"$f":"IF(G89=FALSE,FALSE,VLOOKUP(G89,$A$2:B$5,2,0))","v":false},"3.A.2","","3.A","","3",""]
[null,null,null,"3.A.2.3","Indicator",true,{"$f":"IF(F90=TRUE,IF(VLOOKUP(D90,Data!$B$5:$I$306,8,0)=FALSE,FALSE,VLOOKUP(D90,Data!$B$5:$I$306,8,0)),FALSE)","v":false},"Answer",{"$f":"IF(G90=FALSE,FALSE,VLOOKUP(G90,$A$2:B$5,2,0))","v":false},"3.A.2","","3.A","","3",""]
[null,null,null,"3.A.2.4","Indicator",true,{"$f":"IF(F91=TRUE,IF(VLOOKUP(D91,Data!$B$5:$I$306,8,0)=FALSE,FALSE,VLOOKUP(D91,Data!$B$5:$I$306,8,0)),FALSE)","v":false},"Answer",{"$f":"IF(G91=FALSE,FALSE,VLOOKUP(G91,$A$2:B$5,2,0))","v":false},"3.A.2","","3.A","","3",""]
[null,null,null,"3.A.3","EP",false,{"$f":"IF(F92=TRUE,IF(VLOOKUP(D92,Data!$B$5:$I$306,8,0)=FALSE,FALSE,VLOOKUP(D92,Data!$B$5:$I$306,8,0)),FALSE)","v":false},"Calculated",{"$f":"IF(G92=FALSE,FALSE,VLOOKUP(G92,$A$2:B$5,2,0))","v":false},"","","","","",""]
[null,null,null,"3.A.3.1","Indicator",true,{"$f":"IF(F93=TRUE,IF(VLOOKUP(D93,Data!$B$5:$I$306,8,0)=FALSE,FALSE,VLOOKUP(D93,Data!$B$5:$I$306,8,0)),FALSE)","v":false},"Answer",{"$f":"IF(G93=FALSE,FALSE,VLOOKUP(G93,$A$2:B$5,2,0))","v":false},"3.A.3","","3.A","","3",""]
[null,null,null,"3.A.3.2","Indicator",false,{"$f":"IF(F94=TRUE,IF(VLOOKUP(D94,Data!$B$5:$I$306,8,0)=FALSE,FALSE,VLOOKUP(D94,Data!$B$5:$I$306,8,0)),FALSE)","v":false},"Answer",{"$f":"IF(G94=FALSE,FALSE,VLOOKUP(G94,$A$2:B$5,2,0))","v":false},"","","","","",""]
[null,null,null,"3.A.3.2.1","Detail",true,{"$f":"IF(F95=TRUE,IF(VLOOKUP(D95,Data!$B$5:$I$306,8,0)=FALSE,FALSE,VLOOKUP(D95,Data!$B$5:$I$306,8,0)),FALSE)","v":false},"Answer",{"$f":"IF(G95=FALSE,FALSE,VLOOKUP(G95,$A$2:B$5,2,0))","v":false},"3.A.3","","3.A","","3",""]
[null,null,null,"3.A.3.2.2","Detail",true,{"$f":"IF(F96=TRUE,IF(VLOOKUP(D96,Data!$B$5:$I$306,8,0)=FALSE,FALSE,VLOOKUP(D96,Data!$B$5:$I$306,8,0)),FALSE)","v":false},"Answer",{"$f":"IF(G96=FALSE,FALSE,VLOOKUP(G96,$A$2:B$5,2,0))","v":false},"3.A.3","","3.A","","3",""]
[null,null,null,"3.A.3.2.3","Detail",true,{"$f":"IF(F97=TRUE,IF(VLOOKUP(D97,Data!$B$5:$I$306,8,0)=FALSE,FALSE,VLOOKUP(D97,Data!$B$5:$I$306,8,0)),FALSE)","v":false},"Answer",{"$f":"IF(G97=FALSE,FALSE,VLOOKUP(G97,$A$2:B$5,2,0))","v":false},"3.A.3","","3.A","","3",""]
[null,null,null,"3.A.3.2.4","Detail",true,{"$f":"IF(F98=TRUE,IF(VLOOKUP(D98,Data!$B$5:$I$306,8,0)=FALSE,FALSE,VLOOKUP(D98,Data!$B$5:$I$306,8,0)),FALSE)","v":false},"Answer",{"$f":"IF(G98=FALSE,FALSE,VLOOKUP(G98,$A$2:B$5,2,0))","v":false},"3.A.3","","3.A","","3",""]
[null,null,null,"3.A.3.2.5","Detail",true,{"$f":"IF(F99=TRUE,IF(VLOOKUP(D99,Data!$B$5:$I$306,8,0)=FALSE,FALSE,VLOOKUP(D99,Data!$B$5:$I$306,8,0)),FALSE)","v":false},"Answer",{"$f":"IF(G99=FALSE,FALSE,VLOOKUP(G99,$A$2:B$5,2,0))","v":false},"3.A.3","","3.A","","3",""]
[null,null,null,"3.A.3.2.6","Detail",true,{"$f":"IF(F100=TRUE,IF(VLOOKUP(D100,Data!$B$5:$I$306,8,0)=FALSE,FALSE,VLOOKUP(D100,Data!$B$5:$I$306,8,0)),FALSE)","v":false},"Answer",{"$f":"IF(G100=FALSE,FALSE,VLOOKUP(G100,$A$2:B$5,2,0))","v":false},"3.A.3","","3.A","","3",""]
[null,null,null,"3.A.3.2.7","Detail",true,{"$f":"IF(F101=TRUE,IF(VLOOKUP(D101,Data!$B$5:$I$306,8,0)=FALSE,FALSE,VLOOKUP(D101,Data!$B$5:$I$306,8,0)),FALSE)","v":false},"Answer",{"$f":"IF(G101=FALSE,FALSE,VLOOKUP(G101,$A$2:B$5,2,0))","v":false},"3.A.3","","3.A","","3",""]
[null,null,null,"3.A.3.3","Indicator",false,{"$f":"IF(F102=TRUE,IF(VLOOKUP(D102,Data!$B$5:$I$306,8,0)=FALSE,FALSE,VLOOKUP(D102,Data!$B$5:$I$306,8,0)),FALSE)","v":false},"Answer",{"$f":"IF(G102=FALSE,FALSE,VLOOKUP(G102,$A$2:B$5,2,0))","v":false},"","","","","",""]
[null,null,null,"3.A.3.3.1","Detail",true,{"$f":"IF(F103=TRUE,IF(VLOOKUP(D103,Data!$B$5:$I$306,8,0)=FALSE,FALSE,VLOOKUP(D103,Data!$B$5:$I$306,8,0)),FALSE)","v":false},"Answer",{"$f":"IF(G103=FALSE,FALSE,VLOOKUP(G103,$A$2:B$5,2,0))","v":false},"3.A.3","","3.A","","3",""]
[null,null,null,"3.A.3.3.2","Detail",true,{"$f":"IF(F104=TRUE,IF(VLOOKUP(D104,Data!$B$5:$I$306,8,0)=FALSE,FALSE,VLOOKUP(D104,Data!$B$5:$I$306,8,0)),FALSE)","v":false},"Answer",{"$f":"IF(G104=FALSE,FALSE,VLOOKUP(G104,$A$2:B$5,2,0))","v":false},"3.A.3","","3.A","","3",""]
[null,null,null,"3.A.3.3.3","Detail",true,{"$f":"IF(F105=TRUE,IF(VLOOKUP(D105,Data!$B$5:$I$306,8,0)=FALSE,FALSE,VLOOKUP(D105,Data!$B$5:$I$306,8,0)),FALSE)","v":false},"Answer",{"$f":"IF(G105=FALSE,FALSE,VLOOKUP(G105,$A$2:B$5,2,0))","v":false},"3.A.3","","3.A","","3",""]
[null,null,null,"3.A.3.3.4","Detail",true,{"$f":"IF(F106=TRUE,IF(VLOOKUP(D106,Data!$B$5:$I$306,8,0)=FALSE,FALSE,VLOOKUP(D106,Data!$B$5:$I$306,8,0)),FALSE)","v":false},"Answer",{"$f":"IF(G106=FALSE,FALSE,VLOOKUP(G106,$A$2:B$5,2,0))","v":false},"3.A.3","","3.A","","3",""]
[null,null,null,"3.A.3.4","Indicator",false,{"$f":"IF(F107=TRUE,IF(VLOOKUP(D107,Data!$B$5:$I$306,8,0)=FALSE,FALSE,VLOOKUP(D107,Data!$B$5:$I$306,8,0)),FALSE)","v":false},"Answer",{"$f":"IF(G107=FALSE,FALSE,VLOOKUP(G107,$A$2:B$5,2,0))","v":false},"","","","","",""]
[null,null,null,"3.A.3.4.1","Detail",true,{"$f":"IF(F108=TRUE,IF(VLOOKUP(D108,Data!$B$5:$I$306,8,0)=FALSE,FALSE,VLOOKUP(D108,Data!$B$5:$I$306,8,0)),FALSE)","v":false},"Answer",{"$f":"IF(G108=FALSE,FALSE,VLOOKUP(G108,$A$2:B$5,2,0))","v":false},"3.A.3","","3.A","","3",""]
[null,null,null,"3.A.3.4.2","Detail",true,{"$f":"IF(F109=TRUE,IF(VLOOKUP(D109,Data!$B$5:$I$306,8,0)=FALSE,FALSE,VLOOKUP(D109,Data!$B$5:$I$306,8,0)),FALSE)","v":false},"Answer",{"$f":"IF(G109=FALSE,FALSE,VLOOKUP(G109,$A$2:B$5,2,0))","v":false},"3.A.3","","3.A","","3",""]
[null,null,null,"3.B","Standard",false,{"$f":"IF(F110=TRUE,IF(VLOOKUP(D110,Data!$B$5:$I$306,8,0)=FALSE,FALSE,VLOOKUP(D110,Data!$B$5:$I$306,8,0)),FALSE)","v":false},"Calculated",{"$f":"IF(G110=FALSE,FALSE,VLOOKUP(G110,$A$2:B$5,2,0))","v":false},"","","","","",""]
[null,null,null,"3.B.1","EP",false,{"$f":"IF(F111=TRUE,IF(VLOOKUP(D111,Data!$B$5:$I$306,8,0)=FALSE,FALSE,VLOOKUP(D111,Data!$B$5:$I$306,8,0)),FALSE)","v":false},"Calculated",{"$f":"IF(G111=FALSE,FALSE,VLOOKUP(G111,$A$2:B$5,2,0))","v":false},"","","","","",""]
[null,null,null,"3.B.1.1","Indicator",false,{"$f":"IF(F112=TRUE,IF(VLOOKUP(D112,Data!$B$5:$I$306,8,0)=FALSE,FALSE,VLOOKUP(D112,Data!$B$5:$I$306,8,0)),FALSE)","v":false},"Answer",{"$f":"IF(G112=FALSE,FALSE,VLOOKUP(G112,$A$2:B$5,2,0))","v":false},"","","","","",""]
[null,null,null,"3.B.1.1.1","Detail",true,{"$f":"IF(F113=TRUE,IF(VLOOKUP(D113,Data!$B$5:$I$306,8,0)=FALSE,FALSE,VLOOKUP(D113,Data!$B$5:$I$306,8,0)),FALSE)","v":false},"Answer",{"$f":"IF(G113=FALSE,FALSE,VLOOKUP(G113,$A$2:B$5,2,0))","v":false},"3.B.1","","3.B","","3",""]
[null,null,null,"3.B.1.1.2","Detail",true,{"$f":"IF(F114=TRUE,IF(VLOOKUP(D114,Data!$B$5:$I$306,8,0)=FALSE,FALSE,VLOOKUP(D114,Data!$B$5:$I$306,8,0)),FALSE)","v":false},"Answer",{"$f":"IF(G114=FALSE,FALSE,VLOOKUP(G114,$A$2:B$5,2,0))","v":false},"3.B.1","","3.B","","3",""]
[null,null,null,"3.B.1.2","Indicator",true,{"$f":"IF(F115=TRUE,IF(VLOOKUP(D115,Data!$B$5:$I$306,8,0)=FALSE,FALSE,VLOOKUP(D115,Data!$B$5:$I$306,8,0)),FALSE)","v":false},"Answer",{"$f":"IF(G115=FALSE,FALSE,VLOOKUP(G115,$A$2:B$5,2,0))","v":false},"3.B.1","","3.B","","3",""]
[null,null,null,"3.B.2","EP",false,{"$f":"IF(F116=TRUE,IF(VLOOKUP(D116,Data!$B$5:$I$306,8,0)=FALSE,FALSE,VLOOKUP(D116,Data!$B$5:$I$306,8,0)),FALSE)","v":false},"Calculated",{"$f":"IF(G116=FALSE,FALSE,VLOOKUP(G116,$A$2:B$5,2,0))","v":false},"","","","","",""]
[null,null,null,"3.B.2.1","Indicator",true,{"$f":"IF(F117=TRUE,IF(VLOOKUP(D117,Data!$B$5:$I$306,8,0)=FALSE,FALSE,VLOOKUP(D117,Data!$B$5:$I$306,8,0)),FALSE)","v":false},"Answer",{"$f":"IF(G117=FALSE,FALSE,VLOOKUP(G117,$A$2:B$5,2,0))","v":false},"3.B.2","","3.B","","3",""]
[null,null,null,"3.B.2.2","Indicator",false,{"$f":"IF(F118=TRUE,IF(VLOOKUP(D118,Data!$B$5:$I$306,8,0)=FALSE,FALSE,VLOOKUP(D118,Data!$B$5:$I$306,8,0)),FALSE)","v":false},"Answer",{"$f":"IF(G118=FALSE,FALSE,VLOOKUP(G118,$A$2:B$5,2,0))","v":false},"","","","","",""]
[null,null,null,"3.B.2.2.1","Detail",true,{"$f":"IF(F119=TRUE,IF(VLOOKUP(D119,Data!$B$5:$I$306,8,0)=FALSE,FALSE,VLOOKUP(D119,Data!$B$5:$I$306,8,0)),FALSE)","v":false},"Answer",{"$f":"IF(G119=FALSE,FALSE,VLOOKUP(G119,$A$2:B$5,2,0))","v":false},"3.B.2","","3.B","","3",""]
[null,null,null,"3.B.2.2.2","Detail",true,{"$f":"IF(F120=TRUE,IF(VLOOKUP(D120,Data!$B$5:$I$306,8,0)=FALSE,FALSE,VLOOKUP(D120,Data!$B$5:$I$306,8,0)),FALSE)","v":false},"Answer",{"$f":"IF(G120=FALSE,FALSE,VLOOKUP(G120,$A$2:B$5,2,0))","v":false},"3.B.2","","3.B","","3",""]
[null,null,null,"3.B.2.2.3","Detail",true,{"$f":"IF(F121=TRUE,IF(VLOOKUP(D121,Data!$B$5:$I$306,8,0)=FALSE,FALSE,VLOOKUP(D121,Data!$B$5:$I$306,8,0)),FALSE)","v":false},"Answer",{"$f":"IF(G121=FALSE,FALSE,VLOOKUP(G121,$A$2:B$5,2,0))","v":false},"3.B.2","","3.B","","3",""]
[null,null,null,"3.B.2.2.4","Detail",true,{"$f":"IF(F122=TRUE,IF(VLOOKUP(D122,Data!$B$5:$I$306,8,0)=FALSE,FALSE,VLOOKUP(D122,Data!$B$5:$I$306,8,0)),FALSE)","v":false},"Answer",{"$f":"IF(G122=FALSE,FALSE,VLOOKUP(G122,$A$2:B$5,2,0))","v":false},"3.B.2","","3.B","","3",""]
[null,null,null,"3.B.2.2.5","Detail",true,{"$f":"IF(F123=TRUE,IF(VLOOKUP(D123,Data!$B$5:$I$306,8,0)=FALSE,FALSE,VLOOKUP(D123,Data!$B$5:$I$306,8,0)),FALSE)","v":false},"Answer",{"$f":"IF(G123=FALSE,FALSE,VLOOKUP(G123,$A$2:B$5,2,0))","v":false},"3.B.2","","3.B","","3",""]
[null,null,null,"4","Dimension",false,{"$f":"IF(F124=TRUE,IF(VLOOKUP(D124,Data!$B$5:$I$306,8,0)=FALSE,FALSE,VLOOKUP(D124,Data!$B$5:$I$306,8,0)),FALSE)","v":false},"Calculated",{"$f":"IF(G124=FALSE,FALSE,VLOOKUP(G124,$A$2:B$5,2,0))","v":false},"","","","","",""]
[null,null,null,"4.A","Standard",false,{"$f":"IF(F125=TRUE,IF(VLOOKUP(D125,Data!$B$5:$I$306,8,0)=FALSE,FALSE,VLOOKUP(D125,Data!$B$5:$I$306,8,0)),FALSE)","v":false},"Calculated",{"$f":"IF(G125=FALSE,FALSE,VLOOKUP(G125,$A$2:B$5,2,0))","v":false},"","","","","",""]
[null,null,null,"4.A.1","EP",false,{"$f":"IF(F126=TRUE,IF(VLOOKUP(D126,Data!$B$5:$I$306,8,0)=FALSE,FALSE,VLOOKUP(D126,Data!$B$5:$I$306,8,0)),FALSE)","v":false},"Calculated",{"$f":"IF(G126=FALSE,FALSE,VLOOKUP(G126,$A$2:B$5,2,0))","v":false},"","","","","",""]
[null,null,null,"4.A.1.1","Indicator",true,{"$f":"IF(F127=TRUE,IF(VLOOKUP(D127,Data!$B$5:$I$306,8,0)=FALSE,FALSE,VLOOKUP(D127,Data!$B$5:$I$306,8,0)),FALSE)","v":false},"Answer",{"$f":"IF(G127=FALSE,FALSE,VLOOKUP(G127,$A$2:B$5,2,0))","v":false},"4.A.1","","4.A","","4",""]
[null,null,null,"4.A.1.2","Indicator",true,{"$f":"IF(F128=TRUE,IF(VLOOKUP(D128,Data!$B$5:$I$306,8,0)=FALSE,FALSE,VLOOKUP(D128,Data!$B$5:$I$306,8,0)),FALSE)","v":false},"Answer",{"$f":"IF(G128=FALSE,FALSE,VLOOKUP(G128,$A$2:B$5,2,0))","v":false},"4.A.1","","4.A","","4",""]
[null,null,null,"4.A.1.3","Indicator",true,{"$f":"IF(F129=TRUE,IF(VLOOKUP(D129,Data!$B$5:$I$306,8,0)=FALSE,FALSE,VLOOKUP(D129,Data!$B$5:$I$306,8,0)),FALSE)","v":false},"Answer",{"$f":"IF(G129=FALSE,FALSE,VLOOKUP(G129,$A$2:B$5,2,0))","v":false},"4.A.1","","4.A","","4",""]
[null,null,null,"4.A.2","EP",false,{"$f":"IF(F130=TRUE,IF(VLOOKUP(D130,Data!$B$5:$I$306,8,0)=FALSE,FALSE,VLOOKUP(D130,Data!$B$5:$I$306,8,0)),FALSE)","v":false},"Calculated",{"$f":"IF(G130=FALSE,FALSE,VLOOKUP(G130,$A$2:B$5,2,0))","v":false},"","","","","",""]
[null,null,null,"4.A.2.1","Indicator",false,{"$f":"IF(F131=TRUE,IF(VLOOKUP(D131,Data!$B$5:$I$306,8,0)=FALSE,FALSE,VLOOKUP(D131,Data!$B$5:$I$306,8,0)),FALSE)","v":false},{"$f":"IF(OR(E131=A$7,E131=A$8,E131=A$9),\"Calculated\",\"Answer\")","v":"Answer"},{"$f":"IF(G131=FALSE,FALSE,VLOOKUP(G131,$A$2:B$5,2,0))","v":false},"",{"$f":"IFERROR(IF(AND(F131=TRUE,COUNTIF(INDIRECT(\"J\"&ROW(J132)&\":J\"&$B$13),J131)=0),AVERAGEIFS(I:I,J:J,LEFT(D131,5)),\"\"),\"\")","v":""},"",{"$f":"IFERROR(IF(AND(F131=TRUE,COUNTIF(INDIRECT(\"L\"&ROW(L132)&\":L\"&$B$13),L131)=0),AVERAGEIFS(I:I,L:L,LEFT(D131,3)),\"\"),\"\")","v":""},"",{"$f":"IFERROR(IF(AND(F131=TRUE,COUNTIF(INDIRECT(\"n\"&ROW(N132)&\":n\"&$B$13),N131)=0),AVERAGEIFS(M:M,N:N,LEFT(D131,1)),\"\"),\"\")","v":""}]
[null,null,null,"4.A.2.1.1","Detail",true,{"$f":"IF(F132=TRUE,IF(VLOOKUP(D132,Data!$B$5:$I$306,8,0)=FALSE,FALSE,VLOOKUP(D132,Data!$B$5:$I$306,8,0)),FALSE)","v":false},"Answer",{"$f":"IF(G132=FALSE,FALSE,VLOOKUP(G132,$A$2:B$5,2,0))","v":false},{"$f":"IF(F132=TRUE,LEFT(D132,5),\"\")","v":"4.A.2"},"",{"$f":"IF(F132=TRUE,LEFT(D132,3),\"\")","v":"4.A"},"",{"$f":"IF(F132=TRUE,LEFT(D132,1),\"\")","v":"4"},""]
[null,null,null,"4.A.2.1.2","Detail",true,{"$f":"IF(F133=TRUE,IF(VLOOKUP(D133,Data!$B$5:$I$306,8,0)=FALSE,FALSE,VLOOKUP(D133,Data!$B$5:$I$306,8,0)),FALSE)","v":false},"Answer",{"$f":"IF(G133=FALSE,FALSE,VLOOKUP(G133,$A$2:B$5,2,0))","v":false},"4.A.2","","4.A","","4",""]
[null,null,null,"4.A.2.1.3","Detail",true,{"$f":"IF(F134=TRUE,IF(VLOOKUP(D134,Data!$B$5:$I$306,8,0)=FALSE,FALSE,VLOOKUP(D134,Data!$B$5:$I$306,8,0)),FALSE)","v":false},"Answer",{"$f":"IF(G134=FALSE,FALSE,VLOOKUP(G134,$A$2:B$5,2,0))","v":false},"4.A.2","","4.A","","4",""]
[null,null,null,"4.A.2.2","Indicator",true,{"$f":"IF(F135=TRUE,IF(VLOOKUP(D135,Data!$B$5:$I$306,8,0)=FALSE,FALSE,VLOOKUP(D135,Data!$B$5:$I$306,8,0)),FALSE)","v":false},"Answer",{"$f":"IF(G135=FALSE,FALSE,VLOOKUP(G135,$A$2:B$5,2,0))","v":false},"4.A.2","","4.A","","4",""]
[null,null,null,"4.A.2.3","Indicator",false,{"$f":"IF(F136=TRUE,IF(VLOOKUP(D136,Data!$B$5:$I$306,8,0)=FALSE,FALSE,VLOOKUP(D136,Data!$B$5:$I$306,8,0)),FALSE)","v":false},"Answer",{"$f":"IF(G136=FALSE,FALSE,VLOOKUP(G136,$A$2:B$5,2,0))","v":false},"","","","","",""]
[null,null,null,"4.A.2.3.1","Detail",true,{"$f":"IF(F137=TRUE,IF(VLOOKUP(D137,Data!$B$5:$I$306,8,0)=FALSE,FALSE,VLOOKUP(D137,Data!$B$5:$I$306,8,0)),FALSE)","v":false},"Answer",{"$f":"IF(G137=FALSE,FALSE,VLOOKUP(G137,$A$2:B$5,2,0))","v":false},"4.A.2","","4.A","","4",""]
[null,null,null,"4.A.2.3.2","Detail",true,{"$f":"IF(F138=TRUE,IF(VLOOKUP(D138,Data!$B$5:$I$306,8,0)=FALSE,FALSE,VLOOKUP(D138,Data!$B$5:$I$306,8,0)),FALSE)","v":false},"Answer",{"$f":"IF(G138=FALSE,FALSE,VLOOKUP(G138,$A$2:B$5,2,0))","v":false},"4.A.2","","4.A","","4",""]
[null,null,null,"4.A.2.3.3","Detail",true,{"$f":"IF(F139=TRUE,IF(VLOOKUP(D139,Data!$B$5:$I$306,8,0)=FALSE,FALSE,VLOOKUP(D139,Data!$B$5:$I$306,8,0)),FALSE)","v":false},"Answer",{"$f":"IF(G139=FALSE,FALSE,VLOOKUP(G139,$A$2:B$5,2,0))","v":false},"4.A.2","","4.A","","4",""]
[null,null,null,"4.A.2.3.4","Detail",true,{"$f":"IF(F140=TRUE,IF(VLOOKUP(D140,Data!$B$5:$I$306,8,0)=FALSE,FALSE,VLOOKUP(D140,Data!$B$5:$I$306,8,0)),FALSE)","v":false},"Answer",{"$f":"IF(G140=FALSE,FALSE,VLOOKUP(G140,$A$2:B$5,2,0))","v":false},"4.A.2","","4.A","","4",""]
[null,null,null,"4.A.2.3.5","Detail",true,{"$f":"IF(F141=TRUE,IF(VLOOKUP(D141,Data!$B$5:$I$306,8,0)=FALSE,FALSE,VLOOKUP(D141,Data!$B$5:$I$306,8,0)),FALSE)","v":false},"Answer",{"$f":"IF(G141=FALSE,FALSE,VLOOKUP(G141,$A$2:B$5,2,0))","v":false},"4.A.2","","4.A","","4",""]
[null,null,null,"4.A.2.3.6","Detail",true,{"$f":"IF(F142=TRUE,IF(VLOOKUP(D142,Data!$B$5:$I$306,8,0)=FALSE,FALSE,VLOOKUP(D142,Data!$B$5:$I$306,8,0)),FALSE)","v":false},"Answer",{"$f":"IF(G142=FALSE,FALSE,VLOOKUP(G142,$A$2:B$5,2,0))","v":false},"4.A.2","","4.A","","4",""]
[null,null,null,"4.A.2.3.7","Detail",true,{"$f":"IF(F143=TRUE,IF(VLOOKUP(D143,Data!$B$5:$I$306,8,0)=FALSE,FALSE,VLOOKUP(D143,Data!$B$5:$I$306,8,0)),FALSE)","v":false},"Answer",{"$f":"IF(G143=FALSE,FALSE,VLOOKUP(G143,$A$2:B$5,2,0))","v":false},"4.A.2","","4.A","","4",""]
[null,null,null,"4.A.2.3.8","Detail",true,{"$f":"IF(F144=TRUE,IF(VLOOKUP(D144,Data!$B$5:$I$306,8,0)=FALSE,FALSE,VLOOKUP(D144,Data!$B$5:$I$306,8,0)),FALSE)","v":false},"Answer",{"$f":"IF(G144=FALSE,FALSE,VLOOKUP(G144,$A$2:B$5,2,0))","v":false},"4.A.2","","4.A","","4",""]
[null,null,null,"4.A.2.3.9","Detail",true,{"$f":"IF(F145=TRUE,IF(VLOOKUP(D145,Data!$B$5:$I$306,8,0)=FALSE,FALSE,VLOOKUP(D145,Data!$B$5:$I$306,8,0)),FALSE)","v":false},"Answer",{"$f":"IF(G145=FALSE,FALSE,VLOOKUP(G145,$A$2:B$5,2,0))","v":false},"4.A.2","","4.A","","4",""]
[null,null,null,"4.A.2.4","Indicator",false,{"$f":"IF(F146=TRUE,IF(VLOOKUP(D146,Data!$B$5:$I$306,8,0)=FALSE,FALSE,VLOOKUP(D146,Data!$B$5:$I$306,8,0)),FALSE)","v":false},"Answer",{"$f":"IF(G146=FALSE,FALSE,VLOOKUP(G146,$A$2:B$5,2,0))","v":false},"","","","","",""]
[null,null,null,"4.A.2.4.1","Detail",true,{"$f":"IF(F147=TRUE,IF(VLOOKUP(D147,Data!$B$5:$I$306,8,0)=FALSE,FALSE,VLOOKUP(D147,Data!$B$5:$I$306,8,0)),FALSE)","v":false},"Answer",{"$f":"IF(G147=FALSE,FALSE,VLOOKUP(G147,$A$2:B$5,2,0))","v":false},"4.A.2","","4.A","","4",""]
[null,null,null,"4.A.2.4.2","Detail",true,{"$f":"IF(F148=TRUE,IF(VLOOKUP(D148,Data!$B$5:$I$306,8,0)=FALSE,FALSE,VLOOKUP(D148,Data!$B$5:$I$306,8,0)),FALSE)","v":false},"Answer",{"$f":"IF(G148=FALSE,FALSE,VLOOKUP(G148,$A$2:B$5,2,0))","v":false},"4.A.2","","4.A","","4",""]
[null,null,null,"4.A.2.4.3","Detail",true,{"$f":"IF(F149=TRUE,IF(VLOOKUP(D149,Data!$B$5:$I$306,8,0)=FALSE,FALSE,VLOOKUP(D149,Data!$B$5:$I$306,8,0)),FALSE)","v":false},"Answer",{"$f":"IF(G149=FALSE,FALSE,VLOOKUP(G149,$A$2:B$5,2,0))","v":false},"4.A.2","","4.A","","4",""]
[null,null,null,"4.B","Standard",false,{"$f":"IF(F150=TRUE,IF(VLOOKUP(D150,Data!$B$5:$I$306,8,0)=FALSE,FALSE,VLOOKUP(D150,Data!$B$5:$I$306,8,0)),FALSE)","v":false},"Calculated",{"$f":"IF(G150=FALSE,FALSE,VLOOKUP(G150,$A$2:B$5,2,0))","v":false},"","","","","",""]
[null,null,null,"4.B.1","EP",false,{"$f":"IF(F151=TRUE,IF(VLOOKUP(D151,Data!$B$5:$I$306,8,0)=FALSE,FALSE,VLOOKUP(D151,Data!$B$5:$I$306,8,0)),FALSE)","v":false},"Calculated",{"$f":"IF(G151=FALSE,FALSE,VLOOKUP(G151,$A$2:B$5,2,0))","v":false},"","","","","",""]
[null,null,null,"4.B.1.1","Indicator",true,{"$f":"IF(F152=TRUE,IF(VLOOKUP(D152,Data!$B$5:$I$306,8,0)=FALSE,FALSE,VLOOKUP(D152,Data!$B$5:$I$306,8,0)),FALSE)","v":false},"Answer",{"$f":"IF(G152=FALSE,FALSE,VLOOKUP(G152,$A$2:B$5,2,0))","v":false},"4.B.1","","4.B","","4",""]
[null,null,null,"4.B.1.2","Indicator",false,{"$f":"IF(F153=TRUE,IF(VLOOKUP(D153,Data!$B$5:$I$306,8,0)=FALSE,FALSE,VLOOKUP(D153,Data!$B$5:$I$306,8,0)),FALSE)","v":false},"Answer",{"$f":"IF(G153=FALSE,FALSE,VLOOKUP(G153,$A$2:B$5,2,0))","v":false},"","","","","",""]
[null,null,null,"4.B.1.2.1","Detail",true,{"$f":"IF(F154=TRUE,IF(VLOOKUP(D154,Data!$B$5:$I$306,8,0)=FALSE,FALSE,VLOOKUP(D154,Data!$B$5:$I$306,8,0)),FALSE)","v":false},"Answer",{"$f":"IF(G154=FALSE,FALSE,VLOOKUP(G154,$A$2:B$5,2,0))","v":false},"4.B.1","","4.B","","4",""]
[null,null,null,"4.B.1.2.2","Detail",true,{"$f":"IF(F155=TRUE,IF(VLOOKUP(D155,Data!$B$5:$I$306,8,0)=FALSE,FALSE,VLOOKUP(D155,Data!$B$5:$I$306,8,0)),FALSE)","v":false},"Answer",{"$f":"IF(G155=FALSE,FALSE,VLOOKUP(G155,$A$2:B$5,2,0))","v":false},"4.B.1","","4.B","","4",""]
[null,null,null,"4.B.1.2.3","Detail",true,{"$f":"IF(F156=TRUE,IF(VLOOKUP(D156,Data!$B$5:$I$306,8,0)=FALSE,FALSE,VLOOKUP(D156,Data!$B$5:$I$306,8,0)),FALSE)","v":false},"Answer",{"$f":"IF(G156=FALSE,FALSE,VLOOKUP(G156,$A$2:B$5,2,0))","v":false},"4.B.1","","4.B","","4",""]
[null,null,null,"4.B.1.3","Indicator",false,{"$f":"IF(F157=TRUE,IF(VLOOKUP(D157,Data!$B$5:$I$306,8,0)=FALSE,FALSE,VLOOKUP(D157,Data!$B$5:$I$306,8,0)),FALSE)","v":false},"Answer",{"$f":"IF(G157=FALSE,FALSE,VLOOKUP(G157,$A$2:B$5,2,0))","v":false},"","","","","",""]
[null,null,null,"4.B.1.3.1","Detail",true,{"$f":"IF(F158=TRUE,IF(VLOOKUP(D158,Data!$B$5:$I$306,8,0)=FALSE,FALSE,VLOOKUP(D158,Data!$B$5:$I$306,8,0)),FALSE)","v":false},"Answer",{"$f":"IF(G158=FALSE,FALSE,VLOOKUP(G158,$A$2:B$5,2,0))","v":false},"4.B.1","","4.B","","4",""]
[null,null,null,"4.B.1.3.2","Detail",true,{"$f":"IF(F159=TRUE,IF(VLOOKUP(D159,Data!$B$5:$I$306,8,0)=FALSE,FALSE,VLOOKUP(D159,Data!$B$5:$I$306,8,0)),FALSE)","v":false},"Answer",{"$f":"IF(G159=FALSE,FALSE,VLOOKUP(G159,$A$2:B$5,2,0))","v":false},"4.B.1","","4.B","","4",""]
[null,null,null,"4.B.1.3.3","Detail",true,{"$f":"IF(F160=TRUE,IF(VLOOKUP(D160,Data!$B$5:$I$306,8,0)=FALSE,FALSE,VLOOKUP(D160,Data!$B$5:$I$306,8,0)),FALSE)","v":false},"Answer",{"$f":"IF(G160=FALSE,FALSE,VLOOKUP(G160,$A$2:B$5,2,0))","v":false},"4.B.1","","4.B","","4",""]
[null,null,null,"4.B.1.3.4","Detail",true,{"$f":"IF(F161=TRUE,IF(VLOOKUP(D161,Data!$B$5:$I$306,8,0)=FALSE,FALSE,VLOOKUP(D161,Data!$B$5:$I$306,8,0)),FALSE)","v":false},"Answer",{"$f":"IF(G161=FALSE,FALSE,VLOOKUP(G161,$A$2:B$5,2,0))","v":false},"4.B.1","","4.B","","4",""]
[null,null,null,"4.B.1.4","Indicator",true,{"$f":"IF(F162=TRUE,IF(VLOOKUP(D162,Data!$B$5:$I$306,8,0)=FALSE,FALSE,VLOOKUP(D162,Data!$B$5:$I$306,8,0)),FALSE)","v":false},"Answer",{"$f":"IF(G162=FALSE,FALSE,VLOOKUP(G162,$A$2:B$5,2,0))","v":false},"4.B.1","","4.B","","4",""]
[null,null,null,"4.B.2","EP",false,{"$f":"IF(F163=TRUE,IF(VLOOKUP(D163,Data!$B$5:$I$306,8,0)=FALSE,FALSE,VLOOKUP(D163,Data!$B$5:$I$306,8,0)),FALSE)","v":false},"Calculated",{"$f":"IF(G163=FALSE,FALSE,VLOOKUP(G163,$A$2:B$5,2,0))","v":false},"","","","","",""]
[null,null,null,"4.B.2.1","Indicator",false,{"$f":"IF(F164=TRUE,IF(VLOOKUP(D164,Data!$B$5:$I$306,8,0)=FALSE,FALSE,VLOOKUP(D164,Data!$B$5:$I$306,8,0)),FALSE)","v":false},"Answer",{"$f":"IF(G164=FALSE,FALSE,VLOOKUP(G164,$A$2:B$5,2,0))","v":false},"","","","","",""]
[null,null,null,"4.B.2.1.1","Detail",true,{"$f":"IF(F165=TRUE,IF(VLOOKUP(D165,Data!$B$5:$I$306,8,0)=FALSE,FALSE,VLOOKUP(D165,Data!$B$5:$I$306,8,0)),FALSE)","v":false},"Answer",{"$f":"IF(G165=FALSE,FALSE,VLOOKUP(G165,$A$2:B$5,2,0))","v":false},"4.B.2","","4.B","","4",""]
[null,null,null,"4.B.2.1.2","Detail",true,{"$f":"IF(F166=TRUE,IF(VLOOKUP(D166,Data!$B$5:$I$306,8,0)=FALSE,FALSE,VLOOKUP(D166,Data!$B$5:$I$306,8,0)),FALSE)","v":false},"Answer",{"$f":"IF(G166=FALSE,FALSE,VLOOKUP(G166,$A$2:B$5,2,0))","v":false},"4.B.2","","4.B","","4",""]
[null,null,null,"4.B.2.2","Indicator",false,{"$f":"IF(F167=TRUE,IF(VLOOKUP(D167,Data!$B$5:$I$306,8,0)=FALSE,FALSE,VLOOKUP(D167,Data!$B$5:$I$306,8,0)),FALSE)","v":false},"Answer",{"$f":"IF(G167=FALSE,FALSE,VLOOKUP(G167,$A$2:B$5,2,0))","v":false},"","","","","",""]
[null,null,null,"4.B.2.2.1","Detail",true,{"$f":"IF(F168=TRUE,IF(VLOOKUP(D168,Data!$B$5:$I$306,8,0)=FALSE,FALSE,VLOOKUP(D168,Data!$B$5:$I$306,8,0)),FALSE)","v":false},"Answer",{"$f":"IF(G168=FALSE,FALSE,VLOOKUP(G168,$A$2:B$5,2,0))","v":false},"4.B.2","","4.B","","4",""]
[null,null,null,"4.B.2.2.2","Detail",true,{"$f":"IF(F169=TRUE,IF(VLOOKUP(D169,Data!$B$5:$I$306,8,0)=FALSE,FALSE,VLOOKUP(D169,Data!$B$5:$I$306,8,0)),FALSE)","v":false},"Answer",{"$f":"IF(G169=FALSE,FALSE,VLOOKUP(G169,$A$2:B$5,2,0))","v":false},"4.B.2","","4.B","","4",""]
[null,null,null,"4.B.2.2.3","Detail",true,{"$f":"IF(F170=TRUE,IF(VLOOKUP(D170,Data!$B$5:$I$306,8,0)=FALSE,FALSE,VLOOKUP(D170,Data!$B$5:$I$306,8,0)),FALSE)","v":false},"Answer",{"$f":"IF(G170=FALSE,FALSE,VLOOKUP(G170,$A$2:B$5,2,0))","v":false},"4.B.2","","4.B","","4",""]
[null,null,null,"5","Dimension",false,{"$f":"IF(F171=TRUE,IF(VLOOKUP(D171,Data!$B$5:$I$306,8,0)=FALSE,FALSE,VLOOKUP(D171,Data!$B$5:$I$306,8,0)),FALSE)","v":false},"Calculated",{"$f":"IF(G171=FALSE,FALSE,VLOOKUP(G171,$A$2:B$5,2,0))","v":false},"","","","","",""]
[null,null,null,"5.A","Standard",false,{"$f":"IF(F172=TRUE,IF(VLOOKUP(D172,Data!$B$5:$I$306,8,0)=FALSE,FALSE,VLOOKUP(D172,Data!$B$5:$I$306,8,0)),FALSE)","v":false},"Calculated",{"$f":"IF(G172=FALSE,FALSE,VLOOKUP(G172,$A$2:B$5,2,0))","v":false},"","","","","",""]
[null,null,null,"5.A.1","EP",false,{"$f":"IF(F173=TRUE,IF(VLOOKUP(D173,Data!$B$5:$I$306,8,0)=FALSE,FALSE,VLOOKUP(D173,Data!$B$5:$I$306,8,0)),FALSE)","v":false},"Calculated",{"$f":"IF(G173=FALSE,FALSE,VLOOKUP(G173,$A$2:B$5,2,0))","v":false},"","","","","",""]
[null,null,null,"5.A.1.1","Indicator",true,{"$f":"IF(F174=TRUE,IF(VLOOKUP(D174,Data!$B$5:$I$306,8,0)=FALSE,FALSE,VLOOKUP(D174,Data!$B$5:$I$306,8,0)),FALSE)","v":false},"Answer",{"$f":"IF(G174=FALSE,FALSE,VLOOKUP(G174,$A$2:B$5,2,0))","v":false},"5.A.1","","5.A","","5",""]
[null,null,null,"5.A.1.2","Indicator",true,{"$f":"IF(F175=TRUE,IF(VLOOKUP(D175,Data!$B$5:$I$306,8,0)=FALSE,FALSE,VLOOKUP(D175,Data!$B$5:$I$306,8,0)),FALSE)","v":false},"Answer",{"$f":"IF(G175=FALSE,FALSE,VLOOKUP(G175,$A$2:B$5,2,0))","v":false},"5.A.1","","5.A","","5",""]
[null,null,null,"5.A.2","EP",false,{"$f":"IF(F176=TRUE,IF(VLOOKUP(D176,Data!$B$5:$I$306,8,0)=FALSE,FALSE,VLOOKUP(D176,Data!$B$5:$I$306,8,0)),FALSE)","v":false},"Calculated",{"$f":"IF(G176=FALSE,FALSE,VLOOKUP(G176,$A$2:B$5,2,0))","v":false},"","","","","",""]
[null,null,null,"5.A.2.1","Indicator",true,{"$f":"IF(F177=TRUE,IF(VLOOKUP(D177,Data!$B$5:$I$306,8,0)=FALSE,FALSE,VLOOKUP(D177,Data!$B$5:$I$306,8,0)),FALSE)","v":false},"Answer",{"$f":"IF(G177=FALSE,FALSE,VLOOKUP(G177,$A$2:B$5,2,0))","v":false},"5.A.2","","5.A","","5",""]
[null,null,null,"5.A.2.2","Indicator",false,{"$f":"IF(F178=TRUE,IF(VLOOKUP(D178,Data!$B$5:$I$306,8,0)=FALSE,FALSE,VLOOKUP(D178,Data!$B$5:$I$306,8,0)),FALSE)","v":false},"Answer",{"$f":"IF(G178=FALSE,FALSE,VLOOKUP(G178,$A$2:B$5,2,0))","v":false},"","","","","",""]
[null,null,null,"5.A.2.2.1","Detail",true,{"$f":"IF(F179=TRUE,IF(VLOOKUP(D179,Data!$B$5:$I$306,8,0)=FALSE,FALSE,VLOOKUP(D179,Data!$B$5:$I$306,8,0)),FALSE)","v":false},"Answer",{"$f":"IF(G179=FALSE,FALSE,VLOOKUP(G179,$A$2:B$5,2,0))","v":false},"5.A.2","","5.A","","5",""]
[null,null,null,"5.A.2.2.2","Detail",true,{"$f":"IF(F180=TRUE,IF(VLOOKUP(D180,Data!$B$5:$I$306,8,0)=FALSE,FALSE,VLOOKUP(D180,Data!$B$5:$I$306,8,0)),FALSE)","v":false},"Answer",{"$f":"IF(G180=FALSE,FALSE,VLOOKUP(G180,$A$2:B$5,2,0))","v":false},"5.A.2","","5.A","","5",""]
[null,null,null,"5.A.2.2.3","Detail",true,{"$f":"IF(F181=TRUE,IF(VLOOKUP(D181,Data!$B$5:$I$306,8,0)=FALSE,FALSE,VLOOKUP(D181,Data!$B$5:$I$306,8,0)),FALSE)","v":false},"Answer",{"$f":"IF(G181=FALSE,FALSE,VLOOKUP(G181,$A$2:B$5,2,0))","v":false},"5.A.2","","5.A","","5",""]
[null,null,null,"5.A.3","EP",false,{"$f":"IF(F182=TRUE,IF(VLOOKUP(D182,Data!$B$5:$I$306,8,0)=FALSE,FALSE,VLOOKUP(D182,Data!$B$5:$I$306,8,0)),FALSE)","v":false},"Calculated",{"$f":"IF(G182=FALSE,FALSE,VLOOKUP(G182,$A$2:B$5,2,0))","v":false},"","","","","",""]
[null,null,null,"5.A.3.1","Indicator",true,{"$f":"IF(F183=TRUE,IF(VLOOKUP(D183,Data!$B$5:$I$306,8,0)=FALSE,FALSE,VLOOKUP(D183,Data!$B$5:$I$306,8,0)),FALSE)","v":false},"Answer",{"$f":"IF(G183=FALSE,FALSE,VLOOKUP(G183,$A$2:B$5,2,0))","v":false},"5.A.3","","5.A","","5",""]
[null,null,null,"5.A.3.2","Indicator",false,{"$f":"IF(F184=TRUE,IF(VLOOKUP(D184,Data!$B$5:$I$306,8,0)=FALSE,FALSE,VLOOKUP(D184,Data!$B$5:$I$306,8,0)),FALSE)","v":false},"Answer",{"$f":"IF(G184=FALSE,FALSE,VLOOKUP(G184,$A$2:B$5,2,0))","v":false},"","","","","",""]
[null,null,null,"5.A.3.2.1","Detail",true,{"$f":"IF(F185=TRUE,IF(VLOOKUP(D185,Data!$B$5:$I$306,8,0)=FALSE,FALSE,VLOOKUP(D185,Data!$B$5:$I$306,8,0)),FALSE)","v":false},"Answer",{"$f":"IF(G185=FALSE,FALSE,VLOOKUP(G185,$A$2:B$5,2,0))","v":false},"5.A.3","","5.A","","5",""]
[null,null,null,"5.A.3.2.2","Detail",true,{"$f":"IF(F186=TRUE,IF(VLOOKUP(D186,Data!$B$5:$I$306,8,0)=FALSE,FALSE,VLOOKUP(D186,Data!$B$5:$I$306,8,0)),FALSE)","v":false},"Answer",{"$f":"IF(G186=FALSE,FALSE,VLOOKUP(G186,$A$2:B$5,2,0))","v":false},"5.A.3","","5.A","","5",""]
[null,null,null,"5.A.3.2.3","Detail",true,{"$f":"IF(F187=TRUE,IF(VLOOKUP(D187,Data!$B$5:$I$306,8,0)=FALSE,FALSE,VLOOKUP(D187,Data!$B$5:$I$306,8,0)),FALSE)","v":false},"Answer",{"$f":"IF(G187=FALSE,FALSE,VLOOKUP(G187,$A$2:B$5,2,0))","v":false},"5.A.3","","5.A","","5",""]
[null,null,null,"5.A.3.2.4","Detail",true,{"$f":"IF(F188=TRUE,IF(VLOOKUP(D188,Data!$B$5:$I$306,8,0)=FALSE,FALSE,VLOOKUP(D188,Data!$B$5:$I$306,8,0)),FALSE)","v":false},"Answer",{"$f":"IF(G188=FALSE,FALSE,VLOOKUP(G188,$A$2:B$5,2,0))","v":false},"5.A.3","","5.A","","5",""]
[null,null,null,"5.B","Standard",false,{"$f":"IF(F189=TRUE,IF(VLOOKUP(D189,Data!$B$5:$I$306,8,0)=FALSE,FALSE,VLOOKUP(D189,Data!$B$5:$I$306,8,0)),FALSE)","v":false},"Calculated",{"$f":"IF(G189=FALSE,FALSE,VLOOKUP(G189,$A$2:B$5,2,0))","v":false},"","","","","",""]
[null,null,null,"5.B.1","EP",false,{"$f":"IF(F190=TRUE,IF(VLOOKUP(D190,Data!$B$5:$I$306,8,0)=FALSE,FALSE,VLOOKUP(D190,Data!$B$5:$I$306,8,0)),FALSE)","v":false},"Calculated",{"$f":"IF(G190=FALSE,FALSE,VLOOKUP(G190,$A$2:B$5,2,0))","v":false},"","","","","",""]
[null,null,null,"5.B.1.1","Indicator",true,{"$f":"IF(F191=TRUE,IF(VLOOKUP(D191,Data!$B$5:$I$306,8,0)=FALSE,FALSE,VLOOKUP(D191,Data!$B$5:$I$306,8,0)),FALSE)","v":false},"Answer",{"$f":"IF(G191=FALSE,FALSE,VLOOKUP(G191,$A$2:B$5,2,0))","v":false},"5.B.1","","5.B","","5",""]
[null,null,null,"5.B.2","EP",false,{"$f":"IF(F192=TRUE,IF(VLOOKUP(D192,Data!$B$5:$I$306,8,0)=FALSE,FALSE,VLOOKUP(D192,Data!$B$5:$I$306,8,0)),FALSE)","v":false},"Calculated",{"$f":"IF(G192=FALSE,FALSE,VLOOKUP(G192,$A$2:B$5,2,0))","v":false},"","","","","",""]
[null,null,null,"5.B.2.1","Indicator",true,{"$f":"IF(F193=TRUE,IF(VLOOKUP(D193,Data!$B$5:$I$306,8,0)=FALSE,FALSE,VLOOKUP(D193,Data!$B$5:$I$306,8,0)),FALSE)","v":false},"Answer",{"$f":"IF(G193=FALSE,FALSE,VLOOKUP(G193,$A$2:B$5,2,0))","v":false},"5.B.2","","5.B","","5",""]
[null,null,null,"5.B.2.2","Indicator",true,{"$f":"IF(F194=TRUE,IF(VLOOKUP(D194,Data!$B$5:$I$306,8,0)=FALSE,FALSE,VLOOKUP(D194,Data!$B$5:$I$306,8,0)),FALSE)","v":false},"Answer",{"$f":"IF(G194=FALSE,FALSE,VLOOKUP(G194,$A$2:B$5,2,0))","v":false},"5.B.2","","5.B","","5",""]
[null,null,null,"5.B.3","EP",false,{"$f":"IF(F195=TRUE,IF(VLOOKUP(D195,Data!$B$5:$I$306,8,0)=FALSE,FALSE,VLOOKUP(D195,Data!$B$5:$I$306,8,0)),FALSE)","v":false},{"$f":"IF(OR(E195=A$7,E195=A$8,E195=A$9),\"Calculated\",\"Answer\")","v":"Calculated"},{"$f":"IF(G195=FALSE,FALSE,VLOOKUP(G195,$A$2:B$5,2,0))","v":false},"",{"$f":"IFERROR(IF(AND(F195=TRUE,COUNTIF(INDIRECT(\"J\"&ROW(J196)&\":J\"&$B$13),J195)=0),AVERAGEIFS(I:I,J:J,LEFT(D195,5)),\"\"),\"\")","v":""},"",{"$f":"IFERROR(IF(AND(F195=TRUE,COUNTIF(INDIRECT(\"L\"&ROW(L196)&\":L\"&$B$13),L195)=0),AVERAGEIFS(I:I,L:L,LEFT(D195,3)),\"\"),\"\")","v":""},"",{"$f":"IFERROR(IF(AND(F195=TRUE,COUNTIF(INDIRECT(\"n\"&ROW(N196)&\":n\"&$B$13),N195)=0),AVERAGEIFS(M:M,N:N,LEFT(D195,1)),\"\"),\"\")","v":""}]
[null,null,null,"5.B.3.1","Indicator",false,{"$f":"IF(F196=TRUE,IF(VLOOKUP(D196,Data!$B$5:$I$306,8,0)=FALSE,FALSE,VLOOKUP(D196,Data!$B$5:$I$306,8,0)),FALSE)","v":false},"Answer",{"$f":"IF(G196=FALSE,FALSE,VLOOKUP(G196,$A$2:B$5,2,0))","v":false},{"$f":"IF(F196=TRUE,LEFT(D196,5),\"\")","v":""},"",{"$f":"IF(F196=TRUE,LEFT(D196,3),\"\")","v":""},"",{"$f":"IF(F196=TRUE,LEFT(D196,1),\"\")","v":""},""]
[null,null,null,"5.B.3.1.1","Detail",true,{"$f":"IF(F197=TRUE,IF(VLOOKUP(D197,Data!$B$5:$I$306,8,0)=FALSE,FALSE,VLOOKUP(D197,Data!$B$5:$I$306,8,0)),FALSE)","v":false},"Answer",{"$f":"IF(G197=FALSE,FALSE,VLOOKUP(G197,$A$2:B$5,2,0))","v":false},"5.B.3","","5.B","","5",""]
[null,null,null,"5.B.3.1.2","Detail",true,{"$f":"IF(F198=TRUE,IF(VLOOKUP(D198,Data!$B$5:$I$306,8,0)=FALSE,FALSE,VLOOKUP(D198,Data!$B$5:$I$306,8,0)),FALSE)","v":false},"Answer",{"$f":"IF(G198=FALSE,FALSE,VLOOKUP(G198,$A$2:B$5,2,0))","v":false},"5.B.3","","5.B","","5",""]
[null,null,null,"5.B.3.1.3","Detail",true,{"$f":"IF(F199=TRUE,IF(VLOOKUP(D199,Data!$B$5:$I$306,8,0)=FALSE,FALSE,VLOOKUP(D199,Data!$B$5:$I$306,8,0)),FALSE)","v":false},"Answer",{"$f":"IF(G199=FALSE,FALSE,VLOOKUP(G199,$A$2:B$5,2,0))","v":false},"5.B.3","","5.B","","5",""]
[null,null,null,"5.C","Standard",false,{"$f":"IF(F200=TRUE,IF(VLOOKUP(D200,Data!$B$5:$I$306,8,0)=FALSE,FALSE,VLOOKUP(D200,Data!$B$5:$I$306,8,0)),FALSE)","v":false},"Calculated",{"$f":"IF(G200=FALSE,FALSE,VLOOKUP(G200,$A$2:B$5,2,0))","v":false},"","","","","",""]
[null,null,null,"5.C.1","EP",false,{"$f":"IF(F201=TRUE,IF(VLOOKUP(D201,Data!$B$5:$I$306,8,0)=FALSE,FALSE,VLOOKUP(D201,Data!$B$5:$I$306,8,0)),FALSE)","v":false},"Calculated",{"$f":"IF(G201=FALSE,FALSE,VLOOKUP(G201,$A$2:B$5,2,0))","v":false},"","","","","",""]
[null,null,null,"5.C.1.1","Indicator",true,{"$f":"IF(F202=TRUE,IF(VLOOKUP(D202,Data!$B$5:$I$306,8,0)=FALSE,FALSE,VLOOKUP(D202,Data!$B$5:$I$306,8,0)),FALSE)","v":false},"Answer",{"$f":"IF(G202=FALSE,FALSE,VLOOKUP(G202,$A$2:B$5,2,0))","v":false},"5.C.1","","5.C","","5",""]
[null,null,null,"5.C.1.2","Indicator",true,{"$f":"IF(F203=TRUE,IF(VLOOKUP(D203,Data!$B$5:$I$306,8,0)=FALSE,FALSE,VLOOKUP(D203,Data!$B$5:$I$306,8,0)),FALSE)","v":false},"Answer",{"$f":"IF(G203=FALSE,FALSE,VLOOKUP(G203,$A$2:B$5,2,0))","v":false},"5.C.1","","5.C","","5",""]
[null,null,null,"5.C.2","EP",false,{"$f":"IF(F204=TRUE,IF(VLOOKUP(D204,Data!$B$5:$I$306,8,0)=FALSE,FALSE,VLOOKUP(D204,Data!$B$5:$I$306,8,0)),FALSE)","v":false},"Calculated",{"$f":"IF(G204=FALSE,FALSE,VLOOKUP(G204,$A$2:B$5,2,0))","v":false},"","","","","",""]
[null,null,null,"5.C.2.1","Indicator",false,{"$f":"IF(F205=TRUE,IF(VLOOKUP(D205,Data!$B$5:$I$306,8,0)=FALSE,FALSE,VLOOKUP(D205,Data!$B$5:$I$306,8,0)),FALSE)","v":false},"Answer",{"$f":"IF(G205=FALSE,FALSE,VLOOKUP(G205,$A$2:B$5,2,0))","v":false},"","","","","",""]
[null,null,null,"5.C.2.1.1","Detail",true,{"$f":"IF(F206=TRUE,IF(VLOOKUP(D206,Data!$B$5:$I$306,8,0)=FALSE,FALSE,VLOOKUP(D206,Data!$B$5:$I$306,8,0)),FALSE)","v":false},"Answer",{"$f":"IF(G206=FALSE,FALSE,VLOOKUP(G206,$A$2:B$5,2,0))","v":false},"5.C.2","","5.C","","5",""]
[null,null,null,"5.C.2.1.2","Detail",true,{"$f":"IF(F207=TRUE,IF(VLOOKUP(D207,Data!$B$5:$I$306,8,0)=FALSE,FALSE,VLOOKUP(D207,Data!$B$5:$I$306,8,0)),FALSE)","v":false},"Answer",{"$f":"IF(G207=FALSE,FALSE,VLOOKUP(G207,$A$2:B$5,2,0))","v":false},"5.C.2","","5.C","","5",""]
[null,null,null,"5.C.2.1.3","Detail",true,{"$f":"IF(F208=TRUE,IF(VLOOKUP(D208,Data!$B$5:$I$306,8,0)=FALSE,FALSE,VLOOKUP(D208,Data!$B$5:$I$306,8,0)),FALSE)","v":false},"Answer",{"$f":"IF(G208=FALSE,FALSE,VLOOKUP(G208,$A$2:B$5,2,0))","v":false},"5.C.2","","5.C","","5",""]
[null,null,null,"5.C.2.1.4","Detail",true,{"$f":"IF(F209=TRUE,IF(VLOOKUP(D209,Data!$B$5:$I$306,8,0)=FALSE,FALSE,VLOOKUP(D209,Data!$B$5:$I$306,8,0)),FALSE)","v":false},"Answer",{"$f":"IF(G209=FALSE,FALSE,VLOOKUP(G209,$A$2:B$5,2,0))","v":false},"5.C.2","","5.C","","5",""]
[null,null,null,"5.C.2.2","Indicator",false,{"$f":"IF(F210=TRUE,IF(VLOOKUP(D210,Data!$B$5:$I$306,8,0)=FALSE,FALSE,VLOOKUP(D210,Data!$B$5:$I$306,8,0)),FALSE)","v":false},"Answer",{"$f":"IF(G210=FALSE,FALSE,VLOOKUP(G210,$A$2:B$5,2,0))","v":false},"","","","","",""]
[null,null,null,"5.C.2.2.1","Detail",true,{"$f":"IF(F211=TRUE,IF(VLOOKUP(D211,Data!$B$5:$I$306,8,0)=FALSE,FALSE,VLOOKUP(D211,Data!$B$5:$I$306,8,0)),FALSE)","v":false},"Answer",{"$f":"IF(G211=FALSE,FALSE,VLOOKUP(G211,$A$2:B$5,2,0))","v":false},"5.C.2","","5.C","","5",""]
[null,null,null,"5.C.2.2.2","Detail",true,{"$f":"IF(F212=TRUE,IF(VLOOKUP(D212,Data!$B$5:$I$306,8,0)=FALSE,FALSE,VLOOKUP(D212,Data!$B$5:$I$306,8,0)),FALSE)","v":false},"Answer",{"$f":"IF(G212=FALSE,FALSE,VLOOKUP(G212,$A$2:B$5,2,0))","v":false},"5.C.2","","5.C","","5",""]
[null,null,null,"5.C.2.2.3","Detail",true,{"$f":"IF(F213=TRUE,IF(VLOOKUP(D213,Data!$B$5:$I$306,8,0)=FALSE,FALSE,VLOOKUP(D213,Data!$B$5:$I$306,8,0)),FALSE)","v":false},"Answer",{"$f":"IF(G213=FALSE,FALSE,VLOOKUP(G213,$A$2:B$5,2,0))","v":false},"5.C.2","","5.C","","5",""]
[null,null,null,"5.C.3","EP",false,{"$f":"IF(F214=TRUE,IF(VLOOKUP(D214,Data!$B$5:$I$306,8,0)=FALSE,FALSE,VLOOKUP(D214,Data!$B$5:$I$306,8,0)),FALSE)","v":false},"Calculated",{"$f":"IF(G214=FALSE,FALSE,VLOOKUP(G214,$A$2:B$5,2,0))","v":false},"","","","","",""]
[null,null,null,"5.C.3.1","Indicator",true,{"$f":"IF(F215=TRUE,IF(VLOOKUP(D215,Data!$B$5:$I$306,8,0)=FALSE,FALSE,VLOOKUP(D215,Data!$B$5:$I$306,8,0)),FALSE)","v":false},"Answer",{"$f":"IF(G215=FALSE,FALSE,VLOOKUP(G215,$A$2:B$5,2,0))","v":false},"5.C.3","","5.C","","5",""]
[null,null,null,"5.C.3.2","Indicator",true,{"$f":"IF(F216=TRUE,IF(VLOOKUP(D216,Data!$B$5:$I$306,8,0)=FALSE,FALSE,VLOOKUP(D216,Data!$B$5:$I$306,8,0)),FALSE)","v":false},"Answer",{"$f":"IF(G216=FALSE,FALSE,VLOOKUP(G216,$A$2:B$5,2,0))","v":false},"5.C.3","","5.C","","5",""]
[null,null,null,"6","Dimension",false,{"$f":"IF(F217=TRUE,IF(VLOOKUP(D217,Data!$B$5:$I$306,8,0)=FALSE,FALSE,VLOOKUP(D217,Data!$B$5:$I$306,8,0)),FALSE)","v":false},"Calculated",{"$f":"IF(G217=FALSE,FALSE,VLOOKUP(G217,$A$2:B$5,2,0))","v":false},"","","","","",""]
[null,null,null,"6.A","Standard",false,{"$f":"IF(F218=TRUE,IF(VLOOKUP(D218,Data!$B$5:$I$306,8,0)=FALSE,FALSE,VLOOKUP(D218,Data!$B$5:$I$306,8,0)),FALSE)","v":false},"Calculated",{"$f":"IF(G218=FALSE,FALSE,VLOOKUP(G218,$A$2:B$5,2,0))","v":false},"","","","","",""]
[null,null,null,"6.A.1","EP",false,{"$f":"IF(F219=TRUE,IF(VLOOKUP(D219,Data!$B$5:$I$306,8,0)=FALSE,FALSE,VLOOKUP(D219,Data!$B$5:$I$306,8,0)),FALSE)","v":false},"Calculated",{"$f":"IF(G219=FALSE,FALSE,VLOOKUP(G219,$A$2:B$5,2,0))","v":false},"","","","","",""]
[null,null,null,"6.A.1.1","Indicator",false,{"$f":"IF(F220=TRUE,IF(VLOOKUP(D220,Data!$B$5:$I$306,8,0)=FALSE,FALSE,VLOOKUP(D220,Data!$B$5:$I$306,8,0)),FALSE)","v":false},"Answer",{"$f":"IF(G220=FALSE,FALSE,VLOOKUP(G220,$A$2:B$5,2,0))","v":false},"","","","","",""]
[null,null,null,"6.A.1.1.1","Detail",true,{"$f":"IF(F221=TRUE,IF(VLOOKUP(D221,Data!$B$5:$I$306,8,0)=FALSE,FALSE,VLOOKUP(D221,Data!$B$5:$I$306,8,0)),FALSE)","v":false},"Answer",{"$f":"IF(G221=FALSE,FALSE,VLOOKUP(G221,$A$2:B$5,2,0))","v":false},"6.A.1","","6.A","","6",""]
[null,null,null,"6.A.1.1.2","Detail",true,{"$f":"IF(F222=TRUE,IF(VLOOKUP(D222,Data!$B$5:$I$306,8,0)=FALSE,FALSE,VLOOKUP(D222,Data!$B$5:$I$306,8,0)),FALSE)","v":false},"Answer",{"$f":"IF(G222=FALSE,FALSE,VLOOKUP(G222,$A$2:B$5,2,0))","v":false},"6.A.1","","6.A","","6",""]
[null,null,null,"6.A.1.1.3","Detail",true,{"$f":"IF(F223=TRUE,IF(VLOOKUP(D223,Data!$B$5:$I$306,8,0)=FALSE,FALSE,VLOOKUP(D223,Data!$B$5:$I$306,8,0)),FALSE)","v":false},"Answer",{"$f":"IF(G223=FALSE,FALSE,VLOOKUP(G223,$A$2:B$5,2,0))","v":false},"6.A.1","","6.A","","6",""]
[null,null,null,"6.A.1.1.4","Detail",true,{"$f":"IF(F224=TRUE,IF(VLOOKUP(D224,Data!$B$5:$I$306,8,0)=FALSE,FALSE,VLOOKUP(D224,Data!$B$5:$I$306,8,0)),FALSE)","v":false},"Answer",{"$f":"IF(G224=FALSE,FALSE,VLOOKUP(G224,$A$2:B$5,2,0))","v":false},"6.A.1","","6.A","","6",""]
[null,null,null,"6.A.1.1.5","Detail",true,{"$f":"IF(F225=TRUE,IF(VLOOKUP(D225,Data!$B$5:$I$306,8,0)=FALSE,FALSE,VLOOKUP(D225,Data!$B$5:$I$306,8,0)),FALSE)","v":false},"Answer",{"$f":"IF(G225=FALSE,FALSE,VLOOKUP(G225,$A$2:B$5,2,0))","v":false},"6.A.1","","6.A","","6",""]
[null,null,null,"6.A.1.1.6","Detail",true,{"$f":"IF(F226=TRUE,IF(VLOOKUP(D226,Data!$B$5:$I$306,8,0)=FALSE,FALSE,VLOOKUP(D226,Data!$B$5:$I$306,8,0)),FALSE)","v":false},"Answer",{"$f":"IF(G226=FALSE,FALSE,VLOOKUP(G226,$A$2:B$5,2,0))","v":false},"6.A.1","","6.A","","6",""]
[null,null,null,"6.A.1.2","Indicator",false,{"$f":"IF(F227=TRUE,IF(VLOOKUP(D227,Data!$B$5:$I$306,8,0)=FALSE,FALSE,VLOOKUP(D227,Data!$B$5:$I$306,8,0)),FALSE)","v":false},"Answer",{"$f":"IF(G227=FALSE,FALSE,VLOOKUP(G227,$A$2:B$5,2,0))","v":false},"","","","","",""]
[null,null,null,"6.A.1.2.1","Detail",true,{"$f":"IF(F228=TRUE,IF(VLOOKUP(D228,Data!$B$5:$I$306,8,0)=FALSE,FALSE,VLOOKUP(D228,Data!$B$5:$I$306,8,0)),FALSE)","v":false},"Answer",{"$f":"IF(G228=FALSE,FALSE,VLOOKUP(G228,$A$2:B$5,2,0))","v":false},"6.A.1","","6.A","","6",""]
[null,null,null,"6.A.1.2.2","Detail",true,{"$f":"IF(F229=TRUE,IF(VLOOKUP(D229,Data!$B$5:$I$306,8,0)=FALSE,FALSE,VLOOKUP(D229,Data!$B$5:$I$306,8,0)),FALSE)","v":false},"Answer",{"$f":"IF(G229=FALSE,FALSE,VLOOKUP(G229,$A$2:B$5,2,0))","v":false},"6.A.1","","6.A","","6",""]
[null,null,null,"6.A.1.2.3","Detail",true,{"$f":"IF(F230=TRUE,IF(VLOOKUP(D230,Data!$B$5:$I$306,8,0)=FALSE,FALSE,VLOOKUP(D230,Data!$B$5:$I$306,8,0)),FALSE)","v":false},"Answer",{"$f":"IF(G230=FALSE,FALSE,VLOOKUP(G230,$A$2:B$5,2,0))","v":false},"6.A.1","","6.A","","6",""]
[null,null,null,"6.A.1.2.4","Detail",true,{"$f":"IF(F231=TRUE,IF(VLOOKUP(D231,Data!$B$5:$I$306,8,0)=FALSE,FALSE,VLOOKUP(D231,Data!$B$5:$I$306,8,0)),FALSE)","v":false},"Answer",{"$f":"IF(G231=FALSE,FALSE,VLOOKUP(G231,$A$2:B$5,2,0))","v":false},"6.A.1","","6.A","","6",""]
[null,null,null,"6.A.1.2.5","Detail",true,{"$f":"IF(F232=TRUE,IF(VLOOKUP(D232,Data!$B$5:$I$306,8,0)=FALSE,FALSE,VLOOKUP(D232,Data!$B$5:$I$306,8,0)),FALSE)","v":false},"Answer",{"$f":"IF(G232=FALSE,FALSE,VLOOKUP(G232,$A$2:B$5,2,0))","v":false},"6.A.1","","6.A","","6",""]
[null,null,null,"6.A.1.2.6","Detail",true,{"$f":"IF(F233=TRUE,IF(VLOOKUP(D233,Data!$B$5:$I$306,8,0)=FALSE,FALSE,VLOOKUP(D233,Data!$B$5:$I$306,8,0)),FALSE)","v":false},"Answer",{"$f":"IF(G233=FALSE,FALSE,VLOOKUP(G233,$A$2:B$5,2,0))","v":false},"6.A.1","","6.A","","6",""]
[null,null,null,"6.A.1.3","Indicator",true,{"$f":"IF(F234=TRUE,IF(VLOOKUP(D234,Data!$B$5:$I$306,8,0)=FALSE,FALSE,VLOOKUP(D234,Data!$B$5:$I$306,8,0)),FALSE)","v":false},"Answer",{"$f":"IF(G234=FALSE,FALSE,VLOOKUP(G234,$A$2:B$5,2,0))","v":false},"6.A.1","","6.A","","6",""]
[null,null,null,"6.A.1.4","Indicator",true,{"$f":"IF(F235=TRUE,IF(VLOOKUP(D235,Data!$B$5:$I$306,8,0)=FALSE,FALSE,VLOOKUP(D235,Data!$B$5:$I$306,8,0)),FALSE)","v":false},"Answer",{"$f":"IF(G235=FALSE,FALSE,VLOOKUP(G235,$A$2:B$5,2,0))","v":false},"6.A.1","","6.A","","6",""]
[null,null,null,"6.A.1.5","Indicator",false,{"$f":"IF(F236=TRUE,IF(VLOOKUP(D236,Data!$B$5:$I$306,8,0)=FALSE,FALSE,VLOOKUP(D236,Data!$B$5:$I$306,8,0)),FALSE)","v":false},"Answer",{"$f":"IF(G236=FALSE,FALSE,VLOOKUP(G236,$A$2:B$5,2,0))","v":false},"","","","","",""]
[null,null,null,"6.A.1.5.1","Detail",true,{"$f":"IF(F237=TRUE,IF(VLOOKUP(D237,Data!$B$5:$I$306,8,0)=FALSE,FALSE,VLOOKUP(D237,Data!$B$5:$I$306,8,0)),FALSE)","v":false},"Answer",{"$f":"IF(G237=FALSE,FALSE,VLOOKUP(G237,$A$2:B$5,2,0))","v":false},"6.A.1","","6.A","","6",""]
[null,null,null,"6.A.1.5.2","Detail",true,{"$f":"IF(F238=TRUE,IF(VLOOKUP(D238,Data!$B$5:$I$306,8,0)=FALSE,FALSE,VLOOKUP(D238,Data!$B$5:$I$306,8,0)),FALSE)","v":false},"Answer",{"$f":"IF(G238=FALSE,FALSE,VLOOKUP(G238,$A$2:B$5,2,0))","v":false},"6.A.1","","6.A","","6",""]
[null,null,null,"6.A.1.5.3","Detail",true,{"$f":"IF(F239=TRUE,IF(VLOOKUP(D239,Data!$B$5:$I$306,8,0)=FALSE,FALSE,VLOOKUP(D239,Data!$B$5:$I$306,8,0)),FALSE)","v":false},"Answer",{"$f":"IF(G239=FALSE,FALSE,VLOOKUP(G239,$A$2:B$5,2,0))","v":false},"6.A.1","","6.A","","6",""]
[null,null,null,"6.A.2","EP",false,{"$f":"IF(F240=TRUE,IF(VLOOKUP(D240,Data!$B$5:$I$306,8,0)=FALSE,FALSE,VLOOKUP(D240,Data!$B$5:$I$306,8,0)),FALSE)","v":false},"Calculated",{"$f":"IF(G240=FALSE,FALSE,VLOOKUP(G240,$A$2:B$5,2,0))","v":false},"","","","","",""]
[null,null,null,"6.A.2.1","Indicator",true,{"$f":"IF(F241=TRUE,IF(VLOOKUP(D241,Data!$B$5:$I$306,8,0)=FALSE,FALSE,VLOOKUP(D241,Data!$B$5:$I$306,8,0)),FALSE)","v":false},"Answer",{"$f":"IF(G241=FALSE,FALSE,VLOOKUP(G241,$A$2:B$5,2,0))","v":false},"6.A.2","","6.A","","6",""]
[null,null,null,"6.A.2.2","Indicator",true,{"$f":"IF(F242=TRUE,IF(VLOOKUP(D242,Data!$B$5:$I$306,8,0)=FALSE,FALSE,VLOOKUP(D242,Data!$B$5:$I$306,8,0)),FALSE)","v":false},"Answer",{"$f":"IF(G242=FALSE,FALSE,VLOOKUP(G242,$A$2:B$5,2,0))","v":false},"6.A.2","","6.A","","6",""]
[null,null,null,"6.A.2.3","Indicator",true,{"$f":"IF(F243=TRUE,IF(VLOOKUP(D243,Data!$B$5:$I$306,8,0)=FALSE,FALSE,VLOOKUP(D243,Data!$B$5:$I$306,8,0)),FALSE)","v":false},"Answer",{"$f":"IF(G243=FALSE,FALSE,VLOOKUP(G243,$A$2:B$5,2,0))","v":false},"6.A.2","","6.A","","6",""]
[null,null,null,"6.A.3","EP",false,{"$f":"IF(F244=TRUE,IF(VLOOKUP(D244,Data!$B$5:$I$306,8,0)=FALSE,FALSE,VLOOKUP(D244,Data!$B$5:$I$306,8,0)),FALSE)","v":false},"Calculated",{"$f":"IF(G244=FALSE,FALSE,VLOOKUP(G244,$A$2:B$5,2,0))","v":false},"","","","","",""]
[null,null,null,"6.A.3.1","Indicator",true,{"$f":"IF(F245=TRUE,IF(VLOOKUP(D245,Data!$B$5:$I$306,8,0)=FALSE,FALSE,VLOOKUP(D245,Data!$B$5:$I$306,8,0)),FALSE)","v":false},"Answer",{"$f":"IF(G245=FALSE,FALSE,VLOOKUP(G245,$A$2:B$5,2,0))","v":false},"6.A.3","","6.A","","6",""]
[null,null,null,"6.A.3.2","Indicator",true,{"$f":"IF(F246=TRUE,IF(VLOOKUP(D246,Data!$B$5:$I$306,8,0)=FALSE,FALSE,VLOOKUP(D246,Data!$B$5:$I$306,8,0)),FALSE)","v":false},"Answer",{"$f":"IF(G246=FALSE,FALSE,VLOOKUP(G246,$A$2:B$5,2,0))","v":false},"6.A.3","","6.A","","6",""]
[null,null,null,"6.A.3.3","Indicator",false,{"$f":"IF(F247=TRUE,IF(VLOOKUP(D247,Data!$B$5:$I$306,8,0)=FALSE,FALSE,VLOOKUP(D247,Data!$B$5:$I$306,8,0)),FALSE)","v":false},"Answer",{"$f":"IF(G247=FALSE,FALSE,VLOOKUP(G247,$A$2:B$5,2,0))","v":false},"","","","","",""]
[null,null,null,"6.A.3.3.1","Detail",true,{"$f":"IF(F248=TRUE,IF(VLOOKUP(D248,Data!$B$5:$I$306,8,0)=FALSE,FALSE,VLOOKUP(D248,Data!$B$5:$I$306,8,0)),FALSE)","v":false},"Answer",{"$f":"IF(G248=FALSE,FALSE,VLOOKUP(G248,$A$2:B$5,2,0))","v":false},"6.A.3","","6.A","","6",""]
[null,null,null,"6.A.3.3.2","Detail",true,{"$f":"IF(F249=TRUE,IF(VLOOKUP(D249,Data!$B$5:$I$306,8,0)=FALSE,FALSE,VLOOKUP(D249,Data!$B$5:$I$306,8,0)),FALSE)","v":false},"Answer",{"$f":"IF(G249=FALSE,FALSE,VLOOKUP(G249,$A$2:B$5,2,0))","v":false},"6.A.3","","6.A","","6",""]
[null,null,null,"6.A.3.3.3","Detail",true,{"$f":"IF(F250=TRUE,IF(VLOOKUP(D250,Data!$B$5:$I$306,8,0)=FALSE,FALSE,VLOOKUP(D250,Data!$B$5:$I$306,8,0)),FALSE)","v":false},"Answer",{"$f":"IF(G250=FALSE,FALSE,VLOOKUP(G250,$A$2:B$5,2,0))","v":false},"6.A.3","","6.A","","6",""]
[null,null,null,"6.A.3.3.4","Detail",true,{"$f":"IF(F251=TRUE,IF(VLOOKUP(D251,Data!$B$5:$I$306,8,0)=FALSE,FALSE,VLOOKUP(D251,Data!$B$5:$I$306,8,0)),FALSE)","v":false},"Answer",{"$f":"IF(G251=FALSE,FALSE,VLOOKUP(G251,$A$2:B$5,2,0))","v":false},"6.A.3","","6.A","","6",""]
[null,null,null,"6.A.3.4","Indicator",true,{"$f":"IF(F252=TRUE,IF(VLOOKUP(D252,Data!$B$5:$I$306,8,0)=FALSE,FALSE,VLOOKUP(D252,Data!$B$5:$I$306,8,0)),FALSE)","v":false},"Answer",{"$f":"IF(G252=FALSE,FALSE,VLOOKUP(G252,$A$2:B$5,2,0))","v":false},"6.A.3","","6.A","","6",""]
[null,null,null,"6.B","Standard",false,{"$f":"IF(F253=TRUE,IF(VLOOKUP(D253,Data!$B$5:$I$306,8,0)=FALSE,FALSE,VLOOKUP(D253,Data!$B$5:$I$306,8,0)),FALSE)","v":false},"Calculated",{"$f":"IF(G253=FALSE,FALSE,VLOOKUP(G253,$A$2:B$5,2,0))","v":false},"","","","","",""]
[null,null,null,"6.B.1","EP",false,{"$f":"IF(F254=TRUE,IF(VLOOKUP(D254,Data!$B$5:$I$306,8,0)=FALSE,FALSE,VLOOKUP(D254,Data!$B$5:$I$306,8,0)),FALSE)","v":false},"Calculated",{"$f":"IF(G254=FALSE,FALSE,VLOOKUP(G254,$A$2:B$5,2,0))","v":false},"","","","","",""]
[null,null,null,"6.B.1.1","Indicator",false,{"$f":"IF(F255=TRUE,IF(VLOOKUP(D255,Data!$B$5:$I$306,8,0)=FALSE,FALSE,VLOOKUP(D255,Data!$B$5:$I$306,8,0)),FALSE)","v":false},"Answer",{"$f":"IF(G255=FALSE,FALSE,VLOOKUP(G255,$A$2:B$5,2,0))","v":false},"","","","","",""]
[null,null,null,"6.B.1.1.1","Detail",true,{"$f":"IF(F256=TRUE,IF(VLOOKUP(D256,Data!$B$5:$I$306,8,0)=FALSE,FALSE,VLOOKUP(D256,Data!$B$5:$I$306,8,0)),FALSE)","v":false},"Answer",{"$f":"IF(G256=FALSE,FALSE,VLOOKUP(G256,$A$2:B$5,2,0))","v":false},"6.B.1","","6.B","","6",""]
[null,null,null,"6.B.1.1.2","Detail",true,{"$f":"IF(F257=TRUE,IF(VLOOKUP(D257,Data!$B$5:$I$306,8,0)=FALSE,FALSE,VLOOKUP(D257,Data!$B$5:$I$306,8,0)),FALSE)","v":false},"Answer",{"$f":"IF(G257=FALSE,FALSE,VLOOKUP(G257,$A$2:B$5,2,0))","v":false},"6.B.1","","6.B","","6",""]
[null,null,null,"6.B.1.1.3","Detail",true,{"$f":"IF(F258=TRUE,IF(VLOOKUP(D258,Data!$B$5:$I$306,8,0)=FALSE,FALSE,VLOOKUP(D258,Data!$B$5:$I$306,8,0)),FALSE)","v":false},"Answer",{"$f":"IF(G258=FALSE,FALSE,VLOOKUP(G258,$A$2:B$5,2,0))","v":false},"6.B.1","","6.B","","6",""]
[null,null,null,"6.B.1.2","Indicator",true,{"$f":"IF(F259=TRUE,IF(VLOOKUP(D259,Data!$B$5:$I$306,8,0)=FALSE,FALSE,VLOOKUP(D259,Data!$B$5:$I$306,8,0)),FALSE)","v":false},{"$f":"IF(OR(E259=A$7,E259=A$8,E259=A$9),\"Calculated\",\"Answer\")","v":"Answer"},{"$f":"IF(G259=FALSE,FALSE,VLOOKUP(G259,$A$2:B$5,2,0))","v":false},"6.B.1",{"$f":"IFERROR(IF(AND(F259=TRUE,COUNTIF(INDIRECT(\"J\"&ROW(J260)&\":J\"&$B$13),J259)=0),AVERAGEIFS(I:I,J:J,LEFT(D259,5)),\"\"),\"\")","v":""},"6.B",{"$f":"IFERROR(IF(AND(F259=TRUE,COUNTIF(INDIRECT(\"L\"&ROW(L260)&\":L\"&$B$13),L259)=0),AVERAGEIFS(I:I,L:L,LEFT(D259,3)),\"\"),\"\")","v":""},"6",{"$f":"IFERROR(IF(AND(F259=TRUE,COUNTIF(INDIRECT(\"n\"&ROW(N260)&\":n\"&$B$13),N259)=0),AVERAGEIFS(M:M,N:N,LEFT(D259,1)),\"\"),\"\")","v":""}]
[null,null,null,"6.B.2","EP",false,{"$f":"IF(F260=TRUE,IF(VLOOKUP(D260,Data!$B$5:$I$306,8,0)=FALSE,FALSE,VLOOKUP(D260,Data!$B$5:$I$306,8,0)),FALSE)","v":false},"Calculated",{"$f":"IF(G260=FALSE,FALSE,VLOOKUP(G260,$A$2:B$5,2,0))","v":false},{"$f":"IF(F260=TRUE,LEFT(D260,5),\"\")","v":""},"",{"$f":"IF(F260=TRUE,LEFT(D260,3),\"\")","v":""},"",{"$f":"IF(F260=TRUE,LEFT(D260,1),\"\")","v":""},""]
[null,null,null,"6.B.2.1","Indicator",false,{"$f":"IF(F261=TRUE,IF(VLOOKUP(D261,Data!$B$5:$I$306,8,0)=FALSE,FALSE,VLOOKUP(D261,Data!$B$5:$I$306,8,0)),FALSE)","v":false},"Answer",{"$f":"IF(G261=FALSE,FALSE,VLOOKUP(G261,$A$2:B$5,2,0))","v":false},"","","","","",""]
[null,null,null,"6.B.2.1.1","Detail",true,{"$f":"IF(F262=TRUE,IF(VLOOKUP(D262,Data!$B$5:$I$306,8,0)=FALSE,FALSE,VLOOKUP(D262,Data!$B$5:$I$306,8,0)),FALSE)","v":false},"Answer",{"$f":"IF(G262=FALSE,FALSE,VLOOKUP(G262,$A$2:B$5,2,0))","v":false},"6.B.2","","6.B","","6",""]
[null,null,null,"6.B.2.1.2","Detail",true,{"$f":"IF(F263=TRUE,IF(VLOOKUP(D263,Data!$B$5:$I$306,8,0)=FALSE,FALSE,VLOOKUP(D263,Data!$B$5:$I$306,8,0)),FALSE)","v":false},"Answer",{"$f":"IF(G263=FALSE,FALSE,VLOOKUP(G263,$A$2:B$5,2,0))","v":false},"6.B.2","","6.B","","6",""]
[null,null,null,"6.B.2.1.3","Detail",true,{"$f":"IF(F264=TRUE,IF(VLOOKUP(D264,Data!$B$5:$I$306,8,0)=FALSE,FALSE,VLOOKUP(D264,Data!$B$5:$I$306,8,0)),FALSE)","v":false},"Answer",{"$f":"IF(G264=FALSE,FALSE,VLOOKUP(G264,$A$2:B$5,2,0))","v":false},"6.B.2","","6.B","","6",""]
[null,null,null,"6.B.2.1.4","Detail",true,{"$f":"IF(F265=TRUE,IF(VLOOKUP(D265,Data!$B$5:$I$306,8,0)=FALSE,FALSE,VLOOKUP(D265,Data!$B$5:$I$306,8,0)),FALSE)","v":false},"Answer",{"$f":"IF(G265=FALSE,FALSE,VLOOKUP(G265,$A$2:B$5,2,0))","v":false},"6.B.2","","6.B","","6",""]
[null,null,null,"6.B.2.2","Indicator",true,{"$f":"IF(F266=TRUE,IF(VLOOKUP(D266,Data!$B$5:$I$306,8,0)=FALSE,FALSE,VLOOKUP(D266,Data!$B$5:$I$306,8,0)),FALSE)","v":false},"Answer",{"$f":"IF(G266=FALSE,FALSE,VLOOKUP(G266,$A$2:B$5,2,0))","v":false},"6.B.2","","6.B","","6",""]
[null,null,null,"6.B.2.3","Indicator",true,{"$f":"IF(F267=TRUE,IF(VLOOKUP(D267,Data!$B$5:$I$306,8,0)=FALSE,FALSE,VLOOKUP(D267,Data!$B$5:$I$306,8,0)),FALSE)","v":false},"Answer",{"$f":"IF(G267=FALSE,FALSE,VLOOKUP(G267,$A$2:B$5,2,0))","v":false},"6.B.2","","6.B","","6",""]
[null,null,null,"6.B.2.4","Indicator",true,{"$f":"IF(F268=TRUE,IF(VLOOKUP(D268,Data!$B$5:$I$306,8,0)=FALSE,FALSE,VLOOKUP(D268,Data!$B$5:$I$306,8,0)),FALSE)","v":false},"Answer",{"$f":"IF(G268=FALSE,FALSE,VLOOKUP(G268,$A$2:B$5,2,0))","v":false},"6.B.2","","6.B","","6",""]
[null,null,null,"6.B.3","EP",false,{"$f":"IF(F269=TRUE,IF(VLOOKUP(D269,Data!$B$5:$I$306,8,0)=FALSE,FALSE,VLOOKUP(D269,Data!$B$5:$I$306,8,0)),FALSE)","v":false},"Calculated",{"$f":"IF(G269=FALSE,FALSE,VLOOKUP(G269,$A$2:B$5,2,0))","v":false},"","","","","",""]
[null,null,null,"6.B.3.1","Indicator",true,{"$f":"IF(F270=TRUE,IF(VLOOKUP(D270,Data!$B$5:$I$306,8,0)=FALSE,FALSE,VLOOKUP(D270,Data!$B$5:$I$306,8,0)),FALSE)","v":false},"Answer",{"$f":"IF(G270=FALSE,FALSE,VLOOKUP(G270,$A$2:B$5,2,0))","v":false},"6.B.3","","6.B","","6",""]
[null,null,null,"6.B.3.2","Indicator",true,{"$f":"IF(F271=TRUE,IF(VLOOKUP(D271,Data!$B$5:$I$306,8,0)=FALSE,FALSE,VLOOKUP(D271,Data!$B$5:$I$306,8,0)),FALSE)","v":false},"Answer",{"$f":"IF(G271=FALSE,FALSE,VLOOKUP(G271,$A$2:B$5,2,0))","v":false},"6.B.3","","6.B","","6",""]
[null,null,null,"6.B.3.3","Indicator",true,{"$f":"IF(F272=TRUE,IF(VLOOKUP(D272,Data!$B$5:$I$306,8,0)=FALSE,FALSE,VLOOKUP(D272,Data!$B$5:$I$306,8,0)),FALSE)","v":false},"Answer",{"$f":"IF(G272=FALSE,FALSE,VLOOKUP(G272,$A$2:B$5,2,0))","v":false},"6.B.3","","6.B","","6",""]
[null,null,null,"6.C","Standard",false,{"$f":"IF(F273=TRUE,IF(VLOOKUP(D273,Data!$B$5:$I$306,8,0)=FALSE,FALSE,VLOOKUP(D273,Data!$B$5:$I$306,8,0)),FALSE)","v":false},"Calculated",{"$f":"IF(G273=FALSE,FALSE,VLOOKUP(G273,$A$2:B$5,2,0))","v":false},"","","","","",""]
[null,null,null,"6.C.1","EP",false,{"$f":"IF(F274=TRUE,IF(VLOOKUP(D274,Data!$B$5:$I$306,8,0)=FALSE,FALSE,VLOOKUP(D274,Data!$B$5:$I$306,8,0)),FALSE)","v":false},"Calculated",{"$f":"IF(G274=FALSE,FALSE,VLOOKUP(G274,$A$2:B$5,2,0))","v":false},"","","","","",""]
[null,null,null,"6.C.1.1","Indicator",true,{"$f":"IF(F275=TRUE,IF(VLOOKUP(D275,Data!$B$5:$I$306,8,0)=FALSE,FALSE,VLOOKUP(D275,Data!$B$5:$I$306,8,0)),FALSE)","v":false},"Answer",{"$f":"IF(G275=FALSE,FALSE,VLOOKUP(G275,$A$2:B$5,2,0))","v":false},"6.C.1","","6.C","","6",""]
[null,null,null,"6.C.1.2","Indicator",false,{"$f":"IF(F276=TRUE,IF(VLOOKUP(D276,Data!$B$5:$I$306,8,0)=FALSE,FALSE,VLOOKUP(D276,Data!$B$5:$I$306,8,0)),FALSE)","v":false},"Answer",{"$f":"IF(G276=FALSE,FALSE,VLOOKUP(G276,$A$2:B$5,2,0))","v":false},"","","","","",""]
[null,null,null,"6.C.1.2.1","Detail",true,{"$f":"IF(F277=TRUE,IF(VLOOKUP(D277,Data!$B$5:$I$306,8,0)=FALSE,FALSE,VLOOKUP(D277,Data!$B$5:$I$306,8,0)),FALSE)","v":false},"Answer",{"$f":"IF(G277=FALSE,FALSE,VLOOKUP(G277,$A$2:B$5,2,0))","v":false},"6.C.1","","6.C","","6",""]
[null,null,null,"6.C.1.2.2","Detail",true,{"$f":"IF(F278=TRUE,IF(VLOOKUP(D278,Data!$B$5:$I$306,8,0)=FALSE,FALSE,VLOOKUP(D278,Data!$B$5:$I$306,8,0)),FALSE)","v":false},"Answer",{"$f":"IF(G278=FALSE,FALSE,VLOOKUP(G278,$A$2:B$5,2,0))","v":false},"6.C.1","","6.C","","6",""]
[null,null,null,"6.C.1.2.3","Detail",true,{"$f":"IF(F279=TRUE,IF(VLOOKUP(D279,Data!$B$5:$I$306,8,0)=FALSE,FALSE,VLOOKUP(D279,Data!$B$5:$I$306,8,0)),FALSE)","v":false},"Answer",{"$f":"IF(G279=FALSE,FALSE,VLOOKUP(G279,$A$2:B$5,2,0))","v":false},"6.C.1","","6.C","","6",""]
[null,null,null,"7","Dimension",false,{"$f":"IF(F280=TRUE,IF(VLOOKUP(D280,Data!$B$5:$I$306,8,0)=FALSE,FALSE,VLOOKUP(D280,Data!$B$5:$I$306,8,0)),FALSE)","v":false},"Calculated",{"$f":"IF(G280=FALSE,FALSE,VLOOKUP(G280,$A$2:B$5,2,0))","v":false},"","","","","",""]
[null,null,null,"7.A","Standard",false,{"$f":"IF(F281=TRUE,IF(VLOOKUP(D281,Data!$B$5:$I$306,8,0)=FALSE,FALSE,VLOOKUP(D281,Data!$B$5:$I$306,8,0)),FALSE)","v":false},"Calculated",{"$f":"IF(G281=FALSE,FALSE,VLOOKUP(G281,$A$2:B$5,2,0))","v":false},"","","","","",""]
[null,null,null,"7.A.1","EP",false,{"$f":"IF(F282=TRUE,IF(VLOOKUP(D282,Data!$B$5:$I$306,8,0)=FALSE,FALSE,VLOOKUP(D282,Data!$B$5:$I$306,8,0)),FALSE)","v":false},"Calculated",{"$f":"IF(G282=FALSE,FALSE,VLOOKUP(G282,$A$2:B$5,2,0))","v":false},"","","","","",""]
[null,null,null,"7.A.1.1","Indicator",true,{"$f":"IF(F283=TRUE,IF(VLOOKUP(D283,Data!$B$5:$I$306,8,0)=FALSE,FALSE,VLOOKUP(D283,Data!$B$5:$I$306,8,0)),FALSE)","v":false},"Answer",{"$f":"IF(G283=FALSE,FALSE,VLOOKUP(G283,$A$2:B$5,2,0))","v":false},"7.A.1","","7.A","","7",""]
[null,null,null,"7.A.1.2","Indicator",true,{"$f":"IF(F284=TRUE,IF(VLOOKUP(D284,Data!$B$5:$I$306,8,0)=FALSE,FALSE,VLOOKUP(D284,Data!$B$5:$I$306,8,0)),FALSE)","v":false},"Answer",{"$f":"IF(G284=FALSE,FALSE,VLOOKUP(G284,$A$2:B$5,2,0))","v":false},"7.A.1","","7.A","","7",""]
[null,null,null,"7.A.2","EP",false,{"$f":"IF(F285=TRUE,IF(VLOOKUP(D285,Data!$B$5:$I$306,8,0)=FALSE,FALSE,VLOOKUP(D285,Data!$B$5:$I$306,8,0)),FALSE)","v":false},"Calculated",{"$f":"IF(G285=FALSE,FALSE,VLOOKUP(G285,$A$2:B$5,2,0))","v":false},"","","","","",""]
[null,null,null,"7.A.2.1","Indicator",true,{"$f":"IF(F286=TRUE,IF(VLOOKUP(D286,Data!$B$5:$I$306,8,0)=FALSE,FALSE,VLOOKUP(D286,Data!$B$5:$I$306,8,0)),FALSE)","v":false},"Answer",{"$f":"IF(G286=FALSE,FALSE,VLOOKUP(G286,$A$2:B$5,2,0))","v":false},"7.A.2","","7.A","","7",""]
[null,null,null,"7.B","Standard",false,{"$f":"IF(F287=TRUE,IF(VLOOKUP(D287,Data!$B$5:$I$306,8,0)=FALSE,FALSE,VLOOKUP(D287,Data!$B$5:$I$306,8,0)),FALSE)","v":false},"Calculated",{"$f":"IF(G287=FALSE,FALSE,VLOOKUP(G287,$A$2:B$5,2,0))","v":false},"","","","","",""]
[null,null,null,"7.B.1","EP",false,{"$f":"IF(F288=TRUE,IF(VLOOKUP(D288,Data!$B$5:$I$306,8,0)=FALSE,FALSE,VLOOKUP(D288,Data!$B$5:$I$306,8,0)),FALSE)","v":false},"Calculated",{"$f":"IF(G288=FALSE,FALSE,VLOOKUP(G288,$A$2:B$5,2,0))","v":false},"","","","","",""]
[null,null,null,"7.B.1.1","Indicator",true,{"$f":"IF(F289=TRUE,IF(VLOOKUP(D289,Data!$B$5:$I$306,8,0)=FALSE,FALSE,VLOOKUP(D289,Data!$B$5:$I$306,8,0)),FALSE)","v":false},"Answer",{"$f":"IF(G289=FALSE,FALSE,VLOOKUP(G289,$A$2:B$5,2,0))","v":false},"7.B.1","","7.B","","7",""]
[null,null,null,"7.B.1.2","Indicator",true,{"$f":"IF(F290=TRUE,IF(VLOOKUP(D290,Data!$B$5:$I$306,8,0)=FALSE,FALSE,VLOOKUP(D290,Data!$B$5:$I$306,8,0)),FALSE)","v":false},"Answer",{"$f":"IF(G290=FALSE,FALSE,VLOOKUP(G290,$A$2:B$5,2,0))","v":false},"7.B.1","","7.B","","7",""]
[null,null,null,"7.B.1.3","Indicator",false,{"$f":"IF(F291=TRUE,IF(VLOOKUP(D291,Data!$B$5:$I$306,8,0)=FALSE,FALSE,VLOOKUP(D291,Data!$B$5:$I$306,8,0)),FALSE)","v":false},"Answer",{"$f":"IF(G291=FALSE,FALSE,VLOOKUP(G291,$A$2:B$5,2,0))","v":false},"","","","","",""]
[null,null,null,"7.B.1.3.1","Detail",true,{"$f":"IF(F292=TRUE,IF(VLOOKUP(D292,Data!$B$5:$I$306,8,0)=FALSE,FALSE,VLOOKUP(D292,Data!$B$5:$I$306,8,0)),FALSE)","v":false},"Answer",{"$f":"IF(G292=FALSE,FALSE,VLOOKUP(G292,$A$2:B$5,2,0))","v":false},"7.B.1","","7.B","","7",""]
[null,null,null,"7.B.1.3.2","Detail",true,{"$f":"IF(F293=TRUE,IF(VLOOKUP(D293,Data!$B$5:$I$306,8,0)=FALSE,FALSE,VLOOKUP(D293,Data!$B$5:$I$306,8,0)),FALSE)","v":false},"Answer",{"$f":"IF(G293=FALSE,FALSE,VLOOKUP(G293,$A$2:B$5,2,0))","v":false},"7.B.1","","7.B","","7",""]
[null,null,null,"7.B.1.3.3","Detail",true,{"$f":"IF(F294=TRUE,IF(VLOOKUP(D294,Data!$B$5:$I$306,8,0)=FALSE,FALSE,VLOOKUP(D294,Data!$B$5:$I$306,8,0)),FALSE)","v":false},"Answer",{"$f":"IF(G294=FALSE,FALSE,VLOOKUP(G294,$A$2:B$5,2,0))","v":false},"7.B.1","","7.B","","7",""]
[null,null,null,"7.B.2","EP",false,{"$f":"IF(F295=TRUE,IF(VLOOKUP(D295,Data!$B$5:$I$306,8,0)=FALSE,FALSE,VLOOKUP(D295,Data!$B$5:$I$306,8,0)),FALSE)","v":false},"Calculated",{"$f":"IF(G295=FALSE,FALSE,VLOOKUP(G295,$A$2:B$5,2,0))","v":false},"","","","","",""]
[null,null,null,"7.B.2.1","Indicator",true,{"$f":"IF(F296=TRUE,IF(VLOOKUP(D296,Data!$B$5:$I$306,8,0)=FALSE,FALSE,VLOOKUP(D296,Data!$B$5:$I$306,8,0)),FALSE)","v":false},"Answer",{"$f":"IF(G296=FALSE,FALSE,VLOOKUP(G296,$A$2:B$5,2,0))","v":false},"7.B.2","","7.B","","7",""]
[null,null,null,"7.B.2.2","Indicator",true,{"$f":"IF(F297=TRUE,IF(VLOOKUP(D297,Data!$B$5:$I$306,8,0)=FALSE,FALSE,VLOOKUP(D297,Data!$B$5:$I$306,8,0)),FALSE)","v":false},"Answer",{"$f":"IF(G297=FALSE,FALSE,VLOOKUP(G297,$A$2:B$5,2,0))","v":false},"7.B.2","","7.B","","7",""]
[null,null,null,"7.B.2.3","Indicator",true,{"$f":"IF(F298=TRUE,IF(VLOOKUP(D298,Data!$B$5:$I$306,8,0)=FALSE,FALSE,VLOOKUP(D298,Data!$B$5:$I$306,8,0)),FALSE)","v":false},"Answer",{"$f":"IF(G298=FALSE,FALSE,VLOOKUP(G298,$A$2:B$5,2,0))","v":false},"7.B.2","","7.B","","7",""]
[null,null,null,"7.B.2.4","Indicator",true,{"$f":"IF(F299=TRUE,IF(VLOOKUP(D299,Data!$B$5:$I$306,8,0)=FALSE,FALSE,VLOOKUP(D299,Data!$B$5:$I$306,8,0)),FALSE)","v":false},{"$f":"IF(OR(E299=A$7,E299=A$8,E299=A$9),\"Calculated\",\"Answer\")","v":"Answer"},{"$f":"IF(G299=FALSE,FALSE,VLOOKUP(G299,$A$2:B$5,2,0))","v":false},{"$f":"IF(F299=TRUE,LEFT(D299,5),\"\")","v":"7.B.2"},"",{"$f":"IF(F299=TRUE,LEFT(D299,3),\"\")","v":"7.B"},"",{"$f":"IF(F299=TRUE,LEFT(D299,1),\"\")","v":"7"},""]
[null,null,null,null,null,null,{"$f":"IF(F300=TRUE,IF(VLOOKUP(D300,Data!$B$5:$I$306,8,0)=FALSE,FALSE,VLOOKUP(D300,Data!$B$5:$I$306,8,0)),FALSE)","v":false},"Answer",{"$f":"IF(G300=FALSE,FALSE,VLOOKUP(G300,$A$2:B$5,2,0))","v":false},"","","","","",""]
[null,null,null,null,null,null,{"$f":"IF(F301=TRUE,IF(VLOOKUP(D301,Data!$B$5:$I$306,8,0)=FALSE,FALSE,VLOOKUP(D301,Data!$B$5:$I$306,8,0)),FALSE)","v":false},"Answer",{"$f":"IF(G301=FALSE,FALSE,VLOOKUP(G301,$A$2:B$5,2,0))","v":false},"",{"$f":"IFERROR(IF(AND(F301=TRUE,COUNTIF(INDIRECT(\"J\"&ROW(#REF!)&\":J\"&$B$13),J301)=0),AVERAGEIFS(I:I,J:J,LEFT(D301,5)),\"\"),\"\")","v":""},"",{"$f":"IFERROR(IF(AND(F301=TRUE,COUNTIF(INDIRECT(\"L\"&ROW(#REF!)&\":L\"&$B$13),L301)=0),AVERAGEIFS(I:I,L:L,LEFT(D301,3)),\"\"),\"\")","v":""},"",{"$f":"IFERROR(IF(AND(F301=TRUE,COUNTIF(INDIRECT(\"n\"&ROW(#REF!)&\":n\"&$B$13),N301)=0),AVERAGEIFS(M:M,N:N,LEFT(D301,1)),\"\"),\"\")","v":""}]

{"sheet":"filters","index":12,"n_rows":4,"n_cols":1,"rows_kept":4,"cut":false,"hidden":true,"merged":[]}
["Scope_animal_welfare"]
["Scope_food_safety"]
["Scope_market_preferences"]
["Scope_food_security"]